Workbook

Sheet Instructions
A2: Version 02.09.2017
B10: Extension Ag Economics
B11: Master Marketer
B12: Farm Assistance
B13: Market Outlook
B14: Futures Charts and Prices
B15: Introduction
A16: This tool requires Microsoft Excel. Budget cost estimates are not meant to represent any specific farm. They are averages, and serve as a starting point in your analysis. Due to differences in soil types and other resources that vary from farm to farm, it is important that you enter individualized crop cost estimates to achieve realistic results. To make long run decisions and determine farm business sustainability in future years, you will need to estimate fixed costs as well.
B27: From Sheet to Sheet
A28: Each crop budget (Irr Alfalfa, Irr Corn, etc) and analysis section (Prices, Break-Even, Comparative) is displayed on a separate tab/sheet. However, summary tables in the analyses portion of this spreadsheet are tied to the budgets by equations, and will immediately update as you make changes to the individual budgets.
A32: The Menu sheet provides direct access to all crop budgets and summary pages from one location. It also allows the user to select the crops and scenarios they wish to see in the analyses tabs. To return to the Menu or navigate to the Prices, Break-even, or Comparative sections, use the colored navigation bar at the top of each sheet.
A36: Click on the crop budget name at the bottom of the screen to move from tab to tab. To scroll left or right and get access to budgets not listed on the screen, use the four small triangles in the bottom left corner of the worksheet. Clicking on one of the triangles with a vertical line will take you to the first sheet or the last sheet. Clicking on one of the triangles in the center will move over one sheet either left or right.
B41: Entering Your Numbers
A42: To enter personalized data in a budget, click on the number in BLUE that you wish to change, type in the new entry and press the Enter key, or just use the mouse to click on the next number that needs changing. GREEN entries can only be altered in the Universal Input Prices sheet. If the meaning of a certain budget number is unclear, many have a red triangle beside the entry. Moving your mouse over the triangle will provide a more detailed explanation.
B47: Printing
A48: If visible, click on the printer icon above the screen. It is usually found on the second row from the top. This should print a copy of the worksheet currently being viewed. For multiple sheets, select the ones you wish to see by holding down the control key while left-clicking on each sheet/tab. Then, selecting the printer icon will print all chosen sheets. If the icon is not visible, choose the File menu and then Print from the upper left corner, then follow the same procedures as above.
B53: Saving Your Work
A54: If you want to keep the numbers entered for future sessions, all files must be saved. To do this, just click on the Save icon (disk) to replace the original information with your new data. If the Save icon is not visible, you can also select the File menu and then Save As and give the file a new name.

Sheet Menu
B3: Budgets | D3: Analysis Selection
B4: ='Irr Alfalfa'!$A$3 -> Irrigated Alfalfa
B5: ='Irr Blackeyes'!$A$3 -> Irrigated Blackeyed Peas
B6: ='Irr Corn'!$A$3 -> Irrigated Corn
B7: ='Irr Corn Silage'!$A$3 -> Irrigated Corn Silage
B8: ='Irr Cotton Drip'!$A$3 -> Irrigated Cotton - Drip
B9: ='Irr Cotton Pivot'!$A$3 -> Irrigated Cotton - Pivot
B10: Irrigated Guar
B11: ='Irr Peanuts'!$A$3 -> Irrigated Peanuts
B12: ='Irr Sesame'!$A$3 -> Irrigated Sesame
B13: ='Irr Sorghum'!$A$3 -> Irrigated Sorghum
B14: ='Irr Sorghum Silage'!$A$3 -> Irrigated Sorghum Silage
B15: ='Irr Soybeans'!$A$3 -> Irrigated Soybeans
B16: ='Irr Sunflowers-Confection'!$A$3 -> Irrigated Sunflowers-Confectionary
B17: ='Irr Sunflowers-Oilseed'!$A$3 -> Irrigated Sunflowers-Oilseed
B18: ='Irr Wheat'!$A$3 -> Irrigated Wheat
B20: ='Dry Cotton Conventional'!$A$3 -> Dryland Cotton - Conventional
B21: ='Dry Cotton HT'!$A$3 -> Dryland Cotton - Herbicide Tolerant
B22: Dryland Guar
B23: ='Dry Sesame'!$A$3 -> Dryland Sesame
B24: ='Dry Sorghum'!$A$3 -> Dryland Sorghum
B25: ='Dry Sunflowers-Oilseed'!$A$3 -> Dryland Sunflowers-Oilseed
B26: ='Dry Wheat'!$A$3 -> Dryland Wheat

Sheet 2017 Universal Input Prices
B2: Basic Universal Input Prices
B3: Commodity | C3: Price | D3: Unit | E3: Verified
B4: Alfalfa | C4: 200 | D4: /ton | E4: x
B5: Blackeyed Peas | C5: 0.34 | D5: /lb | E5: x
B6: Corn | C6: 4.2 | D6: /bu | E6: x
B7: Corn Silage | C7: 36 | D7: /ton | E7: x
B8: Cotton | C8: 0.67 | D8: /lb | E8: x
B9: Cottonseed | C9: 200 | D9: /ton | E9: x
B10: Guar | C10: 0.16 | D10: /lb
B11: Peanuts | C11: 400 | D11: /ton | E11: x
B12: Sesame - Irrigated | C12: 0.32 | D12: /lb | E12: x
B13: Sesame - Non-irrigated | C13: 0.28 | D13: /lb | E13: x
B14: Sorghum | C14: 7 | D14: /cwt | E14: x
B15: Sorghum Seed | C15: 14 | D15: /cwt | E15: x
B16: Sorghum Silage | C16: 33 | D16: /ton | E16: x
B17: Soybeans | C17: 9 | D17: /bu | E17: x
B18: Sunflower - Conf. (large) | C18: 0.24 | D18: /lb | E18: x
B19: Sunflower - Conf. (small) | C19: 0.16 | D19: /lb | E19: x
B20: Sunflower - Oil | C20: 0.14 | D20: /lb | E20: x
B21: Wheat | C21: 5.2 | D21: /bu | E21: x
B23: Grazing | C23: 0.45 | D23: /lb of gain
B25: Input Item | C25: Price | D25: Unit | F25: Fertilizer Worksheet
B26: Fertilizer | K26: Cost per ton
B27: fert (N) - dry | C27: =K27/J27/2000 -> 0.3804347826 | D27: /lb of N | F27: % N in Primary Nitrogen Fertilizer - dry | J27: 0.46 | K27: 350
B28: fert (N) - liquid | C28: 0.3984375 | D28: /lb of N | F28: % N in Primary Nitrogen Fertilizer - liquid | J28: 0.32 | K28: 255
B29: fert (N) - NH3 | C29: =K29/J29/2000 -> 0.3048780488 | D29: /lb of N | F29: % N in Primary Nitrogen Fertilizer - NH3 | J29: 0.82 | K29: 500
B30: fert (P) - dry | C30: =K30/J30/2000 -> 0.4567307692 | D30: /lb of P | F30: % P in Primary Phosphate Fertilizer - dry | J30: 0.52 | K30: 475
B31: fert (P) - liquid | C31: =K31/J31/2000 -> 0.5220588235 | D31: /lb of P | F31: % P in Primary Phosphate Fertilizer - liquid | J31: 0.34 | K31: 355
B32: Labor | C32: 12 | D32: /hour
B33: Diesel Fuel - Tractors | C33: 1.84 | D33: /gallon
B34: Gasoline - Pickup | C34: 1.94 | D34: /gallon
B35: Irrigation Fuel | C35: 11 | D35: /acre-inch
B36: Interest-operating capital | C36: 0.06 | D36: APR
B37: Cotton
B38: Stripping & module | C38: 0.08 | D38: /lb. cotton lint
B39: Ginning | C39: 2.9 | D39: /cwt seed cotton
B40: Seed Turnout | C40: 710 | D40: lbs/500 lb bale

Sheet Irr Alfalfa
A2: Estimated Costs and Returns per Acre
A3: Irrigated Alfalfa
A4: Projected for 2017
H5: Rental Agreement | I5: Share
A6: Item | B6: Quantity | C6: Unit | D6: Price | E6: Owner | H6: Share | I6: Cash
E7: Share | F7: Total | G7: Operator | H7: Owner
A8: Income
A9: alfalfa hay | B9: 6 | C9: tons | D9: =Alfalfa_Price -> 200 | E9: 0.25 | F9: =D9*B9 -> 1200 | G9: =F9*(1-E9) -> 900 | H9: =IF(H6="Cash", D56,F9*E9) -> 300
A11: Total Income | F11: =SUM(F8:F10) -> 1200 | G11: =SUM(G8:G10) -> 900 | H11: =SUM(H8:H10) -> 300
A13: Variable Costs
A14: Seed | B14: 0 | C14: lbs | D14: 4.25 | E14: 0 | F14: =D14*B14 -> 0 | G14: =F14*(1-E14) -> 0 | H14: =F14*E14 -> 0
A15: Fertilizer
A16: fert (P) - liquid | B16: 65 | C16: lbs | D16: =IF(A16="",0,VLOOKUP(A16,'2017 Universal Input Prices'!$B$27:$C$31, 2)) -> 0.5220588235 | E16: 0.25 | F16: =D16*B16 -> 33.93382353 | G16: =F16*(1-E16) -> 25.45036765 | H16: =F16*E16 -> 8.483455882
A17: fert (N) - liquid | B17: 30 | C17: lbs | D17: =IF(A17="",0,VLOOKUP(A17,'2017 Universal Input Prices'!$B$27:$C$31, 2)) -> 0.3984375 | E17: 0.25 | F17: =D17*B17 -> 11.953125 | G17: =F17*(1-E17) -> 8.96484375 | H17: =F17*E17 -> 2.98828125
B18: 0 | C18: lbs | D18: =IF(A18="",0,VLOOKUP(A18,'2017 Universal Input Prices'!$B$27:$C$31, 2)) -> 0 | E18: 0 | F18: =D18*B18 -> 0 | G18: =F18*(1-E18) -> 0 | H18: =F18*E18 -> 0
A19: sulfur | B19: 12 | C19: lbs | D19: 0.12 | E19: 0.25 | F19: =D19*B19 -> 1.44 | G19: =F19*(1-E19) -> 1.08 | H19: =F19*E19 -> 0.36
A20: Field Operations
A21: herbicide & application | B21: 1 | C21: acre | D21: 22 | E21: 0 | F21: =D21*B21 -> 22 | G21: =F21*(1-E21) -> 22 | H21: =F21*E21 -> 0
A22: fertilizer application | B22: 1 | C22: acre | D22: 3.5 | E22: 0.25 | F22: =D22*B22 -> 3.5 | G22: =F22*(1-E22) -> 2.625 | H22: =F22*E22 -> 0.875
A23: insecticide & application | B23: 1 | C23: acre | D23: 25.9 | E23: 0.25 | F23: =D23*B23 -> 25.9 | G23: =F23*(1-E23) -> 19.425 | H23: =F23*E23 -> 6.475
A24: custom baling | B24: =$B$9 -> 6 | C24: tons | D24: 50 | E24: 0.25 | F24: =D24*B24 -> 300 | G24: =F24*(1-E24) -> 225 | H24: =F24*E24 -> 75
A25: crop consultant | B25: 1 | C25: acre | D25: 6 | E25: 0 | F25: =D25*B25 -> 6 | G25: =F25*(1-E25) -> 6 | H25: =F25*E25 -> 0
A26: scouting | B26: 1 | C26: acre | D26: 0 | E26: 0 | F26: 0 | G26: 0 | H26: 0
A27: other | B27: 1 | C27: acre | D27: 0 | E27: 0 | F27: 0 | G27: 0 | H27: 0
A28: other | B28: 1 | C28: acre | D28: 0 | E28: 0 | F28: 0 | G28: 0 | H28: 0
A29: other | B29: 1 | C29: acre | D29: 0 | E29: 0 | F29: 0 | G29: 0 | H29: 0
A30: Crop Insurance | B30: 1 | C30: acre | D30: 2.5 | E30: 0 | F30: 2.5 | G30: 2.5 | H30: 0
A31: Operator Labor & Hand Labor | B31: 1 | C31: hour | D31: ='2017 Universal Input Prices'!$C$32 -> 12 | E31: 0 | F31: 12 | G31: 12 | H31: 0
A32: Irrigation Labor | B32: 1.25 | C32: hours | D32: ='2017 Universal Input Prices'!$C$32 -> 12 | E32: 0 | F32: 15 | G32: 15 | H32: 0
A33: Diesel Fuel - Tractors | B33: 2 | C33: gallons | D33: ='2017 Universal Input Prices'!$C$33 -> 1.84 | E33: 0 | F33: 3.68 | G33: 3.68 | H33: 0
A34: Gasoline - Pickup | B34: 2 | C34: gallons | D34: ='2017 Universal Input Prices'!$C$34 -> 1.94 | E34: 0 | F34: 3.88 | G34: 3.88 | H34: 0
A35: Irrigation Fuel | B35: 24 | C35: ac-in | D35: ='2017 Universal Input Prices'!$C$35 -> 11 | E35: 0 | F35: =D35*B35 -> 264 | G35: =F35*(1-E35) -> 264 | H35: =F35*E35 -> 0
A36: Pumping Days | B36: 56.57
A37: Calculated GPM capacity per acre needed | B37: =B35*18.85694/B36 -> 8.000115963
A38: Repair & Maintenance
A39: Implements | B39: 1 | C39: acre | D39: 3 | E39: 0 | F39: =D39*B39 -> 3 | G39: =F39*(1-E39) -> 3 | H39: =F39*E39 -> 0
A40: Tractors | B40: 1 | C40: acre | D40: 6 | E40: 0 | F40: =D40*B40 -> 6 | G40: =F40*(1-E40) -> 6 | H40: =F40*E40 -> 0
A41: Irrigation-Above Ground | B41: =B35 -> 24 | C41: ac-in | D41: 1 | E41: 0 | F41: =D41*B41 -> 24 | G41: =F41*(1-E41) -> 24 | H41: =F41*E41 -> 0
A42: Irrigation-Below Ground | B42: 1 | C42: acre | D42: 18 | E42: 1 | F42: =D42*B42 -> 18 | G42: =F42*(1-E42) -> 0 | H42: =F42*E42 -> 18
A43: Pickup | B43: 1 | C43: acre | D43: 0.5 | E43: 0 | F43: =D43*B43 -> 0.5 | G43: =F43*(1-E43) -> 0.5 | H43: =F43*E43 -> 0
A44: Interest-operating capital | B44: ='2017 Universal Input Prices'!$C$36 -> 0.06 | F44: =(SUM(F14:F23,F25:F43))*$B44/2 -> 13.71860846 | G44: =(SUM(G14:G23,G25:G43))*$B44/2 -> 12.60315634 | H44: 1.115452114
A46: Total Variable Costs | F46: =SUM(F14:F45) -> 771.005557 | G46: =SUM(G14:G44) -> 657.7083677 | H46: =SUM(H14:H44) -> 113.2971892
A47: Returns Above Variable Costs | F47: =F11-F46 -> 428.994443 | G47: =G11-G46 -> 242.2916323 | H47: =H11-H46 -> 186.7028108
A49: Fixed Costs
A50: Implements | B50: 1 | C50: acre | D50: 10 | E50: 0 | F50: =D50*B50 -> 10 | G50: =F50*(1-E50) -> 10 | H50: =F50*E50 -> 0
A51: Tractors | B51: 1 | C51: acre | D51: 12 | E51: 0 | F51: 12 | G51: 12 | H51: 0
A52: Irrigation-Above Ground | B52: 1 | C52: acre | D52: 40 | E52: 1 | F52: 40 | G52: 0 | H52: 40
A53: Irrigation-Below Ground | B53: 1 | C53: acre | D53: 15 | E53: 1 | F53: 15 | G53: 0 | H53: 15
A54: Pickup | B54: 1 | C54: acre | D54: 1.25 | E54: 0 | F54: 1.25 | G54: 1.25 | H54: 0
A55: Management | B55: 1 | C55: acre | D55: 25 | E55: 0 | F55: 25 | G55: 25 | H55: 0
A56: Whole Farm Insurance | B56: 1 | C56: acre | D56: 2 | E56: 0 | F56: 2 | G56: 2 | H56: 0
A57: Land | B57: 1 | C57: acre | D57: 75 | E57: 1 | F57: 75 | G57: =IF($H$6="Cash",D57,F57*(1-E57)) -> 0 | H57: =IF($H$6="Cash",0,F57*E57) -> 75
A58: Property Tax | B58: 1 | C58: acre | D58: 9 | E58: 1 | F58: 9 | G58: 0 | H58: 9
A59: Perenial Crop Establishment | B59: 1 | C59: acre | D59: 100 | E59: 0 | F59: =B59*D59 -> 100 | G59: =F59*(1-E59) -> 100 | H59: =F59*E59 -> 0
A60: Total Fixed Costs | F60: =SUM(F50:F59) -> 289.25 | G60: =SUM(G50:G59) -> 150.25 | H60: =SUM(H50:H59) -> 139
A61: Total Specified Costs | F61: =F46+F60 -> 1060.255557 | G61: =G46+G60 -> 807.9583677 | H61: =H46+H60 -> 252.2971892
A62: Returns Above Total Specified Costs | F62: =F11-F61 -> 139.744443 | G62: =G11-G61 -> 92.04163226 | H62: =H11-H61 -> 47.70281075
A64: If you have questions, contact Jackie Smith at 806-746-6101
A67: Supported by a grant from the
A68: Texas Cotton State Support Committee

Sheet Irr Blackeyes
A2: Estimated Costs and Returns per Acre
A3: Irrigated Blackeyed Peas
A4: Projected for 2017
H5: Rental Agreement
A6: Item | B6: Quantity | C6: Unit | D6: Price | E6: Owner | H6: Share | I6: Cash
E7: Share | F7: Total | G7: Operator | H7: Owner
A8: Income
A9: blackeyed peas | B9: 1850 | C9: lbs | D9: =Blackeye_Price -> 0.34 | E9: 0.25 | F9: =D9*B9 -> 629 | G9: =F9*(1-E9) -> 471.75 | H9: =IF(H6="Cash", D57,F9*E9) -> 157.25
A11: Total Income | F11: =SUM(F9:F10) -> 629 | G11: =SUM(G9:G10) -> 471.75 | H11: =SUM(H9:H10) -> 157.25
A13: Direct Costs
A14: Seed | B14: 50 | C14: lbs | D14: 0.45 | E14: 0 | F14: =D14*B14 -> 22.5 | G14: =F14*(1-E14) -> 22.5 | H14: =F14*E14 -> 0
A15: Fertilizer
A16: fert (N) - liquid | B16: 40 | C16: lbs | D16: =IF(A16="",0,VLOOKUP(A16,'2017 Universal Input Prices'!$B$27:$C$31, 2)) -> 0.3984375 | E16: 0.25 | F16: =D16*B16 -> 15.9375 | G16: =F16*(1-E16) -> 11.953125 | H16: =F16*E16 -> 3.984375
B17: 0 | C17: lbs | D17: =IF(A17="",0,VLOOKUP(A17,'2017 Universal Input Prices'!$B$27:$C$31, 2)) -> 0 | E17: 0 | F17: =D17*B17 -> 0 | G17: =F17*(1-E17) -> 0 | H17: =F17*E17 -> 0
B18: 0 | C18: lbs | D18: =IF(A18="",0,VLOOKUP(A18,'2017 Universal Input Prices'!$B$27:$C$31, 2)) -> 0 | E18: 0 | F18: =D18*B18 -> 0 | G18: =F18*(1-E18) -> 0 | H18: =F18*E18 -> 0
A19: Field Operations
A20: herbicide | B20: 1 | C20: acre | D20: 10 | E20: 0 | F20: =D20*B20 -> 10 | G20: =F20*(1-E20) -> 10 | H20: =F20*E20 -> 0
A21: fert application | B21: 0 | C21: acre | D21: 0 | E21: 0 | F21: 0 | G21: 0 | H21: 0
A22: insecticide | B22: 0 | C22: acre | D22: 0 | E22: 0.25 | F22: 0 | G22: 0 | H22: 0
A23: custom harvest & haul | B23: =B9/100 -> 18.5 | C23: cwt | D23: 0.2 | E23: 0.25 | F23: 3.7 | G23: 2.775 | H23: 0.925
A24: custom harvest & haul | B24: 1 | C24: acre | D24: 30 | E24: 0.25 | F24: 30 | G24: 22.5 | H24: 7.5
A25: hoeing | B25: 1 | C25: acre | D25: 15 | E25: 0 | F25: 15 | G25: 15 | H25: 0
A26: scouting | B26: 1 | C26: acre | D26: 0 | E26: 0 | F26: 0 | G26: 0 | H26: 0
A27: fungicide | B27: 1 | C27: acre | D27: 12 | E27: 0.25 | F27: 12 | G27: 9 | H27: 3
A28: other | B28: 1 | C28: acre | D28: 0 | E28: 0 | F28: 0 | G28: 0 | H28: 0
A29: other | B29: 1 | C29: acre | D29: 0 | E29: 0 | F29: 0 | G29: 0 | H29: 0
A30: Crop Insurance | B30: 1 | C30: acre | D30: 24 | E30: 0.25 | F30: 24 | G30: 18 | H30: 6
A31: Operator Labor | B31: 1 | C31: hours | D31: ='2017 Universal Input Prices'!$C$32 -> 12 | E31: 0 | F31: 12 | G31: 12 | H31: 0
A32: Irrigation Labor | B32: 0.75 | C32: hours | D32: ='2017 Universal Input Prices'!$C$32 -> 12 | E32: 0 | F32: 9 | G32: 9 | H32: 0
A33: Diesel Fuel - Tractors | B33: 2.4 | C33: gallons | D33: ='2017 Universal Input Prices'!$C$33 -> 1.84 | E33: 0 | F33: 4.416 | G33: 4.416 | H33: 0
A34: Gasoline - Pickup | B34: 2 | C34: gallons | D34: ='2017 Universal Input Prices'!$C$34 -> 1.94 | E34: 0 | F34: 3.88 | G34: 3.88 | H34: 0
A35: Irrigation Fuel | B35: 8 | C35: ac-in | D35: ='2017 Universal Input Prices'!$C$35 -> 11 | E35: 0 | F35: 88 | G35: 88 | H35: 0
A36: Pumping Days | B36: 60.4
A37: Calculated GPM capacity per acre needed | B37: =B35*18.85694/B36 -> 2.497607947
A38: Repair & Maintenance
A39: Implements | B39: 1 | C39: acre | D39: 3 | E39: 0 | F39: =D39*B39 -> 3 | G39: =F39*(1-E39) -> 3 | H39: =F39*E39 -> 0
A40: Tractors | B40: 1 | C40: acre | D40: 6 | E40: 0 | F40: =D40*B40 -> 6 | G40: =F40*(1-E40) -> 6 | H40: =F40*E40 -> 0
A41: Irrigation-Above Ground | B41: 1 | C41: acre | D41: 8 | E41: 0 | F41: =D41*B41 -> 8 | G41: =F41*(1-E41) -> 8 | H41: =F41*E41 -> 0
A42: Irrigation-Below Ground | B42: 1 | C42: acre | D42: 6 | E42: 1 | F42: =D42*B42 -> 6 | G42: =F42*(1-E42) -> 0 | H42: =F42*E42 -> 6
A43: Pickup | B43: 1 | C43: acre | D43: 0.5 | E43: 0 | F43: =D43*B43 -> 0.5 | G43: =F43*(1-E43) -> 0.5 | H43: =F43*E43 -> 0
A44: Interest-operating capital | B44: ='2017 Universal Input Prices'!$C$36 -> 0.06 | F44: =(SUM(F14:F22,F25:F43))*$B44/2 -> 7.207005 | G44: =(SUM(G14:G22,G25:G43))*$B44/2 -> 6.63747375 | H44: =(SUM(H14:H22,H25:H43))*$B44/2 -> 0.56953125
A46: Total Direct Costs | F46: =SUM(F14:F44) -> 281.140505 | G46: =SUM(G14:G44) -> 253.1615987 | H46: =SUM(H14:H44) -> 27.97890625
A47: Returns Above Direct Costs | F47: =F11-F46 -> 347.859495 | G47: =G11-G46 -> 218.5884013 | H47: =H11-H46 -> 129.2710938
A49: Fixed Costs
A50: Implements | B50: 1 | C50: acre | D50: 10 | E50: 0 | F50: =D50*B50 -> 10 | G50: =F50*(1-E50) -> 10 | H50: =F50*E50 -> 0
A51: Tractors | B51: 1 | C51: acre | D51: 12 | E51: 0 | F51: 12 | G51: 12 | H51: 0
A52: Irrigation-Above Ground | B52: 1 | C52: acre | D52: 40 | E52: 1 | F52: 40 | G52: 0 | H52: 40
A53: Irrigation-Below Ground | B53: 1 | C53: acre | D53: 15 | E53: 1 | F53: 15 | G53: 0 | H53: 15
A54: Pickup | B54: 1 | C54: acre | D54: 1.25 | E54: 0 | F54: 1.25 | G54: 1.25 | H54: 0
A55: Management | B55: 1 | C55: acre | D55: 25 | E55: 0 | F55: 25 | G55: 25 | H55: 0
A56: Whole Farm Insurance | B56: 1 | C56: acre | D56: 2 | E56: 0 | F56: =B56*D56 -> 2 | G56: 2 | H56: 0
A57: Land | B57: 1 | C57: acre | D57: 75 | E57: 1 | F57: =D57*B57 -> 75 | G57: =IF($H$6="Cash",D57,F57*(1-E57)) -> 0 | H57: =IF($H$6="Cash",0,F57*E57) -> 75
A58: Property Tax | B58: 1 | C58: acre | D58: 9 | E58: 1 | F58: =B58*D58 -> 9 | G58: =F58*(1-E58) -> 0 | H58: =F58*E58 -> 9
A59: Total Fixed Expenses | F59: =SUM(F50:F58) -> 189.25 | G59: =SUM(G50:G58) -> 50.25 | H59: =SUM(H50:H58) -> 139
A60: Total Specified Expenses | F60: =F46+F59 -> 470.390505 | G60: =G46+G59 -> 303.4115987 | H60: =H46+H59 -> 166.9789062
A61: Returns Above Total Specified Expenses | F61: =F11-F60 -> 158.609495 | G61: =G11-G60 -> 168.3384013 | H61: =H11-H60 -> -9.72890625
A63: If you have questions, contact Jackie Smith at 806-746-6101
A66: Supported by a grant from the
A67: Texas Cotton State Support Committee

Sheet Irr Corn
A2: Estimated Costs and Returns per Acre
A3: Irrigated Corn
A4: Projected for 2017
H5: Rental Agreement | I5: Share
A6: Item | B6: Quantity | C6: Unit | D6: Price | E6: Owner | H6: Share | I6: Cash
E7: Share | F7: Total | G7: Operator | H7: Owner
A8: Income
A9: corn grain | B9: 210 | C9: bu | D9: ='2017 Universal Input Prices'!$C$6 -> 4.2 | E9: 0.25 | F9: =D9*B9 -> 882 | G9: =F9*(1-E9) -> 661.5 | H9: =IF(H6="Cash", D56,F9*E9) -> 220.5
A11: Total Income | F11: =F9 -> 882 | G11: =G9 -> 661.5 | H11: =H9 -> 220.5
A13: Variable Costs
A14: Seed | B14: 0.4375 | C14: bags | D14: 272 | E14: 0 | F14: =D14*B14 -> 119 | G14: =F14*(1-E14) -> 119 | H14: =F14*E14 -> 0
A15: Fertilizer
A16: fert (N) - liquid | B16: 120 | C16: lbs | D16: =IF(A16="",0,VLOOKUP(A16,'2017 Universal Input Prices'!$B$27:$C$31, 2)) -> 0.3984375 | E16: 0.25 | F16: =D16*B16 -> 47.8125 | G16: =F16*(1-E16) -> 35.859375 | H16: =F16*E16 -> 11.953125
A17: fert (P) - dry | B17: 108 | C17: lbs | D17: =IF(A17="",0,VLOOKUP(A17,'2017 Universal Input Prices'!$B$27:$C$31, 2)) -> 0.4567307692 | E17: 0.25 | F17: =D17*B17 -> 49.32692308 | G17: 36.99519231 | H17: 12.33173077
A18: fert (N) - NH3 | B18: 150 | C18: lbs | D18: =IF(A18="",0,VLOOKUP(A18,'2017 Universal Input Prices'!$B$27:$C$31, 2)) -> 0.3048780488 | E18: 0.25 | F18: =D18*B18 -> 45.73170732 | G18: =F18*(1-E18) -> 34.29878049 | H18: =F18*E18 -> 11.43292683
A19: Field Operations
A20: herbicide & application | B20: 1 | C20: acre | D20: 45 | E20: 0 | F20: =D20*B20 -> 45 | G20: =F20*(1-E20) -> 45 | H20: =F20*E20 -> 0
A21: fertilizer application | B21: 1 | C21: acre | D21: 12 | E21: 0.25 | F21: 12 | G21: 9 | H21: 3
A22: insecticide & application | B22: 1 | C22: acre | D22: 25 | E22: 0.25 | F22: 25 | G22: 18.75 | H22: 6.25
A23: custom harvest & haul | B23: =$B$9 -> 210 | C23: bu | D23: 0.35 | E23: 0.25 | F23: 73.5 | G23: 55.125 | H23: 18.375
A24: crop consultant | B24: 1 | C24: acre | D24: 6 | E24: 0 | F24: 6 | G24: 6 | H24: 0
A25: scouting | B25: 1 | C25: acre | D25: 0 | E25: 0 | F25: =D25*B25 -> 0 | G25: =F25*(1-E25) -> 0 | H25: =F25*E25 -> 0
A26: other | B26: 1 | C26: acre | D26: 0 | E26: 0 | F26: 0 | G26: 0 | H26: 0
A27: other | B27: 1 | C27: acre | D27: 0 | E27: 0 | F27: 0 | G27: 0 | H27: 0
A28: other | B28: 1 | C28: acre | D28: 0 | E28: 0 | F28: 0 | G28: 0 | H28: 0
A29: Crop Insurance | B29: 1 | C29: acre | D29: 15.5 | E29: 0.25 | F29: 15.5 | G29: 11.625 | H29: 3.875
A30: Operator Labor & Hand Labor | B30: 1 | C30: hour | D30: ='2017 Universal Input Prices'!$C$32 -> 12 | E30: 0 | F30: 12 | G30: 12 | H30: 0
A31: Irrigation Labor | B31: 1.25 | C31: hours | D31: ='2017 Universal Input Prices'!$C$32 -> 12 | E31: 0 | F31: 15 | G31: 15 | H31: 0
A32: Diesel Fuel - Tractors | B32: 2.4 | C32: gallons | D32: ='2017 Universal Input Prices'!$C$33 -> 1.84 | E32: 0 | F32: 4.416 | G32: 4.416 | H32: 0
A33: Gasoline - Pickup | B33: 2 | C33: gallons | D33: ='2017 Universal Input Prices'!$C$34 -> 1.94 | E33: 0 | F33: 3.88 | G33: 3.88 | H33: 0
A34: Irrigation Fuel | B34: 24 | C34: ac-in | D34: ='2017 Universal Input Prices'!$C$35 -> 11 | E34: 0 | F34: 264 | G34: 264 | H34: 0
A35: Pumping Days | B35: 75.4
A36: Calculated GPM capacity per acre needed | B36: =B34*18.85694/B35 -> 6.002209019
A37: Repair & Maintenance
A38: Implements | B38: 1 | C38: acre | D38: 3 | E38: 0 | F38: =D38*B38 -> 3 | G38: 3 | H38: 0
A39: Tractors | B39: 1 | C39: acre | D39: 6 | E39: 0 | F39: =D39*B39 -> 6 | G39: 6 | H39: 0
A40: Irrigation-Above Ground | B40: =Corn_Inches -> 24 | C40: ac-in | D40: 1 | E40: 0 | F40: =D40*B40 -> 24 | G40: 24 | H40: 0
A41: Irrigation-Below Ground | B41: 1 | C41: acre | D41: 18 | E41: 1 | F41: =D41*B41 -> 18 | G41: 0 | H41: 18
A42: Pickup | B42: 1 | C42: acre | D42: 0.5 | E42: 0 | F42: =D42*B42 -> 0.5 | G42: 0.5 | H42: 0
A43: Interest-operating capital | B43: ='2017 Universal Input Prices'!$C$36 -> 0.06 | F43: =(SUM(F14:F22,F24:F42))*$B43/2 -> 21.48501391 | G43: =(SUM(G14:G22,G24:G42))*$B43/2 -> 19.47973043 | H43: 2.005283478
A45: Total Variable Costs | F45: =SUM(F14:F43) -> 811.1521443 | G45: =SUM(G14:G43) -> 723.9290782 | H45: =SUM(H14:H43) -> 87.22306608
A46: Returns Above Variable Costs | F46: =F11-F45 -> 70.84785569 | G46: =G11-G45 -> -62.42907823 | H46: =H11-H45 -> 133.2769339
A48: Fixed Costs
A49: Implements | B49: 1 | C49: acre | D49: 10 | E49: 0 | F49: =D49*B49 -> 10 | G49: =F49*(1-E49) -> 10 | H49: =F49*E49 -> 0
A50: Tractors | B50: 1 | C50: acre | D50: 12 | E50: 0 | F50: 12 | G50: 12 | H50: 0
A51: Irrigation-Above Ground | B51: 1 | C51: acre | D51: 40 | E51: 1 | F51: 40 | G51: 0 | H51: 40
A52: Irrigation-Below Ground | B52: 1 | C52: acre | D52: 15 | E52: 1 | F52: 15 | G52: 0 | H52: 15
A53: Pickup | B53: 1 | C53: acre | D53: 1.25 | E53: 0 | F53: 1.25 | G53: 1.25 | H53: 0
A54: Management | B54: 1 | C54: acre | D54: 25 | E54: 0 | F54: 25 | G54: 25 | H54: 0
A55: Whole Farm Insurance | B55: 1 | C55: acre | D55: 2 | E55: 0 | F55: 2 | G55: 2 | H55: 0
A56: Land | B56: 1 | C56: acre | D56: 100 | E56: 1 | F56: 100 | G56: =IF($H$6="Cash",D56,F56*(1-E56)) -> 0 | H56: =IF($H$6="Cash",0,F56*E56) -> 100
A57: Property Tax | B57: 1 | C57: acre | D57: 12 | E57: 1 | F57: 12 | G57: 0 | H57: 12
A58: Total Fixed Expenses | F58: =SUM(F49:F57) -> 217.25 | G58: =SUM(G49:G57) -> 50.25 | H58: =SUM(H49:H57) -> 167
A59: Total Specified Expenses | F59: =F45+F58 -> 1028.402144 | G59: =G45+G58 -> 774.1790782 | H59: =H45+H58 -> 254.2230661
A60: Returns Above Total Specified Expenses | F60: =F11-F59 -> -146.4021443 | G60: =G11-G59 -> -112.6790782 | H60: =H11-H59 -> -33.72306608
A62: If you have questions, contact Jackie Smith at 806-746-6101
A65: Supported by a grant from the
A66: Texas Cotton State Support Committee

Sheet Irr Corn Silage
A2: Estimated Costs and Returns per Acre
A3: Irrigated Corn Silage
A4: Projected for 2017
H5: Rental Agreement | I5: Share
A6: Item | B6: Quantity | C6: Unit | D6: Price | E6: Owner | H6: Share | I6: Cash
E7: Share | F7: Total | G7: Operator | H7: Owner
A8: Income
A9: corn silage | B9: 26 | C9: tons | D9: ='2017 Universal Input Prices'!$C$7 -> 36 | E9: 0.25 | F9: =D9*B9 -> 936 | G9: =F9*(1-E9) -> 702 | H9: =IF(H6="Cash", D56,F9*E9) -> 234
A11: Total Income | F11: =F9 -> 936 | G11: =G9 -> 702 | H11: =H9 -> 234
A13: Variable Costs
A14: Seed | B14: 0.5 | C14: bags | D14: 272 | E14: 0 | F14: =D14*B14 -> 136 | G14: =F14*(1-E14) -> 136 | H14: =F14*E14 -> 0
A15: Fertilizer
A16: fert (N) - liquid | B16: 175 | C16: lbs | D16: =IF(A16="",0,VLOOKUP(A16,'2017 Universal Input Prices'!$B$27:$C$31, 2)) -> 0.3984375 | E16: 0.25 | F16: =D16*B16 -> 69.7265625 | G16: =F16*(1-E16) -> 52.29492188 | H16: =F16*E16 -> 17.43164062
A17: fert (P) - dry | B17: 110 | C17: lbs | D17: =IF(A17="",0,VLOOKUP(A17,'2017 Universal Input Prices'!$B$27:$C$31, 2)) -> 0.4567307692 | E17: 0.25 | F17: =D17*B17 -> 50.24038462 | G17: =F17*(1-E17) -> 37.68028846 | H17: =F17*E17 -> 12.56009615
A18: fert (N) - NH3 | B18: 150 | C18: lbs | D18: =IF(A18="",0,VLOOKUP(A18,'2017 Universal Input Prices'!$B$27:$C$31, 2)) -> 0.3048780488 | E18: 0.25 | F18: =D18*B18 -> 45.73170732 | G18: =F18*(1-E18) -> 34.29878049 | H18: =F18*E18 -> 11.43292683
A19: Field Operations
A20: herbicide & application | B20: 1 | C20: acre | D20: 21.12 | E20: 0 | F20: =D20*B20 -> 21.12 | G20: =F20*(1-E20) -> 21.12 | H20: =F20*E20 -> 0
A21: fertilizer application | B21: 1 | C21: acre | D21: 11.75 | E21: 0.25 | F21: 11.75 | G21: 8.8125 | H21: 2.9375
A22: insecticide & application | B22: 1 | C22: appl | D22: 22.73 | E22: 0.25 | F22: 22.73 | G22: 17.0475 | H22: 5.6825
A23: custom harvest & haul | B23: =$B$9 -> 26 | C23: tons | D23: 7 | E23: 0.25 | F23: 182 | G23: 136.5 | H23: 45.5
A24: crop consultant | B24: 1 | C24: acre | D24: 0 | E24: 0 | F24: 0 | G24: 0 | H24: 0
A25: scouting | B25: 1 | C25: acre | D25: 0 | E25: 0 | F25: =D25*B25 -> 0 | G25: =F25*(1-E25) -> 0 | H25: =F25*E25 -> 0
A26: other | B26: 1 | C26: acre | D26: 0 | E26: 0 | F26: 0 | G26: 0 | H26: 0
A27: other | B27: 1 | C27: acre | D27: 0 | E27: 0 | F27: 0 | G27: 0 | H27: 0
A28: other | B28: 1 | C28: acre | D28: 0 | E28: 0 | F28: 0 | G28: 0 | H28: 0
A29: Crop Insurance | B29: 1 | C29: acre | D29: 15.5 | E29: 0.25 | F29: 15.5 | G29: 11.625 | H29: 3.875
A30: Operator Labor & Hand Labor | B30: 1 | C30: hour | D30: ='2017 Universal Input Prices'!$C$32 -> 12 | E30: 0 | F30: 12 | G30: 12 | H30: 0
A31: Irrigation Labor | B31: 1.25 | C31: hours | D31: ='2017 Universal Input Prices'!$C$32 -> 12 | E31: 0 | F31: 15 | G31: 15 | H31: 0
A32: Diesel Fuel - Tractors | B32: 2.4 | C32: gallons | D32: ='2017 Universal Input Prices'!$C$33 -> 1.84 | E32: 0 | F32: 4.416 | G32: 4.416 | H32: 0
A33: Gasoline - Pickup | B33: 2 | C33: gallons | D33: ='2017 Universal Input Prices'!$C$34 -> 1.94 | E33: 0 | F33: 3.88 | G33: 3.88 | H33: 0
A34: Irrigation Fuel | B34: 22 | C34: ac-in | D34: ='2017 Universal Input Prices'!$C$35 -> 11 | E34: 0 | F34: 242 | G34: 242 | H34: 0
A35: Pumping Days | B35: 75.4
A36: Calculated GPM capacity per acre needed | B36: =B34*18.85694/B35 -> 5.502024934
A37: Repair & Maintenance
A38: Implements | B38: 1 | C38: acre | D38: 3 | E38: 0 | F38: =D38*B38 -> 3 | G38: 3 | H38: 0
A39: Tractors | B39: 1 | C39: acre | D39: 6 | E39: 0 | F39: =D39*B39 -> 6 | G39: 6 | H39: 0
A40: Irrigation-Above Ground | B40: =B34 -> 22 | C40: ac-in | D40: 1 | E40: 0 | F40: =D40*B40 -> 22 | G40: 22 | H40: 0
A41: Irrigation-Below Ground | B41: 1 | C41: acre | D41: 18 | E41: 1 | F41: =D41*B41 -> 18 | G41: 0 | H41: 18
A42: Pickup | B42: 1 | C42: acre | D42: 0.5 | E42: 0 | F42: =D42*B42 -> 0.5 | G42: 0.5 | H42: 0
A43: Interest-operating capital | B43: ='2017 Universal Input Prices'!$C$36 -> 0.06 | F43: =(SUM(F14:F22,F24:F42))*$B43/2 -> 20.98783963 | G43: =(SUM(G14:G22,G24:G42))*$B43/2 -> 18.83024972 | H43: 2.157589908
A45: Total Variable Costs | F45: =SUM(F14:F43) -> 902.5824941 | G45: =SUM(G14:G43) -> 783.0052405 | H45: =SUM(H14:H43) -> 119.5772535
A46: Returns Above Variable Costs | F46: =F11-F45 -> 33.41750593 | G46: =G11-G45 -> -81.00524055 | H46: =H11-H45 -> 114.4227465
A48: Fixed Costs
A49: Implements | B49: 1 | C49: acre | D49: 10 | E49: 0 | F49: =D49*B49 -> 10 | G49: =F49*(1-E49) -> 10 | H49: =F49*E49 -> 0
A50: Tractors | B50: 1 | C50: acre | D50: 12 | E50: 0 | F50: 12 | G50: 12 | H50: 0
A51: Irrigation-Above Ground | B51: 1 | C51: acre | D51: 40 | E51: 1 | F51: 40 | G51: 0 | H51: 40
A52: Irrigation-Below Ground | B52: 1 | C52: acre | D52: 15 | E52: 1 | F52: 15 | G52: 0 | H52: 15
A53: Pickup | B53: 1 | C53: acre | D53: 1.25 | E53: 0 | F53: 1.25 | G53: 1.25 | H53: 0
A54: Management | B54: 1 | C54: acre | D54: 25 | E54: 0 | F54: 25 | G54: 25 | H54: 0
A55: Whole Farm Insurance | B55: 1 | C55: acre | D55: 2 | E55: 0 | F55: 2 | G55: 2 | H55: 0
A56: Land | B56: 1 | C56: acre | D56: 100 | E56: 1 | F56: 100 | G56: =IF($H$6="Cash",D56,F56*(1-E56)) -> 0 | H56: =IF($H$6="Cash",0,F56*E56) -> 100
A57: Property Tax | B57: 1 | C57: acre | D57: 12 | E57: 1 | F57: 12 | G57: 0 | H57: 12
A58: Total Fixed Expenses | F58: =SUM(F49:F57) -> 217.25 | G58: =SUM(G49:G57) -> 50.25 | H58: =SUM(H49:H57) -> 167
A59: Total Specified Expenses | F59: =F45+F58 -> 1119.832494 | G59: =G45+G58 -> 833.2552405 | H59: =H45+H58 -> 286.5772535
A60: Returns Above Total Specified Expenses | F60: =F11-F59 -> -183.8324941 | G60: =G11-G59 -> -131.2552405 | H60: =H11-H59 -> -52.57725352
A62: If you have questions, contact Jackie Smith at 806-746-6101
A65: Supported by a grant from the
A66: Texas Cotton State Support Committee

Sheet Irr Cotton Drip
A2: Estimated Costs and Returns per Acre
A3: Irrigated Cotton - Drip
A4: Projected for 2017
B5: * Post emerge herbicides specific to variety trait of seed | H5: Rental Agreement | I5: Share
A6: Item | B6: Quantity | C6: Unit | D6: Price | E6: Owner | H6: Share | I6: Cash
E7: Share | F7: Total | G7: Operator | H7: Owner
A8: Income
A9: cotton lint | B9: 1750 | C9: lbs | D9: ='2017 Universal Input Prices'!$C$8 -> 0.67 | E9: 0.33 | F9: =D9*B9 -> 1172.5 | G9: =F9*(1-E9) -> 785.575 | H9: =IF(H6="Cash", D63,F9*E9) -> 386.925
A10: cotton seed | B10: =B9/500*'2017 Universal Input Prices'!C40/2000 -> 1.2425 | C10: tons | D10: ='2017 Universal Input Prices'!$C$9 -> 200 | E10: 0.33 | F10: =D10*B10 -> 248.5 | G10: =F10*(1-E10) -> 166.495 | H10: =IF(H6="Cash", 0,F10*E10) -> 82.005
A11: Expected Turnout | B11: 0.28
A12: Total Income | F12: =F9+F10 -> 1421 | G12: =G9+G10 -> 952.07 | H12: =H9+H10 -> 468.93
A14: Variable Costs
A15: Seed | B15: 45 | C15: thousand | D15: 1.59 | E15: 0 | F15: =D15*B15 -> 71.55 | G15: =F15*(1-E15) -> 71.55 | H15: =+F15*E15 -> 0
A16: Boll Weevil Assess.-Irr | B16: =Irr_Cooton_Drip_Yield/500 -> 3.5 | C16: Bales | D16: 1 | E16: 0.33 | F16: =D16*B16 -> 3.5 | G16: =F16*(1-E16) -> 2.345 | H16: =+F16*E16 -> 1.155
A17: Fertilizer
A18: fert (N) - liquid | B18: 175 | C18: lbs | D18: =IF(A18="",0,VLOOKUP(A18,'2017 Universal Input Prices'!$B$27:$C$31, 2)) -> 0.3984375 | E18: 0.33 | F18: =D18*B18 -> 69.7265625 | G18: =F18*(1-E18) -> 46.71679687 | H18: =+F18*E18 -> 23.00976562
A19: fert (P) - liquid | B19: 70 | C19: lbs | D19: =IF(A19="",0,VLOOKUP(A19,'2017 Universal Input Prices'!$B$27:$C$31, 2)) -> 0.5220588235 | E19: 0.33 | F19: =D19*B19 -> 36.54411765 | G19: =F19*(1-E19) -> 24.48455882 | H19: =+F19*E19 -> 12.05955882
B20: 0 | C20: lbs | D20: =IF(A20="",0,VLOOKUP(A20,'2017 Universal Input Prices'!$B$27:$C$31, 2)) -> 0 | E20: 0.33 | F20: =D20*B20 -> 0 | G20: =F20*(1-E20) -> 0 | H20: =F20*E20 -> 0
A21: acid | B21: 24 | C21: lbs | D21: 0.5 | E21: 0.33 | F21: =D21*B21 -> 12 | G21: =F21*(1-E21) -> 8.04 | H21: =+F21*E21 -> 3.96
A22: Field Operations
A23: preplant herb, application & incorp. | B23: 1 | C23: acre | D23: 9.5 | E23: 0 | F23: =D23*B23 -> 9.5 | G23: =F23*(1-E23) -> 9.5 | H23: =+F23*E23 -> 0
A24: at-plant pre-emerge herbicide | B24: 1 | C24: acre | D24: 4.5 | E24: 0 | F24: =D24*B24 -> 4.5 | G24: =F24*(1-E24) -> 4.5 | H24: =+F24*E24 -> 0
A25: 2 post emerge herbicide & app* | B25: 1 | C25: acre | D25: 25 | E25: 0 | F25: =D25*B25 -> 25 | G25: 25 | H25: 0
A26: fertilizer application | B26: 1 | C26: acre | D26: 4.75 | E26: 0 | F26: 4.75 | G26: 4.75 | H26: 0
A27: insecticide & application | B27: 1 | C27: acre | D27: 12 | E27: 0.33 | F27: 12 | G27: 8.04 | H27: 3.96
A28: harvest aids | B28: 1 | C28: acre | D28: 30 | E28: 0.33 | F28: 30 | G28: 20.1 | H28: 9.9
A29: strip & module | B29: =B9 -> 1750 | C29: lb. | D29: ='2017 Universal Input Prices'!$C$38 -> 0.08 | E29: 0.33 | F29: 140 | G29: 93.8 | H29: 46.2
A30: ginning | B30: =Irr_Cooton_Drip_Yield/B11/100 -> 62.5 | C30: cwt. | D30: ='2017 Universal Input Prices'!$C$39 -> 2.9 | E30: 0 | F30: 181.25 | G30: 181.25 | H30: 0
A31: hoeing | B31: 0.2 | C31: acre | D31: 15 | E31: 0 | F31: 3 | G31: 3 | H31: 0
A32: scouting | B32: 1 | C32: acre | D32: 9 | E32: 0 | F32: =D32*B32 -> 9 | G32: =F32*(1-E32) -> 9 | H32: =+F32*E32 -> 0
A33: crop hail | B33: 4 | C33: $100/ac | D33: 2.25 | E33: 0 | F33: 9 | G33: 9 | H33: 0
A34: spot spraying | B34: 0.2 | C34: acre | D34: 15 | E34: 0 | F34: 3 | G34: 3 | H34: 0
A35: other | B35: 1 | C35: acre | D35: 0 | E35: 0 | F35: 0 | G35: 0 | H35: 0
A36: Crop Insurance | B36: 1 | C36: acre | D36: 56 | E36: 0 | F36: 56 | G36: 56 | H36: 0
A37: Operator Labor & Hand Labor | B37: 1.6 | C37: hours | D37: ='2017 Universal Input Prices'!$C$32 -> 12 | E37: 0 | F37: 19.2 | G37: 19.2 | H37: 0
A38: Irrigation Labor | B38: 1.25 | C38: hours | D38: ='2017 Universal Input Prices'!$C$32 -> 12 | E38: 0 | F38: 15 | G38: 15 | H38: 0
A39: Diesel Fuel - Tractors | B39: 4 | C39: gallons | D39: ='2017 Universal Input Prices'!$C$33 -> 1.84 | E39: 0 | F39: 7.36 | G39: 7.36 | H39: 0
A40: Gasoline - Pickup | B40: 2 | C40: gallons | D40: ='2017 Universal Input Prices'!$C$34 -> 1.94 | E40: 0 | F40: 3.88 | G40: 3.88 | H40: 0
A41: Irrigation Fuel | B41: 18 | C41: ac-in | D41: ='2017 Universal Input Prices'!$C$35 -> 11 | E41: 0 | F41: 198 | G41: 198 | H41: 0
A42: Pumping Days | B42: 84.8 | E42: 0
A43: Calculated GPM capacity per acre needed | B43: =B41*18.85694/B42 -> 4.002652358
A44: Repair & Maintenance
A45: Implements | B45: 1 | C45: acre | D45: 3 | E45: 0 | F45: =D45*B45 -> 3 | G45: =F45*(1-E45) -> 3 | H45: =+F45*E45 -> 0
A46: Tractors | B46: 1 | C46: acre | D46: 6 | E46: 0 | F46: =D46*B46 -> 6 | G46: =F46*(1-E46) -> 6 | H46: =+F46*E46 -> 0
A47: Irrigation-Drip System | B47: =Cotton_Inches -> 12 | C47: ac-in | D47: 1.5 | E47: 0 | F47: =D47*B47 -> 18 | G47: =F47*(1-E47) -> 18 | H47: =+F47*E47 -> 0
A48: Irrigation-Wells | B48: 1 | C48: acre | D48: 13.5 | E48: 1 | F48: =D48*B48 -> 13.5 | G48: =F48*(1-E48) -> 0 | H48: =+F48*E48 -> 13.5
A49: Pickup | B49: 1 | C49: acre | D49: 0.5 | E49: 0 | F49: =D49*B49 -> 0.5 | G49: =F49*(1-E49) -> 0.5 | H49: =+F49*E49 -> 0
A50: Interest-operating capital | B50: ='2017 Universal Input Prices'!$C$36 -> 0.06 | F50: =(SUM(F15:F27,F31:F49))*$B50/2 -> 18.4053204 | G50: =(SUM(G15:G27,G31:G49))*$B50/2 -> 16.67599067 | H50: =(SUM(H15:H27,H31:H49))*$B50/2 -> 1.729329733
A52: Total Variable Costs | F52: =SUM(F15:F50) -> 983.1660006 | G52: =SUM(G15:G50) -> 867.6923464 | H52: =SUM(H15:H50) -> 115.4736542
A53: Returns Above Variable Costs | F53: =F12-F52 -> 437.8339994 | G53: =G12-G52 -> 84.37765363 | H53: =H12-H52 -> 353.4563458
A55: Fixed Costs
A56: Implements | B56: 1 | C56: acre | D56: 10 | E56: 0 | F56: =D56*B56 -> 10 | G56: =F56*(1-E56) -> 10 | H56: =+F56*E56 -> 0
A57: Tractors | B57: 1 | C57: acre | D57: 12 | E57: 0 | F57: 12 | G57: 12 | H57: 0
A58: Irrigation-Drip System | B58: 1 | C58: acre | D58: 60 | E58: 1 | F58: 60 | G58: 0 | H58: 60
A59: Irrigation-Wells | B59: 1 | C59: acre | D59: 15 | E59: 1 | F59: 15 | G59: 0 | H59: 15
A60: Pickup | B60: 1 | C60: acre | D60: 1.25 | E60: 0 | F60: 1.25 | G60: 1.25 | H60: 0
A61: Management | B61: 1 | C61: acre | D61: 25 | E61: 0 | F61: =D61*B61 -> 25 | G61: 25 | H61: 0
A62: Whole Farm Insurance | B62: 1 | C62: acre | D62: 2 | E62: 0 | F62: =D62*B62 -> 2 | G62: 2 | H62: 0
A63: Land | B63: 1 | C63: acre | D63: 100 | E63: 1 | F63: 100 | G63: =IF($H$6="Cash",D63,F63*(1-E63)) -> 0 | H63: =IF($H$6="Cash",0,F63*E63) -> 100
A64: Property Tax | B64: 1 | C64: acre | D64: 12 | E64: 1 | F64: =B64*D64 -> 12 | G64: 0 | H64: 12
A65: Total Fixed Expenses | F65: =SUM(F56:F64) -> 237.25 | G65: =SUM(G56:G64) -> 50.25 | H65: =SUM(H56:H64) -> 187
A66: Total Specified Expenses | F66: =F52+F65 -> 1220.416001 | G66: =G52+G65 -> 917.9423464 | H66: =H52+H65 -> 302.4736542
A67: Returns Above Total Specified Expenses | F67: =F12-F66 -> 200.5839994 | G67: =G12-G66 -> 34.12765363 | H67: =H12-H66 -> 166.4563458
A69: If you have questions, contact Jackie Smith at 806-746-6101
A72: Supported by a grant from the
A73: Texas Cotton State Support Committee

Sheet Irr Cotton Pivot
A2: Estimated Costs and Returns per Acre
A3: Irrigated Cotton - Pivot
A4: Projected for 2017
B5: * Post emerge herbicides specific to variety trait of seed | H5: Rental Agreement | I5: Share
A6: Item | B6: Quantity | C6: Unit | D6: Price | E6: Owner | H6: Share | I6: Cash
E7: Share | F7: Total | G7: Operator | H7: Owner
A8: Income
A9: cotton lint | B9: 1250 | C9: lbs | D9: ='2017 Universal Input Prices'!$C$8 -> 0.67 | E9: 0.25 | F9: =D9*B9 -> 837.5 | G9: =F9*(1-E9) -> 628.125 | H9: =IF(H6="Cash", D62,F9*E9) -> 209.375
A10: cotton seed | B10: =B9/500*'2017 Universal Input Prices'!C40/2000 -> 0.8875 | C10: tons | D10: ='2017 Universal Input Prices'!$C$9 -> 200 | E10: 0.25 | F10: =D10*B10 -> 177.5 | G10: =F10*(1-E10) -> 133.125 | H10: =IF(H6="Cash", 0,F10*E10) -> 44.375
A11: Expected Turnout | B11: 0.28
A12: Total Income | F12: =F9+F10 -> 1015 | G12: =G9+G10 -> 761.25 | H12: =H9+H10 -> 253.75
A14: Variable Costs
A15: Seed | B15: 45 | C15: thousand | D15: 1.59 | E15: 0.125 | F15: =D15*B15 -> 71.55 | G15: =F15*(1-E15) -> 62.60625 | H15: =+F15*E15 -> 8.94375
A16: Boll Weevil Assess.-Irr | B16: =Irr_Cotton_Pivot_Yield/500 -> 2.5 | C16: bales | D16: 1 | E16: 0.25 | F16: =D16*B16 -> 2.5 | G16: =F16*(1-E16) -> 1.875 | H16: =+F16*E16 -> 0.625
A17: Fertilizer
A18: fert (N) - liquid | B18: 125 | C18: lbs | D18: =IF(A18="",0,VLOOKUP(A18,'2017 Universal Input Prices'!$B$27:$C$31, 2)) -> 0.3984375 | E18: 0.25 | F18: =D18*B18 -> 49.8046875 | G18: =F18*(1-E18) -> 37.35351562 | H18: =+F18*E18 -> 12.45117188
A19: fert (P) - liquid | B19: 50 | C19: lbs | D19: =IF(A19="",0,VLOOKUP(A19,'2017 Universal Input Prices'!$B$27:$C$31, 2)) -> 0.5220588235 | E19: 0.25 | F19: =D19*B19 -> 26.10294118 | G19: =F19*(1-E19) -> 19.57720588 | H19: =+F19*E19 -> 6.525735294
B20: 0 | C20: lbs | D20: =IF(A20="",0,VLOOKUP(A20,'2017 Universal Input Prices'!$B$27:$C$31, 2)) -> 0 | E20: 0 | F20: =D20*B20 -> 0 | G20: =F20*(1-E20) -> 0 | H20: =F20*E20 -> 0
A21: Field Operations
A22: preplant herb, application & incorp. | B22: 1 | C22: acre | D22: 9.5 | E22: 0 | F22: =D22*B22 -> 9.5 | G22: =F22*(1-E22) -> 9.5 | H22: =+F22*E22 -> 0
A23: at-plant pre-emerge herbicide | B23: 1 | C23: acre | D23: 4.5 | E23: 0 | F23: 4.5 | G23: 4.5 | H23: 0
A24: 2 post emerge herbicide & app* | B24: 1 | C24: acre | D24: 25 | E24: 0 | F24: =D24*B24 -> 25 | G24: 25 | H24: 0
A25: fertilizer application | B25: 1 | C25: acre | D25: 4.75 | E25: 0.25 | F25: 4.75 | G25: 3.5625 | H25: 1.1875
A26: insecticide & application | B26: 1 | C26: acre | D26: 12 | E26: 0.25 | F26: 12 | G26: 9 | H26: 3
A27: harvest aids | B27: 1 | C27: acre | D27: 25 | E27: 0.25 | F27: 25 | G27: 18.75 | H27: 6.25
A28: strip & module | B28: =B9 -> 1250 | C28: lb. | D28: ='2017 Universal Input Prices'!$C$38 -> 0.08 | E28: 0 | F28: 100 | G28: 100 | H28: 0
A29: ginning | B29: =Irr_Cotton_Pivot_Yield/B11/100 -> 44.64285714 | C29: cwt. | D29: ='2017 Universal Input Prices'!$C$39 -> 2.9 | E29: 0.25 | F29: 129.4642857 | G29: 97.09821429 | H29: 32.36607143
A30: hoeing | B30: 0.2 | C30: acre | D30: 15 | E30: 0 | F30: 3 | G30: 3 | H30: 0
A31: scouting | B31: 1 | C31: acre | D31: 9 | E31: 0 | F31: =D31*B31 -> 9 | G31: =F31*(1-E31) -> 9 | H31: =+F31*E31 -> 0
A32: spot spraying | B32: 0.2 | C32: acre | D32: 15 | E32: 0 | F32: 3 | G32: 3 | H32: 0
A33: other | B33: 1 | C33: acre | D33: 0 | E33: 0 | F33: 0 | G33: 0 | H33: 0
A34: other | B34: 1 | C34: acre | D34: 0 | E34: 0 | F34: 0 | G34: 0 | H34: 0
A35: Crop Insurance | B35: 1 | C35: acre | D35: 40 | E35: 0.25 | F35: 40 | G35: 30 | H35: 10
A36: Operator Labor & Hand Labor | B36: 1.6 | C36: hours | D36: ='2017 Universal Input Prices'!$C$32 -> 12 | E36: 0 | F36: 19.2 | G36: 19.2 | H36: 0
A37: Irrigation Labor | B37: 1 | C37: hours | D37: ='2017 Universal Input Prices'!$C$32 -> 12 | E37: 0 | F37: 12 | G37: 12 | H37: 0
A38: Diesel Fuel - Tractors | B38: 4 | C38: gallons | D38: ='2017 Universal Input Prices'!$C$33 -> 1.84 | E38: 0 | F38: 7.36 | G38: 7.36 | H38: 0
A39: Gasoline - Pickup | B39: 2 | C39: gallons | D39: ='2017 Universal Input Prices'!$C$34 -> 1.94 | E39: 0 | F39: 3.88 | G39: 3.88 | H39: 0
A40: Irrigation Fuel | B40: 12 | C40: ac-in | D40: ='2017 Universal Input Prices'!$C$35 -> 11 | E40: 0 | F40: 132 | G40: 132 | H40: 0
A41: Pumping Days | B41: 75.43
A42: Calculated GPM capacity per acre needed | B42: =B40*18.85694/B41 -> 2.999910911
A43: Repair & Maintenance
A44: Implements | B44: 1 | C44: acre | D44: 3 | E44: 0 | F44: =D44*B44 -> 3 | G44: =F44*(1-E44) -> 3 | H44: =+F44*E44 -> 0
A45: Tractors | B45: 1 | C45: acre | D45: 6 | E45: 0 | F45: =D45*B45 -> 6 | G45: =F45*(1-E45) -> 6 | H45: =+F45*E45 -> 0
A46: Irrigation-Above Ground | B46: =Cotton_Inches -> 12 | C46: ac-in | D46: 1 | E46: 1 | F46: =D46*B46 -> 12 | G46: =F46*(1-E46) -> 0 | H46: =+F46*E46 -> 12
A47: Irrigation-Below Ground | B47: 1 | C47: acre | D47: 9 | E47: 1 | F47: =D47*B47 -> 9 | G47: =F47*(1-E47) -> 0 | H47: =+F47*E47 -> 9
A48: Pickup | B48: 1 | C48: acre | D48: 0.5 | E48: 0 | F48: =D48*B48 -> 0.5 | G48: =F48*(1-E48) -> 0.5 | H48: =+F48*E48 -> 0
A49: Interest-operating capital | B49: ='2017 Universal Input Prices'!$C$36 -> 0.06 | F49: =(SUM(F15:F26,F30:F48))*$B49/2 -> 13.96942886 | G49: =(SUM(G15:G26,G30:G48))*$B49/2 -> 12.05743415 | H49: =(SUM(H15:H26,H30:H48))*$B49/2 -> 1.911994715
A51: Total Variable Costs | F51: =SUM(F15:F49) -> 734.0813433 | G51: =SUM(G15:G49) -> 629.8201199 | H51: =SUM(H15:H49) -> 104.2612233
A52: Returns Above Variable Costs | F52: =F12-F51 -> 280.9186567 | G52: =G12-G51 -> 131.4298801 | H52: =H12-H51 -> 149.4887767
A54: Fixed Costs
A55: Implements | B55: 1 | C55: acre | D55: 10 | E55: 0 | F55: =D55*B55 -> 10 | G55: =F55*(1-E55) -> 10 | H55: =+F55*E55 -> 0
A56: Tractors | B56: 1 | C56: acre | D56: 12 | E56: 0 | F56: 12 | G56: 12 | H56: 0
A57: Irrigation-Above Ground | B57: 1 | C57: acre | D57: 40 | E57: 1 | F57: 40 | G57: 0 | H57: 40
A58: Irrigation-Below Ground | B58: 1 | C58: acre | D58: 15 | E58: 1 | F58: 15 | G58: 0 | H58: 15
A59: Pickup | B59: 1 | C59: acre | D59: 1.25 | E59: 0 | F59: 1.25 | G59: 1.25 | H59: 0
A60: Management | B60: 1 | C60: acre | D60: 25 | E60: 0 | F60: =D60*B60 -> 25 | G60: 25 | H60: 0
A61: Whole Farm Insurance | B61: 1 | C61: acre | D61: 2 | E61: 0 | F61: =D61*B61 -> 2 | G61: 2 | H61: 0
A62: Land | B62: 1 | C62: acre | D62: 75 | E62: 1 | F62: 75 | G62: =IF($H$6="Cash",D62,F62*(1-E62)) -> 0 | H62: =IF($H$6="Cash",0,F62*E62) -> 75
A63: Property Tax | B63: 1 | C63: acre | D63: 9 | E63: 1 | F63: =B63*D63 -> 9 | G63: 0 | H63: 9
A64: Total Fixed Expenses | F64: =SUM(F55:F63) -> 189.25 | G64: =SUM(G55:G63) -> 50.25 | H64: =SUM(H55:H63) -> 139
A65: Total Specified Expenses | F65: =F51+F64 -> 923.3313433 | G65: =G51+G64 -> 680.0701199 | H65: =H51+H64 -> 243.2612233
A66: Returns Above Total Specified Expenses | F66: =F12-F65 -> 91.66865675 | G66: =G12-G65 -> 81.17988006 | H66: =H12-H65 -> 10.48877669
A68: If you have questions, contact Jackie Smith at 806-746-6101
A71: Supported by a grant from the
A72: Texas Cotton State Support Committee

Sheet Irr Guar
A2: Estimated Costs and Returns per Acre
A3: Irrigated Guar
A4: Projected for 2017
H5: Rental Agreement | I5: Share
A6: Item | B6: Quantity | C6: Unit | D6: Price | E6: Owner | H6: Share | I6: Cash
E7: Share | F7: Total | G7: Operator | H7: Owner
A8: Income
A9: guar | B9: 1200 | C9: lb | D9: ='2017 Universal Input Prices'!$C$10 -> 0.16 | E9: 0.25 | F9: =D9*B9 -> 192 | G9: =F9*(1-E9) -> 144 | H9: =IF(H6="Cash", D58,F9*E9) -> 48
A11: Total Income | F11: =F9 -> 192 | G11: =G9 -> 144 | H11: =H9 -> 48
A13: Variable Costs
A14: Seed | B14: 10 | C14: lbs | D14: 1.5 | E14: 0 | F14: =D14*B14 -> 15 | G14: =F14*(1-E14) -> 15 | H14: =F14*E14 -> 0
A15: Innoculant | B15: 2 | C15: lbs | D15: 3 | E15: 0 | F15: =D15*B15 -> 6 | G15: =F15*(1-E15) -> 6 | H15: =F15*E15 -> 0
A16: Fertilizer
A17: fert (P) - dry | B17: 40 | C17: lbs | D17: =IF(A17="",0,VLOOKUP(A17,'2017 Universal Input Prices'!$B$27:$C$31, 2)) -> 0.4567307692 | E17: 0.25 | F17: =D17*B17 -> 18.26923077 | G17: =F17*(1-E17) -> 13.70192308 | H17: =F17*E17 -> 4.567307692
C18: lbs | D18: =IF(A18="",0,VLOOKUP(A18,'2017 Universal Input Prices'!$B$27:$C$31, 2)) -> 0 | E18: 0.25 | F18: =D18*B18 -> 0 | G18: 0 | H18: 0
C19: lbs | D19: =IF(A19="",0,VLOOKUP(A19,'2017 Universal Input Prices'!$B$27:$C$31, 2)) -> 0 | E19: 0.25 | F19: =D19*B19 -> 0 | G19: =F19*(1-E19) -> 0 | H19: =F19*E19 -> 0
A20: Field Operations
A21: herbicide & application | B21: 1 | C21: acre | D21: 4 | E21: 0 | F21: =D21*B21 -> 4 | G21: =F21*(1-E21) -> 4 | H21: =F21*E21 -> 0
A22: fertilizer application | B22: 1 | C22: acre | D22: 4 | E22: 0.25 | F22: 4 | G22: 3 | H22: 1
A23: insecticide & application | B23: 0 | C23: acre | D23: 0 | E23: 0.25 | F23: 0 | G23: 0 | H23: 0
A24: custom harvest & haul | B24: 1 | C24: acre | D24: 30 | E24: 0.25 | F24: =D24*B24 -> 30 | G24: =F24*(1-E24) -> 22.5 | H24: =F24*E24 -> 7.5
A25: custom harvest & haul | B25: =Irr_Guar_Yield/100 -> 12 | C25: cwt | D25: 0.2 | E25: 0.25 | F25: 2.4 | G25: 1.8 | H25: 0.6
A26: crop consultant | B26: 0 | C26: acre | D26: 0 | E26: 0 | F26: 0 | G26: 0 | H26: 0
A27: scouting | B27: 0 | C27: acre | D27: 0 | E27: 0 | F27: =D27*B27 -> 0 | G27: =F27*(1-E27) -> 0 | H27: =F27*E27 -> 0
A28: other | B28: 0 | C28: acre | D28: 0 | E28: 0 | F28: 0 | G28: 0 | H28: 0
A29: other | B29: 0 | C29: acre | D29: 0 | E29: 0 | F29: 0 | G29: 0 | H29: 0
A30: other | B30: 0 | C30: acre | D30: 0 | E30: 0 | F30: 0 | G30: 0 | H30: 0
A31: Crop Insurance | B31: 1 | C31: acre | D31: 2.5 | E31: 0.25 | F31: 2.5 | G31: 1.875 | H31: 0.625
A32: Operator Labor & Hand Labor | B32: 1 | C32: hour | D32: ='2017 Universal Input Prices'!$C$32 -> 12 | E32: 0 | F32: 12 | G32: 12 | H32: 0
A33: Irrigation Labor | B33: 0.75 | C33: hours | D33: ='2017 Universal Input Prices'!$C$32 -> 12 | E33: 0 | F33: 9 | G33: 9 | H33: 0
A34: Diesel Fuel - Tractors | B34: 2.4 | C34: gallons | D34: ='2017 Universal Input Prices'!$C$33 -> 1.84 | E34: 0 | F34: 4.416 | G34: 4.416 | H34: 0
A35: Gasoline - Pickup | B35: 2 | C35: gallons | D35: ='2017 Universal Input Prices'!$C$34 -> 1.94 | E35: 0 | F35: 3.88 | G35: 3.88 | H35: 0
A36: Irrigation Fuel | B36: 4 | C36: ac-in | D36: ='2017 Universal Input Prices'!$C$35 -> 11 | E36: 0 | F36: 44 | G36: 44 | H36: 0
A37: Pumping Days | B37: 75.4
A38: Calculated GPM capacity per acre needed | B38: =B36*18.85694/B37 -> 1.00036817
A39: Repair & Maintenance
A40: Implements | B40: 1 | C40: acre | D40: 3 | E40: 0 | F40: =D40*B40 -> 3 | G40: 3 | H40: 0
A41: Tractors | B41: 1 | C41: acre | D41: 6 | E41: 0 | F41: =D41*B41 -> 6 | G41: 6 | H41: 0
A42: Irrigation-Above Ground | B42: =B36 -> 4 | C42: ac-in | D42: 1 | E42: 0 | F42: =D42*B42 -> 4 | G42: 4 | H42: 0
A43: Irrigation-Below Ground | B43: 1 | C43: acre | D43: 18 | E43: 1 | F43: =D43*B43 -> 18 | G43: 0 | H43: 18
A44: Pickup | B44: 1 | C44: acre | D44: 0.5 | E44: 0 | F44: =D44*B44 -> 0.5 | G44: 0.5 | H44: 0
A45: Interest-operating capital | B45: ='2017 Universal Input Prices'!$C$36 -> 0.06 | F45: =(SUM(F14:F23,F26:F44))*$B45/2 -> 4.636956923 | G45: =(SUM(G14:G23,G26:G44))*$B45/2 -> 3.911187692 | H45: 0.7257692308
A47: Total Variable Costs | F47: =SUM(F14:F45) -> 191.6021877 | G47: =SUM(G14:G45) -> 158.5841108 | H47: =SUM(H14:H45) -> 33.01807692
A48: Returns Above Variable Costs | F48: =F11-F47 -> 0.3978123077 | G48: =G11-G47 -> -14.58411077 | H48: =H11-H47 -> 14.98192308
A50: Fixed Costs
A51: Implements | B51: 1 | C51: acre | D51: 10 | E51: 0 | F51: =D51*B51 -> 10 | G51: =F51*(1-E51) -> 10 | H51: =F51*E51 -> 0
A52: Tractors | B52: 1 | C52: acre | D52: 12 | E52: 0 | F52: 12 | G52: 12 | H52: 0
A53: Irrigation-Above Ground | B53: 1 | C53: acre | D53: 40 | E53: 1 | F53: 40 | G53: 0 | H53: 40
A54: Irrigation-Below Ground | B54: 1 | C54: acre | D54: 15 | E54: 1 | F54: 15 | G54: 0 | H54: 15
A55: Pickup | B55: 1 | C55: acre | D55: 1.25 | E55: 0 | F55: 1.25 | G55: 1.25 | H55: 0
A56: Management | B56: 1 | C56: acre | D56: 25 | E56: 0 | F56: 25 | G56: 25 | H56: 0
A57: Whole Farm Insurance | B57: 1 | C57: acre | D57: 2 | E57: 0 | F57: 2 | G57: 2 | H57: 0
A58: Land | B58: 1 | C58: acre | D58: 75 | E58: 1 | F58: 75 | G58: =IF($H$6="Cash",D58,F58*(1-E58)) -> 0 | H58: =IF($H$6="Cash",0,F58*E58) -> 75
A59: Property Tax | B59: 1 | C59: acre | D59: 12 | E59: 1 | F59: 12 | G59: 0 | H59: 12
A60: Total Fixed Expenses | F60: =SUM(F51:F59) -> 192.25 | G60: =SUM(G51:G59) -> 50.25 | H60: =SUM(H51:H59) -> 142
A61: Total Specified Expenses | F61: =F47+F60 -> 383.8521877 | G61: =G47+G60 -> 208.8341108 | H61: =H47+H60 -> 175.0180769
A62: Returns Above Total Specified Expenses | F62: =F11-F61 -> -191.8521877 | G62: =G11-G61 -> -64.83411077 | H62: =H11-H61 -> -127.0180769
A64: If you have questions, contact Jackie Smith at 806-746-6101
A67: Supported by a grant from the
A68: Texas Cotton State Support Committee

Sheet Irr Peanuts
A2: Estimated Costs and Returns per Acre
A3: Irrigated Peanuts
A4: Projected for 2017
H5: Rental Agreement | I5: Share
A6: Item | B6: Quantity | C6: Unit | D6: Price | E6: Owner | H6: Share | I6: Cash
E7: Share | F7: Total | G7: Operator | H7: Owner
A8: Income
A9: peanuts | B9: 2.25 | C9: tons | D9: ='2017 Universal Input Prices'!$C$11 -> 400 | E9: 0.25 | F9: =D9*B9 -> 900 | G9: =F9*(1-E9) -> 675 | H9: =IF(H6="Cash", D61,F9*E9) -> 225
A11: Total Income | F11: =F9 -> 900 | G11: =G9 -> 675 | H11: =H9 -> 225
A13: Variable Costs
A14: Seed
A15: peanut seed | B15: 100 | C15: lbs | D15: 0.763 | E15: 0 | F15: =D15*B15 -> 76.3 | G15: =F15*(1-E15) -> 76.3 | H15: =F15*E15 -> 0
A16: innoculant | B16: 1 | C16: acre | D16: 6 | E16: 0 | F16: =D16*B16 -> 6 | G16: =F16*(1-E16) -> 6 | H16: =F16*E16 -> 0
A17: Fertilizer
A18: fert (N) - liquid | B18: 80 | C18: lbs | D18: =IF(A18="",0,VLOOKUP(A18,'2017 Universal Input Prices'!$B$27:$C$31, 2)) -> 0.3984375 | E18: 0.25 | F18: =D18*B18 -> 31.875 | G18: =F18*(1-E18) -> 23.90625 | H18: =F18*E18 -> 7.96875
A19: fert (P) - liquid | B19: 50 | C19: lbs | D19: =IF(A19="",0,VLOOKUP(A19,'2017 Universal Input Prices'!$B$27:$C$31, 2)) -> 0.5220588235 | E19: 0.25 | F19: =D19*B19 -> 26.10294118 | G19: =F19*(1-E19) -> 19.57720588 | H19: =F19*E19 -> 6.525735294
B20: 0 | C20: lbs | D20: =IF(A20="",0,VLOOKUP(A20,'2017 Universal Input Prices'!$B$27:$C$31, 2)) -> 0 | E20: 0 | F20: =D20*B20 -> 0 | G20: =F20*(1-E20) -> 0 | H20: =F20*E20 -> 0
A21: Field Operations
A22: herbicide & application | B22: 1 | C22: acre | D22: 15 | E22: 0 | F22: =D22*B22 -> 15 | G22: =F22*(1-E22) -> 15 | H22: =F22*E22 -> 0
A23: fertilizer application | B23: 1 | C23: acre | D23: 4.75 | E23: 0.25 | F23: 4.75 | G23: 3.5625 | H23: 1.1875
A24: fungicide & application | B24: 1 | C24: appl | D24: 35 | E24: 0.25 | F24: 35 | G24: 26.25 | H24: 8.75
A25: digging | B25: 1 | C25: acre | D25: 25 | E25: 0.25 | F25: 25 | G25: 18.75 | H25: 6.25
A26: custom harvest & haul | B26: =$B$9 -> 2.25 | C26: tons | D26: 60 | E26: 0.25 | F26: 135 | G26: 101.25 | H26: 33.75
A27: drying | B27: =$B$9 -> 2.25 | C27: tons | D27: 30 | E27: 0.25 | F27: 67.5 | G27: 50.625 | H27: 16.875
A28: insecticide & application | B28: 1 | C28: appl | D28: 12 | E28: 0.25 | F28: 12 | G28: 9 | H28: 3
A29: hoeing | B29: 1 | C29: acre | D29: 15 | E29: 0 | F29: 15 | G29: 15 | H29: 0
A30: scouting | B30: 1 | C30: acre | D30: 10 | E30: 0 | F30: 10 | G30: 10 | H30: 0
A31: other | B31: 1 | C31: acre | D31: 0 | E31: 0 | F31: 0 | G31: 0 | H31: =+F31*E31 -> 0
A32: other | B32: 1 | C32: acre | D32: 0 | E32: 0 | F32: 0 | G32: 0 | H32: =+F32*E32 -> 0
A33: other | B33: 1 | C33: acre | D33: 0 | E33: 0 | F33: 0 | G33: 0 | H33: =+F33*E33 -> 0
A34: Crop Insurance | B34: 1 | C34: acre | D34: 30 | E34: 0.25 | F34: 30 | G34: 22.5 | H34: 7.5
A35: Operator Labor & Hand Labor | B35: 3 | C35: hour | D35: ='2017 Universal Input Prices'!$C$32 -> 12 | E35: 0 | F35: 36 | G35: 36 | H35: 0
A36: Irrigation Labor | B36: 1.25 | C36: hours | D36: ='2017 Universal Input Prices'!$C$32 -> 12 | E36: 0 | F36: 15 | G36: 15 | H36: 0
A37: Diesel Fuel - Tractors | B37: 7.6 | C37: gallons | D37: ='2017 Universal Input Prices'!$C$33 -> 1.84 | E37: 0 | F37: 13.984 | G37: 13.984 | H37: 0
A38: Gasoline - Pickup | B38: 2 | C38: gallons | D38: ='2017 Universal Input Prices'!$C$34 -> 1.94 | E38: 0 | F38: 3.88 | G38: 3.88 | H38: 0
A39: Irrigation Fuel | B39: 24 | C39: ac-in | D39: ='2017 Universal Input Prices'!$C$35 -> 11 | E39: 0 | F39: 264 | G39: 264 | H39: 0
A40: Pumping Days | B40: 75.4
A41: Calculated GPM capacity per acre needed | B41: =B39*18.85694/B40 -> 6.002209019
A42: Repair & Maintenance | G42: 0 | H42: 0
A43: Implements | B43: 1 | C43: acre | D43: 3 | E43: 0 | F43: =D43*B43 -> 3 | G43: 3 | H43: 0
A44: Tractors | B44: 1 | C44: acre | D44: 6 | E44: 0 | F44: =D44*B44 -> 6 | G44: 6 | H44: 0
A45: Irrigation-Above Ground | B45: =B39 -> 24 | C45: ac-in | D45: 1 | E45: 0 | F45: =D45*B45 -> 24 | G45: 24 | H45: 0
A46: Irrigation-Below Ground | B46: 1 | C46: acre | D46: 18 | E46: 1 | F46: =D46*B46 -> 18 | G46: 0 | H46: 18
A47: Pickup | B47: 1 | C47: acre | D47: 0.5 | E47: 0 | F47: =D47*B47 -> 0.5 | G47: 0.5 | H47: 0
A48: Interest-operating capital | B48: ='2017 Universal Input Prices'!$C$36 -> 0.06 | F48: =(SUM(F15:F24,F28:F47))*$B48/2 -> 19.39175824 | G48: =(SUM(G15:G24,G28:G47))*$B48/2 -> 17.80379868 | H48: 1.587959559
A50: Total Variable Costs | F50: =SUM(F15:F48) -> 893.2836994 | G50: =SUM(G15:G48) -> 781.8887546 | H50: =SUM(H15:H48) -> 111.3949449
A51: Returns Above Variable Costs | F51: =F11-F50 -> 6.716300588 | G51: =G11-G50 -> -106.8887546 | H51: =H11-H50 -> 113.6050551
A53: Fixed Costs
A54: Implements | B54: 1 | C54: acre | D54: 10 | E54: 0 | F54: =D54*B54 -> 10 | G54: =F54*(1-E54) -> 10 | H54: =F54*E54 -> 0
A55: Tractors | B55: 1 | C55: acre | D55: 12 | E55: 0 | F55: 12 | G55: 12 | H55: 0
A56: Irrigation-Above Ground | B56: 1 | C56: acre | D56: 40 | E56: 1 | F56: 40 | G56: 0 | H56: 40
A57: Irrigation-Below Ground | B57: 1 | C57: acre | D57: 15 | E57: 1 | F57: 15 | G57: 0 | H57: 15
A58: Pickup | B58: 1 | C58: acre | D58: 1.25 | E58: 0 | F58: 1.25 | G58: 1.25 | H58: 0
A59: Management | B59: 1 | C59: acre | D59: 25 | E59: 0 | F59: 25 | G59: 25 | H59: 0
A60: Whole Farm Insurance | B60: 1 | C60: acre | D60: 2 | E60: 0 | F60: =B60*D60 -> 2 | G60: 2 | H60: 0
A61: Land | B61: 1 | C61: acre | D61: 100 | E61: 1 | F61: =D61*B61 -> 100 | G61: =IF($H$6="Cash",D61,F61*(1-E61)) -> 0 | H61: =IF($H$6="Cash",0,F61*E61) -> 100
A62: Property Tax | B62: 1 | C62: acre | D62: 12 | E62: 1 | F62: =B62*D62 -> 12 | G62: 0 | H62: 12
A63: Total Fixed Expenses | F63: =SUM(F54:F62) -> 217.25 | G63: =SUM(G54:G62) -> 50.25 | H63: =SUM(H54:H62) -> 167
A64: Total Specified Expenses | F64: =F50+F63 -> 1110.533699 | G64: =G50+G63 -> 832.1387546 | H64: =H50+H63 -> 278.3949449
A65: Returns Above Total Specified Expenses | F65: =F11-F64 -> -210.5336994 | G65: =G11-G64 -> -157.1387546 | H65: =H11-H64 -> -53.39494485
A67: If you have questions, contact Jackie Smith at 806-746-6101
A70: Supported by a grant from the
A71: Texas Cotton State Support Committee

Sheet Irr Sesame
A2: Estimated Costs and Returns per Acre
A3: Irrigated Sesame
A4: Projected for 2017
H5: Rental Agreement | I5: Share
A6: Item | B6: Quantity | C6: Unit | D6: Price | E6: Owner | H6: Share | I6: Cash
E7: Share | F7: Total | G7: Operator | H7: Owner
A8: Income
A9: sesame | B9: 1500 | C9: lbs | D9: =Sesame_Price+IF(B9<B10,0,D10) -> 0.32 | E9: 0.25 | F9: =D9*B9 -> 480 | G9: =F9*(1-E9) -> 360 | H9: =IF(H6="Cash", D58,F9*E9) -> 120
A10: bonus paid for production over: | B10: 0 | C10: lbs | D10: 0
A12: Total Income | F12: =SUM(F9:F11) -> 480 | G12: =SUM(G9:G11) -> 360 | H12: =SUM(H9:H11) -> 120
A14: Variable Costs
A15: Seed | B15: 2.5 | C15: lbs | D15: 4 | E15: 0 | F15: =D15*B15 -> 10 | G15: =F15*(1-E15) -> 10 | H15: =F15*E15 -> 0
A16: Fertilizer
A17: fert (N) - liquid | B17: 75 | C17: lbs | D17: =IF(A17="",0,VLOOKUP(A17,'2017 Universal Input Prices'!$B$27:$C$31, 2)) -> 0.3984375 | E17: 0.25 | F17: =D17*B17 -> 29.8828125 | G17: =F17*(1-E17) -> 22.41210938 | H17: =F17*E17 -> 7.470703125
A18: fert (P) - liquid | B18: 30 | C18: lbs | D18: =IF(A18="",0,VLOOKUP(A18,'2017 Universal Input Prices'!$B$27:$C$31, 2)) -> 0.5220588235 | E18: 0.25 | F18: =D18*B18 -> 15.66176471 | G18: =F18*(1-E18) -> 11.74632353 | H18: =F18*E18 -> 3.915441176
B19: 0 | C19: lbs | D19: =IF(A19="",0,VLOOKUP(A19,'2017 Universal Input Prices'!$B$27:$C$31, 2)) -> 0 | E19: 0 | F19: =D19*B19 -> 0 | G19: =F19*(1-E19) -> 0 | H19: =F19*E19 -> 0
A20: Field Operations
A21: herbicide | B21: 1 | C21: acre | D21: 21.75 | E21: 0 | F21: =D21*B21 -> 21.75 | G21: =F21*(1-E21) -> 21.75 | H21: =F21*E21 -> 0
A22: fert application | B22: 1 | C22: acre | D22: 4.75 | E22: 0 | F22: 4.75 | G22: 4.75 | H22: 0
A23: insecticide | B23: 0 | C23: acre | D23: 0 | E23: 0.25 | F23: 0 | G23: 0 | H23: 0
A24: custom harvest & haul | B24: =B9/100 -> 15 | C24: cwt | D24: 0.12 | E24: 0.25 | F24: 1.8 | G24: 1.35 | H24: 0.45
A25: custom harvest & haul | B25: 1 | C25: acre | D25: 25 | E25: 0.25 | F25: 25 | G25: 18.75 | H25: 6.25
A26: hoeing | B26: 1 | C26: acre | D26: 15 | E26: 0 | F26: 15 | G26: 15 | H26: 0
A27: scouting | B27: 1 | C27: acre | D27: 0 | E27: 0 | F27: 0 | G27: 0 | H27: 0
A28: other | B28: 1 | C28: acre | D28: 0 | E28: 0 | F28: 0 | G28: 0 | H28: 0
A29: other | B29: 1 | C29: acre | D29: 0 | E29: 0 | F29: 0 | G29: 0 | H29: 0
A30: other | B30: 1 | C30: acre | D30: 0 | E30: 0 | F30: 0 | G30: 0 | H30: 0
A31: Crop Insurance | B31: 1 | C31: acre | D31: 12.5 | E31: 0 | F31: 12.5 | G31: 12.5 | H31: 0
A32: Operator Labor | B32: 1 | C32: hours | D32: ='2017 Universal Input Prices'!$C$32 -> 12 | E32: 0 | F32: 12 | G32: 12 | H32: 0
A33: Irrigation Labor | B33: 1 | C33: hours | D33: ='2017 Universal Input Prices'!$C$32 -> 12 | E33: 0 | F33: 12 | G33: 12 | H33: 0
A34: Diesel Fuel - Tractors | B34: 2.4 | C34: gallons | D34: ='2017 Universal Input Prices'!$C$33 -> 1.84 | E34: 0 | F34: 4.416 | G34: 4.416 | H34: 0
A35: Gasoline - Pickup | B35: 2 | C35: gallons | D35: ='2017 Universal Input Prices'!$C$34 -> 1.94 | E35: 0 | F35: 3.88 | G35: 3.88 | H35: 0
A36: Irrigation Fuel | B36: 11 | C36: ac-in | D36: ='2017 Universal Input Prices'!$C$35 -> 11 | E36: 0 | F36: 121 | G36: 121 | H36: 0
A37: Pumping Days | B37: 69.2
A38: Calculated GPM capacity per acre needed | B38: =B36*18.85694/B37 -> 2.997490462
A39: Repair & Maintenance
A40: Implements | B40: 1 | C40: acre | D40: 3 | E40: 0 | F40: =D40*B40 -> 3 | G40: =F40*(1-E40) -> 3 | H40: =F40*E40 -> 0
A41: Tractors | B41: 1 | C41: acre | D41: 6 | E41: 0 | F41: =D41*B41 -> 6 | G41: =F41*(1-E41) -> 6 | H41: =F41*E41 -> 0
A42: Irrigation-Above Ground | B42: 1 | C42: acre | D42: 11 | E42: 0 | F42: =D42*B42 -> 11 | G42: =F42*(1-E42) -> 11 | H42: =F42*E42 -> 0
A43: Irrigation-Below Ground | B43: 1 | C43: acre | D43: 8.25 | E43: 1 | F43: =D43*B43 -> 8.25 | G43: =F43*(1-E43) -> 0 | H43: =F43*E43 -> 8.25
A44: Pickup | B44: 1 | C44: acre | D44: 0.5 | E44: 0 | F44: =D44*B44 -> 0.5 | G44: =F44*(1-E44) -> 0.5 | H44: =F44*E44 -> 0
A45: Interest-operating capital | B45: ='2017 Universal Input Prices'!$C$36 -> 0.06 | F45: =(SUM(F15:F44)-SUM(F24:F25))*$B45/2 -> 8.747717316 | G45: =(SUM(G15:G44)-SUM(G24:G25))*$B45/2 -> 8.158632987 | H45: =(SUM(H15:H44)-SUM(H24:H25))*$B45/2 -> 0.589084329
A47: Total Variable Costs | F47: =SUM(F15:F45) -> 327.1382945 | G47: =SUM(G15:G45) -> 300.2130659 | H47: =SUM(H15:H45) -> 26.92522863
A48: Returns Above Direct Expenses | F48: =F12-F47 -> 152.8617055 | G48: =G12-G47 -> 59.78693411 | H48: =H12-H47 -> 93.07477137
A50: Fixed Costs
A51: Implements | B51: 1 | C51: acre | D51: 10 | E51: 0 | F51: =D51*B51 -> 10 | G51: =F51*(1-E51) -> 10 | H51: =F51*E51 -> 0
A52: Tractors | B52: 1 | C52: acre | D52: 12 | E52: 0 | F52: 12 | G52: 12 | H52: 0
A53: Irrigation-Above Ground | B53: 1 | C53: acre | D53: 40 | E53: 1 | F53: 40 | G53: 0 | H53: 40
A54: Irrigation-Below Ground | B54: 1 | C54: acre | D54: 15 | E54: 1 | F54: 15 | G54: 0 | H54: 15
A55: Pickup | B55: 1 | C55: acre | D55: 1.25 | E55: 0 | F55: 1.25 | G55: 1.25 | H55: 0
A56: Management | B56: 1 | C56: acre | D56: 25 | E56: 0 | F56: 25 | G56: 25 | H56: 0
A57: Whole Farm Insurance | B57: 1 | C57: acre | D57: 2 | E57: 0 | F57: =B57*D57 -> 2 | G57: 2 | H57: 0
A58: Land | B58: 1 | C58: acre | D58: 75 | E58: 1 | F58: =D58*B58 -> 75 | G58: =IF($H$6="Cash",D58,F58*(1-E58)) -> 0 | H58: =IF($H$6="Cash",0,F58*E58) -> 75
A59: Property Tax | B59: 1 | C59: acre | D59: 9 | E59: 1 | F59: =B59*D59 -> 9 | G59: =F59*(1-E59) -> 0 | H59: =F59*E59 -> 9
A60: Total Fixed Expenses | F60: =SUM(F51:F59) -> 189.25 | G60: =SUM(G51:G59) -> 50.25 | H60: =SUM(H51:H59) -> 139
A61: Total Specified Expenses | F61: =F47+F60 -> 516.3882945 | G61: =G47+G60 -> 350.4630659 | H61: =H47+H60 -> 165.9252286
A62: Returns Above Total Specified Expenses | F62: =F12-F61 -> -36.38829452 | G62: =G12-G61 -> 9.536934108 | H62: =H12-H61 -> -45.92522863
A64: If you have questions, contact Jackie Smith at 806-746-6101
A67: Supported by a grant from the
A68: Texas Cotton State Support Committee

Sheet Irr Sorghum
A2: Estimated Costs and Returns per Acre
A3: Irrigated Sorghum
A4: Projected for 2017
H5: Rental Agreement | I5: Share
A6: Item | B6: Quantity | C6: Unit | D6: Price | E6: Owner | H6: Share | I6: Cash
E7: Share | F7: Total | G7: Operator | H7: Owner
A8: Income
A9: sorghum grain | B9: 55 | C9: cwt | D9: ='2017 Universal Input Prices'!$C$14 -> 7 | E9: 0.25 | F9: =D9*B9 -> 385 | G9: =F9*(1-E9) -> 288.75 | H9: =IF(H6="Cash", D57,F9*E9) -> 96.25
A10: grazing stalks | B10: 1 | C10: acre | D10: 0 | E10: 0.25 | F10: =D10*B10 -> 0 | G10: =F10*(1-E10) -> 0 | H10: =IF(H6="Cash", 0,F10*E10) -> 0
A12: Total Income | F12: =F9+F10 -> 385 | G12: =G9+G10 -> 288.75 | H12: =H9+H10 -> 96.25
A14: Variable Costs
A15: Seed | B15: 4.5 | C15: lbs | D15: 2.4 | E15: 0 | F15: =D15*B15 -> 10.8 | G15: =F15*(1-E15) -> 10.8 | H15: =F15*E15 -> 0
A16: Fertilizer
A17: fert (N) - liquid | B17: 40 | C17: lbs | D17: =IF(A17="",0,VLOOKUP(A17,'2017 Universal Input Prices'!$B$27:$C$31, 2)) -> 0.3984375 | E17: 0.25 | F17: =D17*B17 -> 15.9375 | G17: =F17*(1-E17) -> 11.953125 | H17: =F17*E17 -> 3.984375
A18: fert (P) - liquid | B18: 44 | C18: lbs | D18: =IF(A18="",0,VLOOKUP(A18,'2017 Universal Input Prices'!$B$27:$C$31, 2)) -> 0.5220588235 | E18: 0.25 | F18: =D18*B18 -> 22.97058824 | G18: =F18*(1-E18) -> 17.22794118 | H18: =F18*E18 -> 5.742647059
A19: fert (N) - NH3 | B19: 70 | C19: lbs | D19: =IF(A19="",0,VLOOKUP(A19,'2017 Universal Input Prices'!$B$27:$C$31, 2)) -> 0.3048780488 | E19: 0.25 | F19: =D19*B19 -> 21.34146341 | G19: =F19*(1-E19) -> 16.00609756 | H19: =F19*E19 -> 5.335365854
A20: Field Operations
A21: herbicide & application | B21: 1 | C21: acre | D21: 21.12 | E21: 0 | F21: =D21*B21 -> 21.12 | G21: =F21*(1-E21) -> 21.12 | H21: =F21*E21 -> 0
A22: fertilizer application | B22: 1 | C22: acre | D22: 11.75 | E22: 0.25 | F22: 11.75 | G22: 8.8125 | H22: 2.9375
A23: insecticide & application | B23: 1 | C23: acre | D23: 25 | E23: 0.25 | F23: 25 | G23: 18.75 | H23: 6.25
A24: custom harvest & haul | B24: =B9 -> 55 | C24: cwt | D24: 0.6 | E24: 0.25 | F24: 33 | G24: 24.75 | H24: 8.25
A25: hoeing | B25: 1 | C25: acre | D25: 0 | E25: 0 | F25: 0 | G25: 0 | H25: 0
A26: scouting | B26: 1 | C26: acre | D26: 0 | E26: 0 | F26: =D26*B26 -> 0 | G26: =F26*(1-E26) -> 0 | H26: =F26*E26 -> 0
A27: other | B27: 1 | C27: acre | D27: 0 | E27: 0 | F27: 0 | G27: 0 | H27: 0
A28: other | B28: 1 | C28: acre | D28: 0 | E28: 0 | F28: 0 | G28: 0 | H28: 0
A29: other | B29: 1 | C29: acre | D29: 0 | E29: 0 | F29: 0 | G29: 0 | H29: 0
A30: Crop Insurance | B30: 1 | C30: acre | D30: 29 | E30: 0.25 | F30: 29 | G30: 21.75 | H30: 7.25
A31: Operator Labor & Hand Labor | B31: 1.3 | C31: hours | D31: ='2017 Universal Input Prices'!$C$32 -> 12 | E31: 0 | F31: 15.6 | G31: 15.6 | H31: 0
A32: Irrigation Labor | B32: 0.75 | C32: hours | D32: ='2017 Universal Input Prices'!$C$32 -> 12 | E32: 0 | F32: 9 | G32: 9 | H32: 0
A33: Diesel Fuel - Tractors | B33: 3.2 | C33: gallons | D33: ='2017 Universal Input Prices'!$C$33 -> 1.84 | E33: 0 | F33: 5.888 | G33: 5.888 | H33: 0
A34: Gasoline - Pickup | B34: 2 | C34: gallons | D34: ='2017 Universal Input Prices'!$C$34 -> 1.94 | E34: 0 | F34: 3.88 | G34: 3.88 | H34: 0
A35: Irrigation Fuel | B35: 9 | C35: ac-in | D35: ='2017 Universal Input Prices'!$C$35 -> 11 | E35: 0 | F35: 99 | G35: 99 | H35: 0
A36: Pumping Days | B36: 68
A37: Calculated GPM capacity per acre needed | B37: =B35*18.85694/B36 -> 2.495771471
A38: Repair & Maintenance
A39: Implements | B39: 1 | C39: acre | D39: 3 | E39: 0 | F39: =D39*B39 -> 3 | G39: =F39*(1-E39) -> 3 | H39: =F39*E39 -> 0
A40: Tractors | B40: 1 | C40: acre | D40: 6 | E40: 0 | F40: =D40*B40 -> 6 | G40: =F40*(1-E40) -> 6 | H40: =F40*E40 -> 0
A41: Irrigation-Above Ground | B41: =Sorghum_Inches -> 9 | C41: ac-in | D41: 1 | E41: 0 | F41: =D41*B41 -> 9 | G41: =F41*(1-E41) -> 9 | H41: =F41*E41 -> 0
A42: Irrigation-Below Ground | B42: 1 | C42: acre | D42: 6.75 | E42: 1 | F42: =D42*B42 -> 6.75 | G42: =F42*(1-E42) -> 0 | H42: =F42*E42 -> 6.75
A43: Pickup | B43: 1 | C43: acre | D43: 0.5 | E43: 0 | F43: =D43*B43 -> 0.5 | G43: =F43*(1-E43) -> 0.5 | H43: =F43*E43 -> 0
A44: Interest-operating capital | B44: ='2017 Universal Input Prices'!$C$36 -> 0.06 | F44: =(SUM(F15:F23,F25:F43))*$B44/2 -> 9.496126549 | G44: =(SUM(G15:G23,G25:G43))*$B44/2 -> 8.348629912 | H44: 1.147496637
A46: Total Variable Costs | F46: =SUM(F15:F44) -> 359.0336782 | G46: =SUM(G15:G44) -> 311.3862936 | H46: =SUM(H15:H44) -> 47.64738455
A47: Returns Above Variable Costs | F47: =F12-F46 -> 25.9663218 | G47: =G12-G46 -> -22.63629365 | H47: =H12-H46 -> 48.60261545
A49: Fixed Costs
A50: Implements | B50: 1 | C50: acre | D50: 10 | E50: 0 | F50: =D50*B50 -> 10 | G50: =F50*(1-E50) -> 10 | H50: =F50*E50 -> 0
A51: Tractors | B51: 1 | C51: acre | D51: 12 | E51: 0 | F51: 12 | G51: 12 | H51: 0
A52: Irrigation-Above Ground | B52: 1 | C52: acre | D52: 40 | E52: 1 | F52: 40 | G52: 0 | H52: 40
A53: Irrigation-Below Ground | B53: 1 | C53: acre | D53: 15 | E53: 1 | F53: 15 | G53: 0 | H53: 15
A54: Pickup | B54: 1 | C54: acre | D54: 1.25 | E54: 0 | F54: 1.25 | G54: 1.25 | H54: 0
A55: Management | B55: 1 | C55: acre | D55: 25 | E55: 0 | F55: 25 | G55: 25 | H55: 0
A56: Whole Farm Insurance | B56: 1 | C56: acre | D56: 2 | E56: 0 | F56: =B56*D56 -> 2 | G56: 2 | H56: 0
A57: Land | B57: 1 | C57: acre | D57: 75 | E57: 1 | F57: =D57*B57 -> 75 | G57: =IF($H$6="Cash",D57,F57*(1-E57)) -> 0 | H57: =IF($H$6="Cash",0,F57*E57) -> 75
A58: Property Tax | B58: 1 | C58: acre | D58: 9 | E58: 1 | F58: =B58*D58 -> 9 | G58: 0 | H58: 9
A59: Total Fixed Expenses | F59: =SUM(F50:F58) -> 189.25 | G59: =SUM(G50:G58) -> 50.25 | H59: =SUM(H50:H58) -> 139
A60: Total Specified Expenses | F60: =F46+F59 -> 548.2836782 | G60: =G46+G59 -> 361.6362936 | H60: =H46+H59 -> 186.6473845
A61: Returns Above Total Specified Expenses | F61: =F12-F60 -> -163.2836782 | G61: =G12-G60 -> -72.88629365 | H61: =H12-H60 -> -90.39738455
A63: If you have questions, contact Jackie Smith at 806-746-6101
A66: Supported by a grant from the
A67: Texas Cotton State Support Committee

Sheet Irr Sorghum Silage
A2: Estimated Costs and Returns per Acre
A3: Irrigated Sorghum Silage
A4: Projected for 2017
H5: Rental Agreement | I5: Share
A6: Item | B6: Quantity | C6: Unit | D6: Price | E6: Owner | H6: Share | I6: Cash
E7: Share | F7: Total | G7: Operator | H7: Owner
A8: Income
A9: sorghum silage | B9: 24 | C9: tons | D9: ='2017 Universal Input Prices'!$C$16 -> 33 | E9: 0.25 | F9: =D9*B9 -> 792 | G9: =F9*(1-E9) -> 594 | H9: =IF(H6="Cash", D56,F9*E9) -> 198
A11: Total Income | F11: =F9 -> 792 | G11: =G9 -> 594 | H11: =H9 -> 198
A13: Variable Costs
A14: Seed | B14: 7 | C14: lbs | D14: 2.4 | E14: 0 | F14: =D14*B14 -> 16.8 | G14: =F14*(1-E14) -> 16.8 | H14: =F14*E14 -> 0
A15: Fertilizer
A16: fert (N) - liquid | B16: 70 | C16: lbs | D16: =IF(A16="",0,VLOOKUP(A16,'2017 Universal Input Prices'!$B$27:$C$31, 2)) -> 0.3984375 | E16: 0.25 | F16: =D16*B16 -> 27.890625 | G16: =F16*(1-E16) -> 20.91796875 | H16: =F16*E16 -> 6.97265625
A17: fert (P) - liquid | B17: 88 | C17: lbs | D17: =IF(A17="",0,VLOOKUP(A17,'2017 Universal Input Prices'!$B$27:$C$31, 2)) -> 0.5220588235 | E17: 0.25 | F17: =D17*B17 -> 45.94117647 | G17: =F17*(1-E17) -> 34.45588235 | H17: =F17*E17 -> 11.48529412
A18: fert (N) - NH3 | B18: 150 | C18: lbs | D18: =IF(A18="",0,VLOOKUP(A18,'2017 Universal Input Prices'!$B$27:$C$31, 2)) -> 0.3048780488 | E18: 0 | F18: =D18*B18 -> 45.73170732 | G18: =F18*(1-E18) -> 45.73170732 | H18: =F18*E18 -> 0
A19: Field Operations
A20: herbicide & application | B20: 1 | C20: acre | D20: 10.5 | E20: 0 | F20: =D20*B20 -> 10.5 | G20: =F20*(1-E20) -> 10.5 | H20: =F20*E20 -> 0
A21: fertilizer application | B21: 1 | C21: acre | D21: 11.75 | E21: 0.25 | F21: 11.75 | G21: 8.8125 | H21: 2.9375
A22: insecticide & application | B22: 1 | C22: acre | D22: 4.29 | E22: 0.25 | F22: 4.29 | G22: 3.2175 | H22: 1.0725
A23: custom harvest & haul | B23: =$B$9 -> 24 | C23: tons | D23: 7 | E23: 0.25 | F23: 168 | G23: 126 | H23: 42
A24: crop consultant | B24: 1 | C24: acre | D24: 0 | E24: 0 | F24: 0 | G24: 0 | H24: 0
A25: scouting | B25: 1 | C25: acre | D25: 0 | E25: 0 | F25: =D25*B25 -> 0 | G25: =F25*(1-E25) -> 0 | H25: =F25*E25 -> 0
A26: other | B26: 1 | C26: acre | D26: 0 | E26: 0 | F26: 0 | G26: 0 | H26: 0
A27: other | B27: 1 | C27: acre | D27: 0 | E27: 0 | F27: 0 | G27: 0 | H27: 0
A28: other | B28: 1 | C28: acre | D28: 0 | E28: 0 | F28: 0 | G28: 0 | H28: 0
A29: Crop Insurance | B29: 1 | C29: acre | D29: 23 | E29: 0.25 | F29: 23 | G29: 17.25 | H29: 5.75
A30: Operator Labor & Hand Labor | B30: 1.3 | C30: hour | D30: ='2017 Universal Input Prices'!$C$32 -> 12 | E30: 0 | F30: 15.6 | G30: 15.6 | H30: 0
A31: Irrigation Labor | B31: 1 | C31: hours | D31: ='2017 Universal Input Prices'!$C$32 -> 12 | E31: 0 | F31: 12 | G31: 12 | H31: 0
A32: Diesel Fuel - Tractors | B32: 3.2 | C32: gallons | D32: ='2017 Universal Input Prices'!$C$33 -> 1.84 | E32: 0 | F32: 5.888 | G32: 5.888 | H32: 0
A33: Gasoline - Pickup | B33: 2 | C33: gallons | D33: ='2017 Universal Input Prices'!$C$34 -> 1.94 | E33: 0 | F33: 3.88 | G33: 3.88 | H33: 0
A34: Irrigation Fuel | B34: 16 | C34: ac-in | D34: ='2017 Universal Input Prices'!$C$35 -> 11 | E34: 0 | F34: 176 | G34: 176 | H34: 0
A35: Pumping Days | B35: 70.7
A36: Calculated GPM capacity per acre needed | B36: =B34*18.85694/B35 -> 4.267482885
A37: Repair & Maintenance | G37: 0 | H37: 0
A38: Implements | B38: 1 | C38: acre | D38: 3 | E38: 0 | F38: =D38*B38 -> 3 | G38: 3 | H38: 0
A39: Tractors | B39: 1 | C39: acre | D39: 6 | E39: 0 | F39: =D39*B39 -> 6 | G39: 6 | H39: 0
A40: Irrigation-Above Ground | B40: =B34 -> 16 | C40: ac-in | D40: 1 | E40: 0 | F40: =D40*B40 -> 16 | G40: 16 | H40: 0
A41: Irrigation-Below Ground | B41: 1 | C41: acre | D41: 11.25 | E41: 1 | F41: =D41*B41 -> 11.25 | G41: 0 | H41: 11.25
A42: Pickup | B42: 1 | C42: acre | D42: 0.5 | E42: 0 | F42: =D42*B42 -> 0.5 | G42: 0.5 | H42: 0
A43: Interest-operating capital | B43: ='2017 Universal Input Prices'!$C$36 -> 0.06 | F43: =(SUM(F14:F22,F24:F42))*$B43/2 -> 13.08064526 | G43: =(SUM(G14:G22,G24:G42))*$B43/2 -> 11.89660675 | H43: 1.184038511
A45: Total Variable Costs | F45: =SUM(F14:F43) -> 617.1021541 | G45: =SUM(G14:G43) -> 534.4501652 | H45: =SUM(H14:H43) -> 82.65198888
A46: Returns Above Variable Costs | F46: =F11-F45 -> 174.8978459 | G46: =G11-G45 -> 59.54983483 | H46: =H11-H45 -> 115.3480111
A48: Fixed Costs
A49: Implements | B49: 1 | C49: acre | D49: 10 | E49: 0 | F49: =D49*B49 -> 10 | G49: =F49*(1-E49) -> 10 | H49: =F49*E49 -> 0
A50: Tractors | B50: 1 | C50: acre | D50: 12 | E50: 0 | F50: 12 | G50: 12 | H50: 0
A51: Irrigation-Above Ground | B51: 1 | C51: acre | D51: 40 | E51: 1 | F51: 40 | G51: 0 | H51: 40
A52: Irrigation-Below Ground | B52: 1 | C52: acre | D52: 15 | E52: 1 | F52: 15 | G52: 0 | H52: 15
A53: Pickup | B53: 1 | C53: acre | D53: 1.25 | E53: 0 | F53: 1.25 | G53: 1.25 | H53: 0
A54: Management | B54: 1 | C54: acre | D54: 25 | E54: 0 | F54: 25 | G54: 25 | H54: 0
A55: Whole Farm Insurance | B55: 1 | C55: acre | D55: 2 | E55: 0 | F55: =B55*D55 -> 2 | G55: 2 | H55: 0
A56: Land | B56: 1 | C56: acre | D56: 75 | E56: 1 | F56: =D56*B56 -> 75 | G56: =IF($H$6="Cash",D56,F56*(1-E56)) -> 0 | H56: =IF($H$6="Cash",0,F56*E56) -> 75
A57: Property Tax | B57: 1 | C57: acre | D57: 9 | E57: 1 | F57: =B57*D57 -> 9 | G57: 0 | H57: 9
A58: Total Fixed Expenses | F58: =SUM(F49:F57) -> 189.25 | G58: =SUM(G49:G57) -> 50.25 | H58: =SUM(H49:H57) -> 139
A59: Total Specified Expenses | F59: =F45+F58 -> 806.3521541 | G59: =G45+G58 -> 584.7001652 | H59: =H45+H58 -> 221.6519889
A60: Returns Above Total Specified Expenses | F60: =F11-F59 -> -14.35215405 | G60: =G11-G59 -> 9.299834827 | H60: =H11-H59 -> -23.65198888
A62: If you have questions, contact Jackie Smith at 806-746-6101
A65: Supported by a grant from the
A66: Texas Cotton State Support Committee

Sheet Irr Soybeans
A2: Estimated Costs and Returns per Acre
A3: Irrigated Soybeans
A4: Projected for 2017
H5: Rental Agreement | I5: Share
A6: Item | B6: Quantity | C6: Unit | D6: Price | E6: Owner | H6: Share | I6: Cash
E7: Share | F7: Total | G7: Operator | H7: Owner
A8: Income
A9: soybeans | B9: 40 | C9: bu | D9: ='2017 Universal Input Prices'!$C$17 -> 9 | E9: 0.25 | F9: =D9*B9 -> 360 | G9: =F9*(1-E9) -> 270 | H9: =IF(H6="Cash", D58,F9*E9) -> 90
A11: Total Income | F11: =F9 -> 360 | G11: =G9 -> 270 | H11: =H9 -> 90
A13: Variable Costs
A14: Seed
A15: soybean seed | B15: 60 | C15: lbs | D15: 0.65 | E15: 0 | F15: =D15*B15 -> 39 | G15: =F15*(1-E15) -> 39 | H15: =F15*E15 -> 0
A16: innoculant | B16: 1 | C16: acre | D16: 7 | E16: 0 | F16: =D16*B16 -> 7 | G16: =F16*(1-E16) -> 7 | H16: =F16*E16 -> 0
A17: Fertilizer
A18: fert (P) - liquid | B18: 45 | C18: lbs | D18: =IF(A18="",0,VLOOKUP(A18,'2017 Universal Input Prices'!$B$27:$C$31, 2)) -> 0.5220588235 | E18: 0.25 | F18: =D18*B18 -> 23.49264706 | G18: =F18*(1-E18) -> 17.61948529 | H18: =F18*E18 -> 5.873161765
B19: 0 | C19: lbs | D19: =IF(A19="",0,VLOOKUP(A19,'2017 Universal Input Prices'!$B$27:$C$31, 2)) -> 0 | E19: 0 | F19: =D19*B19 -> 0 | G19: =F19*(1-E19) -> 0 | H19: =F19*E19 -> 0
B20: 0 | C20: lbs | D20: =IF(A20="",0,VLOOKUP(A20,'2017 Universal Input Prices'!$B$27:$C$31, 2)) -> 0 | E20: 0 | F20: =D20*B20 -> 0 | G20: =F20*(1-E20) -> 0 | H20: =F20*E20 -> 0
A21: Field Operations
A22: herbicide & application | B22: 1 | C22: acre | D22: 18 | E22: 0 | F22: =D22*B22 -> 18 | G22: =F22*(1-E22) -> 18 | H22: =F22*E22 -> 0
A23: fertilizer application | B23: 1 | C23: acre | D23: 0 | E23: 0.25 | F23: 0 | G23: 0 | H23: 0
A24: insecticide & application | B24: 1 | C24: acre | D24: 5.12 | E24: 0.25 | F24: 5.12 | G24: 3.84 | H24: 1.28
A25: custom harvest & haul | B25: =$B$9 -> 40 | C25: bu | D25: 0.5 | E25: 0.25 | F25: 20 | G25: 15 | H25: 5
A26: crop consultant | B26: 1 | C26: acre | D26: 0 | E26: 0 | F26: 0 | G26: 0 | H26: 0
A27: scouting | B27: 1 | C27: acre | D27: 0 | E27: 0 | F27: =D27*B27 -> 0 | G27: =F27*(1-E27) -> 0 | H27: =F27*E27 -> 0
A28: crop hail | B28: 2 | C28: acre | D28: 6 | E28: 0 | F28: 12 | G28: 12 | H28: 0
A29: other | B29: 1 | C29: acre | D29: 0 | E29: 0 | F29: 0 | G29: 0 | H29: 0
A30: other | B30: 1 | C30: acre | D30: 0 | E30: 0 | F30: 0 | G30: 0 | H30: 0
A31: Crop Insurance | B31: 1 | C31: acre | D31: 23 | E31: 0.25 | F31: 23 | G31: 17.25 | H31: 5.75
A32: Operator Labor & Hand Labor | B32: 1.5 | C32: hour | D32: ='2017 Universal Input Prices'!$C$32 -> 12 | E32: 0 | F32: 18 | G32: 18 | H32: 0
A33: Irrigation Labor | B33: 1 | C33: hours | D33: ='2017 Universal Input Prices'!$C$32 -> 12 | E33: 0 | F33: 12 | G33: 12 | H33: 0
A34: Diesel Fuel - Tractors | B34: 3.8 | C34: gallons | D34: ='2017 Universal Input Prices'!$C$33 -> 1.84 | E34: 0 | F34: 6.992 | G34: 6.992 | H34: 0
A35: Gasoline - Pickup | B35: 2 | C35: gallons | D35: ='2017 Universal Input Prices'!$C$34 -> 1.94 | E35: 0 | F35: 3.88 | G35: 3.88 | H35: 0
A36: Irrigation Fuel | B36: 15 | C36: ac-in | D36: ='2017 Universal Input Prices'!$C$35 -> 11 | E36: 0 | F36: 165 | G36: 165 | H36: 0
A37: Pumping Days | B37: 94.2
A38: Calculated GPM capacity per acre needed | B38: =B36*18.85694/B37 -> 3.002697452
A39: Repair & Maintenance | G39: 0 | H39: 0
A40: Implements | B40: 1 | C40: acre | D40: 3 | E40: 0 | F40: =D40*B40 -> 3 | G40: 3 | H40: 0
A41: Tractors | B41: 1 | C41: acre | D41: 6 | E41: 0 | F41: =D41*B41 -> 6 | G41: 6 | H41: 0
A42: Irrigation-Above Ground | B42: =B36 -> 15 | C42: ac-in | D42: 1 | E42: 0 | F42: =D42*B42 -> 15 | G42: 15 | H42: 0
A43: Irrigation-Below Ground | B43: 1 | C43: acre | D43: 11.25 | E43: 1 | F43: =D43*B43 -> 11.25 | G43: 0 | H43: 11.25
A44: Pickup | B44: 1 | C44: acre | D44: 0.5 | E44: 0 | F44: =D44*B44 -> 0.5 | G44: 0.5 | H44: 0
A45: Interest-operating capital | B45: ='2017 Universal Input Prices'!$C$36 -> 0.06 | F45: =(SUM(F15:F24,F26:F44))*$B45/2 -> 11.07703941 | G45: =(SUM(G15:G24,G26:G44))*$B45/2 -> 10.35244456 | H45: =(SUM(H15:H24,H26:H44))*$B45/2 -> 0.7245948529
A47: Total Variable Costs | F47: =SUM(F15:F45) -> 400.3116865 | G47: =SUM(G15:G45) -> 370.4339299 | H47: =SUM(H15:H45) -> 29.87775662
A48: Returns Above Variable Costs | F48: =F11-F47 -> -40.31168647 | G48: =G11-G47 -> -100.4339299 | H48: =H11-H47 -> 60.12224338
A50: Fixed Costs
A51: Implements | B51: 1 | C51: acre | D51: 10 | E51: 0 | F51: =D51*B51 -> 10 | G51: =F51*(1-E51) -> 10 | H51: =F51*E51 -> 0
A52: Tractors | B52: 1 | C52: acre | D52: 12 | E52: 0 | F52: 12 | G52: 12 | H52: 0
A53: Irrigation-Above Ground | B53: 1 | C53: acre | D53: 40 | E53: 1 | F53: 40 | G53: 0 | H53: 40
A54: Irrigation-Below Ground | B54: 1 | C54: acre | D54: 15 | E54: 1 | F54: 15 | G54: 0 | H54: 15
A55: Pickup | B55: 1 | C55: acre | D55: 1.25 | E55: 0 | F55: 1.25 | G55: 1.25 | H55: 0
A56: Management | B56: 1 | C56: acre | D56: 25 | E56: 0 | F56: 25 | G56: 25 | H56: 0
A57: Whole Farm Insurance | B57: 1 | C57: acre | D57: 2 | E57: 0 | F57: 2 | G57: 2 | H57: 0
A58: Land | B58: 1 | C58: acre | D58: 75 | E58: 1 | F58: 75 | G58: =IF($H$6="Cash",D58,F58*(1-E58)) -> 0 | H58: =IF($H$6="Cash",0,F58*E58) -> 75
A59: Property Tax | B59: 1 | C59: acre | D59: 9 | E59: 1 | F59: 9 | G59: 0 | H59: 9
A60: Total Fixed Expenses | F60: =SUM(F51:F59) -> 189.25 | G60: =SUM(G51:G59) -> 50.25 | H60: =SUM(H51:H59) -> 139
A61: Total Specified Expenses | F61: =F47+F60 -> 589.5616865 | G61: =G47+G60 -> 420.6839299 | H61: =H47+H60 -> 168.8777566
A62: Returns Above Total Specified Expenses | F62: =F11-F61 -> -229.5616865 | G62: =G11-G61 -> -150.6839299 | H62: =H11-H61 -> -78.87775662
A64: If you have questions, contact Jackie Smith at 806-746-6101
A67: Supported by a grant from the
A68: Texas Cotton State Support Committee

Sheet Irr Sunflowers-Confection
A2: Estimated Costs and Returns per Acre
A3: Irrigated Sunflowers-Confectionary
A4: Projected for 2017
H5: Rental Agreement | I5: Share
A6: Item | B6: Quantity | C6: Unit | D6: Price | E6: Owner | H6: Share | I6: Cash
E7: Share | F7: Total | G7: Operator | H7: Owner
A8: Income
A9: Confectionary sunflower | B9: 2000 | C9: lbs | D9: =Sunflower_Conf_Price*$B$10+Sunflower_Conf_S_Price*(1-$B$10) -> 0.21336 | E9: 0.25 | F9: =D9*B9 -> 426.72 | G9: =F9*(1-E9) -> 320.04 | H9: =IF(H6="Cash", D58,F9*E9) -> 106.68
A10: Expected % Large | B10: 0.667
A12: Total Income | F12: =SUM(F8:F11) -> 426.72 | G12: =SUM(G8:G11) -> 320.04 | H12: =SUM(H8:H11) -> 106.68
A14: Variable Costs
A15: Seed | B15: 1 | C15: acre | D15: 21 | E15: 0 | F15: =D15*B15 -> 21 | G15: =F15*(1-E15) -> 21 | H15: =F15*E15 -> 0
A16: Fertilizer
A17: fert (P) - liquid | B17: 24 | C17: lbs | D17: =IF(A17="",0,VLOOKUP(A17,'2017 Universal Input Prices'!$B$27:$C$31, 2)) -> 0.5220588235 | E17: 0.25 | F17: =D17*B17 -> 12.52941176 | G17: =F17*(1-E17) -> 9.397058824 | H17: =F17*E17 -> 3.132352941
A18: fert (N) - liquid | B18: 70 | C18: lbs | D18: =IF(A18="",0,VLOOKUP(A18,'2017 Universal Input Prices'!$B$27:$C$31, 2)) -> 0.3984375 | E18: 0.25 | F18: =D18*B18 -> 27.890625 | G18: =F18*(1-E18) -> 20.91796875 | H18: =F18*E18 -> 6.97265625
B19: 0 | C19: lbs | D19: =IF(A19="",0,VLOOKUP(A19,'2017 Universal Input Prices'!$B$27:$C$31, 2)) -> 0 | E19: 0 | F19: =D19*B19 -> 0 | G19: =F19*(1-E19) -> 0 | H19: =F19*E19 -> 0
A20: Field Operations
A21: herbicide & application | B21: 1 | C21: acre | D21: 35 | E21: 0 | F21: =D21*B21 -> 35 | G21: =F21*(1-E21) -> 35 | H21: =F21*E21 -> 0
A22: insecticide & application | B22: 1 | C22: acre | D22: 25 | E22: 0.25 | F22: 25 | G22: 18.75 | H22: 6.25
A23: custom harvest & haul | B23: 1 | C23: acre | D23: 20 | E23: 0.25 | F23: 20 | G23: 15 | H23: 5
A24: custom harvest & haul | B24: =B9/100 -> 20 | C24: cwt | D24: 0.3 | E24: 0.25 | F24: 6 | G24: 4.5 | H24: 1.5
A25: other | B25: 1 | C25: acre | D25: 0 | E25: 0 | F25: 0 | G25: 0 | H25: 0
A26: other | B26: 1 | C26: acre | D26: 0 | E26: 0 | F26: 0 | G26: 0 | H26: 0
A27: other | B27: 1 | C27: acre | D27: 0 | E27: 0 | F27: 0 | G27: 0 | H27: 0
A28: other | B28: 1 | C28: acre | D28: 0 | E28: 0 | F28: 0 | G28: 0 | H28: 0
A29: other | B29: 1 | C29: acre | D29: 0 | E29: 0 | F29: 0 | G29: 0 | H29: 0
A30: other | B30: 1 | C30: acre | D30: 0 | E30: 0 | F30: 0 | G30: 0 | H30: 0
A31: Crop Insurance | B31: 1 | C31: acre | D31: 17 | E31: 0.25 | F31: 17 | G31: 12.75 | H31: 4.25
A32: Operator Labor & Hand Labor | B32: 1.5 | C32: hours | D32: ='2017 Universal Input Prices'!$C$32 -> 12 | E32: 0 | F32: 18 | G32: 18 | H32: 0
A33: Irrigation Labor | B33: 0.75 | C33: hours | D33: ='2017 Universal Input Prices'!$C$32 -> 12 | E33: 0 | F33: 9 | G33: 9 | H33: 0
A34: Diesel Fuel - Tractors | B34: 3.8 | C34: gallons | D34: ='2017 Universal Input Prices'!$C$33 -> 1.84 | E34: 0 | F34: 6.992 | G34: 6.992 | H34: 0
A35: Gasoline - Pickup | B35: 2 | C35: gallons | D35: ='2017 Universal Input Prices'!$C$34 -> 1.94 | E35: 0 | F35: 3.88 | G35: 3.88 | H35: 0
A36: Irrigation Fuel | B36: 8 | C36: ac-in | D36: ='2017 Universal Input Prices'!$C$35 -> 11 | E36: 0 | F36: 88 | G36: 88 | H36: 0
A37: Pumping Days | B37: 60.3
A38: Calculated GPM capacity per acre needed | B38: =B36*18.85694/B37 -> 2.501749917
A39: Repair & Maintenance
A40: Implements | B40: 1 | C40: acre | D40: 3 | E40: 0 | F40: =D40*B40 -> 3 | G40: =F40*(1-E40) -> 3 | H40: =F40*E40 -> 0
A41: Tractors | B41: 1 | C41: acre | D41: 6 | E41: 0 | F41: =D41*B41 -> 6 | G41: =F41*(1-E41) -> 6 | H41: =F41*E41 -> 0
A42: Irrigation-Above Ground | B42: =B36 -> 8 | C42: ac-in | D42: 1 | E42: 1 | F42: =D42*B42 -> 8 | G42: =F42*(1-E42) -> 0 | H42: =F42*E42 -> 8
A43: Irrigation-Below Ground | B43: 1 | C43: acre | D43: 6 | E43: 1 | F43: =D43*B43 -> 6 | G43: =F43*(1-E43) -> 0 | H43: =F43*E43 -> 6
A44: Pickup | B44: 1 | C44: acre | D44: 0.5 | E44: 0 | F44: =D44*B44 -> 0.5 | G44: =F44*(1-E44) -> 0.5 | H44: =F44*E44 -> 0
A45: Interest-operating capital | B45: ='2017 Universal Input Prices'!$C$36 -> 0.06 | F45: =(SUM(F15:F22,F25:F44))*$B45/2 -> 8.633761103 | G45: =(SUM(G15:G22,G25:G44))*$B45/2 -> 7.595610827 | H45: =(SUM(H15:H22,H25:H44))*$B45/2 -> 1.038150276
A47: Total Variable Costs | F47: =SUM(F15:F45) -> 322.4257979 | G47: =SUM(G15:G45) -> 280.2826384 | H47: =SUM(H15:H45) -> 42.14315947
A48: Returns Above Variable Costs | F48: =F12-F47 -> 104.2942021 | G48: =G12-G47 -> 39.7573616 | H48: =H12-H47 -> 64.53684053
A50: Fixed Costs
A51: Implements | B51: 1 | C51: acre | D51: 10 | E51: 0 | F51: =D51*B51 -> 10 | G51: =F51*(1-E51) -> 10 | H51: =F51*E51 -> 0
A52: Tractors | B52: 1 | C52: acre | D52: 12 | E52: 0 | F52: 12 | G52: 12 | H52: 0
A53: Irrigation-Above Ground | B53: 1 | C53: acre | D53: 40 | E53: 1 | F53: 40 | G53: 0 | H53: 40
A54: Irrigation-Below Ground | B54: 1 | C54: acre | D54: 15 | E54: 1 | F54: 15 | G54: 0 | H54: 15
A55: Pickup | B55: 1 | C55: acre | D55: 1.25 | E55: 0 | F55: 1.25 | G55: 1.25 | H55: 0
A56: Management | B56: 1 | C56: acre | D56: 25 | E56: 0 | F56: 25 | G56: 25 | H56: 0
A57: Whole Farm Insurance | B57: 1 | C57: acre | D57: 2 | E57: 0 | F57: =B57*D57 -> 2 | G57: 2 | H57: 0
A58: Land | B58: 1 | C58: acre | D58: 75 | E58: 1 | F58: =D58*B58 -> 75 | G58: =IF($H$6="Cash",D58,F58*(1-E58)) -> 0 | H58: =IF($H$6="Cash",0,F58*E58) -> 75
A59: Property Tax | B59: 1 | C59: acre | D59: 9 | E59: 1 | F59: =B59*D59 -> 9 | G59: 0 | H59: 9
A60: Total Fixed Expenses | F60: =SUM(F51:F59) -> 189.25 | G60: =SUM(G51:G59) -> 50.25 | H60: =SUM(H51:H59) -> 139
A61: Total Specified Expenses | F61: =F47+F60 -> 511.6757979 | G61: =G47+G60 -> 330.5326384 | H61: =H47+H60 -> 181.1431595
A62: Returns Above Total Specified Expenses | F62: =F12-F61 -> -84.95579787 | G62: =G12-G61 -> -10.4926384 | H62: =H12-H61 -> -74.46315947
A64: If you have questions, contact Jackie Smith at 806-746-6101
A67: Supported by a grant from the
A68: Texas Cotton State Support Committee

Sheet Irr Sunflowers-Oilseed
A2: Estimated Costs and Returns per Acre
A3: Irrigated Sunflowers-Oilseed
A4: Projected for 2017
H5: Rental Agreement | I5: Share
A6: Item | B6: Quantity | C6: Unit | D6: Price | E6: Owner | H6: Share | I6: Cash
E7: Share | F7: Total | G7: Operator | H7: Owner
A8: Income
A9: oilseed sunflower | B9: 2000 | C9: lbs | D9: ='2017 Universal Input Prices'!$C$20 -> 0.14 | E9: 0.25 | F9: =D9*B9 -> 280 | G9: =F9*(1-E9) -> 210 | H9: =IF(H6="Cash", D57,F9*E9) -> 70
A11: Total Income | F11: =SUM(F8:F10) -> 280 | G11: =SUM(G8:G10) -> 210 | H11: =SUM(H8:H10) -> 70
A13: Variable Costs
A14: Seed | B14: 1 | C14: acre | D14: 21 | E14: 0 | F14: =D14*B14 -> 21 | G14: =F14*(1-E14) -> 21 | H14: =F14*E14 -> 0
A15: Fertilizer
A16: fert (P) - liquid | B16: 24 | C16: lbs | D16: =IF(A16="",0,VLOOKUP(A16,'2017 Universal Input Prices'!$B$27:$C$31, 2)) -> 0.5220588235 | E16: 0.25 | F16: =D16*B16 -> 12.52941176 | G16: =F16*(1-E16) -> 9.397058824 | H16: =F16*E16 -> 3.132352941
A17: fert (N) - liquid | B17: 70 | C17: lbs | D17: =IF(A17="",0,VLOOKUP(A17,'2017 Universal Input Prices'!$B$27:$C$31, 2)) -> 0.3984375 | E17: 0.25 | F17: =D17*B17 -> 27.890625 | G17: =F17*(1-E17) -> 20.91796875 | H17: =F17*E17 -> 6.97265625
B18: 0 | C18: lbs | D18: =IF(A18="",0,VLOOKUP(A18,'2017 Universal Input Prices'!$B$27:$C$31, 2)) -> 0 | E18: 0 | F18: =D18*B18 -> 0 | G18: =F18*(1-E18) -> 0 | H18: =F18*E18 -> 0
A19: Field Operations
A20: herbicide & application | B20: 1 | C20: acre | D20: 34.75 | E20: 0 | F20: =D20*B20 -> 34.75 | G20: =F20*(1-E20) -> 34.75 | H20: =F20*E20 -> 0
A21: seed insecticide & application | B21: 1 | C21: acre | D21: 12.63 | E21: 0.25 | F21: 12.63 | G21: 9.4725 | H21: 3.1575
A22: custom harvest & haul | B22: 1 | C22: acre | D22: 20 | E22: 0.25 | F22: 20 | G22: 15 | H22: 5
A23: custom harvest & haul | B23: =B9/100 -> 20 | C23: cwt | D23: 0.3 | E23: 0.25 | F23: 6 | G23: 4.5 | H23: 1.5
A24: other | B24: 1 | C24: acre | D24: 0 | E24: 0 | F24: =D24*B24 -> 0 | G24: =F24*(1-E24) -> 0 | H24: =F24*E24 -> 0
A25: other | B25: 1 | C25: acre | D25: 0 | E25: 0 | F25: =D25*B25 -> 0 | G25: =F25*(1-E25) -> 0 | H25: =F25*E25 -> 0
A26: other | B26: 1 | C26: acre | D26: 0 | E26: 0 | F26: =D26*B26 -> 0 | G26: =F26*(1-E26) -> 0 | H26: =F26*E26 -> 0
A27: other | B27: 1 | C27: acre | D27: 0 | E27: 0 | F27: 0 | G27: 0 | H27: 0
A28: other | B28: 1 | C28: acre | D28: 0 | E28: 0 | F28: 0 | G28: 0 | H28: 0
A29: other | B29: 1 | C29: acre | D29: 0 | E29: 0 | F29: 0 | G29: 0 | H29: 0
A30: Crop Insurance | B30: 1 | C30: acre | D30: 13 | E30: 0.25 | F30: 13 | G30: 9.75 | H30: 3.25
A31: Operator Labor & Hand Labor | B31: 1.5 | C31: hours | D31: ='2017 Universal Input Prices'!$C$32 -> 12 | E31: 0 | F31: 18 | G31: 18 | H31: 0
A32: Irrigation Labor | B32: 0.75 | C32: hours | D32: ='2017 Universal Input Prices'!$C$32 -> 12 | E32: 0 | F32: 9 | G32: 9 | H32: 0
A33: Diesel Fuel - Tractors | B33: 3.8 | C33: gallons | D33: ='2017 Universal Input Prices'!$C$33 -> 1.84 | E33: 0 | F33: 6.992 | G33: 6.992 | H33: 0
A34: Gasoline - Pickup | B34: 2 | C34: gallons | D34: ='2017 Universal Input Prices'!$C$34 -> 1.94 | E34: 0 | F34: 3.88 | G34: 3.88 | H34: 0
A35: Irrigation Fuel | B35: 8 | C35: ac-in | D35: ='2017 Universal Input Prices'!$C$35 -> 11 | E35: 0 | F35: 88 | G35: 88 | H35: 0
A36: Pumping Days | B36: 60.3
A37: Calculated GPM capacity per acre needed | B37: =B35*18.85694/B36 -> 2.501749917
A38: Repair & Maintenance
A39: Implements | B39: 1 | C39: acre | D39: 3 | E39: 0 | F39: =D39*B39 -> 3 | G39: =F39*(1-E39) -> 3 | H39: =F39*E39 -> 0
A40: Tractors | B40: 1 | C40: acre | D40: 6 | E40: 0 | F40: =D40*B40 -> 6 | G40: =F40*(1-E40) -> 6 | H40: =F40*E40 -> 0
A41: Irrigation-Above Ground | B41: =B35 -> 8 | C41: ac-in | D41: 1 | E41: 0 | F41: =D41*B41 -> 8 | G41: =F41*(1-E41) -> 8 | H41: =F41*E41 -> 0
A42: Irrigation-Below Ground | B42: 1 | C42: acre | D42: 6 | E42: 1 | F42: =D42*B42 -> 6 | G42: =F42*(1-E42) -> 0 | H42: =F42*E42 -> 6
A43: Pickup | B43: 1 | C43: acre | D43: 0.5 | E43: 0 | F43: =D43*B43 -> 0.5 | G43: =F43*(1-E43) -> 0.5 | H43: =F43*E43 -> 0
A44: Interest-operating capital | B44: ='2017 Universal Input Prices'!$C$36 -> 0.06 | F44: =(SUM(F14:F21,F24:F43))*$B44/2 -> 8.135161103 | G44: =(SUM(G14:G21,G24:G43))*$B44/2 -> 7.459785827 | H44: =(SUM(H14:H21,H24:H43))*$B44/2 -> 0.6753752757
A46: Total Variable Costs | F46: =SUM(F14:F44) -> 305.3071979 | G46: =SUM(G14:G44) -> 275.6193134 | H46: =SUM(H14:H44) -> 29.68788447
A47: Returns Above Variable Costs | F47: =F11-F46 -> -25.30719787 | G47: =G11-G46 -> -65.6193134 | H47: =H11-H46 -> 40.31211553
A49: Fixed Costs
A50: Implements | B50: 1 | C50: acre | D50: 10 | E50: 0 | F50: =D50*B50 -> 10 | G50: =F50*(1-E50) -> 10 | H50: =F50*E50 -> 0
A51: Tractors | B51: 1 | C51: acre | D51: 12 | E51: 0 | F51: 12 | G51: 12 | H51: 0
A52: Irrigation-Above Ground | B52: 1 | C52: acre | D52: 40 | E52: 1 | F52: 40 | G52: 0 | H52: 40
A53: Irrigation-Below Ground | B53: 1 | C53: acre | D53: 15 | E53: 1 | F53: 15 | G53: 0 | H53: 15
A54: Pickup | B54: 1 | C54: acre | D54: 1.25 | E54: 0 | F54: 1.25 | G54: 1.25 | H54: 0
A55: Management | B55: 1 | C55: acre | D55: 25 | E55: 0 | F55: 25 | G55: 25 | H55: 0
A56: Whole Farm Insurance | B56: 1 | C56: acre | D56: 2 | E56: 0 | F56: =B56*D56 -> 2 | G56: 2 | H56: 0
A57: Land | B57: 1 | C57: acre | D57: 75 | E57: 1 | F57: =D57*B57 -> 75 | G57: =IF($H$6="Cash",D57,F57*(1-E57)) -> 0 | H57: =IF($H$6="Cash",0,F57*E57) -> 75
A58: Property Tax | B58: 1 | C58: acre | D58: 9 | E58: 1 | F58: =B58*D58 -> 9 | G58: 0 | H58: 9
A59: Total Fixed Expenses | F59: =SUM(F50:F58) -> 189.25 | G59: =SUM(G50:G58) -> 50.25 | H59: =SUM(H50:H58) -> 139
A60: Total Specified Expenses | F60: =F46+F59 -> 494.5571979 | G60: =G46+G59 -> 325.8693134 | H60: =H46+H59 -> 168.6878845
A61: Returns Above Total Specified Expenses | F61: =F11-F60 -> -214.5571979 | G61: =G11-G60 -> -115.8693134 | H61: =H11-H60 -> -98.68788447
A63: If you have questions, contact Jackie Smith at 806-746-6101
A66: Supported by a grant from the
A67: Texas Cotton State Support Committee

Sheet Irr Wheat
A2: Estimated Costs and Returns per Acre
A3: Irrigated Wheat
A4: Projected for 2017
H5: Rental Agreement | I5: Share
A6: Item | B6: Quantity | C6: Unit | D6: Price | E6: Owner | H6: Share | I6: Cash
E7: Share | F7: Total | G7: Operator | H7: Owner
A8: Income
A9: wheat | B9: 60 | C9: bu | D9: ='2017 Universal Input Prices'!$C$21 -> 5.2 | E9: 0.25 | F9: =D9*B9 -> 312 | G9: =F9*(1-E9) -> 234 | H9: =IF(H6="Cash", D56,F9*E9) -> 78
A10: grazing | B10: 136 | C10: lbs | D10: =Grazing_Price -> 0.45 | E10: 0.25 | F10: =D10*B10 -> 61.2 | G10: =F10*(1-E10) -> 45.9 | H10: =IF(H6="Cash", 0,F10*E10) -> 15.3
A12: Total Income | F12: =F9+F10 -> 373.2 | G12: =G9+G10 -> 279.9 | H12: =H9+H10 -> 93.3
A14: Variable Costs
A15: Seed | B15: 1.5 | C15: bu | D15: 25 | E15: 0 | F15: =D15*B15 -> 37.5 | G15: =F15*(1-E15) -> 37.5 | H15: =F15*E15 -> 0
A16: Fertilizer
A17: fert (N) - liquid | B17: 50 | C17: lbs | D17: =IF(A17="",0,VLOOKUP(A17,'2017 Universal Input Prices'!$B$27:$C$31, 2)) -> 0.3984375 | E17: 0.25 | F17: =D17*B17 -> 19.921875 | G17: =F17*(1-E17) -> 14.94140625 | H17: =F17*E17 -> 4.98046875
A18: fert (P) - liquid | B18: 56 | C18: lbs | D18: =IF(A18="",0,VLOOKUP(A18,'2017 Universal Input Prices'!$B$27:$C$31, 2)) -> 0.5220588235 | E18: 0.25 | F18: =D18*B18 -> 29.23529412 | G18: =F18*(1-E18) -> 21.92647059 | H18: =F18*E18 -> 7.308823529
A19: fert (N) - NH3 | B19: 90 | C19: lbs | D19: =IF(A19="",0,VLOOKUP(A19,'2017 Universal Input Prices'!$B$27:$C$31, 2)) -> 0.3048780488 | E19: 0.25 | F19: =D19*B19 -> 27.43902439 | G19: =F19*(1-E19) -> 20.57926829 | H19: =F19*E19 -> 6.859756098
A20: Field Operations
A21: herbicide & application | B21: 1 | C21: acre | D21: 0 | E21: 0 | F21: =D21*B21 -> 0 | G21: =F21*(1-E21) -> 0 | H21: =F21*E21 -> 0
A22: fertilizer application | B22: 1 | C22: acre | D22: 11.75 | E22: 0 | F22: 11.75 | G22: 11.75 | H22: 0
A23: insecticide & application | B23: 1 | C23: acre | D23: 11 | E23: 0.25 | F23: 11 | G23: 8.25 | H23: 2.75
A24: custom harvest & haul | B24: =B9 -> 60 | C24: bu | D24: 0.5 | E24: 0.25 | F24: 30 | G24: 22.5 | H24: 7.5
A25: scouting | B25: 1 | C25: acre | D25: 0 | E25: 0 | F25: =D25*B25 -> 0 | G25: =F25*(1-E25) -> 0 | H25: =F25*E25 -> 0
A26: other | B26: 1 | C26: acre | D26: 0 | E26: 0 | F26: 0 | G26: 0 | H26: 0
A27: other | B27: 1 | C27: acre | D27: 0 | E27: 0 | F27: 0 | G27: 0 | H27: 0
A28: other | B28: 1 | C28: acre | D28: 0 | E28: 0 | F28: 0 | G28: 0 | H28: 0
A29: Crop Insurance | B29: 1 | C29: acre | D29: 19.5 | E29: 0.25 | F29: 19.5 | G29: 14.625 | H29: 4.875
A30: Operator Labor & Hand Labor | B30: 1 | C30: hours | D30: ='2017 Universal Input Prices'!$C$32 -> 12 | E30: 0 | F30: 12 | G30: 12 | H30: 0
A31: Irrigation Labor | B31: 1 | C31: hours | D31: ='2017 Universal Input Prices'!$C$32 -> 12 | E31: 0 | F31: 12 | G31: 12 | H31: 0
A32: Diesel Fuel - Tractors | B32: 2.4 | C32: gallons | D32: ='2017 Universal Input Prices'!$C$33 -> 1.84 | E32: 0 | F32: 4.416 | G32: 4.416 | H32: 0
A33: Gasoline - Pickup | B33: 2 | C33: gallons | D33: ='2017 Universal Input Prices'!$C$34 -> 1.94 | E33: 0 | F33: 3.88 | G33: 3.88 | H33: 0
A34: Irrigation Fuel | B34: 14 | C34: ac-in | D34: ='2017 Universal Input Prices'!$C$35 -> 11 | E34: 0 | F34: 154 | G34: 154 | H34: 0
A35: Pumping Days | B35: 94.2
A36: Calculated GPM capacity per acre needed | B36: =B34*18.85694/B35 -> 2.802517622
A37: Repair & Maintenance
A38: Implements | B38: 1 | C38: acre | D38: 3 | E38: 0 | F38: =D38*B38 -> 3 | G38: 3 | H38: 0
A39: Tractors | B39: 1 | C39: acre | D39: 6 | E39: 0 | F39: =D39*B39 -> 6 | G39: 6 | H39: 0
A40: Irrigation-Above Ground | B40: =B34 -> 14 | C40: ac-in | D40: 1 | E40: 0 | F40: =D40*B40 -> 14 | G40: 14 | H40: 0
A41: Irrigation-Below Ground | B41: 1 | C41: acre | D41: 11.25 | E41: 1 | F41: =D41*B41 -> 11.25 | G41: 0 | H41: 11.25
A42: Pickup | B42: 1 | C42: acre | D42: 0.5 | E42: 0 | F42: =D42*B42 -> 0.5 | G42: 0.5 | H42: 0
A43: Interest-operating capital | B43: ='2017 Universal Input Prices'!$C$36 -> 0.06 | F43: =(SUM(F15:F23,F25:F42))*$B43/2 -> 11.32176581 | G43: =(SUM(G15:G23,G25:G42))*$B43/2 -> 10.18104435 | H43: =(SUM(H15:H23,H25:H42))*$B43/2 -> 1.140721451
A45: Total Variable Costs | F45: =SUM(F15:F43) -> 418.7139593 | G45: =SUM(G15:G43) -> 372.0491895 | H45: =SUM(H15:H43) -> 46.66476983
A46: Returns Above Variable Costs | F46: =F12-F45 -> -45.51395931 | G46: =G12-G45 -> -92.14918948 | H46: =H12-H45 -> 46.63523017
A48: Fixed Costs
A49: Implements | B49: 1 | C49: acre | D49: 10 | E49: 0 | F49: =D49*B49 -> 10 | G49: =F49*(1-E49) -> 10 | H49: =F49*E49 -> 0
A50: Tractors | B50: 1 | C50: acre | D50: 12 | E50: 0 | F50: 12 | G50: 12 | H50: 0
A51: Irrigation-Above Ground | B51: 1 | C51: acre | D51: 40 | E51: 1 | F51: 40 | G51: 0 | H51: 40
A52: Irrigation-Below Ground | B52: 1 | C52: acre | D52: 15 | E52: 1 | F52: 15 | G52: 0 | H52: 15
A53: Pickup | B53: 1 | C53: acre | D53: 1.25 | E53: 0 | F53: 1.25 | G53: 1.25 | H53: 0
A54: Management | B54: 1 | C54: acre | D54: 25 | E54: 0 | F54: 25 | G54: 25 | H54: 0
A55: Whole Farm Insurance | B55: 1 | C55: acre | D55: 2 | E55: 0 | F55: =B55*D55 -> 2 | G55: 2 | H55: 0
A56: Land | B56: 1 | C56: acre | D56: 75 | E56: 1 | F56: =D56*B56 -> 75 | G56: =IF($H$6="Cash",D56,F56*(1-E56)) -> 0 | H56: =IF($H$6="Cash",0,F56*E56) -> 75
A57: Property Tax | B57: 1 | C57: acre | D57: 9 | E57: 1 | F57: =B57*D57 -> 9 | G57: 0 | H57: 9
A58: Total Fixed Expenses | F58: =SUM(F49:F57) -> 189.25 | G58: =SUM(G49:G57) -> 50.25 | H58: =SUM(H49:H57) -> 139
A59: Total Specified Expenses | F59: =F45+F58 -> 607.9639593 | G59: =G45+G58 -> 422.2991895 | H59: =H45+H58 -> 185.6647698
A60: Returns Above Total Specified Expenses | F60: =F12-F59 -> -234.7639593 | G60: =G12-G59 -> -142.3991895 | H60: =H12-H59 -> -92.36476983
A62: If you have questions, contact Jackie Smith at 806-746-6101
A65: Supported by a grant from the
A66: Texas Cotton State Support Committee

Sheet Dry Cotton Conventional
A2: Estimated Costs and Returns per Acre
A3: Dryland Cotton - Conventional
A4: Projected for 2017
H5: Rental Agreement | I5: Share
A6: Item | B6: Quantity | C6: Unit | D6: Price | E6: Owner | H6: Share | I6: Cash
E7: Share | F7: Total | G7: Operator | H7: Owner
A8: Income
A9: cotton lint | B9: 375 | C9: lbs | D9: ='2017 Universal Input Prices'!$C$8 -> 0.67 | E9: 0.25 | F9: =D9*B9 -> 251.25 | G9: =F9*(1-E9) -> 188.4375 | H9: =IF(H6="Cash", D54,F9*E9) -> 62.8125
A10: cotton seed | B10: =B9/500*'2017 Universal Input Prices'!C40/2000 -> 0.26625 | C10: tons | D10: ='2017 Universal Input Prices'!$C$9 -> 200 | E10: 0.25 | F10: =D10*B10 -> 53.25 | G10: =F10*(1-E10) -> 39.9375 | H10: =IF(H6="Cash", 0,F10*E10) -> 13.3125
A11: Expected Turnout | B11: 0.26
A12: Total Income | F12: =F9+F10 -> 304.5 | G12: =G9+G10 -> 228.375 | H12: =H9+H10 -> 76.125
A14: Variable Costs
A15: Seed | B15: 35 | C15: thousand | D15: 0.65 | E15: 0 | F15: =D15*B15 -> 22.75 | G15: =F15*(1-E15) -> 22.75 | H15: =F15*E15 -> 0
A16: Boll Weevil Assess.-Dry | B16: =B9/500 -> 0.75 | C16: Bales | D16: 1 | E16: 0.25 | F16: =D16*B16 -> 0.75 | G16: =F16*(1-E16) -> 0.5625 | H16: =F16*E16 -> 0.1875
A17: Fertilizer
A18: fert (N) - liquid | B18: 30 | C18: lbs | D18: =IF(A18="",0,VLOOKUP(A18,'2017 Universal Input Prices'!$B$27:$C$31, 2)) -> 0.3984375 | E18: 0.25 | F18: =D18*B18 -> 11.953125 | G18: =F18*(1-E18) -> 8.96484375 | H18: =F18*E18 -> 2.98828125
A19: fert (P) - liquid | B19: 12 | C19: lbs | D19: =IF(A19="",0,VLOOKUP(A19,'2017 Universal Input Prices'!$B$27:$C$31, 2)) -> 0.5220588235 | E19: 0.25 | F19: =D19*B19 -> 6.264705882 | G19: =F19*(1-E19) -> 4.698529412 | H19: =F19*E19 -> 1.566176471
B20: 0 | C20: lbs | D20: =IF(A20="",0,VLOOKUP(A20,'2017 Universal Input Prices'!$B$27:$C$31, 2)) -> 0 | E20: 0 | F20: =D20*B20 -> 0 | G20: =F20*(1-E20) -> 0 | H20: =F20*E20 -> 0
A21: Field Operations
A22: preplant herbicide & application | B22: 1 | C22: acre | D22: 8.75 | E22: 0 | F22: =D22*B22 -> 8.75 | G22: =F22*(1-E22) -> 8.75 | H22: =F22*E22 -> 0
A23: at-plant herbicide | B23: 1 | C23: acre | D23: 5.75 | E23: 0 | F23: 5.75 | G23: 5.75 | H23: =+F23*E23 -> 0
A24: post emergence herbicide & application | B24: 1 | C24: acre | D24: 17 | E24: 0 | F24: 17 | G24: 17 | H24: 0
A25: fertilizer application | B25: 1 | C25: acre | D25: 4.75 | E25: 0.25 | F25: 4.75 | G25: 3.5625 | H25: 1.1875
A26: insecticide & application | B26: 1 | C26: acre | D26: 6 | E26: 0.25 | F26: 6 | G26: 4.5 | H26: 1.5
A27: harvest aids | B27: 1 | C27: acre | D27: 10 | E27: 0.25 | F27: 10 | G27: 7.5 | H27: 2.5
A28: strip (field cleaner) | B28: =B9 -> 375 | C28: lb. | D28: ='2017 Universal Input Prices'!$C$38 -> 0.08 | E28: 0 | F28: 30 | G28: 30 | H28: 0
A29: ginning | B29: =B9/B11/100 -> 14.42307692 | C29: cwt. | D29: ='2017 Universal Input Prices'!$C$39 -> 2.9 | E29: 0.25 | F29: 41.82692308 | G29: 31.37019231 | H29: 10.45673077
A30: hoeing | B30: 1 | C30: acre | D30: 18 | E30: 0 | F30: 18 | G30: 18 | H30: 0
A31: scouting | B31: 1 | C31: acre | D31: 5 | E31: 0 | F31: =D31*B31 -> 5 | G31: =F31*(1-E31) -> 5 | H31: =F31*E31 -> 0
A32: spot spraying | B32: 1 | C32: acre | D32: 15 | E32: 0 | F32: 15 | G32: 15 | H32: 0
A33: other | B33: 1 | C33: acre | D33: 0 | E33: 0 | F33: 0 | G33: 0 | H33: 0
A34: other | B34: 1 | C34: acre | D34: 0 | E34: 0 | F34: 0 | G34: 0 | H34: 0
A35: Crop Insurance | B35: 1 | C35: acre | D35: 32 | E35: 0.25 | F35: 32 | G35: 24 | H35: 8
A36: Operator Labor & Hand Labor | B36: 2.5 | C36: hours | D36: ='2017 Universal Input Prices'!$C$32 -> 12 | E36: 0 | F36: 30 | G36: 30 | H36: 0
A37: Diesel Fuel - Tractors | B37: 6 | C37: gallons | D37: ='2017 Universal Input Prices'!$C$33 -> 1.84 | E37: 0 | F37: 11.04 | G37: 11.04 | H37: 0
A38: Gasoline - Pickup | B38: 2 | C38: gallons | D38: ='2017 Universal Input Prices'!$C$34 -> 1.94 | E38: 0 | F38: 3.88 | G38: 3.88 | H38: 0
A39: Repair & Maintenance
A40: Implements | B40: 1 | C40: acre | D40: 3 | E40: 0 | F40: =D40*B40 -> 3 | G40: =F40*(1-E40) -> 3 | H40: =F40*E40 -> 0
A41: Tractors | B41: 1 | C41: acre | D41: 6 | E41: 0 | F41: =D41*B41 -> 6 | G41: =F41*(1-E41) -> 6 | H41: =F41*E41 -> 0
A42: Pickup | B42: 1 | C42: acre | D42: 0.5 | E42: 0 | F42: =D42*B42 -> 0.5 | G42: =F42*(1-E42) -> 0.5 | H42: =F42*E42 -> 0
A43: Interest-operating capital | B43: ='2017 Universal Input Prices'!$C$36 -> 0.06 | F43: =(SUM(F15:F26,F30:F42))*$B43/2 -> 6.251634926 | G43: =(SUM(G15:G26,G30:G42))*$B43/2 -> 5.788751195 | H43: =(SUM(H15:H26,H30:H42))*$B43/2 -> 0.4628837316
A45: Total Variable Costs | F45: =SUM(F15:F43) -> 296.4663889 | G45: =SUM(G15:G43) -> 267.6173167 | H45: =SUM(H15:H43) -> 28.84907222
A46: Returns Above Variable Costs | F46: =F12-F45 -> 8.033611114 | G46: =G12-G45 -> -39.24231666 | H46: =H12-H45 -> 47.27592778
A48: Fixed Costs
A49: Implements | B49: 1 | C49: acre | D49: 10 | E49: 0 | F49: =D49*B49 -> 10 | G49: =F49*(1-E49) -> 10 | H49: =F49*E49 -> 0
A50: Tractors | B50: 1 | C50: acre | D50: 12 | E50: 0 | F50: 12 | G50: 12 | H50: 0
A51: Pickup | B51: 1 | C51: acre | D51: 1.25 | E51: 0 | F51: 1.25 | G51: 1.25 | H51: 0
A52: Management | B52: 1 | C52: acre | D52: 25 | E52: 0 | F52: 25 | G52: 25 | H52: 0
A53: Whole Farm Insurance | B53: 1 | C53: acre | D53: 2 | E53: 0 | F53: 2 | G53: 2 | H53: 0
A54: Land | B54: 1 | C54: acre | D54: 50 | E54: 1 | F54: 50 | G54: =IF($H$6="Cash",D54,F54*(1-E54)) -> 0 | H54: =IF($H$6="Cash",0,F54*E54) -> 50
A55: Property Tax | B55: 1 | C55: acre | D55: 3 | E55: 1 | F55: 3 | G55: 0 | H55: 3
A56: Total Fixed Expenses | F56: =SUM(F49:F55) -> 103.25 | G56: =SUM(G49:G55) -> 50.25 | H56: =SUM(H49:H55) -> 53
A57: Total Specified Expenses | F57: =F45+F56 -> 399.7163889 | G57: =G45+G56 -> 317.8673167 | H57: =H45+H56 -> 81.84907222
A58: Returns Above Total Specified Expenses | F58: =F12-F57 -> -95.21638889 | G58: =G12-G57 -> -89.49231666 | H58: =H12-H57 -> -5.724072221
A60: If you have questions, contact Jackie Smith at 806-746-6101
A63: Supported by a grant from the
A64: Texas Cotton State Support Committee

Sheet Dry Cotton HT
A2: Estimated Costs and Returns per Acre
A3: Dryland Cotton - Herbicide Tolerant
A4: Projected for 2017
H5: Rental Agreement | I5: Share
A6: Item | B6: Quantity | C6: Unit | D6: Price | E6: Owner | H6: Share | I6: Cash
E7: Share | F7: Total | G7: Operator | H7: Owner
A8: Income
A9: cotton lint | B9: 375 | C9: lbs | D9: ='2017 Universal Input Prices'!$C$8 -> 0.67 | E9: 0.25 | F9: =D9*B9 -> 251.25 | G9: =F9*(1-E9) -> 188.4375 | H9: =IF(H6="Cash", D54,F9*E9) -> 62.8125
A10: cotton seed | B10: =B9/500*'2017 Universal Input Prices'!C40/2000 -> 0.26625 | C10: tons | D10: ='2017 Universal Input Prices'!$C$9 -> 200 | E10: 0.25 | F10: =D10*B10 -> 53.25 | G10: =F10*(1-E10) -> 39.9375 | H10: =IF(H6="Cash", 0,F10*E10) -> 13.3125
A11: Expected Turnout | B11: 0.26
A12: Total Income | F12: =F9+F10 -> 304.5 | G12: =G9+G10 -> 228.375 | H12: =H9+H10 -> 76.125
A14: Variable Costs
A15: Seed | B15: 30 | C15: thousand | D15: 1.06 | E15: 0.125 | F15: =D15*B15 -> 31.8 | G15: =F15*(1-E15) -> 27.825 | H15: =F15*E15 -> 3.975
A16: Boll Weevil Assess.-Dry | B16: =B9/500 -> 0.75 | C16: Bales | D16: 1 | E16: 0.25 | F16: =D16*B16 -> 0.75 | G16: =F16*(1-E16) -> 0.5625 | H16: =F16*E16 -> 0.1875
A17: Fertilizer
A18: fert (N) - liquid | B18: 35 | C18: lbs | D18: =IF(A18="",0,VLOOKUP(A18,'2017 Universal Input Prices'!$B$27:$C$31, 2)) -> 0.3984375 | E18: 0.25 | F18: =D18*B18 -> 13.9453125 | G18: =F18*(1-E18) -> 10.45898438 | H18: =F18*E18 -> 3.486328125
A19: fert (P) - liquid | B19: 14 | C19: lbs | D19: =IF(A19="",0,VLOOKUP(A19,'2017 Universal Input Prices'!$B$27:$C$31, 2)) -> 0.5220588235 | E19: 0.25 | F19: =D19*B19 -> 7.308823529 | G19: =F19*(1-E19) -> 5.481617647 | H19: =F19*E19 -> 1.827205882
B20: 0 | C20: lbs | D20: =IF(A20="",0,VLOOKUP(A20,'2017 Universal Input Prices'!$B$27:$C$31, 2)) -> 0 | E20: 0 | F20: =D20*B20 -> 0 | G20: =F20*(1-E20) -> 0 | H20: =F20*E20 -> 0
A21: Field Operations
A22: preplant herbicide & application | B22: 1 | C22: acre | D22: 9.5 | E22: 0 | F22: =D22*B22 -> 9.5 | G22: =F22*(1-E22) -> 9.5 | H22: =F22*E22 -> 0
A23: at-plant herbicide | B23: 1 | C23: acre | D23: 4.5 | E23: 0 | F23: 4.5 | G23: 4.5 | H23: =+F23*E23 -> 0
A24: 1 post emergence herbicide & application | B24: 1 | C24: acre | D24: 12.5 | E24: 0 | F24: 12.5 | G24: 12.5 | H24: 0
A25: fertilizer application | B25: 1 | C25: acre | D25: 4.75 | E25: 0.25 | F25: 4.75 | G25: 3.5625 | H25: 1.1875
A26: insecticide & application | B26: 1 | C26: acre | D26: 6 | E26: 0.25 | F26: 6 | G26: 4.5 | H26: 1.5
A27: harvest aids | B27: 1 | C27: acre | D27: 10 | E27: 0.25 | F27: 10 | G27: 7.5 | H27: 2.5
A28: strip (field cleaner) | B28: =B9 -> 375 | C28: lb. | D28: ='2017 Universal Input Prices'!$C$38 -> 0.08 | E28: 0 | F28: 30 | G28: 30 | H28: 0
A29: ginning | B29: =B9/B11/100 -> 14.42307692 | C29: cwt. | D29: ='2017 Universal Input Prices'!$C$39 -> 2.9 | E29: 0.25 | F29: 41.82692308 | G29: 31.37019231 | H29: 10.45673077
A30: hoeing | B30: 0.1 | C30: acre | D30: 15 | E30: 0 | F30: 1.5 | G30: 1.5 | H30: 0
A31: scouting | B31: 1 | C31: acre | D31: 5 | E31: 0 | F31: =D31*B31 -> 5 | G31: =F31*(1-E31) -> 5 | H31: =F31*E31 -> 0
A32: spot spraying | B32: 0.1 | C32: acre | D32: 15 | E32: 0 | F32: 1.5 | G32: 1.5 | H32: 0
A33: other | B33: 1 | C33: acre | D33: 0 | E33: 0 | F33: 0 | G33: 0 | H33: 0
A34: other | B34: 1 | C34: acre | D34: 0 | E34: 0 | F34: 0 | G34: 0 | H34: 0
A35: Crop Insurance | B35: 1 | C35: acre | D35: 32 | E35: 0.25 | F35: 32 | G35: 24 | H35: 8
A36: Operator Labor & Hand Labor | B36: 1.4 | C36: hours | D36: ='2017 Universal Input Prices'!$C$32 -> 12 | E36: 0 | F36: 16.8 | G36: 16.8 | H36: 0
A37: Diesel Fuel - Tractors | B37: 3.4 | C37: gallons | D37: ='2017 Universal Input Prices'!$C$33 -> 1.84 | E37: 0 | F37: 6.256 | G37: 6.256 | H37: 0
A38: Gasoline - Pickup | B38: 2 | C38: gallons | D38: ='2017 Universal Input Prices'!$C$34 -> 1.94 | E38: 0 | F38: 3.88 | G38: 3.88 | H38: 0
A39: Repair & Maintenance
A40: Implements | B40: 1 | C40: acre | D40: 3 | E40: 0 | F40: =D40*B40 -> 3 | G40: =F40*(1-E40) -> 3 | H40: =F40*E40 -> 0
A41: Tractors | B41: 1 | C41: acre | D41: 6 | E41: 0 | F41: =D41*B41 -> 6 | G41: =F41*(1-E41) -> 6 | H41: =F41*E41 -> 0
A42: Pickup | B42: 1 | C42: acre | D42: 0.5 | E42: 0 | F42: =D42*B42 -> 0.5 | G42: =F42*(1-E42) -> 0.5 | H42: =F42*E42 -> 0
A43: Interest-operating capital | B43: ='2017 Universal Input Prices'!$C$36 -> 0.06 | F43: =(SUM(F15:F26,F30:F42))*$B43/2 -> 5.024704081 | G43: =(SUM(G15:G26,G30:G42))*$B43/2 -> 4.419798061 | H43: =(SUM(H15:H26,H30:H42))*$B43/2 -> 0.6049060202
A45: Total Variable Costs | F45: =SUM(F15:F43) -> 254.3417632 | G45: =SUM(G15:G43) -> 220.6165924 | H45: =SUM(H15:H43) -> 33.7251708
A46: Returns Above Variable Costs | F46: =F12-F45 -> 50.15823681 | G46: =G12-G45 -> 7.75840761 | H46: =H12-H45 -> 42.3998292
A48: Fixed Costs
A49: Implements | B49: 1 | C49: acre | D49: 10 | E49: 0 | F49: =D49*B49 -> 10 | G49: =F49*(1-E49) -> 10 | H49: =F49*E49 -> 0
A50: Tractors | B50: 1 | C50: acre | D50: 12 | E50: 0 | F50: 12 | G50: 12 | H50: 0
A51: Pickup | B51: 1 | C51: acre | D51: 1.25 | E51: 0 | F51: 1.25 | G51: 1.25 | H51: 0
A52: Management | B52: 1 | C52: acre | D52: 25 | E52: 0 | F52: 25 | G52: 25 | H52: 0
A53: Whole Farm Insurance | B53: 1 | C53: acre | D53: 2 | E53: 0 | F53: 2 | G53: 2 | H53: 0
A54: Land | B54: 1 | C54: acre | D54: 50 | E54: 1 | F54: 50 | G54: =IF($H$6="Cash",D54,F54*(1-E54)) -> 0 | H54: =IF($H$6="Cash",0,F54*E54) -> 50
A55: Property Tax | B55: 1 | C55: acre | D55: 3 | E55: 1 | F55: 3 | G55: 0 | H55: 3
A56: Total Fixed Expenses | F56: =SUM(F49:F55) -> 103.25 | G56: =SUM(G49:G55) -> 50.25 | H56: =SUM(H49:H55) -> 53
A57: Total Specified Expenses | F57: =F45+F56 -> 357.5917632 | G57: =G45+G56 -> 270.8665924 | H57: =H45+H56 -> 86.7251708
A58: Returns Above Total Specified Expenses | F58: =F12-F57 -> -53.09176319 | G58: =G12-G57 -> -42.49159239 | H58: =H12-H57 -> -10.6001708
A60: If you have questions, contact Jackie Smith at 806-746-6101
A63: Supported by a grant from the
A64: Texas Cotton State Support Committee

Sheet Dry Guar
A2: Estimated Costs and Returns per Ground Acre
A3: Dryland Guar
A4: Projected for 2017
H5: Rental Agreement | I5: Share
A6: Item | B6: Quantity | C6: Unit | D6: Price | E6: Owner | H6: Share | I6: Cash
E7: Share | F7: Total | G7: Operator | H7: Owner
A8: Income
A9: guar | B9: 600 | C9: lbs | D9: ='2017 Universal Input Prices'!C10 -> 0.16 | E9: 0.25 | F9: =D9*B9 -> 96 | G9: =F9*(1-E9) -> 72 | H9: =IF(H6="Cash", D50,F9*E9) -> 24
A11: Total Income | F11: =SUM(F9:F10) -> 96 | G11: =SUM(G9:G10) -> 72 | H11: =SUM(H9:H10) -> 24
A13: Variable Costs
A14: Seed | B14: 8 | C14: lbs | D14: 1.5 | E14: 0 | F14: =D14*B14 -> 12 | G14: =F14*(1-E14) -> 12 | H14: =F14*E14 -> 0
A15: Innoculant | B15: 1 | C15: lbs | D15: 3 | E15: 0 | F15: =D15*B15 -> 3 | G15: =F15*(1-E15) -> 3 | H15: =F15*E15 -> 0
A16: Fertilizer
A17: fert (P) - dry | B17: 20 | C17: lbs | D17: =IF(A17="",0,VLOOKUP(A17,'2017 Universal Input Prices'!$B$27:$C$31, 2)) -> 0.4567307692 | E17: 0.25 | F17: =D17*B17 -> 9.134615385 | G17: =F17*(1-E17) -> 6.850961538 | H17: =F17*E17 -> 2.283653846
B18: 0 | C18: lbs | D18: =IF(A18="",0,VLOOKUP(A18,'2017 Universal Input Prices'!$B$27:$C$31, 2)) -> 0 | E18: 0 | F18: =D18*B18 -> 0 | G18: =F18*(1-E18) -> 0 | H18: =F18*E18 -> 0
B19: 0 | C19: lbs | D19: =IF(A19="",0,VLOOKUP(A19,'2017 Universal Input Prices'!$B$27:$C$31, 2)) -> 0 | E19: 0 | F19: =D19*B19 -> 0 | G19: =F19*(1-E19) -> 0 | H19: =F19*E19 -> 0
A20: Field Operations
A21: herbicide | B21: 1 | C21: acre | D21: 2.34 | E21: 0 | F21: =D21*B21 -> 2.34 | G21: =F21*(1-E21) -> 2.34 | H21: =F21*E21 -> 0
A22: fertilizer application | B22: 1 | C22: acre | D22: 4 | E22: 0.25 | F22: 4 | G22: 3 | H22: 1
A23: insecticide | B23: 0 | C23: acre | D23: 0 | E23: 0.25 | F23: 0 | G23: 0 | H23: 0
A24: custom harvest and haul | B24: 1 | C24: acre | D24: 25 | E24: 0.25 | F24: 25 | G24: 18.75 | H24: 6.25
A25: custom harvest and haul | B25: =B9/100 -> 6 | C25: cwt | D25: 0.2 | E25: 0.25 | F25: 1.2 | G25: 0.9 | H25: 0.3
A26: hoeing | B26: 0 | C26: acre | D26: 0 | E26: 0 | F26: 0 | G26: 0 | H26: 0
A27: scouting | B27: 1 | C27: acre | D27: 0 | E27: 0 | F27: 0 | G27: 0 | H27: 0
A28: other | B28: 1 | C28: acre | D28: 0 | E28: 0 | F28: 0 | G28: 0 | H28: 0
A29: other | B29: 1 | C29: acre | D29: 0 | E29: 0 | F29: 0 | G29: 0 | H29: 0
A30: other | B30: 1 | C30: acre | D30: 0 | E30: 0 | F30: 0 | G30: 0 | H30: 0
A31: Crop Insurance | B31: 1 | C31: acre | D31: 2.5 | E31: 0 | F31: 2.5 | G31: 2.5 | H31: 0
A32: Operator Labor | B32: 0.75 | C32: hours | D32: ='2017 Universal Input Prices'!$C$32 -> 12 | E32: 0 | F32: 9 | G32: 9 | H32: 0
A33: Diesel Fuel - Tractors | B33: 2.4 | C33: gallons | D33: ='2017 Universal Input Prices'!$C$33 -> 1.84 | E33: 0 | F33: 4.416 | G33: 4.416 | H33: 0
A34: Gasoline - Pickup | B34: 2 | C34: gallons | D34: ='2017 Universal Input Prices'!$C$34 -> 1.94 | E34: 0 | F34: 3.88 | G34: 3.88 | H34: 0
A35: Repair & Maintenance
A36: Implements | B36: 1 | C36: acre | D36: 3 | E36: 0 | F36: =D36*B36 -> 3 | G36: =F36*(1-E36) -> 3 | H36: =F36*E36 -> 0
A37: Tractors | B37: 1 | C37: acre | D37: 6 | E37: 0 | F37: =D37*B37 -> 6 | G37: =F37*(1-E37) -> 6 | H37: =F37*E37 -> 0
A38: Pickup | B38: 1 | C38: acre | D38: 0.5 | E38: 0 | F38: =D38*B38 -> 0.5 | G38: =F38*(1-E38) -> 0.5 | H38: =F38*E38 -> 0
A39: Interest-operating capital | B39: ='2017 Universal Input Prices'!$C$36 -> 0.06 | F39: =(SUM(F14:F38)-SUM(F24:F25))*$B39/2 -> 1.793118462 | G39: =(SUM(G14:G38)-SUM(G24:G25))*$B39/2 -> 1.694608846 | H39: =(SUM(H14:H38)-SUM(H24:H25))*$B39/2 -> 0.09850961538
A41: Total Variable Costs | F41: =SUM(F14:F39) -> 87.76373385 | G41: =SUM(G14:G39) -> 77.83157038 | H41: =SUM(H14:H39) -> 9.932163462
A42: Returns Above Variable Costs | F42: =F11-F41 -> 8.236266154 | G42: =G11-G41 -> -5.831570385 | H42: =H11-H41 -> 14.06783654
A44: Fixed Costs
A45: Implements | B45: 1 | C45: acre | D45: 10 | E45: 0 | F45: =D45*B45 -> 10 | G45: =F45*(1-E45) -> 10 | H45: =F45*E45 -> 0
A46: Tractors | B46: 1 | C46: acre | D46: 12 | E46: 0 | F46: 12 | G46: 12 | H46: 0
A47: Pickup | B47: 1 | C47: acre | D47: 1.25 | E47: 0 | F47: 1.25 | G47: 1.25 | H47: 0
A48: Management | B48: 1 | C48: acre | D48: 25 | E48: 0 | F48: 25 | G48: 25 | H48: 0
A49: Whole Farm Insurance | B49: 1 | C49: acre | D49: 2 | E49: 0 | F49: =B49*D49 -> 2 | G49: 2 | H49: 0
A50: Land | B50: 1 | C50: acre | D50: 50 | E50: 1 | F50: =D50*B50 -> 50 | G50: =IF($H$6="Cash",D50,F50*(1-E50)) -> 0 | H50: =IF($H$6="Cash",0,F50*E50) -> 50
A51: Property Tax | B51: 1 | C51: acre | D51: 3 | E51: 1 | F51: =B51*D51 -> 3 | G51: =F51*(1-E51) -> 0 | H51: =F51*E51 -> 3
A52: Total Fixed Expenses | F52: =SUM(F45:F51) -> 103.25 | G52: =SUM(G45:G51) -> 50.25 | H52: =SUM(H45:H51) -> 53
A53: Total Specified Expenses | F53: =F41+F52 -> 191.0137338 | G53: =G41+G52 -> 128.0815704 | H53: =H41+H52 -> 62.93216346
A54: Returns Above Total Specified Expenses | F54: =F11-F53 -> -95.01373385 | G54: =G11-G53 -> -56.08157038 | H54: =H11-H53 -> -38.93216346
A56: If you have questions, contact Jackie Smith at 806-746-6101
A59: Supported by a grant from the
A60: Texas Cotton State Support Committee

Sheet Dry Sesame
A2: Estimated Costs and Returns per Ground Acre
A3: Dryland Sesame
A4: Projected for 2017
H5: Rental Agreement | I5: Share
A6: Item | B6: Quantity | C6: Unit | D6: Price | E6: Owner | H6: Share | I6: Cash
E7: Share | F7: Total | G7: Operator | H7: Owner
A8: Income
A9: sesame | B9: 700 | C9: lbs | D9: =Sesame_NI_Price -> 0.28 | E9: 0.25 | F9: =D9*B9 -> 196 | G9: =F9*(1-E9) -> 147 | H9: =IF(H6="Cash", D49,F9*E9) -> 49
A11: Total Income | F11: =SUM(F9:F10) -> 196 | G11: =SUM(G9:G10) -> 147 | H11: =SUM(H9:H10) -> 49
A13: Variable Costs
A14: Seed | B14: 2.5 | C14: lbs | D14: 4 | E14: 0 | F14: =D14*B14 -> 10 | G14: =F14*(1-E14) -> 10 | H14: =F14*E14 -> 0
A15: Fertilizer
A16: fert (N) - liquid | B16: 30 | C16: lbs | D16: =IF(A16="",0,VLOOKUP(A16,'2017 Universal Input Prices'!$B$27:$C$31, 2)) -> 0.3984375 | E16: 0.25 | F16: =D16*B16 -> 11.953125 | G16: =F16*(1-E16) -> 8.96484375 | H16: =F16*E16 -> 2.98828125
B17: 0 | C17: lbs | D17: =IF(A17="",0,VLOOKUP(A17,'2017 Universal Input Prices'!$B$27:$C$31, 2)) -> 0 | E17: 0 | F17: =D17*B17 -> 0 | G17: =F17*(1-E17) -> 0 | H17: =F17*E17 -> 0
B18: 0 | C18: lbs | D18: =IF(A18="",0,VLOOKUP(A18,'2017 Universal Input Prices'!$B$27:$C$31, 2)) -> 0 | E18: 0 | F18: =D18*B18 -> 0 | G18: =F18*(1-E18) -> 0 | H18: =F18*E18 -> 0
A19: Field Operations
A20: herbicide | B20: 1 | C20: acre | D20: 21.75 | E20: 0 | F20: =D20*B20 -> 21.75 | G20: =F20*(1-E20) -> 21.75 | H20: =F20*E20 -> 0
A21: fertilizer application | B21: 1 | C21: acre | D21: 4.75 | E21: 0.25 | F21: 4.75 | G21: 3.5625 | H21: 1.1875
A22: insecticide | B22: 0 | C22: acre | D22: 0 | E22: 0.25 | F22: 0 | G22: 0 | H22: 0
A23: custom harvest and haul | B23: 1 | C23: acre | D23: 25 | E23: 0.25 | F23: 25 | G23: 18.75 | H23: 6.25
A24: custom harvest and haul | B24: =B9/100 -> 7 | C24: cwt | D24: 0.12 | E24: 0.25 | F24: 0.84 | G24: 0.63 | H24: 0.21
A25: hoeing | B25: 0 | C25: acre | D25: 0 | E25: 0 | F25: 0 | G25: 0 | H25: 0
A26: scouting | B26: 1 | C26: acre | D26: 0 | E26: 0 | F26: 0 | G26: 0 | H26: 0
A27: other | B27: 1 | C27: acre | D27: 0 | E27: 0 | F27: 0 | G27: 0 | H27: 0
A28: other | B28: 1 | C28: acre | D28: 0 | E28: 0 | F28: 0 | G28: 0 | H28: 0
A29: other | B29: 1 | C29: acre | D29: 0 | E29: 0 | F29: 0 | G29: 0 | H29: 0
A30: Crop Insurance | B30: 1 | C30: acre | D30: 10 | E30: 0 | F30: 10 | G30: 10 | H30: 0
A31: Operator Labor | B31: 1 | C31: hours | D31: ='2017 Universal Input Prices'!$C$32 -> 12 | E31: 0 | F31: 12 | G31: 12 | H31: 0
A32: Diesel Fuel - Tractors | B32: 2.2 | C32: gallons | D32: ='2017 Universal Input Prices'!$C$33 -> 1.84 | E32: 0 | F32: 4.048 | G32: 4.048 | H32: 0
A33: Gasoline - Pickup | B33: 2 | C33: gallons | D33: ='2017 Universal Input Prices'!$C$34 -> 1.94 | E33: 0 | F33: 3.88 | G33: 3.88 | H33: 0
A34: Repair & Maintenance
A35: Implements | B35: 1 | C35: acre | D35: 3 | E35: 0 | F35: =D35*B35 -> 3 | G35: =F35*(1-E35) -> 3 | H35: =F35*E35 -> 0
A36: Tractors | B36: 1 | C36: acre | D36: 6 | E36: 0 | F36: =D36*B36 -> 6 | G36: =F36*(1-E36) -> 6 | H36: =F36*E36 -> 0
A37: Pickup | B37: 1 | C37: acre | D37: 0.5 | E37: 0 | F37: =D37*B37 -> 0.5 | G37: =F37*(1-E37) -> 0.5 | H37: =F37*E37 -> 0
A38: Interest-operating capital | B38: ='2017 Universal Input Prices'!$C$36 -> 0.06 | F38: =(SUM(F14:F37)-SUM(F23:F24))*$B38/2 -> 2.63643375 | G38: =(SUM(G14:G37)-SUM(G23:G24))*$B38/2 -> 2.511160312 | H38: =(SUM(H14:H37)-SUM(H23:H24))*$B38/2 -> 0.1252734375
A40: Total Variable Costs | F40: =SUM(F14:F38) -> 116.3575587 | G40: =SUM(G14:G38) -> 105.5965041 | H40: =SUM(H14:H38) -> 10.76105469
A41: Returns Above Variable Costs | F41: =F11-F40 -> 79.64244125 | G41: =G11-G40 -> 41.40349594 | H41: =H11-H40 -> 38.23894531
A43: Fixed Costs
A44: Implements | B44: 1 | C44: acre | D44: 10 | E44: 0 | F44: =D44*B44 -> 10 | G44: =F44*(1-E44) -> 10 | H44: =F44*E44 -> 0
A45: Tractors | B45: 1 | C45: acre | D45: 12 | E45: 0 | F45: 12 | G45: 12 | H45: 0
A46: Pickup | B46: 1 | C46: acre | D46: 1.25 | E46: 0 | F46: 1.25 | G46: 1.25 | H46: 0
A47: Management | B47: 1 | C47: acre | D47: 25 | E47: 0 | F47: 25 | G47: 25 | H47: 0
A48: Whole Farm Insurance | B48: 1 | C48: acre | D48: 2 | E48: 0 | F48: =B48*D48 -> 2 | G48: 2 | H48: 0
A49: Land | B49: 1 | C49: acre | D49: 50 | E49: 1 | F49: =D49*B49 -> 50 | G49: =IF($H$6="Cash",D49,F49*(1-E49)) -> 0 | H49: =IF($H$6="Cash",0,F49*E49) -> 50
A50: Property Tax | B50: 1 | C50: acre | D50: 3 | E50: 1 | F50: =B50*D50 -> 3 | G50: =F50*(1-E50) -> 0 | H50: =F50*E50 -> 3
A51: Total Fixed Expenses | F51: =SUM(F44:F50) -> 103.25 | G51: =SUM(G44:G50) -> 50.25 | H51: =SUM(H44:H50) -> 53
A52: Total Specified Expenses | F52: =F40+F51 -> 219.6075588 | G52: =G40+G51 -> 155.8465041 | H52: =H40+H51 -> 63.76105469
A53: Returns Above Total Specified Expenses | F53: =F11-F52 -> -23.60755875 | G53: =G11-G52 -> -8.846504062 | H53: =H11-H52 -> -14.76105469
A55: If you have questions, contact Jackie Smith at 806-746-6101
A58: Supported by a grant from the
A59: Texas Cotton State Support Committee

Sheet Dry Sorghum
A2: Estimated Costs and Returns per Acre
A3: Dryland Sorghum
A4: Projected for 2017
H5: Rental Agreement | I5: Share
A6: Item | B6: Quantity | C6: Unit | D6: Price | E6: Owner | H6: Share | I6: Cash
E7: Share | F7: Total | G7: Operator | H7: Owner
A8: Income
A9: sorghum grain | B9: 18 | C9: cwt | D9: ='2017 Universal Input Prices'!$C$14 -> 7 | E9: 0.25 | F9: =B9*D9 -> 126 | G9: =F9*(1-E9) -> 94.5 | H9: =IF(H6="Cash", D50,F9*E9) -> 31.5
A10: grazing stalks | B10: 1 | C10: acre | D10: 0 | E10: 0.25 | F10: =D10*B10 -> 0 | G10: =F10*(1-E10) -> 0 | H10: =IF(H6="Cash", 0,F10*E10) -> 0
A12: Total Income | F12: =SUM(F9:F11) -> 126 | G12: =SUM(G9:G11) -> 94.5 | H12: =SUM(H9:H11) -> 31.5
A14: Variable Costs
A15: Seed | B15: 2.25 | C15: lbs | D15: 2.4 | E15: 0 | F15: =D15*B15 -> 5.4 | G15: =F15*(1-E15) -> 5.4 | H15: =F15*E15 -> 0
A16: Fertilizer
A17: fert (N) - liquid | B17: 30 | C17: lbs | D17: =IF(A17="",0,VLOOKUP(A17,'2017 Universal Input Prices'!$B$27:$C$31, 2)) -> 0.3984375 | E17: 0.25 | F17: =D17*B17 -> 11.953125 | G17: =F17*(1-E17) -> 8.96484375 | H17: =F17*E17 -> 2.98828125
B18: 0 | C18: lbs | D18: =IF(A18="",0,VLOOKUP(A18,'2017 Universal Input Prices'!$B$27:$C$31, 2)) -> 0 | E18: 0 | F18: =D18*B18 -> 0 | G18: =F18*(1-E18) -> 0 | H18: =F18*E18 -> 0
B19: 0 | C19: lbs | D19: =IF(A19="",0,VLOOKUP(A19,'2017 Universal Input Prices'!$B$27:$C$31, 2)) -> 0 | E19: 0 | F19: =D19*B19 -> 0 | G19: =F19*(1-E19) -> 0 | H19: =F19*E19 -> 0
A20: Field Operations
A21: herbicide & application | B21: 1 | C21: acre | D21: 10.5 | E21: 0.25 | F21: =D21*B21 -> 10.5 | G21: =F21*(1-E21) -> 7.875 | H21: =F21*E21 -> 2.625
A22: fertilizer application | B22: 1 | C22: acre | D22: 4.75 | E22: 0.25 | F22: 4.75 | G22: 3.5625 | H22: 1.1875
A23: insecticide & application | B23: 1 | C23: acre | D23: 25 | E23: 0.25 | F23: 25 | G23: 18.75 | H23: 6.25
A24: custom harvest & haul | B24: 1 | C24: acre | D24: 14 | E24: 0 | F24: 14 | G24: 14 | H24: 0
A25: custom harvest & haul | B25: =B9 -> 18 | C25: cwt | D25: 0.4 | E25: 0 | F25: =D25*B25 -> 7.2 | G25: 7.2 | H25: 0
A26: hoeing | B26: 1 | C26: acre | D26: 0 | E26: 0 | F26: 0 | G26: 0 | H26: 0
A27: scouting | B27: 1 | C27: acre | D27: 0 | E27: 0 | F27: =D27*B27 -> 0 | G27: =F27*(1-E27) -> 0 | H27: =F27*E27 -> 0
A28: other | B28: 1 | C28: acre | D28: 0 | E28: 0 | F28: 0 | G28: 0 | H28: 0
A29: other | B29: 1 | C29: acre | D29: 0 | E29: 0 | F29: 0 | G29: 0 | H29: 0
A30: other | B30: 1 | C30: acre | D30: 0 | E30: 0 | F30: 0 | G30: 0 | H30: 0
A31: Crop Insurance | B31: 1 | C31: acre | D31: 16.5 | E31: 0.25 | F31: 16.5 | G31: 12.375 | H31: 4.125
A32: Operator Labor & Hand Labor | B32: 1 | C32: hours | D32: ='2017 Universal Input Prices'!$C$32 -> 12 | E32: 0 | F32: 12 | G32: 12 | H32: 0
A33: Diesel Fuel - Tractors | B33: 2.4 | C33: gallons | D33: ='2017 Universal Input Prices'!$C$33 -> 1.84 | E33: 0 | F33: 4.416 | G33: 4.416 | H33: 0
A34: Gasoline - Pickup | B34: 2 | C34: gallons | D34: ='2017 Universal Input Prices'!$C$34 -> 1.94 | E34: 0 | F34: 3.88 | G34: 3.88 | H34: 0
A35: Repair & Maintenance
A36: Implements | B36: 1 | C36: acre | D36: 3 | E36: 0 | F36: =D36*B36 -> 3 | G36: =F36*(1-E36) -> 3 | H36: =F36*E36 -> 0
A37: Tractors | B37: 1 | C37: acre | D37: 6 | E37: 0 | F37: =D37*B37 -> 6 | G37: =F37*(1-E37) -> 6 | H37: =F37*E37 -> 0
A38: Pickup | B38: 1 | C38: acre | D38: 0.5 | E38: 0 | F38: =D38*B38 -> 0.5 | G38: =F38*(1-E38) -> 0.5 | H38: =F38*E38 -> 0
A39: Interest-operating capital | B39: ='2017 Universal Input Prices'!$C$36 -> 0.06 | F39: =(SUM(F15:F23,F26:F38))*$B39/2 -> 3.11697375 | G39: =(SUM(G15:G23,G26:G38))*$B39/2 -> 2.601700312 | H39: =(SUM(H15:H23,H26:H38))*$B39/2 -> 0.5152734375
A41: Total Variable Costs | F41: =SUM(F15:F39) -> 128.2160988 | G41: =SUM(G15:G39) -> 110.5250441 | H41: =SUM(H15:H39) -> 17.69105469
A42: Returns Above Variable Costs | F42: =F12-F41 -> -2.21609875 | G42: =G12-G41 -> -16.02504406 | H42: =H12-H41 -> 13.80894531
A44: Fixed Costs
A45: Implements | B45: 1 | C45: acre | D45: 10 | E45: 0 | F45: =D45*B45 -> 10 | G45: =F45*(1-E45) -> 10 | H45: =F45*E45 -> 0
A46: Tractors | B46: 1 | C46: acre | D46: 12 | E46: 0 | F46: 12 | G46: 12 | H46: 0
A47: Pickup | B47: 1 | C47: acre | D47: 1.25 | E47: 0 | F47: 1.25 | G47: 1.25 | H47: 0
A48: Management | B48: 1 | C48: acre | D48: 25 | E48: 0 | F48: 25 | G48: 25 | H48: 0
A49: Whole Farm Insurance | B49: 1 | C49: acre | D49: 2 | E49: 0 | F49: =B49*D49 -> 2 | G49: 2 | H49: 0
A50: Land | B50: 1 | C50: acre | D50: 50 | E50: 1 | F50: =D50*B50 -> 50 | G50: =IF($H$6="Cash",D50,F50*(1-E50)) -> 0 | H50: =IF($H$6="Cash",0,F50*E50) -> 50
A51: Property Tax | B51: 1 | C51: acre | D51: 3 | E51: 1 | F51: =B51*D51 -> 3 | G51: 0 | H51: 3
A52: Total Fixed Expenses | F52: =SUM(F45:F51) -> 103.25 | G52: =SUM(G45:G51) -> 50.25 | H52: =SUM(H45:H51) -> 53
A53: Total Specified Expenses | F53: =F41+F52 -> 231.4660988 | G53: =G41+G52 -> 160.7750441 | H53: =H41+H52 -> 70.69105469
A54: Returns Above Total Specified Expenses | F54: =F12-F53 -> -105.4660988 | G54: =G12-G53 -> -66.27504406 | H54: =H12-H53 -> -39.19105469
A56: If you have questions, contact Jackie Smith at 806-746-6101
A59: Supported by a grant from the
A60: Texas Cotton State Support Committee

Sheet Dry Sunflowers-Oilseed
A2: Estimated Costs and Returns per Acre
A3: Dryland Sunflowers-Oilseed
A4: Projected for 2017
H5: Rental Agreement | I5: Share
A6: Item | B6: Quantity | C6: Unit | D6: Price | E6: Owner | H6: Share | I6: Cash
E7: Share | F7: Total | G7: Operator | H7: Owner
A8: Income
A9: oilseed sunflowers | B9: 1000 | C9: lbs | D9: =Sunflower_Oil_Price -> 0.14 | E9: 0.25 | F9: =D9*B9 -> 140 | G9: =F9*(1-E9) -> 105 | H9: =IF(H6="Cash", D49,F9*E9) -> 35
A11: Total Income | F11: =SUM(F8:F10) -> 140 | G11: =SUM(G8:G10) -> 105 | H11: =SUM(H8:H10) -> 35
A13: Variable Costs
A14: Seed | B14: 1 | C14: acre | D14: 12.5 | E14: 0 | F14: =D14*B14 -> 12.5 | G14: =F14*(1-E14) -> 12.5 | H14: =F14*E14 -> 0
A15: Fertilizer
A16: fert (N) - liquid | B16: 40 | C16: lbs | D16: =IF(A16="",0,VLOOKUP(A16,'2017 Universal Input Prices'!$B$27:$C$31, 2)) -> 0.3984375 | E16: 0.25 | F16: =D16*B16 -> 15.9375 | G16: =F16*(1-E16) -> 11.953125 | H16: =F16*E16 -> 3.984375
B17: 0 | C17: lbs | D17: =IF(A17="",0,VLOOKUP(A17,'2017 Universal Input Prices'!$B$27:$C$31, 2)) -> 0 | E17: 0 | F17: =D17*B17 -> 0 | G17: =F17*(1-E17) -> 0 | H17: =F17*E17 -> 0
B18: 0 | C18: lbs | D18: =IF(A18="",0,VLOOKUP(A18,'2017 Universal Input Prices'!$B$27:$C$31, 2)) -> 0 | E18: 0 | F18: =D18*B18 -> 0 | G18: =F18*(1-E18) -> 0 | H18: =F18*E18 -> 0
A19: Field Operations
A20: herbicide & application | B20: 1 | C20: acre | D20: 34.75 | E20: 0 | F20: =D20*B20 -> 34.75 | G20: =F20*(1-E20) -> 34.75 | H20: =F20*E20 -> 0
A21: fertilizer application | B21: 1 | C21: acre | D21: 4.75 | E21: 0.25 | F21: =D21*B21 -> 4.75 | G21: =F21*(1-E21) -> 3.5625 | H21: =F21*E21 -> 1.1875
A22: insecticide & application | B22: 1 | C22: acre | D22: 11.63 | E22: 0.25 | F22: =D22*B22 -> 11.63 | G22: =F22*(1-E22) -> 8.7225 | H22: =F22*E22 -> 2.9075
A23: custom harvest & haul | B23: 1 | C23: acre | D23: 15 | E23: 0.25 | F23: 15 | G23: 11.25 | H23: 3.75
A24: custom harvest & haul | B24: =B9/100 -> 10 | C24: cwt | D24: 0.3 | E24: 0.25 | F24: 3 | G24: 2.25 | H24: 0.75
A25: scouting | B25: 1 | C25: acre | D25: 0 | E25: 0 | F25: =D25*B25 -> 0 | G25: =F25*(1-E25) -> 0 | H25: =F25*E25 -> 0
A26: other | B26: 1 | C26: acre | D26: 0 | E26: 0 | F26: =D26*B26 -> 0 | G26: =F26*(1-E26) -> 0 | H26: =F26*E26 -> 0
A27: other | B27: 1 | C27: acre | D27: 0 | E27: 0 | F27: 0 | G27: 0 | H27: 0
A28: other | B28: 1 | C28: acre | D28: 0 | E28: 0 | F28: 0 | G28: 0 | H28: 0
A29: other | B29: 1 | C29: acre | D29: 0 | E29: 0 | F29: 0 | G29: 0 | H29: 0
A30: Crop Insurance | B30: 1 | C30: acre | D30: 11 | E30: 0.25 | F30: 11 | G30: 8.25 | H30: 2.75
A31: Operator Labor & Hand Labor | B31: 1 | C31: hours | D31: ='2017 Universal Input Prices'!$C$32 -> 12 | E31: 0 | F31: 12 | G31: 12 | H31: 0
A32: Diesel Fuel - Tractors | B32: 2.4 | C32: gallons | D32: ='2017 Universal Input Prices'!$C$33 -> 1.84 | E32: 0 | F32: 4.416 | G32: 4.416 | H32: 0
A33: Gasoline - Pickup | B33: 2 | C33: gallons | D33: ='2017 Universal Input Prices'!$C$34 -> 1.94 | E33: 0 | F33: 3.88 | G33: 3.88 | H33: 0
A34: Repair & Maintenance
A35: Implements | B35: 1 | C35: acre | D35: 3 | E35: 0 | F35: =D35*B35 -> 3 | G35: =F35*(1-E35) -> 3 | H35: =F35*E35 -> 0
A36: Tractors | B36: 1 | C36: acre | D36: 6 | E36: 0 | F36: =D36*B36 -> 6 | G36: =F36*(1-E36) -> 6 | H36: =F36*E36 -> 0
A37: Pickup | B37: 1 | C37: acre | D37: 0.5 | E37: 0 | F37: =D37*B37 -> 0.5 | G37: =F37*(1-E37) -> 0.5 | H37: =F37*E37 -> 0
A38: Interest-operating capital | B38: ='2017 Universal Input Prices'!$C$36 -> 0.06 | F38: =(SUM(F14:F22,F26:F37))*$B38/2 -> 3.610905 | G38: =(SUM(G14:G22,G26:G37))*$B38/2 -> 3.28602375 | H38: =(SUM(H14:H22,H26:H37))*$B38/2 -> 0.32488125
A40: Total Variable Costs | F40: =SUM(F14:F38) -> 141.974405 | G40: =SUM(G14:G38) -> 126.3201487 | H40: =SUM(H14:H38) -> 15.65425625
A41: Returns Above Variable Costs | F41: =F11-F40 -> -1.974405 | G41: =G11-G40 -> -21.32014875 | H41: =H11-H40 -> 19.34574375
A43: Fixed Costs
A44: Implements | B44: 1 | C44: acre | D44: 10 | E44: 0 | F44: =D44*B44 -> 10 | G44: =F44*(1-E44) -> 10 | H44: =F44*E44 -> 0
A45: Tractors | B45: 1 | C45: acre | D45: 12 | E45: 0 | F45: 12 | G45: 12 | H45: 0
A46: Pickup | B46: 1 | C46: acre | D46: 1.25 | E46: 0 | F46: 1.25 | G46: 1.25 | H46: 0
A47: Management | B47: 1 | C47: acre | D47: 25 | E47: 0 | F47: 25 | G47: 25 | H47: 0
A48: Whole Farm Insurance | B48: 1 | C48: acre | D48: 2 | E48: 0 | F48: =B48*D48 -> 2 | G48: 2 | H48: 0
A49: Land | B49: 1 | C49: acre | D49: 50 | E49: 1 | F49: =D49*B49 -> 50 | G49: =IF($H$6="Cash",D49,F49*(1-E49)) -> 0 | H49: =IF($H$6="Cash",0,F49*E49) -> 50
A50: Property Tax | B50: 1 | C50: acre | D50: 3 | E50: 1 | F50: =B50*D50 -> 3 | G50: 0 | H50: 3
A51: Total Fixed Expenses | F51: =SUM(F44:F50) -> 103.25 | G51: =SUM(G44:G50) -> 50.25 | H51: =SUM(H44:H50) -> 53
A52: Total Specified Expenses | F52: =F40+F51 -> 245.224405 | G52: =G40+G51 -> 176.5701487 | H52: =H40+H51 -> 68.65425625
A53: Returns Above Total Specified Expenses | F53: =F11-F52 -> -105.224405 | G53: =G11-G52 -> -71.57014875 | H53: =H11-H52 -> -33.65425625
A55: If you have questions, contact Jackie Smith at 806-746-6101
A58: Supported by a grant from the
A59: Texas Cotton State Support Committee

Sheet Dry Wheat
A2: Estimated Costs and Returns per Acre
A3: Dryland Wheat
A4: Projected for 2017
H5: Rental Agreement | I5: Share
A6: Item | B6: Quantity | C6: Unit | D6: Price | E6: Owner | H6: Share | I6: Cash
E7: Share | F7: Total | G7: Operator | H7: Owner
A8: Income
A9: wheat | B9: 18 | C9: bu | D9: ='2017 Universal Input Prices'!$C$21 -> 5.2 | E9: 0.25 | F9: =D9*B9 -> 93.6 | G9: =F9*(1-E9) -> 70.2 | H9: =IF(H6="Cash", D49,F9*E9) -> 23.4
A10: grazing | B10: 68 | C10: lbs | D10: =Grazing_Price -> 0.45 | E10: 0.25 | F10: =D10*B10 -> 30.6 | G10: =F10*(1-E10) -> 22.95 | H10: =IF(H6="Cash", 0,F10*E10) -> 7.65
A12: Total Income | F12: =F9+F10 -> 124.2 | G12: =G9+G10 -> 93.15 | H12: =H9+H10 -> 31.05
A14: Variable Costs
A15: Seed | B15: 1 | C15: bu | D15: 25 | E15: 0 | F15: =D15*B15 -> 25 | G15: =F15*(1-E15) -> 25 | H15: =F15*E15 -> 0
A16: Fertilizer
A17: fert (N) - liquid | B17: 30 | C17: lbs | D17: =IF(A17="",0,VLOOKUP(A17,'2017 Universal Input Prices'!$B$27:$C$31, 2)) -> 0.3984375 | E17: 0.25 | F17: =D17*B17 -> 11.953125 | G17: =F17*(1-E17) -> 8.96484375 | H17: =F17*E17 -> 2.98828125
B18: 0 | C18: lbs | D18: =IF(A18="",0,VLOOKUP(A18,'2017 Universal Input Prices'!$B$27:$C$31, 2)) -> 0 | E18: 0 | F18: =D18*B18 -> 0 | G18: =F18*(1-E18) -> 0 | H18: =F18*E18 -> 0
B19: 0 | C19: lbs | D19: =IF(A19="",0,VLOOKUP(A19,'2017 Universal Input Prices'!$B$27:$C$31, 2)) -> 0 | E19: 0 | F19: =D19*B19 -> 0 | G19: =F19*(1-E19) -> 0 | H19: =F19*E19 -> 0
A20: Field Operations
A21: herbicide & application | B21: 1 | C21: acre | D21: 16.75 | E21: 0 | F21: =D21*B21 -> 16.75 | G21: =F21*(1-E21) -> 16.75 | H21: =F21*E21 -> 0
A22: fertilizer application | B22: 1 | C22: acre | D22: 4.75 | E22: 0.25 | F22: 4.75 | G22: 3.5625 | H22: 1.1875
A23: insecticide & application | B23: 1 | C23: acre | D23: 5.5 | E23: 0.25 | F23: 5.5 | G23: 4.125 | H23: 1.375
A24: custom harvest & haul | B24: 1 | C24: acre | D24: 14 | E24: 0.25 | F24: 14 | G24: 10.5 | H24: 3.5
A25: custom harvest & haul | B25: =B9 -> 18 | C25: bu | D25: 0.14 | E25: 0.25 | F25: =D25*B25 -> 2.52 | G25: 1.89 | H25: 0.63
A26: scouting | B26: 1 | C26: acre | D26: 0 | E26: 0 | F26: =D26*B26 -> 0 | G26: =F26*(1-E26) -> 0 | H26: =F26*E26 -> 0
A27: other | B27: 1 | C27: acre | D27: 0 | E27: 0 | F27: 0 | G27: 0 | H27: 0
A28: other | B28: 1 | C28: acre | D28: 0 | E28: 0 | F28: 0 | G28: 0 | H28: 0
A29: other | B29: 1 | C29: acre | D29: 0 | E29: 0 | F29: 0 | G29: 0 | H29: 0
A30: Crop Insurance | B30: 1 | C30: acre | D30: 19 | E30: 0.25 | F30: 19 | G30: 14.25 | H30: 4.75
A31: Operator Labor & Hand Labor | B31: 0.9 | C31: hours | D31: ='2017 Universal Input Prices'!$C$32 -> 12 | E31: 0 | F31: 10.8 | G31: 10.8 | H31: 0
A32: Diesel Fuel - Tractors | B32: 2.2 | C32: gallons | D32: ='2017 Universal Input Prices'!$C$33 -> 1.84 | E32: 0 | F32: 4.048 | G32: 4.048 | H32: 0
A33: Gasoline - Pickup | B33: 2 | C33: gallons | D33: ='2017 Universal Input Prices'!$C$34 -> 1.94 | E33: 0 | F33: 3.88 | G33: 3.88 | H33: 0
A34: Repair & Maintenance
A35: Implements | B35: 1 | C35: acre | D35: 3 | E35: 0 | F35: =D35*B35 -> 3 | G35: =F35*(1-E35) -> 3 | H35: =F35*E35 -> 0
A36: Tractors | B36: 1 | C36: acre | D36: 6 | E36: 0 | F36: =D36*B36 -> 6 | G36: =F36*(1-E36) -> 6 | H36: =F36*E36 -> 0
A37: Pickup | B37: 1 | C37: acre | D37: 0.5 | E37: 0 | F37: =D37*B37 -> 0.5 | G37: =F37*(1-E37) -> 0.5 | H37: =F37*E37 -> 0
A38: Interest-operating capital | B38: ='2017 Universal Input Prices'!$C$36 -> 0.06 | F38: =(SUM(F15:F23,F26:F37))*$B38/2 -> 3.33543375 | G38: =(SUM(G15:G23,G26:G37))*$B38/2 -> 3.026410312 | H38: =(SUM(H15:H23,H26:H37))*$B38/2 -> 0.3090234375
A40: Total Variable Costs | F40: =SUM(F15:F38) -> 131.0365587 | G40: =SUM(G15:G38) -> 116.2967541 | H40: =SUM(H15:H38) -> 14.73980469
A41: Returns Above Variable Costs | F41: =F12-F40 -> -6.83655875 | G41: =G12-G40 -> -23.14675406 | H41: =H12-H40 -> 16.31019531
A43: Fixed Costs
A44: Implements | B44: 1 | C44: acre | D44: 10 | E44: 0 | F44: =D44*B44 -> 10 | G44: =F44*(1-E44) -> 10 | H44: =F44*E44 -> 0
A45: Tractors | B45: 1 | C45: acre | D45: 12 | E45: 0 | F45: 12 | G45: 12 | H45: 0
A46: Pickup | B46: 1 | C46: acre | D46: 1.25 | E46: 0 | F46: 1.25 | G46: 1.25 | H46: 0
A47: Management | B47: 1 | C47: acre | D47: 25 | E47: 0 | F47: 25 | G47: 25 | H47: 0
A48: Whole Farm Insurance | B48: 1 | C48: acre | D48: 2 | E48: 0 | F48: =B48*D48 -> 2 | G48: 2 | H48: 0
A49: Land | B49: 1 | C49: acre | D49: 50 | E49: 1 | F49: =D49*B49 -> 50 | G49: =IF($H$6="Cash",D49,F49*(1-E49)) -> 0 | H49: =IF($H$6="Cash",0,F49*E49) -> 50
A50: Property Tax | B50: 1 | C50: acre | D50: 3 | E50: 1 | F50: =B50*D50 -> 3 | G50: 0 | H50: 3
A51: Total Fixed Expenses | F51: =SUM(F44:F50) -> 103.25 | G51: =SUM(G44:G50) -> 50.25 | H51: =SUM(H44:H50) -> 53
A52: Total Specified Expenses | F52: =F40+F51 -> 234.2865587 | G52: =G40+G51 -> 166.5467541 | H52: =H40+H51 -> 67.73980469
A53: Returns Above Total Specified Expenses | F53: =F12-F52 -> -110.0865587 | G53: =G12-G52 -> -73.39675406 | H53: =H12-H52 -> -36.68980469
A55: If you have questions, contact Jackie Smith at 806-746-6101
A58: Supported by a grant from the
A59: Texas Cotton State Support Committee

Sheet Break-Even Comparison
A2: Comparative Break-Even Analysis Projected for 2017
A5: ='Irr Alfalfa'!A3:H3 -> Irrigated Alfalfa
E6: BE Price to Cover Variable Costs | G6: BE Price to Cover Total Costs
A7: Yield | B7: ='Irr Alfalfa'!C9 -> tons | E7: Total | F7: Operator | G7: Total | H7: Operator | I7: Owner
A8: 0.75 | B8: ='Irr Alfalfa'!$B$9*$A8 -> 4.5 | C8: ='Irr Alfalfa'!$B$9*(1-'Irr Alfalfa'!$E$9)*$A8 -> 3.375 | D8: ='Irr Alfalfa'!$B$9*'Irr Alfalfa'!$E$9*$A8 -> 1.125 | E8: =('Irr Alfalfa'!F$46+(B8-B$10)*('Irr Alfalfa'!$D$24))/B8 -> 154.6679016 | F8: =('Irr Alfalfa'!G$46+(C8-C$10)*('Irr Alfalfa'!$D$24))/C8 -> 178.2098867 | G8: =('Irr Alfalfa'!F$61+(B8-B$10)*('Irr Alfalfa'!$D$24))/B8 -> 218.9456793 | H8: =('Irr Alfalfa'!G$61+(C8-C$10)*('Irr Alfalfa'!$D$24))/C8 -> 222.7284053 | I8: =IF($D8=0,"N/A",('Irr Alfalfa'!H$61+(D8-D$10)*('Irr Alfalfa'!$D$24))/D8) -> 207.5975016
A9: 0.9 | B9: ='Irr Alfalfa'!$B$9*$A9 -> 5.4 | C9: ='Irr Alfalfa'!$B$9*(1-'Irr Alfalfa'!$E$9)*$A9 -> 4.05 | D9: ='Irr Alfalfa'!$B$9*'Irr Alfalfa'!$E$9*$A9 -> 1.35 | E9: =('Irr Alfalfa'!F$46+(B9-B$10)*('Irr Alfalfa'!$D$24))/B9 -> 137.2232513 | F9: =('Irr Alfalfa'!G$46+(C9-C$10)*('Irr Alfalfa'!$D$24))/C9 -> 156.8415723 | G9: =('Irr Alfalfa'!F$61+(B9-B$10)*('Irr Alfalfa'!$D$24))/B9 -> 190.7880661 | H9: =('Irr Alfalfa'!G$61+(C9-C$10)*('Irr Alfalfa'!$D$24))/C9 -> 193.9403377 | I9: =IF($D9=0,"N/A",('Irr Alfalfa'!H$61+(D9-D$10)*('Irr Alfalfa'!$D$24))/D9) -> 181.3312513
A10: 1 | B10: ='Irr Alfalfa'!$B$9*$A10 -> 6 | C10: ='Irr Alfalfa'!$B$9*(1-'Irr Alfalfa'!$E$9)*$A10 -> 4.5 | D10: ='Irr Alfalfa'!$B$9*'Irr Alfalfa'!$E$9*$A10 -> 1.5 | E10: =('Irr Alfalfa'!F$46+(B10-B$10)*('Irr Alfalfa'!$D$24))/B10 -> 128.5009262 | F10: =('Irr Alfalfa'!G$46+(C10-C$10)*('Irr Alfalfa'!$D$24))/C10 -> 146.1574151 | G10: =('Irr Alfalfa'!F$61+(B10-B$10)*('Irr Alfalfa'!$D$24))/B10 -> 176.7092595 | H10: =('Irr Alfalfa'!G$61+(C10-C$10)*('Irr Alfalfa'!$D$24))/C10 -> 179.5463039 | I10: =IF($D10=0,"N/A",('Irr Alfalfa'!H$61+(D10-D$10)*('Irr Alfalfa'!$D$24))/D10) -> 168.1981262
A11: 1.1 | B11: ='Irr Alfalfa'!$B$9*$A11 -> 6.6 | C11: ='Irr Alfalfa'!$B$9*(1-'Irr Alfalfa'!$E$9)*$A11 -> 4.95 | D11: ='Irr Alfalfa'!$B$9*'Irr Alfalfa'!$E$9*$A11 -> 1.65 | E11: =('Irr Alfalfa'!F$46+(B11-B$10)*('Irr Alfalfa'!$D$24))/B11 -> 121.3644783 | F11: =('Irr Alfalfa'!G$46+(C11-C$10)*('Irr Alfalfa'!$D$24))/C11 -> 137.4158319 | G11: =('Irr Alfalfa'!F$61+(B11-B$10)*('Irr Alfalfa'!$D$24))/B11 -> 165.1902359 | H11: =('Irr Alfalfa'!G$61+(C11-C$10)*('Irr Alfalfa'!$D$24))/C11 -> 167.7693672 | I11: =IF($D11=0,"N/A",('Irr Alfalfa'!H$61+(D11-D$10)*('Irr Alfalfa'!$D$24))/D11) -> 157.452842
A12: 1.25 | B12: ='Irr Alfalfa'!$B$9*$A12 -> 7.5 | C12: ='Irr Alfalfa'!$B$9*(1-'Irr Alfalfa'!$E$9)*$A12 -> 5.625 | D12: ='Irr Alfalfa'!$B$9*'Irr Alfalfa'!$E$9*$A12 -> 1.875 | E12: =('Irr Alfalfa'!F$46+(B12-B$10)*('Irr Alfalfa'!$D$24))/B12 -> 112.8007409 | F12: =('Irr Alfalfa'!G$46+(C12-C$10)*('Irr Alfalfa'!$D$24))/C12 -> 126.925932 | G12: =('Irr Alfalfa'!F$61+(B12-B$10)*('Irr Alfalfa'!$D$24))/B12 -> 151.3674076 | H12: =('Irr Alfalfa'!G$61+(C12-C$10)*('Irr Alfalfa'!$D$24))/C12 -> 153.6370432 | I12: =IF($D12=0,"N/A",('Irr Alfalfa'!H$61+(D12-D$10)*('Irr Alfalfa'!$D$24))/D12) -> 144.5585009
A14: ='Irr Blackeyes'!A3:H3 -> Irrigated Blackeyed Peas
E15: BE Price to Cover Variable Costs | G15: BE Price to Cover Total Costs
A16: Yield | B16: ='Irr Blackeyes'!C9 -> lbs | E16: Total | F16: Operator | G16: Total | H16: Operator | I16: Owner
A17: 0.75 | B17: ='Irr Blackeyes'!$B$9*$A17 -> 1387.5 | C17: ='Irr Blackeyes'!$B$9*(1-'Irr Blackeyes'!$E$9)*$A17 -> 1040.625 | D17: ='Irr Blackeyes'!$B$9*'Irr Blackeyes'!$E$9*$A17 -> 346.875 | E17: =('Irr Blackeyes'!F$46+(B17-B$19)*('Irr Blackeyes'!$D$24))/B17 -> -9.797376213 | F17: =('Irr Blackeyes'!G$46+(C17-C$19)*('Irr Blackeyes'!$D$24))/C17 -> -9.756721587 | G17: =('Irr Blackeyes'!F$60+(B17-B$19)*('Irr Blackeyes'!$D$24))/B17 -> -9.660979816 | H17: =('Irr Blackeyes'!G$60+(C17-C$19)*('Irr Blackeyes'!$D$24))/C17 -> -9.708433298 | I17: =IF($D17=0,"N/A",('Irr Blackeyes'!H$60+(D17-D$19)*('Irr Blackeyes'!$D$24))/D17) -> -9.518619369
A18: 0.9 | B18: ='Irr Blackeyes'!$B$9*$A18 -> 1665 | C18: ='Irr Blackeyes'!$B$9*(1-'Irr Blackeyes'!$E$9)*$A18 -> 1248.75 | D18: ='Irr Blackeyes'!$B$9*'Irr Blackeyes'!$E$9*$A18 -> 416.25 | E18: =('Irr Blackeyes'!F$46+(B18-B$19)*('Irr Blackeyes'!$D$24))/B18 -> -3.164480177 | F18: =('Irr Blackeyes'!G$46+(C18-C$19)*('Irr Blackeyes'!$D$24))/C18 -> -3.130601322 | G18: =('Irr Blackeyes'!F$60+(B18-B$19)*('Irr Blackeyes'!$D$24))/B18 -> -3.050816514 | H18: =('Irr Blackeyes'!G$60+(C18-C$19)*('Irr Blackeyes'!$D$24))/C18 -> -3.090361082 | I18: =IF($D18=0,"N/A",('Irr Blackeyes'!H$60+(D18-D$19)*('Irr Blackeyes'!$D$24))/D18) -> -2.932182808
A19: 1 | B19: ='Irr Blackeyes'!$B$9*$A19 -> 1850 | C19: ='Irr Blackeyes'!$B$9*(1-'Irr Blackeyes'!$E$9)*$A19 -> 1387.5 | D19: ='Irr Blackeyes'!$B$9*'Irr Blackeyes'!$E$9*$A19 -> 462.5 | E19: =('Irr Blackeyes'!F$46+(B19-B$19)*('Irr Blackeyes'!$D$24))/B19 -> 0.1519678405 | F19: =('Irr Blackeyes'!G$46+(C19-C$19)*('Irr Blackeyes'!$D$24))/C19 -> 0.1824588099 | G19: =('Irr Blackeyes'!F$60+(B19-B$19)*('Irr Blackeyes'!$D$24))/B19 -> 0.2542651378 | H19: =('Irr Blackeyes'!G$60+(C19-C$19)*('Irr Blackeyes'!$D$24))/C19 -> 0.2186750261 | I19: =IF($D19=0,"N/A",('Irr Blackeyes'!H$60+(D19-D$19)*('Irr Blackeyes'!$D$24))/D19) -> 0.361035473
A20: 1.1 | B20: ='Irr Blackeyes'!$B$9*$A20 -> 2035 | C20: ='Irr Blackeyes'!$B$9*(1-'Irr Blackeyes'!$E$9)*$A20 -> 1526.25 | D20: ='Irr Blackeyes'!$B$9*'Irr Blackeyes'!$E$9*$A20 -> 508.75 | E20: =('Irr Blackeyes'!F$46+(B20-B$19)*('Irr Blackeyes'!$D$24))/B20 -> 2.86542531 | F20: =('Irr Blackeyes'!G$46+(C20-C$19)*('Irr Blackeyes'!$D$24))/C20 -> 2.893144373 | G20: =('Irr Blackeyes'!F$60+(B20-B$19)*('Irr Blackeyes'!$D$24))/B20 -> 2.958422853 | H20: =('Irr Blackeyes'!G$60+(C20-C$19)*('Irr Blackeyes'!$D$24))/C20 -> 2.926068206 | I20: =IF($D20=0,"N/A",('Irr Blackeyes'!H$60+(D20-D$19)*('Irr Blackeyes'!$D$24))/D20) -> 3.055486794
A21: 1.25 | B21: ='Irr Blackeyes'!$B$9*$A21 -> 2312.5 | C21: ='Irr Blackeyes'!$B$9*(1-'Irr Blackeyes'!$E$9)*$A21 -> 1734.375 | D21: ='Irr Blackeyes'!$B$9*'Irr Blackeyes'!$E$9*$A21 -> 578.125 | E21: =('Irr Blackeyes'!F$46+(B21-B$19)*('Irr Blackeyes'!$D$24))/B21 -> 6.121574272 | F21: =('Irr Blackeyes'!G$46+(C21-C$19)*('Irr Blackeyes'!$D$24))/C21 -> 6.145967048 | G21: =('Irr Blackeyes'!F$60+(B21-B$19)*('Irr Blackeyes'!$D$24))/B21 -> 6.20341211 | H21: =('Irr Blackeyes'!G$60+(C21-C$19)*('Irr Blackeyes'!$D$24))/C21 -> 6.174940021 | I21: =IF($D21=0,"N/A",('Irr Blackeyes'!H$60+(D21-D$19)*('Irr Blackeyes'!$D$24))/D21) -> 6.288828378
A23: ='Irr Corn'!A3:H3 -> Irrigated Corn
E24: BE Price to Cover Variable Costs | G24: BE Price to Cover Total Costs
A25: Yield | B25: ='Irr Corn'!C9 -> bu | E25: Total | F25: Operator | G25: Total | H25: Operator | I25: Owner
A26: 0.75 | B26: ='Irr Corn'!$B$9*$A26 -> 157.5 | C26: ='Irr Corn'!$B$9*(1-'Irr Corn'!$E$9)*$A26 -> 118.125 | D26: ='Irr Corn'!$B$9*'Irr Corn'!$E$9*$A26 -> 39.375 | E26: =('Irr Corn'!F$45+(B26-B$28)*('Irr Corn'!$D$23))/B26 -> 5.033505678 | F26: =('Irr Corn'!G$45+(C26-C$28)*('Irr Corn'!$D$23))/C26 -> 6.011833466 | G26: =('Irr Corn'!F$59+(B26-B$28)*('Irr Corn'!$D$23))/B26 -> 6.412870757 | H26: =('Irr Corn'!G$59+(C26-C$28)*('Irr Corn'!$D$23))/C26 -> 6.437230292 | I26: =IF($D26=0,"N/A",('Irr Corn'!H$59+(D26-D$28)*('Irr Corn'!$D$23))/D26) -> 6.339792154
A27: 0.9 | B27: ='Irr Corn'!$B$9*$A27 -> 189 | C27: ='Irr Corn'!$B$9*(1-'Irr Corn'!$E$9)*$A27 -> 141.75 | D27: ='Irr Corn'!$B$9*'Irr Corn'!$E$9*$A27 -> 47.25 | E27: =('Irr Corn'!F$45+(B27-B$28)*('Irr Corn'!$D$23))/B27 -> 4.252921398 | F27: =('Irr Corn'!G$45+(C27-C$28)*('Irr Corn'!$D$23))/C27 -> 5.068194555 | G27: =('Irr Corn'!F$59+(B27-B$28)*('Irr Corn'!$D$23))/B27 -> 5.402392298 | H27: =('Irr Corn'!G$59+(C27-C$28)*('Irr Corn'!$D$23))/C27 -> 5.42269191 | I27: =IF($D27=0,"N/A",('Irr Corn'!H$59+(D27-D$28)*('Irr Corn'!$D$23))/D27) -> 5.341493462
A28: 1 | B28: ='Irr Corn'!$B$9*$A28 -> 210 | C28: ='Irr Corn'!$B$9*(1-'Irr Corn'!$E$9)*$A28 -> 157.5 | D28: ='Irr Corn'!$B$9*'Irr Corn'!$E$9*$A28 -> 52.5 | E28: =('Irr Corn'!F$45+(B28-B$28)*('Irr Corn'!$D$23))/B28 -> 3.862629259 | F28: =('Irr Corn'!G$45+(C28-C$28)*('Irr Corn'!$D$23))/C28 -> 4.5963751 | G28: =('Irr Corn'!F$59+(B28-B$28)*('Irr Corn'!$D$23))/B28 -> 4.897153068 | H28: =('Irr Corn'!G$59+(C28-C$28)*('Irr Corn'!$D$23))/C28 -> 4.915422719 | I28: =IF($D28=0,"N/A",('Irr Corn'!H$59+(D28-D$28)*('Irr Corn'!$D$23))/D28) -> 4.842344116
A29: 1.1 | B29: ='Irr Corn'!$B$9*$A29 -> 231 | C29: ='Irr Corn'!$B$9*(1-'Irr Corn'!$E$9)*$A29 -> 173.25 | D29: ='Irr Corn'!$B$9*'Irr Corn'!$E$9*$A29 -> 57.75 | E29: =('Irr Corn'!F$45+(B29-B$28)*('Irr Corn'!$D$23))/B29 -> 3.543299326 | F29: =('Irr Corn'!G$45+(C29-C$28)*('Irr Corn'!$D$23))/C29 -> 4.210341 | G29: =('Irr Corn'!F$59+(B29-B$28)*('Irr Corn'!$D$23))/B29 -> 4.483775516 | H29: =('Irr Corn'!G$59+(C29-C$28)*('Irr Corn'!$D$23))/C29 -> 4.50038429 | I29: =IF($D29=0,"N/A",('Irr Corn'!H$59+(D29-D$28)*('Irr Corn'!$D$23))/D29) -> 4.433949196
A30: 1.25 | B30: ='Irr Corn'!$B$9*$A30 -> 262.5 | C30: ='Irr Corn'!$B$9*(1-'Irr Corn'!$E$9)*$A30 -> 196.875 | D30: ='Irr Corn'!$B$9*'Irr Corn'!$E$9*$A30 -> 65.625 | E30: =('Irr Corn'!F$45+(B30-B$28)*('Irr Corn'!$D$23))/B30 -> 3.160103407 | F30: =('Irr Corn'!G$45+(C30-C$28)*('Irr Corn'!$D$23))/C30 -> 3.74710008 | G30: =('Irr Corn'!F$59+(B30-B$28)*('Irr Corn'!$D$23))/B30 -> 3.987722454 | H30: =('Irr Corn'!G$59+(C30-C$28)*('Irr Corn'!$D$23))/C30 -> 4.002338175 | I30: =IF($D30=0,"N/A",('Irr Corn'!H$59+(D30-D$28)*('Irr Corn'!$D$23))/D30) -> 3.943875293
A32: ='Irr Corn Silage'!A3:H3 -> Irrigated Corn Silage
E33: BE Price to Cover Variable Costs | G33: BE Price to Cover Total Costs
A34: Yield | B34: ='Irr Corn Silage'!C9 -> tons | E34: Total | F34: Operator | G34: Total | H34: Operator | I34: Owner
A35: 0.75 | B35: ='Irr Corn Silage'!$B$9*$A35 -> 19.5 | C35: ='Irr Corn Silage'!$B$9*(1-'Irr Corn Silage'!$E$9)*$A35 -> 14.625 | D35: ='Irr Corn Silage'!$B$9*'Irr Corn Silage'!$E$9*$A35 -> 4.875 | E35: =('Irr Corn Silage'!F$45+(B35-B$37)*('Irr Corn Silage'!$D$23))/B35 -> 43.95294841 | F35: =('Irr Corn Silage'!G$45+(C35-C$37)*('Irr Corn Silage'!$D$23))/C35 -> 51.20548653 | G35: =('Irr Corn Silage'!F$59+(B35-B$37)*('Irr Corn Silage'!$D$23))/B35 -> 55.09397405 | H35: =('Irr Corn Silage'!G$59+(C35-C$37)*('Irr Corn Silage'!$D$23))/C35 -> 54.64138397 | I35: =IF($D35=0,"N/A",('Irr Corn Silage'!H$59+(D35-D$37)*('Irr Corn Silage'!$D$23))/D35) -> 56.45174431
A36: 0.9 | B36: ='Irr Corn Silage'!$B$9*$A36 -> 23.4 | C36: ='Irr Corn Silage'!$B$9*(1-'Irr Corn Silage'!$E$9)*$A36 -> 17.55 | D36: ='Irr Corn Silage'!$B$9*'Irr Corn Silage'!$E$9*$A36 -> 5.85 | E36: =('Irr Corn Silage'!F$45+(B36-B$37)*('Irr Corn Silage'!$D$23))/B36 -> 37.79412368 | F36: =('Irr Corn Silage'!G$45+(C36-C$37)*('Irr Corn Silage'!$D$23))/C36 -> 43.83790544 | G36: =('Irr Corn Silage'!F$59+(B36-B$37)*('Irr Corn Silage'!$D$23))/B36 -> 47.07831171 | H36: =('Irr Corn Silage'!G$59+(C36-C$37)*('Irr Corn Silage'!$D$23))/C36 -> 46.70115331 | I36: =IF($D36=0,"N/A",('Irr Corn Silage'!H$59+(D36-D$37)*('Irr Corn Silage'!$D$23))/D36) -> 48.20978693
A37: 1 | B37: ='Irr Corn Silage'!$B$9*$A37 -> 26 | C37: ='Irr Corn Silage'!$B$9*(1-'Irr Corn Silage'!$E$9)*$A37 -> 19.5 | D37: ='Irr Corn Silage'!$B$9*'Irr Corn Silage'!$E$9*$A37 -> 6.5 | E37: =('Irr Corn Silage'!F$45+(B37-B$37)*('Irr Corn Silage'!$D$23))/B37 -> 34.71471131 | F37: =('Irr Corn Silage'!G$45+(C37-C$37)*('Irr Corn Silage'!$D$23))/C37 -> 40.1541149 | G37: =('Irr Corn Silage'!F$59+(B37-B$37)*('Irr Corn Silage'!$D$23))/B37 -> 43.07048054 | H37: =('Irr Corn Silage'!G$59+(C37-C$37)*('Irr Corn Silage'!$D$23))/C37 -> 42.73103798 | I37: =IF($D37=0,"N/A",('Irr Corn Silage'!H$59+(D37-D$37)*('Irr Corn Silage'!$D$23))/D37) -> 44.08880823
A38: 1.1 | B38: ='Irr Corn Silage'!$B$9*$A38 -> 28.6 | C38: ='Irr Corn Silage'!$B$9*(1-'Irr Corn Silage'!$E$9)*$A38 -> 21.45 | D38: ='Irr Corn Silage'!$B$9*'Irr Corn Silage'!$E$9*$A38 -> 7.15 | E38: =('Irr Corn Silage'!F$45+(B38-B$37)*('Irr Corn Silage'!$D$23))/B38 -> 32.1951921 | F38: =('Irr Corn Silage'!G$45+(C38-C$37)*('Irr Corn Silage'!$D$23))/C38 -> 37.14010445 | G38: =('Irr Corn Silage'!F$59+(B38-B$37)*('Irr Corn Silage'!$D$23))/B38 -> 39.79134595 | H38: =('Irr Corn Silage'!G$59+(C38-C$37)*('Irr Corn Silage'!$D$23))/C38 -> 39.4827618 | I38: =IF($D38=0,"N/A",('Irr Corn Silage'!H$59+(D38-D$37)*('Irr Corn Silage'!$D$23))/D38) -> 40.71709839
A39: 1.25 | B39: ='Irr Corn Silage'!$B$9*$A39 -> 32.5 | C39: ='Irr Corn Silage'!$B$9*(1-'Irr Corn Silage'!$E$9)*$A39 -> 24.375 | D39: ='Irr Corn Silage'!$B$9*'Irr Corn Silage'!$E$9*$A39 -> 8.125 | E39: =('Irr Corn Silage'!F$45+(B39-B$37)*('Irr Corn Silage'!$D$23))/B39 -> 29.17176905 | F39: =('Irr Corn Silage'!G$45+(C39-C$37)*('Irr Corn Silage'!$D$23))/C39 -> 33.52329192 | G39: =('Irr Corn Silage'!F$59+(B39-B$37)*('Irr Corn Silage'!$D$23))/B39 -> 35.85638443 | H39: =('Irr Corn Silage'!G$59+(C39-C$37)*('Irr Corn Silage'!$D$23))/C39 -> 35.58483038 | I39: =IF($D39=0,"N/A",('Irr Corn Silage'!H$59+(D39-D$37)*('Irr Corn Silage'!$D$23))/D39) -> 36.67104659
A41: ='Irr Cotton Drip'!A3:H3 -> Irrigated Cotton - Drip
E42: BE Price to Cover Variable Costs | G42: BE Price to Cover Total Costs
A43: Yield | B43: ='Irr Cotton Drip'!C9 -> lbs | E43: Total | F43: Operator | G43: Total | H43: Operator | I43: Owner
A44: 0.75 | B44: ='Irr Cotton Drip'!$B$9*$A44 -> 1312.5 | C44: ='Irr Cotton Drip'!$B$9*(1-'Irr Cotton Drip'!$E$9)*$A44 -> 879.375 | D44: ='Irr Cotton Drip'!$B$9*'Irr Cotton Drip'!$E$9*$A44 -> 433.125 | E44: =('Irr Cotton Drip'!F$52-B44/500*'2017 Universal Input Prices'!$C$40/2000*Cottonseed_Price+(B44-B$46)*'Irr Cotton Drip'!$D$29+(B44-B$46)/'Irr Cotton Drip'!$B$11/100*'Irr Cotton Drip'!$D$30)/B44 -> 0.5458883814 | F44: =('Irr Cotton Drip'!G$52-C44/500*'2017 Universal Input Prices'!$C$40/2000*Cottonseed_Price+(C44-C$46)*'Irr Cotton Drip'!$D$29+(C44-C$46)/'Irr Cotton Drip'!$B$11/100*'Irr Cotton Drip'!$D$30)/C44 -> 0.7835243456 | G44: =('Irr Cotton Drip'!F$66-B44/500*'2017 Universal Input Prices'!$C$40/2000*Cottonseed_Price+(B44-B$46)*'Irr Cotton Drip'!$D$29+(B44-B$46)/'Irr Cotton Drip'!$B$11/100*'Irr Cotton Drip'!$D$30)/B44 -> 0.7266502861 | H44: =('Irr Cotton Drip'!G$66-C44/500*'2017 Universal Input Prices'!$C$40/2000*Cottonseed_Price+(C44-C$46)*'Irr Cotton Drip'!$D$29+(C44-C$46)/'Irr Cotton Drip'!$B$11/100*'Irr Cotton Drip'!$D$30)/C44 -> 0.8406672027 | I44: =IF($D44=0,"N/A",('Irr Cotton Drip'!H$66-D44/500*'2017 Universal Input Prices'!$C$40/2000*Cottonseed_Price+(D44-D$46)*'Irr Cotton Drip'!$D$29+(D44-D$46)/'Irr Cotton Drip'!$B$11/100*'Irr Cotton Drip'!$D$30)/D44) -> 0.4951613949
A45: 0.9 | B45: ='Irr Cotton Drip'!$B$9*$A45 -> 1575 | C45: ='Irr Cotton Drip'!$B$9*(1-'Irr Cotton Drip'!$E$9)*$A45 -> 1055.25 | D45: ='Irr Cotton Drip'!$B$9*'Irr Cotton Drip'!$E$9*$A45 -> 519.75 | E45: =('Irr Cotton Drip'!F$52-B45/500*'2017 Universal Input Prices'!$C$40/2000*Cottonseed_Price+(B45-B$46)*'Irr Cotton Drip'!$D$29+(B45-B$46)/'Irr Cotton Drip'!$B$11/100*'Irr Cotton Drip'!$D$30)/B45 -> 0.4618355559 | F45: =('Irr Cotton Drip'!G$52-C45/500*'2017 Universal Input Prices'!$C$40/2000*Cottonseed_Price+(C45-C$46)*'Irr Cotton Drip'!$D$29+(C45-C$46)/'Irr Cotton Drip'!$B$11/100*'Irr Cotton Drip'!$D$30)/C45 -> 0.6598655261 | G45: =('Irr Cotton Drip'!F$66-B45/500*'2017 Universal Input Prices'!$C$40/2000*Cottonseed_Price+(B45-B$46)*'Irr Cotton Drip'!$D$29+(B45-B$46)/'Irr Cotton Drip'!$B$11/100*'Irr Cotton Drip'!$D$30)/B45 -> 0.6124704765 | H45: =('Irr Cotton Drip'!G$66-C45/500*'2017 Universal Input Prices'!$C$40/2000*Cottonseed_Price+(C45-C$46)*'Irr Cotton Drip'!$D$29+(C45-C$46)/'Irr Cotton Drip'!$B$11/100*'Irr Cotton Drip'!$D$30)/C45 -> 0.7074845737 | I45: =IF($D45=0,"N/A",('Irr Cotton Drip'!H$66-D45/500*'2017 Universal Input Prices'!$C$40/2000*Cottonseed_Price+(D45-D$46)*'Irr Cotton Drip'!$D$29+(D45-D$46)/'Irr Cotton Drip'!$B$11/100*'Irr Cotton Drip'!$D$30)/D45) -> 0.4195630672
A46: 1 | B46: ='Irr Cotton Drip'!$B$9*$A46 -> 1750 | C46: ='Irr Cotton Drip'!$B$9*(1-'Irr Cotton Drip'!$E$9)*$A46 -> 1172.5 | D46: ='Irr Cotton Drip'!$B$9*'Irr Cotton Drip'!$E$9*$A46 -> 577.5 | E46: =('Irr Cotton Drip'!F$52-B46/500*'2017 Universal Input Prices'!$C$40/2000*Cottonseed_Price+(B46-B$46)*'Irr Cotton Drip'!$D$29+(B46-B$46)/'Irr Cotton Drip'!$B$11/100*'Irr Cotton Drip'!$D$30)/B46 -> 0.4198091432 | F46: =('Irr Cotton Drip'!G$52-C46/500*'2017 Universal Input Prices'!$C$40/2000*Cottonseed_Price+(C46-C$46)*'Irr Cotton Drip'!$D$29+(C46-C$46)/'Irr Cotton Drip'!$B$11/100*'Irr Cotton Drip'!$D$30)/C46 -> 0.5980361163 | G46: =('Irr Cotton Drip'!F$66-B46/500*'2017 Universal Input Prices'!$C$40/2000*Cottonseed_Price+(B46-B$46)*'Irr Cotton Drip'!$D$29+(B46-B$46)/'Irr Cotton Drip'!$B$11/100*'Irr Cotton Drip'!$D$30)/B46 -> 0.5553805717 | H46: =('Irr Cotton Drip'!G$66-C46/500*'2017 Universal Input Prices'!$C$40/2000*Cottonseed_Price+(C46-C$46)*'Irr Cotton Drip'!$D$29+(C46-C$46)/'Irr Cotton Drip'!$B$11/100*'Irr Cotton Drip'!$D$30)/C46 -> 0.6408932592 | I46: =IF($D46=0,"N/A",('Irr Cotton Drip'!H$66-D46/500*'2017 Universal Input Prices'!$C$40/2000*Cottonseed_Price+(D46-D$46)*'Irr Cotton Drip'!$D$29+(D46-D$46)/'Irr Cotton Drip'!$B$11/100*'Irr Cotton Drip'!$D$30)/D46) -> 0.3817639033
A47: 1.1 | B47: ='Irr Cotton Drip'!$B$9*$A47 -> 1925 | C47: ='Irr Cotton Drip'!$B$9*(1-'Irr Cotton Drip'!$E$9)*$A47 -> 1289.75 | D47: ='Irr Cotton Drip'!$B$9*'Irr Cotton Drip'!$E$9*$A47 -> 635.25 | E47: =('Irr Cotton Drip'!F$52-B47/500*'2017 Universal Input Prices'!$C$40/2000*Cottonseed_Price+(B47-B$46)*'Irr Cotton Drip'!$D$29+(B47-B$46)/'Irr Cotton Drip'!$B$11/100*'Irr Cotton Drip'!$D$30)/B47 -> 0.3854238964 | F47: =('Irr Cotton Drip'!G$52-C47/500*'2017 Universal Input Prices'!$C$40/2000*Cottonseed_Price+(C47-C$46)*'Irr Cotton Drip'!$D$29+(C47-C$46)/'Irr Cotton Drip'!$B$11/100*'Irr Cotton Drip'!$D$30)/C47 -> 0.5474484174 | G47: =('Irr Cotton Drip'!F$66-B47/500*'2017 Universal Input Prices'!$C$40/2000*Cottonseed_Price+(B47-B$46)*'Irr Cotton Drip'!$D$29+(B47-B$46)/'Irr Cotton Drip'!$B$11/100*'Irr Cotton Drip'!$D$30)/B47 -> 0.5086706496 | H47: =('Irr Cotton Drip'!G$66-C47/500*'2017 Universal Input Prices'!$C$40/2000*Cottonseed_Price+(C47-C$46)*'Irr Cotton Drip'!$D$29+(C47-C$46)/'Irr Cotton Drip'!$B$11/100*'Irr Cotton Drip'!$D$30)/C47 -> 0.5864094564 | I47: =IF($D47=0,"N/A",('Irr Cotton Drip'!H$66-D47/500*'2017 Universal Input Prices'!$C$40/2000*Cottonseed_Price+(D47-D$46)*'Irr Cotton Drip'!$D$29+(D47-D$46)/'Irr Cotton Drip'!$B$11/100*'Irr Cotton Drip'!$D$30)/D47) -> 0.3508373147
A48: 1.25 | B48: ='Irr Cotton Drip'!$B$9*$A48 -> 2187.5 | C48: ='Irr Cotton Drip'!$B$9*(1-'Irr Cotton Drip'!$E$9)*$A48 -> 1465.625 | D48: ='Irr Cotton Drip'!$B$9*'Irr Cotton Drip'!$E$9*$A48 -> 721.875 | E48: =('Irr Cotton Drip'!F$52-B48/500*'2017 Universal Input Prices'!$C$40/2000*Cottonseed_Price+(B48-B$46)*'Irr Cotton Drip'!$D$29+(B48-B$46)/'Irr Cotton Drip'!$B$11/100*'Irr Cotton Drip'!$D$30)/B48 -> 0.3441616003 | F48: =('Irr Cotton Drip'!G$52-C48/500*'2017 Universal Input Prices'!$C$40/2000*Cottonseed_Price+(C48-C$46)*'Irr Cotton Drip'!$D$29+(C48-C$46)/'Irr Cotton Drip'!$B$11/100*'Irr Cotton Drip'!$D$30)/C48 -> 0.4867431788 | G48: =('Irr Cotton Drip'!F$66-B48/500*'2017 Universal Input Prices'!$C$40/2000*Cottonseed_Price+(B48-B$46)*'Irr Cotton Drip'!$D$29+(B48-B$46)/'Irr Cotton Drip'!$B$11/100*'Irr Cotton Drip'!$D$30)/B48 -> 0.4526187431 | H48: =('Irr Cotton Drip'!G$66-C48/500*'2017 Universal Input Prices'!$C$40/2000*Cottonseed_Price+(C48-C$46)*'Irr Cotton Drip'!$D$29+(C48-C$46)/'Irr Cotton Drip'!$B$11/100*'Irr Cotton Drip'!$D$30)/C48 -> 0.521028893 | I48: =IF($D48=0,"N/A",('Irr Cotton Drip'!H$66-D48/500*'2017 Universal Input Prices'!$C$40/2000*Cottonseed_Price+(D48-D$46)*'Irr Cotton Drip'!$D$29+(D48-D$46)/'Irr Cotton Drip'!$B$11/100*'Irr Cotton Drip'!$D$30)/D48) -> 0.3137254084
A50: ='Irr Cotton Pivot'!A3:H3 -> Irrigated Cotton - Pivot
E51: BE Price to Cover Variable Costs | G51: BE Price to Cover Total Costs
A52: Yield | B52: ='Irr Cotton Pivot'!C9 -> lbs | E52: Total | F52: Operator | G52: Total | H52: Operator | I52: Owner
A53: 0.75 | B53: ='Irr Cotton Pivot'!$B$9*$A53 -> 937.5 | C53: ='Irr Cotton Pivot'!$B$9*(1-'Irr Cotton Pivot'!$E$9)*$A53 -> 703.125 | D53: ='Irr Cotton Pivot'!$B$9*'Irr Cotton Pivot'!$E$9*$A53 -> 234.375 | E53: =('Irr Cotton Pivot'!F$51-B53/500*'2017 Universal Input Prices'!$C$40/2000*Cottonseed_Price+(B53-B$55)*'Irr Cotton Pivot'!$D$28+(B53-B$55)/'Irr Cotton Pivot'!$B$11/100*'Irr Cotton Pivot'!$D$29)/B53 -> 0.5798296233 | F53: =('Irr Cotton Pivot'!G$51-C53/500*'2017 Universal Input Prices'!$C$40/2000*Cottonseed_Price+(C53-C$55)*'Irr Cotton Pivot'!$D$28+(C53-C$55)/'Irr Cotton Pivot'!$B$11/100*'Irr Cotton Pivot'!$D$29)/C53 -> 0.6925536944 | G53: =('Irr Cotton Pivot'!F$65-B53/500*'2017 Universal Input Prices'!$C$40/2000*Cottonseed_Price+(B53-B$55)*'Irr Cotton Pivot'!$D$28+(B53-B$55)/'Irr Cotton Pivot'!$B$11/100*'Irr Cotton Pivot'!$D$29)/B53 -> 0.7816962899 | H53: =('Irr Cotton Pivot'!G$65-C53/500*'2017 Universal Input Prices'!$C$40/2000*Cottonseed_Price+(C53-C$55)*'Irr Cotton Pivot'!$D$28+(C53-C$55)/'Irr Cotton Pivot'!$B$11/100*'Irr Cotton Pivot'!$D$29)/C53 -> 0.7640203611 | I53: =IF($D53=0,"N/A",('Irr Cotton Pivot'!H$65-D53/500*'2017 Universal Input Prices'!$C$40/2000*Cottonseed_Price+(D53-D$55)*'Irr Cotton Pivot'!$D$28+(D53-D$55)/'Irr Cotton Pivot'!$B$11/100*'Irr Cotton Pivot'!$D$29)/D53) -> 0.8347240766
A54: 0.9 | B54: ='Irr Cotton Pivot'!$B$9*$A54 -> 1125 | C54: ='Irr Cotton Pivot'!$B$9*(1-'Irr Cotton Pivot'!$E$9)*$A54 -> 843.75 | D54: ='Irr Cotton Pivot'!$B$9*'Irr Cotton Pivot'!$E$9*$A54 -> 281.25 | E54: =('Irr Cotton Pivot'!F$51-B54/500*'2017 Universal Input Prices'!$C$40/2000*Cottonseed_Price+(B54-B$55)*'Irr Cotton Pivot'!$D$28+(B54-B$55)/'Irr Cotton Pivot'!$B$11/100*'Irr Cotton Pivot'!$D$29)/B54 -> 0.4901199242 | F54: =('Irr Cotton Pivot'!G$51-C54/500*'2017 Universal Input Prices'!$C$40/2000*Cottonseed_Price+(C54-C$55)*'Irr Cotton Pivot'!$D$28+(C54-C$55)/'Irr Cotton Pivot'!$B$11/100*'Irr Cotton Pivot'!$D$29)/C54 -> 0.5840566501 | G54: =('Irr Cotton Pivot'!F$65-B54/500*'2017 Universal Input Prices'!$C$40/2000*Cottonseed_Price+(B54-B$55)*'Irr Cotton Pivot'!$D$28+(B54-B$55)/'Irr Cotton Pivot'!$B$11/100*'Irr Cotton Pivot'!$D$29)/B54 -> 0.6583421464 | H54: =('Irr Cotton Pivot'!G$65-C54/500*'2017 Universal Input Prices'!$C$40/2000*Cottonseed_Price+(C54-C$55)*'Irr Cotton Pivot'!$D$28+(C54-C$55)/'Irr Cotton Pivot'!$B$11/100*'Irr Cotton Pivot'!$D$29)/C54 -> 0.6436122056 | I54: =IF($D54=0,"N/A",('Irr Cotton Pivot'!H$65-D54/500*'2017 Universal Input Prices'!$C$40/2000*Cottonseed_Price+(D54-D$55)*'Irr Cotton Pivot'!$D$28+(D54-D$55)/'Irr Cotton Pivot'!$B$11/100*'Irr Cotton Pivot'!$D$29)/D54) -> 0.7025319686
A55: 1 | B55: ='Irr Cotton Pivot'!$B$9*$A55 -> 1250 | C55: ='Irr Cotton Pivot'!$B$9*(1-'Irr Cotton Pivot'!$E$9)*$A55 -> 937.5 | D55: ='Irr Cotton Pivot'!$B$9*'Irr Cotton Pivot'!$E$9*$A55 -> 312.5 | E55: =('Irr Cotton Pivot'!F$51-B55/500*'2017 Universal Input Prices'!$C$40/2000*Cottonseed_Price+(B55-B$55)*'Irr Cotton Pivot'!$D$28+(B55-B$55)/'Irr Cotton Pivot'!$B$11/100*'Irr Cotton Pivot'!$D$29)/B55 -> 0.4452650746 | F55: =('Irr Cotton Pivot'!G$51-C55/500*'2017 Universal Input Prices'!$C$40/2000*Cottonseed_Price+(C55-C$55)*'Irr Cotton Pivot'!$D$28+(C55-C$55)/'Irr Cotton Pivot'!$B$11/100*'Irr Cotton Pivot'!$D$29)/C55 -> 0.5298081279 | G55: =('Irr Cotton Pivot'!F$65-B55/500*'2017 Universal Input Prices'!$C$40/2000*Cottonseed_Price+(B55-B$55)*'Irr Cotton Pivot'!$D$28+(B55-B$55)/'Irr Cotton Pivot'!$B$11/100*'Irr Cotton Pivot'!$D$29)/B55 -> 0.5966650746 | H55: =('Irr Cotton Pivot'!G$65-C55/500*'2017 Universal Input Prices'!$C$40/2000*Cottonseed_Price+(C55-C$55)*'Irr Cotton Pivot'!$D$28+(C55-C$55)/'Irr Cotton Pivot'!$B$11/100*'Irr Cotton Pivot'!$D$29)/C55 -> 0.5834081279 | I55: =IF($D55=0,"N/A",('Irr Cotton Pivot'!H$65-D55/500*'2017 Universal Input Prices'!$C$40/2000*Cottonseed_Price+(D55-D$55)*'Irr Cotton Pivot'!$D$28+(D55-D$55)/'Irr Cotton Pivot'!$B$11/100*'Irr Cotton Pivot'!$D$29)/D55) -> 0.6364359146
A56: 1.1 | B56: ='Irr Cotton Pivot'!$B$9*$A56 -> 1375 | C56: ='Irr Cotton Pivot'!$B$9*(1-'Irr Cotton Pivot'!$E$9)*$A56 -> 1031.25 | D56: ='Irr Cotton Pivot'!$B$9*'Irr Cotton Pivot'!$E$9*$A56 -> 343.75 | E56: =('Irr Cotton Pivot'!F$51-B56/500*'2017 Universal Input Prices'!$C$40/2000*Cottonseed_Price+(B56-B$55)*'Irr Cotton Pivot'!$D$28+(B56-B$55)/'Irr Cotton Pivot'!$B$11/100*'Irr Cotton Pivot'!$D$29)/B56 -> 0.4085656522 | F56: =('Irr Cotton Pivot'!G$51-C56/500*'2017 Universal Input Prices'!$C$40/2000*Cottonseed_Price+(C56-C$55)*'Irr Cotton Pivot'!$D$28+(C56-C$55)/'Irr Cotton Pivot'!$B$11/100*'Irr Cotton Pivot'!$D$29)/C56 -> 0.4854229734 | G56: =('Irr Cotton Pivot'!F$65-B56/500*'2017 Universal Input Prices'!$C$40/2000*Cottonseed_Price+(B56-B$55)*'Irr Cotton Pivot'!$D$28+(B56-B$55)/'Irr Cotton Pivot'!$B$11/100*'Irr Cotton Pivot'!$D$29)/B56 -> 0.5462020159 | H56: =('Irr Cotton Pivot'!G$65-C56/500*'2017 Universal Input Prices'!$C$40/2000*Cottonseed_Price+(C56-C$55)*'Irr Cotton Pivot'!$D$28+(C56-C$55)/'Irr Cotton Pivot'!$B$11/100*'Irr Cotton Pivot'!$D$29)/C56 -> 0.5341502462 | I56: =IF($D56=0,"N/A",('Irr Cotton Pivot'!H$65-D56/500*'2017 Universal Input Prices'!$C$40/2000*Cottonseed_Price+(D56-D$55)*'Irr Cotton Pivot'!$D$28+(D56-D$55)/'Irr Cotton Pivot'!$B$11/100*'Irr Cotton Pivot'!$D$29)/D56) -> 0.582357325
A57: 1.25 | B57: ='Irr Cotton Pivot'!$B$9*$A57 -> 1562.5 | C57: ='Irr Cotton Pivot'!$B$9*(1-'Irr Cotton Pivot'!$E$9)*$A57 -> 1171.875 | D57: ='Irr Cotton Pivot'!$B$9*'Irr Cotton Pivot'!$E$9*$A57 -> 390.625 | E57: =('Irr Cotton Pivot'!F$51-B57/500*'2017 Universal Input Prices'!$C$40/2000*Cottonseed_Price+(B57-B$55)*'Irr Cotton Pivot'!$D$28+(B57-B$55)/'Irr Cotton Pivot'!$B$11/100*'Irr Cotton Pivot'!$D$29)/B57 -> 0.3645263454 | F57: =('Irr Cotton Pivot'!G$51-C57/500*'2017 Universal Input Prices'!$C$40/2000*Cottonseed_Price+(C57-C$55)*'Irr Cotton Pivot'!$D$28+(C57-C$55)/'Irr Cotton Pivot'!$B$11/100*'Irr Cotton Pivot'!$D$29)/C57 -> 0.4321607881 | G57: =('Irr Cotton Pivot'!F$65-B57/500*'2017 Universal Input Prices'!$C$40/2000*Cottonseed_Price+(B57-B$55)*'Irr Cotton Pivot'!$D$28+(B57-B$55)/'Irr Cotton Pivot'!$B$11/100*'Irr Cotton Pivot'!$D$29)/B57 -> 0.4856463454 | H57: =('Irr Cotton Pivot'!G$65-C57/500*'2017 Universal Input Prices'!$C$40/2000*Cottonseed_Price+(C57-C$55)*'Irr Cotton Pivot'!$D$28+(C57-C$55)/'Irr Cotton Pivot'!$B$11/100*'Irr Cotton Pivot'!$D$29)/C57 -> 0.4750407881 | I57: =IF($D57=0,"N/A",('Irr Cotton Pivot'!H$65-D57/500*'2017 Universal Input Prices'!$C$40/2000*Cottonseed_Price+(D57-D$55)*'Irr Cotton Pivot'!$D$28+(D57-D$55)/'Irr Cotton Pivot'!$B$11/100*'Irr Cotton Pivot'!$D$29)/D57) -> 0.5174630174
A59: ='Irr Guar'!A3:H3 -> Irrigated Guar
E60: BE Price to Cover Variable Costs | G60: BE Price to Cover Total Costs
A61: Yield | B61: ='Irr Guar'!C9 -> lb | E61: Total | F61: Operator | G61: Total | H61: Operator | I61: Owner
A62: 0.75 | B62: ='Irr Guar'!$B$9*$A62 -> 900 | C62: ='Irr Guar'!$B$9*(1-'Irr Guar'!$E$9)*$A62 -> 675 | D62: ='Irr Guar'!$B$9*'Irr Guar'!$E$9*$A62 -> 225 | E62: =('Irr Guar'!$F$47+($B62-$B$73)*'Irr Guar'!$D$25)/$B62 -> 0.4123913197 | F62: =('Irr Guar'!$G$47+($C62-$C$73)*'Irr Guar'!$D$25)/$C62 -> 0.4344394234 | G62: =('Irr Guar'!$F$61+($B62-$B$73)*'Irr Guar'!$D$25)/$B62 -> 0.6260024308 | H62: =('Irr Guar'!$G$61+($C62-$C$73)*'Irr Guar'!$D$25)/$C62 -> 0.5088838678 | I62: =IF($D62=0, "N/A", ('Irr Guar'!$H$61+($D62-$D$73)*'Irr Guar'!$D$25)/$D62) -> 0.9773581197
A63: 0.9 | B63: ='Irr Guar'!$B$9*$A63 -> 1080 | C63: ='Irr Guar'!$B$9*(1-'Irr Guar'!$E$9)*$A63 -> 810 | D63: ='Irr Guar'!$B$9*'Irr Guar'!$E$9*$A63 -> 270 | E63: =('Irr Guar'!$F$47+($B63-$B$73)*'Irr Guar'!$D$25)/$B63 -> 0.3769927664 | F63: =('Irr Guar'!$G$47+($C63-$C$73)*'Irr Guar'!$D$25)/$C63 -> 0.3953661861 | G63: =('Irr Guar'!$F$61+($B63-$B$73)*'Irr Guar'!$D$25)/$B63 -> 0.5550020256 | H63: =('Irr Guar'!$G$61+($C63-$C$73)*'Irr Guar'!$D$25)/$C63 -> 0.4574032232 | I63: =IF($D63=0, "N/A", ('Irr Guar'!$H$61+($D63-$D$73)*'Irr Guar'!$D$25)/$D63) -> 0.847798433
A64: 1 | B64: ='Irr Guar'!$B$9*$A64 -> 1200 | C64: ='Irr Guar'!$B$9*(1-'Irr Guar'!$E$9)*$A64 -> 900 | D64: ='Irr Guar'!$B$9*'Irr Guar'!$E$9*$A64 -> 300 | E64: =('Irr Guar'!$F$47+($B64-$B$73)*'Irr Guar'!$D$25)/$B64 -> 0.3592934897 | F64: =('Irr Guar'!$G$47+($C64-$C$73)*'Irr Guar'!$D$25)/$C64 -> 0.3758295675 | G64: =('Irr Guar'!$F$61+($B64-$B$73)*'Irr Guar'!$D$25)/$B64 -> 0.5195018231 | H64: =('Irr Guar'!$G$61+($C64-$C$73)*'Irr Guar'!$D$25)/$C64 -> 0.4316629009 | I64: =IF($D64=0, "N/A", ('Irr Guar'!$H$61+($D64-$D$73)*'Irr Guar'!$D$25)/$D64) -> 0.7830185897
A65: 1.1 | B65: ='Irr Guar'!$B$9*$A65 -> 1320 | C65: ='Irr Guar'!$B$9*(1-'Irr Guar'!$E$9)*$A65 -> 990 | D65: ='Irr Guar'!$B$9*'Irr Guar'!$E$9*$A65 -> 330 | E65: =('Irr Guar'!$F$47+($B65-$B$73)*'Irr Guar'!$D$25)/$B65 -> 0.3448122634 | F65: =('Irr Guar'!$G$47+($C65-$C$73)*'Irr Guar'!$D$25)/$C65 -> 0.3598450614 | G65: =('Irr Guar'!$F$61+($B65-$B$73)*'Irr Guar'!$D$25)/$B65 -> 0.4904562028 | H65: =('Irr Guar'!$G$61+($C65-$C$73)*'Irr Guar'!$D$25)/$C65 -> 0.4106026371 | I65: =IF($D65=0, "N/A", ('Irr Guar'!$H$61+($D65-$D$73)*'Irr Guar'!$D$25)/$D65) -> 0.7300168998
A66: 1.25 | B66: ='Irr Guar'!$B$9*$A66 -> 1500 | C66: ='Irr Guar'!$B$9*(1-'Irr Guar'!$E$9)*$A66 -> 1125 | D66: ='Irr Guar'!$B$9*'Irr Guar'!$E$9*$A66 -> 375 | E66: =('Irr Guar'!$F$47+($B66-$B$73)*'Irr Guar'!$D$25)/$B66 -> 0.3274347918 | F66: =('Irr Guar'!$G$47+($C66-$C$73)*'Irr Guar'!$D$25)/$C66 -> 0.340663654 | G66: =('Irr Guar'!$F$61+($B66-$B$73)*'Irr Guar'!$D$25)/$B66 -> 0.4556014585 | H66: =('Irr Guar'!$G$61+($C66-$C$73)*'Irr Guar'!$D$25)/$C66 -> 0.3853303207 | I66: =IF($D66=0, "N/A", ('Irr Guar'!$H$61+($D66-$D$73)*'Irr Guar'!$D$25)/$D66) -> 0.6664148718
A68: ='Irr Peanuts'!A3:H3 -> Irrigated Peanuts
E69: BE Price to Cover Variable Costs | G69: BE Price to Cover Total Costs
A70: Yield | B70: ='Irr Peanuts'!C9 -> tons | E70: Total | F70: Operator | G70: Total | H70: Operator | I70: Owner
A71: 0.75 | B71: ='Irr Peanuts'!$B$9*$A71 -> 1.6875 | C71: ='Irr Peanuts'!$B$9*(1-'Irr Peanuts'!$E$9)*$A71 -> 1.265625 | D71: ='Irr Peanuts'!$B$9*'Irr Peanuts'!$E$9*$A71 -> 0.421875 | E71: =('Irr Peanuts'!$F$50+($B71-$B$73)*(SUM('Irr Peanuts'!$D$26:$D$27)))/$B71 -> 499.3533034 | F71: =('Irr Peanuts'!$G$50+($C71-$C$73)*(SUM('Irr Peanuts'!$D$26:$D$27)))/$C71 -> 587.7886456 | G71: =('Irr Peanuts'!$F$64+($B71-$B$73)*(SUM('Irr Peanuts'!$D$26:$D$27)))/$B71 -> 628.0940441 | H71: =('Irr Peanuts'!$G$64+($C71-$C$73)*(SUM('Irr Peanuts'!$D$26:$D$27)))/$C71 -> 627.4923493 | I71: =IF($D71=0, "N/A", ('Irr Peanuts'!$H$64+($D71-$D$73)*(SUM('Irr Peanuts'!$D$26:$D$27)))/$D71) -> 629.8991285
A72: 0.9 | B72: ='Irr Peanuts'!$B$9*$A72 -> 2.025 | C72: ='Irr Peanuts'!$B$9*(1-'Irr Peanuts'!$E$9)*$A72 -> 1.51875 | D72: ='Irr Peanuts'!$B$9*'Irr Peanuts'!$E$9*$A72 -> 0.50625 | E72: =('Irr Peanuts'!$F$50+($B72-$B$73)*(SUM('Irr Peanuts'!$D$26:$D$27)))/$B72 -> 431.1277528 | F72: =('Irr Peanuts'!$G$50+($C72-$C$73)*(SUM('Irr Peanuts'!$D$26:$D$27)))/$C72 -> 504.8238713 | G72: =('Irr Peanuts'!$F$64+($B72-$B$73)*(SUM('Irr Peanuts'!$D$26:$D$27)))/$B72 -> 538.4117034 | H72: =('Irr Peanuts'!$G$64+($C72-$C$73)*(SUM('Irr Peanuts'!$D$26:$D$27)))/$C72 -> 537.9102911 | I72: =IF($D72=0, "N/A", ('Irr Peanuts'!$H$64+($D72-$D$73)*(SUM('Irr Peanuts'!$D$26:$D$27)))/$D72) -> 539.9159405
A73: 1 | B73: ='Irr Peanuts'!$B$9*$A73 -> 2.25 | C73: ='Irr Peanuts'!$B$9*(1-'Irr Peanuts'!$E$9)*$A73 -> 1.6875 | D73: ='Irr Peanuts'!$B$9*'Irr Peanuts'!$E$9*$A73 -> 0.5625 | E73: =('Irr Peanuts'!$F$50+($B73-$B$73)*(SUM('Irr Peanuts'!$D$26:$D$27)))/$B73 -> 397.0149775 | F73: =('Irr Peanuts'!$G$50+($C73-$C$73)*(SUM('Irr Peanuts'!$D$26:$D$27)))/$C73 -> 463.3414842 | G73: =('Irr Peanuts'!$F$64+($B73-$B$73)*(SUM('Irr Peanuts'!$D$26:$D$27)))/$B73 -> 493.5705331 | H73: =('Irr Peanuts'!$G$64+($C73-$C$73)*(SUM('Irr Peanuts'!$D$26:$D$27)))/$C73 -> 493.119262 | I73: =IF($D73=0, "N/A", ('Irr Peanuts'!$H$64+($D73-$D$73)*(SUM('Irr Peanuts'!$D$26:$D$27)))/$D73) -> 494.9243464
A74: 1.1 | B74: ='Irr Peanuts'!$B$9*$A74 -> 2.475 | C74: ='Irr Peanuts'!$B$9*(1-'Irr Peanuts'!$E$9)*$A74 -> 1.85625 | D74: ='Irr Peanuts'!$B$9*'Irr Peanuts'!$E$9*$A74 -> 0.61875 | E74: =('Irr Peanuts'!$F$50+($B74-$B$73)*(SUM('Irr Peanuts'!$D$26:$D$27)))/$B74 -> 369.104525 | F74: =('Irr Peanuts'!$G$50+($C74-$C$73)*(SUM('Irr Peanuts'!$D$26:$D$27)))/$C74 -> 429.4013493 | G74: =('Irr Peanuts'!$F$64+($B74-$B$73)*(SUM('Irr Peanuts'!$D$26:$D$27)))/$B74 -> 456.8823028 | H74: =('Irr Peanuts'!$G$64+($C74-$C$73)*(SUM('Irr Peanuts'!$D$26:$D$27)))/$C74 -> 456.4720563 | I74: =IF($D74=0, "N/A", ('Irr Peanuts'!$H$64+($D74-$D$73)*(SUM('Irr Peanuts'!$D$26:$D$27)))/$D74) -> 458.1130422
A75: 1.25 | B75: ='Irr Peanuts'!$B$9*$A75 -> 2.8125 | C75: ='Irr Peanuts'!$B$9*(1-'Irr Peanuts'!$E$9)*$A75 -> 2.109375 | D75: ='Irr Peanuts'!$B$9*'Irr Peanuts'!$E$9*$A75 -> 0.703125 | E75: =('Irr Peanuts'!$F$50+($B75-$B$73)*(SUM('Irr Peanuts'!$D$26:$D$27)))/$B75 -> 335.611982 | F75: =('Irr Peanuts'!$G$50+($C75-$C$73)*(SUM('Irr Peanuts'!$D$26:$D$27)))/$C75 -> 388.6731873 | G75: =('Irr Peanuts'!$F$64+($B75-$B$73)*(SUM('Irr Peanuts'!$D$26:$D$27)))/$B75 -> 412.8564265 | H75: =('Irr Peanuts'!$G$64+($C75-$C$73)*(SUM('Irr Peanuts'!$D$26:$D$27)))/$C75 -> 412.4954096 | I75: =IF($D75=0, "N/A", ('Irr Peanuts'!$H$64+($D75-$D$73)*(SUM('Irr Peanuts'!$D$26:$D$27)))/$D75) -> 413.9394771
A77: ='Irr Sesame'!A3:H3 -> Irrigated Sesame
E78: BE Price to Cover Variable Costs | G78: BE Price to Cover Total Costs
A79: Yield | B79: ='Irr Sesame'!C9 -> lbs | E79: Total | F79: Operator | G79: Total | H79: Operator | I79: Owner
A80: 0.75 | B80: ='Irr Sesame'!$B$9*$A80 -> 1125 | C80: ='Irr Sesame'!$B$9*(1-'Irr Sesame'!$E$9)*$A80 -> 843.75 | D80: ='Irr Sesame'!$B$9*'Irr Sesame'!$E$9*$A80 -> 281.25 | E80: =('Irr Sesame'!$F$47+($B80-$B$82)*'Irr Sesame'!$D$24)/$B80 -> 0.2507895951 | F80: =('Irr Sesame'!$G$47+($C80-$C$82)*'Irr Sesame'!$D$24)/$C80 -> 0.3158080781 | G80: =('Irr Sesame'!$F$61+($B80-$B$82)*'Irr Sesame'!$D$24)/$B80 -> 0.4190118174 | H80: =('Irr Sesame'!$G$61+($C80-$C$82)*'Irr Sesame'!$D$24)/$C80 -> 0.3753636336 | I80: =IF($D80=0, "N/A", ('Irr Sesame'!$H$61+($D80-$D$82)*'Irr Sesame'!$D$24)/$D80) -> 0.5499563685
A81: 0.9 | B81: ='Irr Sesame'!$B$9*$A81 -> 1350 | C81: ='Irr Sesame'!$B$9*(1-'Irr Sesame'!$E$9)*$A81 -> 1012.5 | D81: ='Irr Sesame'!$B$9*'Irr Sesame'!$E$9*$A81 -> 337.5 | E81: =('Irr Sesame'!$F$47+($B81-$B$82)*'Irr Sesame'!$D$24)/$B81 -> 0.2289913293 | F81: =('Irr Sesame'!$G$47+($C81-$C$82)*'Irr Sesame'!$D$24)/$C81 -> 0.2831733984 | G81: =('Irr Sesame'!$F$61+($B81-$B$82)*'Irr Sesame'!$D$24)/$B81 -> 0.3691765145 | H81: =('Irr Sesame'!$G$61+($C81-$C$82)*'Irr Sesame'!$D$24)/$C81 -> 0.332803028 | I81: =IF($D81=0, "N/A", ('Irr Sesame'!$H$61+($D81-$D$82)*'Irr Sesame'!$D$24)/$D81) -> 0.4782969737
A82: 1 | B82: ='Irr Sesame'!$B$9*$A82 -> 1500 | C82: ='Irr Sesame'!$B$9*(1-'Irr Sesame'!$E$9)*$A82 -> 1125 | D82: ='Irr Sesame'!$B$9*'Irr Sesame'!$E$9*$A82 -> 375 | E82: =('Irr Sesame'!$F$47+($B82-$B$82)*'Irr Sesame'!$D$24)/$B82 -> 0.2180921963 | F82: =('Irr Sesame'!$G$47+($C82-$C$82)*'Irr Sesame'!$D$24)/$C82 -> 0.2668560586 | G82: =('Irr Sesame'!$F$61+($B82-$B$82)*'Irr Sesame'!$D$24)/$B82 -> 0.344258863 | H82: =('Irr Sesame'!$G$61+($C82-$C$82)*'Irr Sesame'!$D$24)/$C82 -> 0.3115227252 | I82: =IF($D82=0, "N/A", ('Irr Sesame'!$H$61+($D82-$D$82)*'Irr Sesame'!$D$24)/$D82) -> 0.4424672763
A83: 1.1 | B83: ='Irr Sesame'!$B$9*$A83 -> 1650 | C83: ='Irr Sesame'!$B$9*(1-'Irr Sesame'!$E$9)*$A83 -> 1237.5 | D83: ='Irr Sesame'!$B$9*'Irr Sesame'!$E$9*$A83 -> 412.5 | E83: =('Irr Sesame'!$F$47+($B83-$B$82)*'Irr Sesame'!$D$24)/$B83 -> 0.209174724 | F83: =('Irr Sesame'!$G$47+($C83-$C$82)*'Irr Sesame'!$D$24)/$C83 -> 0.2535055078 | G83: =('Irr Sesame'!$F$61+($B83-$B$82)*'Irr Sesame'!$D$24)/$B83 -> 0.3238716936 | H83: =('Irr Sesame'!$G$61+($C83-$C$82)*'Irr Sesame'!$D$24)/$C83 -> 0.2941115684 | I83: =IF($D83=0, "N/A", ('Irr Sesame'!$H$61+($D83-$D$82)*'Irr Sesame'!$D$24)/$D83) -> 0.4131520694
A84: 1.25 | B84: ='Irr Sesame'!$B$9*$A84 -> 1875 | C84: ='Irr Sesame'!$B$9*(1-'Irr Sesame'!$E$9)*$A84 -> 1406.25 | D84: ='Irr Sesame'!$B$9*'Irr Sesame'!$E$9*$A84 -> 468.75 | E84: =('Irr Sesame'!$F$47+($B84-$B$82)*'Irr Sesame'!$D$24)/$B84 -> 0.1984737571 | F84: =('Irr Sesame'!$G$47+($C84-$C$82)*'Irr Sesame'!$D$24)/$C84 -> 0.2374848469 | G84: =('Irr Sesame'!$F$61+($B84-$B$82)*'Irr Sesame'!$D$24)/$B84 -> 0.2994070904 | H84: =('Irr Sesame'!$G$61+($C84-$C$82)*'Irr Sesame'!$D$24)/$C84 -> 0.2732181802 | I84: =IF($D84=0, "N/A", ('Irr Sesame'!$H$61+($D84-$D$82)*'Irr Sesame'!$D$24)/$D84) -> 0.3779738211
A86: ='Irr Sorghum'!A3:H3 -> Irrigated Sorghum
E87: BE Price to Cover Variable Costs | G87: BE Price to Cover Total Costs
A88: Yield | B88: ='Irr Sorghum'!C9 -> cwt | E88: Total | F88: Operator | G88: Total | H88: Operator | I88: Owner
A89: 0.75 | B89: ='Irr Sorghum'!$B$9*$A89 -> 41.25 | C89: ='Irr Sorghum'!$B$9*(1-'Irr Sorghum'!$E$9)*$A89 -> 30.9375 | D89: ='Irr Sorghum'!$B$9*'Irr Sorghum'!$E$9*$A89 -> 10.3125 | E89: =('Irr Sorghum'!$F$46-'Irr Sorghum'!$F$10+($B89-$B$91)*'Irr Sorghum'!$D$24)/$B89 -> 8.503846744 | F89: =('Irr Sorghum'!$G$46-'Irr Sorghum'!$G$10+($C89-$C$91)*'Irr Sorghum'!$D$24)/$C89 -> 9.865011512 | G89: =('Irr Sorghum'!$F$60-'Irr Sorghum'!$F$10+($B89-$B$91)*'Irr Sorghum'!$D$24)/$B89 -> 13.09172553 | H89: =('Irr Sorghum'!$G$60-'Irr Sorghum'!$G$10+($C89-$C$91)*'Irr Sorghum'!$D$24)/$C89 -> 11.48925394 | I89: =IF($D89=0, "N/A", ('Irr Sorghum'!$H$60-'Irr Sorghum'!$H$10+($D89-$D$91)*'Irr Sorghum'!$D$24)/$D89) -> 17.89914032
A90: 0.9 | B90: ='Irr Sorghum'!$B$9*$A90 -> 49.5 | C90: ='Irr Sorghum'!$B$9*(1-'Irr Sorghum'!$E$9)*$A90 -> 37.125 | D90: ='Irr Sorghum'!$B$9*'Irr Sorghum'!$E$9*$A90 -> 12.375 | E90: =('Irr Sorghum'!$F$46-'Irr Sorghum'!$F$10+($B90-$B$91)*'Irr Sorghum'!$D$24)/$B90 -> 7.186538954 | F90: =('Irr Sorghum'!$G$46-'Irr Sorghum'!$G$10+($C90-$C$91)*'Irr Sorghum'!$D$24)/$C90 -> 8.320842927 | G90: =('Irr Sorghum'!$F$60-'Irr Sorghum'!$F$10+($B90-$B$91)*'Irr Sorghum'!$D$24)/$B90 -> 11.00977128 | H90: =('Irr Sorghum'!$G$60-'Irr Sorghum'!$G$10+($C90-$C$91)*'Irr Sorghum'!$D$24)/$C90 -> 9.67437828 | I90: =IF($D90=0, "N/A", ('Irr Sorghum'!$H$60-'Irr Sorghum'!$H$10+($D90-$D$91)*'Irr Sorghum'!$D$24)/$D90) -> 15.01595027
A91: 1 | B91: ='Irr Sorghum'!$B$9*$A91 -> 55 | C91: ='Irr Sorghum'!$B$9*(1-'Irr Sorghum'!$E$9)*$A91 -> 41.25 | D91: ='Irr Sorghum'!$B$9*'Irr Sorghum'!$E$9*$A91 -> 13.75 | E91: =('Irr Sorghum'!$F$46-'Irr Sorghum'!$F$10+($B91-$B$91)*'Irr Sorghum'!$D$24)/$B91 -> 6.527885058 | F91: =('Irr Sorghum'!$G$46-'Irr Sorghum'!$G$10+($C91-$C$91)*'Irr Sorghum'!$D$24)/$C91 -> 7.548758634 | G91: =('Irr Sorghum'!$F$60-'Irr Sorghum'!$F$10+($B91-$B$91)*'Irr Sorghum'!$D$24)/$B91 -> 9.968794149 | H91: =('Irr Sorghum'!$G$60-'Irr Sorghum'!$G$10+($C91-$C$91)*'Irr Sorghum'!$D$24)/$C91 -> 8.766940452 | I91: =IF($D91=0, "N/A", ('Irr Sorghum'!$H$60-'Irr Sorghum'!$H$10+($D91-$D$91)*'Irr Sorghum'!$D$24)/$D91) -> 13.57435524
A92: 1.1 | B92: ='Irr Sorghum'!$B$9*$A92 -> 60.5 | C92: ='Irr Sorghum'!$B$9*(1-'Irr Sorghum'!$E$9)*$A92 -> 45.375 | D92: ='Irr Sorghum'!$B$9*'Irr Sorghum'!$E$9*$A92 -> 15.125 | E92: =('Irr Sorghum'!$F$46-'Irr Sorghum'!$F$10+($B92-$B$91)*'Irr Sorghum'!$D$24)/$B92 -> 5.988986417 | F92: =('Irr Sorghum'!$G$46-'Irr Sorghum'!$G$10+($C92-$C$91)*'Irr Sorghum'!$D$24)/$C92 -> 6.917053304 | G92: =('Irr Sorghum'!$F$60-'Irr Sorghum'!$F$10+($B92-$B$91)*'Irr Sorghum'!$D$24)/$B92 -> 9.11708559 | H92: =('Irr Sorghum'!$G$60-'Irr Sorghum'!$G$10+($C92-$C$91)*'Irr Sorghum'!$D$24)/$C92 -> 8.02449132 | I92: =IF($D92=0, "N/A", ('Irr Sorghum'!$H$60-'Irr Sorghum'!$H$10+($D92-$D$91)*'Irr Sorghum'!$D$24)/$D92) -> 12.3948684
A93: 1.25 | B93: ='Irr Sorghum'!$B$9*$A93 -> 68.75 | C93: ='Irr Sorghum'!$B$9*(1-'Irr Sorghum'!$E$9)*$A93 -> 51.5625 | D93: ='Irr Sorghum'!$B$9*'Irr Sorghum'!$E$9*$A93 -> 17.1875 | E93: =('Irr Sorghum'!$F$46-'Irr Sorghum'!$F$10+($B93-$B$91)*'Irr Sorghum'!$D$24)/$B93 -> 5.342308047 | F93: =('Irr Sorghum'!$G$46-'Irr Sorghum'!$G$10+($C93-$C$91)*'Irr Sorghum'!$D$24)/$C93 -> 6.159006907 | G93: =('Irr Sorghum'!$F$60-'Irr Sorghum'!$F$10+($B93-$B$91)*'Irr Sorghum'!$D$24)/$B93 -> 8.095035319 | H93: =('Irr Sorghum'!$G$60-'Irr Sorghum'!$G$10+($C93-$C$91)*'Irr Sorghum'!$D$24)/$C93 -> 7.133552362 | I93: =IF($D93=0, "N/A", ('Irr Sorghum'!$H$60-'Irr Sorghum'!$H$10+($D93-$D$91)*'Irr Sorghum'!$D$24)/$D93) -> 10.97948419
A95: ='Irr Sorghum Silage'!A3:H3 -> Irrigated Sorghum Silage
E96: BE Price to Cover Variable Costs | G96: BE Price to Cover Total Costs
A97: Yield | B97: ='Irr Sorghum Silage'!C9 -> tons | E97: Total | F97: Operator | G97: Total | H97: Operator | I97: Owner
A98: 0.75 | B98: ='Irr Sorghum Silage'!$B$9*$A98 -> 18 | C98: ='Irr Sorghum Silage'!$B$9*(1-'Irr Sorghum Silage'!$E$9)*$A98 -> 13.5 | D98: ='Irr Sorghum Silage'!$B$9*'Irr Sorghum Silage'!$E$9*$A98 -> 4.5 | E98: =('Irr Sorghum Silage'!F$45+(B98-B$100)*('Irr Sorghum Silage'!$D$23))/B98 -> 31.95011967 | F98: =('Irr Sorghum Silage'!G$45+(C98-C$100)*('Irr Sorghum Silage'!$D$23))/C98 -> 37.25556779 | G98: =('Irr Sorghum Silage'!F$59+(B98-B$100)*('Irr Sorghum Silage'!$D$23))/B98 -> 42.46400856 | H98: =('Irr Sorghum Silage'!G$59+(C98-C$100)*('Irr Sorghum Silage'!$D$23))/C98 -> 40.97779001 | I98: =IF($D98=0,"N/A",('Irr Sorghum Silage'!H$59+(D98-D$100)*('Irr Sorghum Silage'!$D$23))/D98) -> 46.9226642
A99: 0.9 | B99: ='Irr Sorghum Silage'!$B$9*$A99 -> 21.6 | C99: ='Irr Sorghum Silage'!$B$9*(1-'Irr Sorghum Silage'!$E$9)*$A99 -> 16.2 | D99: ='Irr Sorghum Silage'!$B$9*'Irr Sorghum Silage'!$E$9*$A99 -> 5.4 | E99: =('Irr Sorghum Silage'!F$45+(B99-B$100)*('Irr Sorghum Silage'!$D$23))/B99 -> 27.79176639 | F99: =('Irr Sorghum Silage'!G$45+(C99-C$100)*('Irr Sorghum Silage'!$D$23))/C99 -> 32.21297316 | G99: =('Irr Sorghum Silage'!F$59+(B99-B$100)*('Irr Sorghum Silage'!$D$23))/B99 -> 36.55334047 | H99: =('Irr Sorghum Silage'!G$59+(C99-C$100)*('Irr Sorghum Silage'!$D$23))/C99 -> 35.31482501 | I99: =IF($D99=0,"N/A",('Irr Sorghum Silage'!H$59+(D99-D$100)*('Irr Sorghum Silage'!$D$23))/D99) -> 40.26888683
A100: 1 | B100: ='Irr Sorghum Silage'!$B$9*$A100 -> 24 | C100: ='Irr Sorghum Silage'!$B$9*(1-'Irr Sorghum Silage'!$E$9)*$A100 -> 18 | D100: ='Irr Sorghum Silage'!$B$9*'Irr Sorghum Silage'!$E$9*$A100 -> 6 | E100: =('Irr Sorghum Silage'!F$45+(B100-B$100)*('Irr Sorghum Silage'!$D$23))/B100 -> 25.71258975 | F100: =('Irr Sorghum Silage'!G$45+(C100-C$100)*('Irr Sorghum Silage'!$D$23))/C100 -> 29.69167584 | G100: =('Irr Sorghum Silage'!F$59+(B100-B$100)*('Irr Sorghum Silage'!$D$23))/B100 -> 33.59800642 | H100: =('Irr Sorghum Silage'!G$59+(C100-C$100)*('Irr Sorghum Silage'!$D$23))/C100 -> 32.48334251 | I100: =IF($D100=0,"N/A",('Irr Sorghum Silage'!H$59+(D100-D$100)*('Irr Sorghum Silage'!$D$23))/D100) -> 36.94199815
A101: 1.1 | B101: ='Irr Sorghum Silage'!$B$9*$A101 -> 26.4 | C101: ='Irr Sorghum Silage'!$B$9*(1-'Irr Sorghum Silage'!$E$9)*$A101 -> 19.8 | D101: ='Irr Sorghum Silage'!$B$9*'Irr Sorghum Silage'!$E$9*$A101 -> 6.6 | E101: =('Irr Sorghum Silage'!F$45+(B101-B$100)*('Irr Sorghum Silage'!$D$23))/B101 -> 24.01144523 | F101: =('Irr Sorghum Silage'!G$45+(C101-C$100)*('Irr Sorghum Silage'!$D$23))/C101 -> 27.62879622 | G101: =('Irr Sorghum Silage'!F$59+(B101-B$100)*('Irr Sorghum Silage'!$D$23))/B101 -> 31.18000584 | H101: =('Irr Sorghum Silage'!G$59+(C101-C$100)*('Irr Sorghum Silage'!$D$23))/C101 -> 30.16667501 | I101: =IF($D101=0,"N/A",('Irr Sorghum Silage'!H$59+(D101-D$100)*('Irr Sorghum Silage'!$D$23))/D101) -> 34.21999831
A102: 1.25 | B102: ='Irr Sorghum Silage'!$B$9*$A102 -> 30 | C102: ='Irr Sorghum Silage'!$B$9*(1-'Irr Sorghum Silage'!$E$9)*$A102 -> 22.5 | D102: ='Irr Sorghum Silage'!$B$9*'Irr Sorghum Silage'!$E$9*$A102 -> 7.5 | E102: =('Irr Sorghum Silage'!F$45+(B102-B$100)*('Irr Sorghum Silage'!$D$23))/B102 -> 21.9700718 | F102: =('Irr Sorghum Silage'!G$45+(C102-C$100)*('Irr Sorghum Silage'!$D$23))/C102 -> 25.15334067 | G102: =('Irr Sorghum Silage'!F$59+(B102-B$100)*('Irr Sorghum Silage'!$D$23))/B102 -> 28.27840514 | H102: =('Irr Sorghum Silage'!G$59+(C102-C$100)*('Irr Sorghum Silage'!$D$23))/C102 -> 27.38667401 | I102: =IF($D102=0,"N/A",('Irr Sorghum Silage'!H$59+(D102-D$100)*('Irr Sorghum Silage'!$D$23))/D102) -> 30.95359852
A104: ='Irr Soybeans'!A3:H3 -> Irrigated Soybeans
E105: BE Price to Cover Variable Costs | G105: BE Price to Cover Total Costs
A106: Yield | B106: ='Irr Soybeans'!C9 -> bu | E106: Total | F106: Operator | G106: Total | H106: Operator | I106: Owner
A107: 0.75 | B107: ='Irr Soybeans'!$B$9*$A107 -> 30 | C107: ='Irr Soybeans'!$B$9*(1-'Irr Soybeans'!$E$9)*$A107 -> 22.5 | D107: ='Irr Soybeans'!$B$9*'Irr Soybeans'!$E$9*$A107 -> 7.5 | E107: =('Irr Soybeans'!F$47+(B107-B$109)*('Irr Soybeans'!$D$25))/B107 -> 13.17705622 | F107: =('Irr Soybeans'!G$47+(C107-C$109)*('Irr Soybeans'!$D$25))/C107 -> 16.29706355 | G107: =('Irr Soybeans'!F$61+(B107-B$109)*('Irr Soybeans'!$D$25))/B107 -> 19.48538955 | H107: =('Irr Soybeans'!G$61+(C107-C$109)*('Irr Soybeans'!$D$25))/C107 -> 18.53039688 | I107: =IF($D107=0,"N/A",('Irr Soybeans'!H$61+(D107-D$109)*('Irr Soybeans'!$D$25))/D107) -> 22.35036755
A108: 0.9 | B108: ='Irr Soybeans'!$B$9*$A108 -> 36 | C108: ='Irr Soybeans'!$B$9*(1-'Irr Soybeans'!$E$9)*$A108 -> 27 | D108: ='Irr Soybeans'!$B$9*'Irr Soybeans'!$E$9*$A108 -> 9 | E108: =('Irr Soybeans'!F$47+(B108-B$109)*('Irr Soybeans'!$D$25))/B108 -> 11.06421351 | F108: =('Irr Soybeans'!G$47+(C108-C$109)*('Irr Soybeans'!$D$25))/C108 -> 13.66421962 | G108: =('Irr Soybeans'!F$61+(B108-B$109)*('Irr Soybeans'!$D$25))/B108 -> 16.32115796 | H108: =('Irr Soybeans'!G$61+(C108-C$109)*('Irr Soybeans'!$D$25))/C108 -> 15.52533074 | I108: =IF($D108=0,"N/A",('Irr Soybeans'!H$61+(D108-D$109)*('Irr Soybeans'!$D$25))/D108) -> 18.70863962
A109: 1 | B109: ='Irr Soybeans'!$B$9*$A109 -> 40 | C109: ='Irr Soybeans'!$B$9*(1-'Irr Soybeans'!$E$9)*$A109 -> 30 | D109: ='Irr Soybeans'!$B$9*'Irr Soybeans'!$E$9*$A109 -> 10 | E109: =('Irr Soybeans'!F$47+(B109-B$109)*('Irr Soybeans'!$D$25))/B109 -> 10.00779216 | F109: =('Irr Soybeans'!G$47+(C109-C$109)*('Irr Soybeans'!$D$25))/C109 -> 12.34779766 | G109: =('Irr Soybeans'!F$61+(B109-B$109)*('Irr Soybeans'!$D$25))/B109 -> 14.73904216 | H109: =('Irr Soybeans'!G$61+(C109-C$109)*('Irr Soybeans'!$D$25))/C109 -> 14.02279766 | I109: =IF($D109=0,"N/A",('Irr Soybeans'!H$61+(D109-D$109)*('Irr Soybeans'!$D$25))/D109) -> 16.88777566
A110: 1.1 | B110: ='Irr Soybeans'!$B$9*$A110 -> 44 | C110: ='Irr Soybeans'!$B$9*(1-'Irr Soybeans'!$E$9)*$A110 -> 33 | D110: ='Irr Soybeans'!$B$9*'Irr Soybeans'!$E$9*$A110 -> 11 | E110: =('Irr Soybeans'!F$47+(B110-B$109)*('Irr Soybeans'!$D$25))/B110 -> 9.14344742 | F110: =('Irr Soybeans'!G$47+(C110-C$109)*('Irr Soybeans'!$D$25))/C110 -> 11.27072515 | G110: =('Irr Soybeans'!F$61+(B110-B$109)*('Irr Soybeans'!$D$25))/B110 -> 13.44458378 | H110: =('Irr Soybeans'!G$61+(C110-C$109)*('Irr Soybeans'!$D$25))/C110 -> 12.79345242 | I110: =IF($D110=0,"N/A",('Irr Soybeans'!H$61+(D110-D$109)*('Irr Soybeans'!$D$25))/D110) -> 15.39797787
A111: 1.25 | B111: ='Irr Soybeans'!$B$9*$A111 -> 50 | C111: ='Irr Soybeans'!$B$9*(1-'Irr Soybeans'!$E$9)*$A111 -> 37.5 | D111: ='Irr Soybeans'!$B$9*'Irr Soybeans'!$E$9*$A111 -> 12.5 | E111: =('Irr Soybeans'!F$47+(B111-B$109)*('Irr Soybeans'!$D$25))/B111 -> 8.106233729 | F111: =('Irr Soybeans'!G$47+(C111-C$109)*('Irr Soybeans'!$D$25))/C111 -> 9.978238129 | G111: =('Irr Soybeans'!F$61+(B111-B$109)*('Irr Soybeans'!$D$25))/B111 -> 11.89123373 | H111: =('Irr Soybeans'!G$61+(C111-C$109)*('Irr Soybeans'!$D$25))/C111 -> 11.31823813 | I111: =IF($D111=0,"N/A",('Irr Soybeans'!H$61+(D111-D$109)*('Irr Soybeans'!$D$25))/D111) -> 13.61022053
A113: ='Irr Sunflowers-Confection'!A3:H3 -> Irrigated Sunflowers-Confectionary
E114: BE Price to Cover Variable Costs | G114: BE Price to Cover Total Costs
A115: Yield | B115: ='Irr Sunflowers-Confection'!C9 -> lbs | E115: Total | F115: Operator | G115: Total | H115: Operator | I115: Owner
A116: 0.75 | B116: ='Irr Sunflowers-Confection'!$B$9*$A116 -> 1500 | C116: ='Irr Sunflowers-Confection'!$B$9*(1-'Irr Sunflowers-Confection'!$E$9)*$A116 -> 1125 | D116: ='Irr Sunflowers-Confection'!$B$9*'Irr Sunflowers-Confection'!$E$9*$A116 -> 375 | E116: =('Irr Sunflowers-Confection'!F$47+(B116-B$118)*('Irr Sunflowers-Confection'!$D$24))/B116 -> 0.1149505319 | F116: =('Irr Sunflowers-Confection'!G$47+(C116-C$118)*('Irr Sunflowers-Confection'!$D$24))/C116 -> 0.149140123 | G116: =('Irr Sunflowers-Confection'!F$61+(B116-B$118)*('Irr Sunflowers-Confection'!$D$24))/B116 -> 0.2411171986 | H116: =('Irr Sunflowers-Confection'!G$61+(C116-C$118)*('Irr Sunflowers-Confection'!$D$24))/C116 -> 0.1938067897 | I116: =IF($D116=0, "N/A", ('Irr Sunflowers-Confection'!H$61+(D116-D$118)*('Irr Sunflowers-Confection'!$D$24))/D116) -> 0.3830484252
A117: 0.9 | B117: ='Irr Sunflowers-Confection'!$B$9*$A117 -> 1800 | C117: ='Irr Sunflowers-Confection'!$B$9*(1-'Irr Sunflowers-Confection'!$E$9)*$A117 -> 1350 | D117: ='Irr Sunflowers-Confection'!$B$9*'Irr Sunflowers-Confection'!$E$9*$A117 -> 450 | E117: =('Irr Sunflowers-Confection'!F$47+(B117-B$118)*('Irr Sunflowers-Confection'!$D$24))/B117 -> 0.1457921099 | F117: =('Irr Sunflowers-Confection'!G$47+(C117-C$118)*('Irr Sunflowers-Confection'!$D$24))/C117 -> 0.1742834359 | G117: =('Irr Sunflowers-Confection'!F$61+(B117-B$118)*('Irr Sunflowers-Confection'!$D$24))/B117 -> 0.2509309988 | H117: =('Irr Sunflowers-Confection'!G$61+(C117-C$118)*('Irr Sunflowers-Confection'!$D$24))/C117 -> 0.2115056581 | I117: =IF($D117=0, "N/A", ('Irr Sunflowers-Confection'!H$61+(D117-D$118)*('Irr Sunflowers-Confection'!$D$24))/D117) -> 0.369207021
A118: 1 | B118: ='Irr Sunflowers-Confection'!$B$9*$A118 -> 2000 | C118: ='Irr Sunflowers-Confection'!$B$9*(1-'Irr Sunflowers-Confection'!$E$9)*$A118 -> 1500 | D118: ='Irr Sunflowers-Confection'!$B$9*'Irr Sunflowers-Confection'!$E$9*$A118 -> 500 | E118: =('Irr Sunflowers-Confection'!F$47+(B118-B$118)*('Irr Sunflowers-Confection'!$D$24))/B118 -> 0.1612128989 | F118: =('Irr Sunflowers-Confection'!G$47+(C118-C$118)*('Irr Sunflowers-Confection'!$D$24))/C118 -> 0.1868550923 | G118: =('Irr Sunflowers-Confection'!F$61+(B118-B$118)*('Irr Sunflowers-Confection'!$D$24))/B118 -> 0.2558378989 | H118: =('Irr Sunflowers-Confection'!G$61+(C118-C$118)*('Irr Sunflowers-Confection'!$D$24))/C118 -> 0.2203550923 | I118: =IF($D118=0, "N/A", ('Irr Sunflowers-Confection'!H$61+(D118-D$118)*('Irr Sunflowers-Confection'!$D$24))/D118) -> 0.3622863189
A119: 1.1 | B119: ='Irr Sunflowers-Confection'!$B$9*$A119 -> 2200 | C119: ='Irr Sunflowers-Confection'!$B$9*(1-'Irr Sunflowers-Confection'!$E$9)*$A119 -> 1650 | D119: ='Irr Sunflowers-Confection'!$B$9*'Irr Sunflowers-Confection'!$E$9*$A119 -> 550 | E119: =('Irr Sunflowers-Confection'!F$47+(B119-B$118)*('Irr Sunflowers-Confection'!$D$24))/B119 -> 0.1738299081 | F119: =('Irr Sunflowers-Confection'!G$47+(C119-C$118)*('Irr Sunflowers-Confection'!$D$24))/C119 -> 0.197140993 | G119: =('Irr Sunflowers-Confection'!F$61+(B119-B$118)*('Irr Sunflowers-Confection'!$D$24))/B119 -> 0.2598526354 | H119: =('Irr Sunflowers-Confection'!G$61+(C119-C$118)*('Irr Sunflowers-Confection'!$D$24))/C119 -> 0.2275955384 | I119: =IF($D119=0, "N/A", ('Irr Sunflowers-Confection'!H$61+(D119-D$118)*('Irr Sunflowers-Confection'!$D$24))/D119) -> 0.3566239263
A120: 1.25 | B120: ='Irr Sunflowers-Confection'!$B$9*$A120 -> 2500 | C120: ='Irr Sunflowers-Confection'!$B$9*(1-'Irr Sunflowers-Confection'!$E$9)*$A120 -> 1875 | D120: ='Irr Sunflowers-Confection'!$B$9*'Irr Sunflowers-Confection'!$E$9*$A120 -> 625 | E120: =('Irr Sunflowers-Confection'!F$47+(B120-B$118)*('Irr Sunflowers-Confection'!$D$24))/B120 -> 0.1889703191 | F120: =('Irr Sunflowers-Confection'!G$47+(C120-C$118)*('Irr Sunflowers-Confection'!$D$24))/C120 -> 0.2094840738 | G120: =('Irr Sunflowers-Confection'!F$61+(B120-B$118)*('Irr Sunflowers-Confection'!$D$24))/B120 -> 0.2646703191 | H120: =('Irr Sunflowers-Confection'!G$61+(C120-C$118)*('Irr Sunflowers-Confection'!$D$24))/C120 -> 0.2362840738 | I120: =IF($D120=0, "N/A", ('Irr Sunflowers-Confection'!H$61+(D120-D$118)*('Irr Sunflowers-Confection'!$D$24))/D120) -> 0.3498290551
A122: ='Irr Sunflowers-Oilseed'!A3:H3 -> Irrigated Sunflowers-Oilseed
E123: BE Price to Cover Variable Costs | G123: BE Price to Cover Total Costs
A124: Yield | B124: ='Irr Sunflowers-Oilseed'!C9 -> lbs | E124: Total | F124: Operator | G124: Total | H124: Operator | I124: Owner
A125: 0.75 | B125: ='Irr Sunflowers-Oilseed'!$B$9*$A125 -> 1500 | C125: ='Irr Sunflowers-Oilseed'!$B$9*(1-'Irr Sunflowers-Oilseed'!$E$9)*$A125 -> 1125 | D125: ='Irr Sunflowers-Oilseed'!$B$9*'Irr Sunflowers-Oilseed'!$E$9*$A125 -> 375 | E125: =('Irr Sunflowers-Oilseed'!F$46+(B125-B$127)*('Irr Sunflowers-Oilseed'!$D$23))/B125 -> 0.1035381319 | F125: =('Irr Sunflowers-Oilseed'!G$46+(C125-C$127)*('Irr Sunflowers-Oilseed'!$D$23))/C125 -> 0.1449949452 | G125: =('Irr Sunflowers-Oilseed'!F$60+(B125-B$127)*('Irr Sunflowers-Oilseed'!$D$23))/B125 -> 0.2297047986 | H125: =('Irr Sunflowers-Oilseed'!G$60+(C125-C$127)*('Irr Sunflowers-Oilseed'!$D$23))/C125 -> 0.1896616119 | I125: =IF($D125=0, "N/A", ('Irr Sunflowers-Oilseed'!H$60+(D125-D$127)*('Irr Sunflowers-Oilseed'!$D$23))/D125) -> 0.3498343586
A126: 0.9 | B126: ='Irr Sunflowers-Oilseed'!$B$9*$A126 -> 1800 | C126: ='Irr Sunflowers-Oilseed'!$B$9*(1-'Irr Sunflowers-Oilseed'!$E$9)*$A126 -> 1350 | D126: ='Irr Sunflowers-Oilseed'!$B$9*'Irr Sunflowers-Oilseed'!$E$9*$A126 -> 450 | E126: =('Irr Sunflowers-Oilseed'!F$46+(B126-B$127)*('Irr Sunflowers-Oilseed'!$D$23))/B126 -> 0.1362817766 | F126: =('Irr Sunflowers-Oilseed'!G$46+(C126-C$127)*('Irr Sunflowers-Oilseed'!$D$23))/C126 -> 0.170829121 | G126: =('Irr Sunflowers-Oilseed'!F$60+(B126-B$127)*('Irr Sunflowers-Oilseed'!$D$23))/B126 -> 0.2414206655 | H126: =('Irr Sunflowers-Oilseed'!G$60+(C126-C$127)*('Irr Sunflowers-Oilseed'!$D$23))/C126 -> 0.2080513433 | I126: =IF($D126=0, "N/A", ('Irr Sunflowers-Oilseed'!H$60+(D126-D$127)*('Irr Sunflowers-Oilseed'!$D$23))/D126) -> 0.3415286321
A127: 1 | B127: ='Irr Sunflowers-Oilseed'!$B$9*$A127 -> 2000 | C127: ='Irr Sunflowers-Oilseed'!$B$9*(1-'Irr Sunflowers-Oilseed'!$E$9)*$A127 -> 1500 | D127: ='Irr Sunflowers-Oilseed'!$B$9*'Irr Sunflowers-Oilseed'!$E$9*$A127 -> 500 | E127: =('Irr Sunflowers-Oilseed'!F$46+(B127-B$127)*('Irr Sunflowers-Oilseed'!$D$23))/B127 -> 0.1526535989 | F127: =('Irr Sunflowers-Oilseed'!G$46+(C127-C$127)*('Irr Sunflowers-Oilseed'!$D$23))/C127 -> 0.1837462089 | G127: =('Irr Sunflowers-Oilseed'!F$60+(B127-B$127)*('Irr Sunflowers-Oilseed'!$D$23))/B127 -> 0.2472785989 | H127: =('Irr Sunflowers-Oilseed'!G$60+(C127-C$127)*('Irr Sunflowers-Oilseed'!$D$23))/C127 -> 0.2172462089 | I127: =IF($D127=0, "N/A", ('Irr Sunflowers-Oilseed'!H$60+(D127-D$127)*('Irr Sunflowers-Oilseed'!$D$23))/D127) -> 0.3373757689
A128: 1.1 | B128: ='Irr Sunflowers-Oilseed'!$B$9*$A128 -> 2200 | C128: ='Irr Sunflowers-Oilseed'!$B$9*(1-'Irr Sunflowers-Oilseed'!$E$9)*$A128 -> 1650 | D128: ='Irr Sunflowers-Oilseed'!$B$9*'Irr Sunflowers-Oilseed'!$E$9*$A128 -> 550 | E128: =('Irr Sunflowers-Oilseed'!F$46+(B128-B$127)*('Irr Sunflowers-Oilseed'!$D$23))/B128 -> 0.1660487263 | F128: =('Irr Sunflowers-Oilseed'!G$46+(C128-C$127)*('Irr Sunflowers-Oilseed'!$D$23))/C128 -> 0.1943147354 | G128: =('Irr Sunflowers-Oilseed'!F$60+(B128-B$127)*('Irr Sunflowers-Oilseed'!$D$23))/B128 -> 0.2520714536 | H128: =('Irr Sunflowers-Oilseed'!G$60+(C128-C$127)*('Irr Sunflowers-Oilseed'!$D$23))/C128 -> 0.2247692808 | I128: =IF($D128=0, "N/A", ('Irr Sunflowers-Oilseed'!H$60+(D128-D$127)*('Irr Sunflowers-Oilseed'!$D$23))/D128) -> 0.3339779718
A129: 1.25 | B129: ='Irr Sunflowers-Oilseed'!$B$9*$A129 -> 2500 | C129: ='Irr Sunflowers-Oilseed'!$B$9*(1-'Irr Sunflowers-Oilseed'!$E$9)*$A129 -> 1875 | D129: ='Irr Sunflowers-Oilseed'!$B$9*'Irr Sunflowers-Oilseed'!$E$9*$A129 -> 625 | E129: =('Irr Sunflowers-Oilseed'!F$46+(B129-B$127)*('Irr Sunflowers-Oilseed'!$D$23))/B129 -> 0.1821228791 | F129: =('Irr Sunflowers-Oilseed'!G$46+(C129-C$127)*('Irr Sunflowers-Oilseed'!$D$23))/C129 -> 0.2069969671 | G129: =('Irr Sunflowers-Oilseed'!F$60+(B129-B$127)*('Irr Sunflowers-Oilseed'!$D$23))/B129 -> 0.2578228791 | H129: =('Irr Sunflowers-Oilseed'!G$60+(C129-C$127)*('Irr Sunflowers-Oilseed'!$D$23))/C129 -> 0.2337969671 | I129: =IF($D129=0, "N/A", ('Irr Sunflowers-Oilseed'!H$60+(D129-D$127)*('Irr Sunflowers-Oilseed'!$D$23))/D129) -> 0.3299006151
A131: ='Irr Wheat'!A3:H3 -> Irrigated Wheat
E132: BE Price to Cover Variable Costs | G132: BE Price to Cover Total Costs
A133: Yield | B133: ='Irr Wheat'!C9 -> bu | E133: Total | F133: Operator | G133: Total | H133: Operator | I133: Owner
A134: 0.75 | B134: ='Irr Wheat'!$B$9*$A134 -> 45 | C134: ='Irr Wheat'!$B$9*(1-'Irr Wheat'!$E$9)*$A134 -> 33.75 | D134: ='Irr Wheat'!$B$9*'Irr Wheat'!$E$9*$A134 -> 11.25 | E134: =('Irr Wheat'!$F$45-'Irr Wheat'!$F$10+($B134-$B$136)*'Irr Wheat'!$D$24)/$B134 -> 7.778087985 | F134: =('Irr Wheat'!$G$45-'Irr Wheat'!$G$10+($C134-$C$136)*'Irr Wheat'!$D$24)/$C134 -> 9.497013022 | G134: =('Irr Wheat'!$F$59-'Irr Wheat'!$F$10+($B134-$B$136)*'Irr Wheat'!$D$24)/$B134 -> 11.98364354 | H134: =('Irr Wheat'!$G$59-'Irr Wheat'!$G$10+($C134-$C$136)*'Irr Wheat'!$D$24)/$C134 -> 10.98590191 | I134: =IF($D134=0, "N/A", ('Irr Wheat'!$H$59-'Irr Wheat'!$H$10+($D134-$D$136)*'Irr Wheat'!$D$24)/$D134) -> 14.97686843
A135: 0.9 | B135: ='Irr Wheat'!$B$9*$A135 -> 54 | C135: ='Irr Wheat'!$B$9*(1-'Irr Wheat'!$E$9)*$A135 -> 40.5 | D135: ='Irr Wheat'!$B$9*'Irr Wheat'!$E$9*$A135 -> 13.5 | E135: =('Irr Wheat'!$F$45-'Irr Wheat'!$F$10+($B135-$B$136)*'Irr Wheat'!$D$24)/$B135 -> 6.565073321 | F135: =('Irr Wheat'!$G$45-'Irr Wheat'!$G$10+($C135-$C$136)*'Irr Wheat'!$D$24)/$C135 -> 7.997510851 | G135: =('Irr Wheat'!$F$59-'Irr Wheat'!$F$10+($B135-$B$136)*'Irr Wheat'!$D$24)/$B135 -> 10.06970295 | H135: =('Irr Wheat'!$G$59-'Irr Wheat'!$G$10+($C135-$C$136)*'Irr Wheat'!$D$24)/$C135 -> 9.238251592 | I135: =IF($D135=0, "N/A", ('Irr Wheat'!$H$59-'Irr Wheat'!$H$10+($D135-$D$136)*'Irr Wheat'!$D$24)/$D135) -> 12.56405702
A136: 1 | B136: ='Irr Wheat'!$B$9*$A136 -> 60 | C136: ='Irr Wheat'!$B$9*(1-'Irr Wheat'!$E$9)*$A136 -> 45 | D136: ='Irr Wheat'!$B$9*'Irr Wheat'!$E$9*$A136 -> 15 | E136: =('Irr Wheat'!$F$45-'Irr Wheat'!$F$10+($B136-$B$136)*'Irr Wheat'!$D$24)/$B136 -> 5.958565989 | F136: =('Irr Wheat'!$G$45-'Irr Wheat'!$G$10+($C136-$C$136)*'Irr Wheat'!$D$24)/$C136 -> 7.247759766 | G136: =('Irr Wheat'!$F$59-'Irr Wheat'!$F$10+($B136-$B$136)*'Irr Wheat'!$D$24)/$B136 -> 9.112732655 | H136: =('Irr Wheat'!$G$59-'Irr Wheat'!$G$10+($C136-$C$136)*'Irr Wheat'!$D$24)/$C136 -> 8.364426433 | I136: =IF($D136=0, "N/A", ('Irr Wheat'!$H$59-'Irr Wheat'!$H$10+($D136-$D$136)*'Irr Wheat'!$D$24)/$D136) -> 11.35765132
A137: 1.1 | B137: ='Irr Wheat'!$B$9*$A137 -> 66 | C137: ='Irr Wheat'!$B$9*(1-'Irr Wheat'!$E$9)*$A137 -> 49.5 | D137: ='Irr Wheat'!$B$9*'Irr Wheat'!$E$9*$A137 -> 16.5 | E137: =('Irr Wheat'!$F$45-'Irr Wheat'!$F$10+($B137-$B$136)*'Irr Wheat'!$D$24)/$B137 -> 5.462332717 | F137: =('Irr Wheat'!$G$45-'Irr Wheat'!$G$10+($C137-$C$136)*'Irr Wheat'!$D$24)/$C137 -> 6.63432706 | G137: =('Irr Wheat'!$F$59-'Irr Wheat'!$F$10+($B137-$B$136)*'Irr Wheat'!$D$24)/$B137 -> 8.329756959 | H137: =('Irr Wheat'!$G$59-'Irr Wheat'!$G$10+($C137-$C$136)*'Irr Wheat'!$D$24)/$C137 -> 7.649478575 | I137: =IF($D137=0, "N/A", ('Irr Wheat'!$H$59-'Irr Wheat'!$H$10+($D137-$D$136)*'Irr Wheat'!$D$24)/$D137) -> 10.37059211
A138: 1.25 | B138: ='Irr Wheat'!$B$9*$A138 -> 75 | C138: ='Irr Wheat'!$B$9*(1-'Irr Wheat'!$E$9)*$A138 -> 56.25 | D138: ='Irr Wheat'!$B$9*'Irr Wheat'!$E$9*$A138 -> 18.75 | E138: =('Irr Wheat'!$F$45-'Irr Wheat'!$F$10+($B138-$B$136)*'Irr Wheat'!$D$24)/$B138 -> 4.866852791 | F138: =('Irr Wheat'!$G$45-'Irr Wheat'!$G$10+($C138-$C$136)*'Irr Wheat'!$D$24)/$C138 -> 5.898207813 | G138: =('Irr Wheat'!$F$59-'Irr Wheat'!$F$10+($B138-$B$136)*'Irr Wheat'!$D$24)/$B138 -> 7.390186124 | H138: =('Irr Wheat'!$G$59-'Irr Wheat'!$G$10+($C138-$C$136)*'Irr Wheat'!$D$24)/$C138 -> 6.791541146 | I138: =IF($D138=0, "N/A", ('Irr Wheat'!$H$59-'Irr Wheat'!$H$10+($D138-$D$136)*'Irr Wheat'!$D$24)/$D138) -> 9.186121058
A140: ='Dry Cotton Conventional'!A3:H3 -> Dryland Cotton - Conventional
E141: BE Price to Cover Variable Costs | G141: BE Price to Cover Total Costs
A142: Yield | B142: ='Dry Cotton Conventional'!C9 -> lbs | E142: Total | F142: Operator | G142: Total | H142: Operator | I142: Owner
A143: 0.75 | B143: ='Dry Cotton Conventional'!$B$9*$A143 -> 281.25 | C143: ='Dry Cotton Conventional'!$B$9*(1-'Dry Cotton Conventional'!$E$9)*$A143 -> 210.9375 | D143: ='Dry Cotton Conventional'!$B$9*'Dry Cotton Conventional'!$E$9*$A143 -> 70.3125 | E143: =('Dry Cotton Conventional'!F$45-B143/500*'2017 Universal Input Prices'!$C$40/2000*Cottonseed_Price+(B143-B$145)*'Dry Cotton Conventional'!$D$28+(B143-B$145)/'Dry Cotton Conventional'!$B$11/100*'Dry Cotton Conventional'!$D$29)/B143 -> 0.8482565622 | F143: =('Dry Cotton Conventional'!G$45-C143/500*'2017 Universal Input Prices'!$C$40/2000*Cottonseed_Price+(C143-C$145)*'Dry Cotton Conventional'!$D$28+(C143-C$145)/'Dry Cotton Conventional'!$B$11/100*'Dry Cotton Conventional'!$D$29)/C143 -> 1.062858162 | G143: =('Dry Cotton Conventional'!F$57-B143/500*'2017 Universal Input Prices'!$C$40/2000*Cottonseed_Price+(B143-B$145)*'Dry Cotton Conventional'!$D$28+(B143-B$145)/'Dry Cotton Conventional'!$B$11/100*'Dry Cotton Conventional'!$D$29)/B143 -> 1.215367673 | H143: =('Dry Cotton Conventional'!G$57-C143/500*'2017 Universal Input Prices'!$C$40/2000*Cottonseed_Price+(C143-C$145)*'Dry Cotton Conventional'!$D$28+(C143-C$145)/'Dry Cotton Conventional'!$B$11/100*'Dry Cotton Conventional'!$D$29)/C143 -> 1.301080384 | I143: =IF($D143=0,"N/A",('Dry Cotton Conventional'!H$57-D143/500*'2017 Universal Input Prices'!$C$40/2000*Cottonseed_Price+(D143-D$145)*'Dry Cotton Conventional'!$D$28+(D143-D$145)/'Dry Cotton Conventional'!$B$11/100*'Dry Cotton Conventional'!$D$29)/D143) -> 0.95822954
A144: 0.9 | B144: ='Dry Cotton Conventional'!$B$9*$A144 -> 337.5 | C144: ='Dry Cotton Conventional'!$B$9*(1-'Dry Cotton Conventional'!$E$9)*$A144 -> 253.125 | D144: ='Dry Cotton Conventional'!$B$9*'Dry Cotton Conventional'!$E$9*$A144 -> 84.375 | E144: =('Dry Cotton Conventional'!F$45-B144/500*'2017 Universal Input Prices'!$C$40/2000*Cottonseed_Price+(B144-B$145)*'Dry Cotton Conventional'!$D$28+(B144-B$145)/'Dry Cotton Conventional'!$B$11/100*'Dry Cotton Conventional'!$D$29)/B144 -> 0.7151368787 | F144: =('Dry Cotton Conventional'!G$45-C144/500*'2017 Universal Input Prices'!$C$40/2000*Cottonseed_Price+(C144-C$145)*'Dry Cotton Conventional'!$D$28+(C144-C$145)/'Dry Cotton Conventional'!$B$11/100*'Dry Cotton Conventional'!$D$29)/C144 -> 0.8939715454 | G144: =('Dry Cotton Conventional'!F$57-B144/500*'2017 Universal Input Prices'!$C$40/2000*Cottonseed_Price+(B144-B$145)*'Dry Cotton Conventional'!$D$28+(B144-B$145)/'Dry Cotton Conventional'!$B$11/100*'Dry Cotton Conventional'!$D$29)/B144 -> 1.021062805 | H144: =('Dry Cotton Conventional'!G$57-C144/500*'2017 Universal Input Prices'!$C$40/2000*Cottonseed_Price+(C144-C$145)*'Dry Cotton Conventional'!$D$28+(C144-C$145)/'Dry Cotton Conventional'!$B$11/100*'Dry Cotton Conventional'!$D$29)/C144 -> 1.092490064 | I144: =IF($D144=0,"N/A",('Dry Cotton Conventional'!H$57-D144/500*'2017 Universal Input Prices'!$C$40/2000*Cottonseed_Price+(D144-D$145)*'Dry Cotton Conventional'!$D$28+(D144-D$145)/'Dry Cotton Conventional'!$B$11/100*'Dry Cotton Conventional'!$D$29)/D144) -> 0.8067810269
A145: 1 | B145: ='Dry Cotton Conventional'!$B$9*$A145 -> 375 | C145: ='Dry Cotton Conventional'!$B$9*(1-'Dry Cotton Conventional'!$E$9)*$A145 -> 281.25 | D145: ='Dry Cotton Conventional'!$B$9*'Dry Cotton Conventional'!$E$9*$A145 -> 93.75 | E145: =('Dry Cotton Conventional'!F$45-B145/500*'2017 Universal Input Prices'!$C$40/2000*Cottonseed_Price+(B145-B$145)*'Dry Cotton Conventional'!$D$28+(B145-B$145)/'Dry Cotton Conventional'!$B$11/100*'Dry Cotton Conventional'!$D$29)/B145 -> 0.648577037 | F145: =('Dry Cotton Conventional'!G$45-C145/500*'2017 Universal Input Prices'!$C$40/2000*Cottonseed_Price+(C145-C$145)*'Dry Cotton Conventional'!$D$28+(C145-C$145)/'Dry Cotton Conventional'!$B$11/100*'Dry Cotton Conventional'!$D$29)/C145 -> 0.809528237 | G145: =('Dry Cotton Conventional'!F$57-B145/500*'2017 Universal Input Prices'!$C$40/2000*Cottonseed_Price+(B145-B$145)*'Dry Cotton Conventional'!$D$28+(B145-B$145)/'Dry Cotton Conventional'!$B$11/100*'Dry Cotton Conventional'!$D$29)/B145 -> 0.9239103704 | H145: =('Dry Cotton Conventional'!G$57-C145/500*'2017 Universal Input Prices'!$C$40/2000*Cottonseed_Price+(C145-C$145)*'Dry Cotton Conventional'!$D$28+(C145-C$145)/'Dry Cotton Conventional'!$B$11/100*'Dry Cotton Conventional'!$D$29)/C145 -> 0.9881949037 | I145: =IF($D145=0,"N/A",('Dry Cotton Conventional'!H$57-D145/500*'2017 Universal Input Prices'!$C$40/2000*Cottonseed_Price+(D145-D$145)*'Dry Cotton Conventional'!$D$28+(D145-D$145)/'Dry Cotton Conventional'!$B$11/100*'Dry Cotton Conventional'!$D$29)/D145) -> 0.7310567704
A146: 1.1 | B146: ='Dry Cotton Conventional'!$B$9*$A146 -> 412.5 | C146: ='Dry Cotton Conventional'!$B$9*(1-'Dry Cotton Conventional'!$E$9)*$A146 -> 309.375 | D146: ='Dry Cotton Conventional'!$B$9*'Dry Cotton Conventional'!$E$9*$A146 -> 103.125 | E146: =('Dry Cotton Conventional'!F$45-B146/500*'2017 Universal Input Prices'!$C$40/2000*Cottonseed_Price+(B146-B$145)*'Dry Cotton Conventional'!$D$28+(B146-B$145)/'Dry Cotton Conventional'!$B$11/100*'Dry Cotton Conventional'!$D$29)/B146 -> 0.5941189847 | F146: =('Dry Cotton Conventional'!G$45-C146/500*'2017 Universal Input Prices'!$C$40/2000*Cottonseed_Price+(C146-C$145)*'Dry Cotton Conventional'!$D$28+(C146-C$145)/'Dry Cotton Conventional'!$B$11/100*'Dry Cotton Conventional'!$D$29)/C146 -> 0.7404382574 | G146: =('Dry Cotton Conventional'!F$57-B146/500*'2017 Universal Input Prices'!$C$40/2000*Cottonseed_Price+(B146-B$145)*'Dry Cotton Conventional'!$D$28+(B146-B$145)/'Dry Cotton Conventional'!$B$11/100*'Dry Cotton Conventional'!$D$29)/B146 -> 0.844422015 | H146: =('Dry Cotton Conventional'!G$57-C146/500*'2017 Universal Input Prices'!$C$40/2000*Cottonseed_Price+(C146-C$145)*'Dry Cotton Conventional'!$D$28+(C146-C$145)/'Dry Cotton Conventional'!$B$11/100*'Dry Cotton Conventional'!$D$29)/C146 -> 0.9028624999 | I146: =IF($D146=0,"N/A",('Dry Cotton Conventional'!H$57-D146/500*'2017 Universal Input Prices'!$C$40/2000*Cottonseed_Price+(D146-D$145)*'Dry Cotton Conventional'!$D$28+(D146-D$145)/'Dry Cotton Conventional'!$B$11/100*'Dry Cotton Conventional'!$D$29)/D146) -> 0.6691005605
A147: 1.25 | B147: ='Dry Cotton Conventional'!$B$9*$A147 -> 468.75 | C147: ='Dry Cotton Conventional'!$B$9*(1-'Dry Cotton Conventional'!$E$9)*$A147 -> 351.5625 | D147: ='Dry Cotton Conventional'!$B$9*'Dry Cotton Conventional'!$E$9*$A147 -> 117.1875 | E147: =('Dry Cotton Conventional'!F$45-B147/500*'2017 Universal Input Prices'!$C$40/2000*Cottonseed_Price+(B147-B$145)*'Dry Cotton Conventional'!$D$28+(B147-B$145)/'Dry Cotton Conventional'!$B$11/100*'Dry Cotton Conventional'!$D$29)/B147 -> 0.5287693219 | F147: =('Dry Cotton Conventional'!G$45-C147/500*'2017 Universal Input Prices'!$C$40/2000*Cottonseed_Price+(C147-C$145)*'Dry Cotton Conventional'!$D$28+(C147-C$145)/'Dry Cotton Conventional'!$B$11/100*'Dry Cotton Conventional'!$D$29)/C147 -> 0.6575302819 | G147: =('Dry Cotton Conventional'!F$57-B147/500*'2017 Universal Input Prices'!$C$40/2000*Cottonseed_Price+(B147-B$145)*'Dry Cotton Conventional'!$D$28+(B147-B$145)/'Dry Cotton Conventional'!$B$11/100*'Dry Cotton Conventional'!$D$29)/B147 -> 0.7490359886 | H147: =('Dry Cotton Conventional'!G$57-C147/500*'2017 Universal Input Prices'!$C$40/2000*Cottonseed_Price+(C147-C$145)*'Dry Cotton Conventional'!$D$28+(C147-C$145)/'Dry Cotton Conventional'!$B$11/100*'Dry Cotton Conventional'!$D$29)/C147 -> 0.8004636153 | I147: =IF($D147=0,"N/A",('Dry Cotton Conventional'!H$57-D147/500*'2017 Universal Input Prices'!$C$40/2000*Cottonseed_Price+(D147-D$145)*'Dry Cotton Conventional'!$D$28+(D147-D$145)/'Dry Cotton Conventional'!$B$11/100*'Dry Cotton Conventional'!$D$29)/D147) -> 0.5947531086
A149: ='Dry Cotton HT'!$A$3:$H$3 -> Dryland Cotton - Herbicide Tolerant
E150: BE Price to Cover Variable Costs | G150: BE Price to Cover Total Costs
A151: Yield | B151: ='Dry Cotton HT'!C9 -> lbs | E151: Total | F151: Operator | G151: Total | H151: Operator | I151: Owner
A152: 0.75 | B152: ='Dry Cotton HT'!$B$9*$A152 -> 281.25 | C152: ='Dry Cotton HT'!$B$9*(1-'Dry Cotton HT'!$E$9)*$A152 -> 210.9375 | D152: ='Dry Cotton HT'!$B$9*'Dry Cotton HT'!$E$9*$A152 -> 70.3125 | E152: =('Dry Cotton HT'!F$45-B152/500*'2017 Universal Input Prices'!$C$40/2000*Cottonseed_Price+(B152-B$154)*'Dry Cotton HT'!$D$28+(B152-B$154)/'Dry Cotton HT'!$B$11/100*'Dry Cotton HT'!$D$29)/B152 -> 0.6984801153 | F152: =('Dry Cotton HT'!G$45-C152/500*'2017 Universal Input Prices'!$C$40/2000*Cottonseed_Price+(C152-C$154)*'Dry Cotton HT'!$D$28+(C152-C$154)/'Dry Cotton HT'!$B$11/100*'Dry Cotton HT'!$D$29)/C152 -> 0.8400399138 | G152: =('Dry Cotton HT'!F$57-B152/500*'2017 Universal Input Prices'!$C$40/2000*Cottonseed_Price+(B152-B$154)*'Dry Cotton HT'!$D$28+(B152-B$154)/'Dry Cotton HT'!$B$11/100*'Dry Cotton HT'!$D$29)/B152 -> 1.065591226 | H152: =('Dry Cotton HT'!G$57-C152/500*'2017 Universal Input Prices'!$C$40/2000*Cottonseed_Price+(C152-C$154)*'Dry Cotton HT'!$D$28+(C152-C$154)/'Dry Cotton HT'!$B$11/100*'Dry Cotton HT'!$D$29)/C152 -> 1.078262136 | I152: =IF($D152=0,"N/A",('Dry Cotton HT'!H$57-D152/500*'2017 Universal Input Prices'!$C$40/2000*Cottonseed_Price+(D152-D$154)*'Dry Cotton HT'!$D$28+(D152-D$154)/'Dry Cotton HT'!$B$11/100*'Dry Cotton HT'!$D$29)/D152) -> 1.027578497
A153: 0.9 | B153: ='Dry Cotton HT'!$B$9*$A153 -> 337.5 | C153: ='Dry Cotton HT'!$B$9*(1-'Dry Cotton HT'!$E$9)*$A153 -> 253.125 | D153: ='Dry Cotton HT'!$B$9*'Dry Cotton HT'!$E$9*$A153 -> 84.375 | E153: =('Dry Cotton HT'!F$45-B153/500*'2017 Universal Input Prices'!$C$40/2000*Cottonseed_Price+(B153-B$154)*'Dry Cotton HT'!$D$28+(B153-B$154)/'Dry Cotton HT'!$B$11/100*'Dry Cotton HT'!$D$29)/B153 -> 0.590323173 | F153: =('Dry Cotton HT'!G$45-C153/500*'2017 Universal Input Prices'!$C$40/2000*Cottonseed_Price+(C153-C$154)*'Dry Cotton HT'!$D$28+(C153-C$154)/'Dry Cotton HT'!$B$11/100*'Dry Cotton HT'!$D$29)/C153 -> 0.7082896717 | G153: =('Dry Cotton HT'!F$57-B153/500*'2017 Universal Input Prices'!$C$40/2000*Cottonseed_Price+(B153-B$154)*'Dry Cotton HT'!$D$28+(B153-B$154)/'Dry Cotton HT'!$B$11/100*'Dry Cotton HT'!$D$29)/B153 -> 0.8962490989 | H153: =('Dry Cotton HT'!G$57-C153/500*'2017 Universal Input Prices'!$C$40/2000*Cottonseed_Price+(C153-C$154)*'Dry Cotton HT'!$D$28+(C153-C$154)/'Dry Cotton HT'!$B$11/100*'Dry Cotton HT'!$D$29)/C153 -> 0.9068081903 | I153: =IF($D153=0,"N/A",('Dry Cotton HT'!H$57-D153/500*'2017 Universal Input Prices'!$C$40/2000*Cottonseed_Price+(D153-D$154)*'Dry Cotton HT'!$D$28+(D153-D$154)/'Dry Cotton HT'!$B$11/100*'Dry Cotton HT'!$D$29)/D153) -> 0.8645718248
A154: 1 | B154: ='Dry Cotton HT'!$B$9*$A154 -> 375 | C154: ='Dry Cotton HT'!$B$9*(1-'Dry Cotton HT'!$E$9)*$A154 -> 281.25 | D154: ='Dry Cotton HT'!$B$9*'Dry Cotton HT'!$E$9*$A154 -> 93.75 | E154: =('Dry Cotton HT'!F$45-B154/500*'2017 Universal Input Prices'!$C$40/2000*Cottonseed_Price+(B154-B$154)*'Dry Cotton HT'!$D$28+(B154-B$154)/'Dry Cotton HT'!$B$11/100*'Dry Cotton HT'!$D$29)/B154 -> 0.5362447018 | F154: =('Dry Cotton HT'!G$45-C154/500*'2017 Universal Input Prices'!$C$40/2000*Cottonseed_Price+(C154-C$154)*'Dry Cotton HT'!$D$28+(C154-C$154)/'Dry Cotton HT'!$B$11/100*'Dry Cotton HT'!$D$29)/C154 -> 0.6424145507 | G154: =('Dry Cotton HT'!F$57-B154/500*'2017 Universal Input Prices'!$C$40/2000*Cottonseed_Price+(B154-B$154)*'Dry Cotton HT'!$D$28+(B154-B$154)/'Dry Cotton HT'!$B$11/100*'Dry Cotton HT'!$D$29)/B154 -> 0.8115780352 | H154: =('Dry Cotton HT'!G$57-C154/500*'2017 Universal Input Prices'!$C$40/2000*Cottonseed_Price+(C154-C$154)*'Dry Cotton HT'!$D$28+(C154-C$154)/'Dry Cotton HT'!$B$11/100*'Dry Cotton HT'!$D$29)/C154 -> 0.8210812174 | I154: =IF($D154=0,"N/A",('Dry Cotton HT'!H$57-D154/500*'2017 Universal Input Prices'!$C$40/2000*Cottonseed_Price+(D154-D$154)*'Dry Cotton HT'!$D$28+(D154-D$154)/'Dry Cotton HT'!$B$11/100*'Dry Cotton HT'!$D$29)/D154) -> 0.7830684885
A155: 1.1 | B155: ='Dry Cotton HT'!$B$9*$A155 -> 412.5 | C155: ='Dry Cotton HT'!$B$9*(1-'Dry Cotton HT'!$E$9)*$A155 -> 309.375 | D155: ='Dry Cotton HT'!$B$9*'Dry Cotton HT'!$E$9*$A155 -> 103.125 | E155: =('Dry Cotton HT'!F$45-B155/500*'2017 Universal Input Prices'!$C$40/2000*Cottonseed_Price+(B155-B$154)*'Dry Cotton HT'!$D$28+(B155-B$154)/'Dry Cotton HT'!$B$11/100*'Dry Cotton HT'!$D$29)/B155 -> 0.49199868 | F155: =('Dry Cotton HT'!G$45-C155/500*'2017 Universal Input Prices'!$C$40/2000*Cottonseed_Price+(C155-C$154)*'Dry Cotton HT'!$D$28+(C155-C$154)/'Dry Cotton HT'!$B$11/100*'Dry Cotton HT'!$D$29)/C155 -> 0.5885167244 | G155: =('Dry Cotton HT'!F$57-B155/500*'2017 Universal Input Prices'!$C$40/2000*Cottonseed_Price+(B155-B$154)*'Dry Cotton HT'!$D$28+(B155-B$154)/'Dry Cotton HT'!$B$11/100*'Dry Cotton HT'!$D$29)/B155 -> 0.7423017103 | H155: =('Dry Cotton HT'!G$57-C155/500*'2017 Universal Input Prices'!$C$40/2000*Cottonseed_Price+(C155-C$154)*'Dry Cotton HT'!$D$28+(C155-C$154)/'Dry Cotton HT'!$B$11/100*'Dry Cotton HT'!$D$29)/C155 -> 0.7509409669 | I155: =IF($D155=0,"N/A",('Dry Cotton HT'!H$57-D155/500*'2017 Universal Input Prices'!$C$40/2000*Cottonseed_Price+(D155-D$154)*'Dry Cotton HT'!$D$28+(D155-D$154)/'Dry Cotton HT'!$B$11/100*'Dry Cotton HT'!$D$29)/D155) -> 0.7163839406
A156: 1.25 | B156: ='Dry Cotton HT'!$B$9*$A156 -> 468.75 | C156: ='Dry Cotton HT'!$B$9*(1-'Dry Cotton HT'!$E$9)*$A156 -> 351.5625 | D156: ='Dry Cotton HT'!$B$9*'Dry Cotton HT'!$E$9*$A156 -> 117.1875 | E156: =('Dry Cotton HT'!F$45-B156/500*'2017 Universal Input Prices'!$C$40/2000*Cottonseed_Price+(B156-B$154)*'Dry Cotton HT'!$D$28+(B156-B$154)/'Dry Cotton HT'!$B$11/100*'Dry Cotton HT'!$D$29)/B156 -> 0.4389034538 | F156: =('Dry Cotton HT'!G$45-C156/500*'2017 Universal Input Prices'!$C$40/2000*Cottonseed_Price+(C156-C$154)*'Dry Cotton HT'!$D$28+(C156-C$154)/'Dry Cotton HT'!$B$11/100*'Dry Cotton HT'!$D$29)/C156 -> 0.5238393329 | G156: =('Dry Cotton HT'!F$57-B156/500*'2017 Universal Input Prices'!$C$40/2000*Cottonseed_Price+(B156-B$154)*'Dry Cotton HT'!$D$28+(B156-B$154)/'Dry Cotton HT'!$B$11/100*'Dry Cotton HT'!$D$29)/B156 -> 0.6591701204 | H156: =('Dry Cotton HT'!G$57-C156/500*'2017 Universal Input Prices'!$C$40/2000*Cottonseed_Price+(C156-C$154)*'Dry Cotton HT'!$D$28+(C156-C$154)/'Dry Cotton HT'!$B$11/100*'Dry Cotton HT'!$D$29)/C156 -> 0.6667726662 | I156: =IF($D156=0,"N/A",('Dry Cotton HT'!H$57-D156/500*'2017 Universal Input Prices'!$C$40/2000*Cottonseed_Price+(D156-D$154)*'Dry Cotton HT'!$D$28+(D156-D$154)/'Dry Cotton HT'!$B$11/100*'Dry Cotton HT'!$D$29)/D156) -> 0.6363624831
A158: ='Dry Guar'!A3:H3 -> Dryland Guar
E159: BE Price to Cover Variable Costs | G159: BE Price to Cover Total Costs
A160: Yield | B160: ='Dry Guar'!C9 -> lbs | E160: Total | F160: Operator | G160: Total | H160: Operator | I160: Owner
A161: 0.75 | B161: ='Dry Guar'!$B$9*$A161 -> 450 | C161: ='Dry Guar'!$B$9*(1-'Dry Guar'!$E$9)*$A161 -> 337.5 | D161: ='Dry Guar'!$B$9*'Dry Guar'!$E$9*$A161 -> 112.5 | E161: =('Dry Guar'!$F$41+($B161-$B$73)*'Dry Guar'!$D$25)/$B161 -> 0.3940305197 | F161: =('Dry Guar'!$G$41+($C161-$C$73)*'Dry Guar'!$D$25)/$C161 -> 0.4296120604 | G161: =('Dry Guar'!$F$53+($B161-$B$73)*'Dry Guar'!$D$25)/$B161 -> 0.6234749641 | H161: =('Dry Guar'!$G$53+($C161-$C$73)*'Dry Guar'!$D$25)/$C161 -> 0.5785009493 | I161: =IF($D161=0, "N/A", ('Dry Guar'!$H$53+($D161-$D$73)*'Dry Guar'!$D$25)/$D161) -> 0.7583970085
A162: 0.9 | B162: ='Irr Guar'!$B$9*$A162 -> 1080 | C162: ='Dry Guar'!$B$9*(1-'Dry Guar'!$E$9)*$A162 -> 405 | D162: ='Dry Guar'!$B$9*'Dry Guar'!$E$9*$A162 -> 135 | E162: =('Dry Guar'!$F$41+($B162-$B$73)*'Dry Guar'!$D$25)/$B162 -> 0.2808460499 | F162: =('Dry Guar'!$G$41+($C162-$C$73)*'Dry Guar'!$D$25)/$C162 -> 0.3913433837 | G162: =('Dry Guar'!$F$53+($B162-$B$73)*'Dry Guar'!$D$25)/$B162 -> 0.3764479017 | H162: =('Dry Guar'!$G$53+($C162-$C$73)*'Dry Guar'!$D$25)/$C162 -> 0.5154174577 | I162: =IF($D162=0, "N/A", ('Dry Guar'!$H$53+($D162-$D$73)*'Dry Guar'!$D$25)/$D162) -> 0.6653308405
A163: 1 | B163: ='Irr Guar'!$B$9*$A163 -> 1200 | C163: ='Dry Guar'!$B$9*(1-'Dry Guar'!$E$9)*$A163 -> 450 | D163: ='Dry Guar'!$B$9*'Dry Guar'!$E$9*$A163 -> 150 | E163: =('Dry Guar'!$F$41+($B163-$B$73)*'Dry Guar'!$D$25)/$B163 -> 0.2727614449 | F163: =('Dry Guar'!$G$41+($C163-$C$73)*'Dry Guar'!$D$25)/$C163 -> 0.3722090453 | G163: =('Dry Guar'!$F$53+($B163-$B$73)*'Dry Guar'!$D$25)/$B163 -> 0.3588031115 | H163: =('Dry Guar'!$G$53+($C163-$C$73)*'Dry Guar'!$D$25)/$C163 -> 0.483875712 | I163: =IF($D163=0, "N/A", ('Dry Guar'!$H$53+($D163-$D$73)*'Dry Guar'!$D$25)/$D163) -> 0.6187977564
A164: 1.1 | B164: ='Irr Guar'!$B$9*$A164 -> 1320 | C164: ='Dry Guar'!$B$9*(1-'Dry Guar'!$E$9)*$A164 -> 495 | D164: ='Dry Guar'!$B$9*'Dry Guar'!$E$9*$A164 -> 165 | E164: =('Dry Guar'!$F$41+($B164-$B$73)*'Dry Guar'!$D$25)/$B164 -> 0.2661467681 | F164: =('Dry Guar'!$G$41+($C164-$C$73)*'Dry Guar'!$D$25)/$C164 -> 0.3565536775 | G164: =('Dry Guar'!$F$53+($B164-$B$73)*'Dry Guar'!$D$25)/$B164 -> 0.344366465 | H164: =('Dry Guar'!$G$53+($C164-$C$73)*'Dry Guar'!$D$25)/$C164 -> 0.4580688291 | I164: =IF($D164=0, "N/A", ('Dry Guar'!$H$53+($D164-$D$73)*'Dry Guar'!$D$25)/$D164) -> 0.5807252331
A165: 1.25 | B165: ='Irr Guar'!$B$9*$A165 -> 1500 | C165: ='Dry Guar'!$B$9*(1-'Dry Guar'!$E$9)*$A165 -> 562.5 | D165: ='Dry Guar'!$B$9*'Dry Guar'!$E$9*$A165 -> 187.5 | E165: =('Dry Guar'!$F$41+($B165-$B$73)*'Dry Guar'!$D$25)/$B165 -> 0.2582091559 | F165: =('Dry Guar'!$G$41+($C165-$C$73)*'Dry Guar'!$D$25)/$C165 -> 0.3377672362 | G165: =('Dry Guar'!$F$53+($B165-$B$73)*'Dry Guar'!$D$25)/$B165 -> 0.3270424892 | H165: =('Dry Guar'!$G$53+($C165-$C$73)*'Dry Guar'!$D$25)/$C165 -> 0.4271005696 | I165: =IF($D165=0, "N/A", ('Dry Guar'!$H$53+($D165-$D$73)*'Dry Guar'!$D$25)/$D165) -> 0.5350382051
A167: ='Dry Sesame'!$A$3:$H$3 -> Dryland Sesame
E168: BE Price to Cover Variable Costs | G168: BE Price to Cover Total Costs
A169: Yield | B169: ='Dry Sesame'!C9 -> lbs | E169: Total | F169: Operator | G169: Total | H169: Operator | I169: Owner
A170: 0.75 | B170: ='Dry Sesame'!$B$9*$A170 -> 525 | C170: ='Dry Sesame'!$B$9*(1-'Dry Sesame'!$E$9)*$A170 -> 393.75 | D170: ='Dry Sesame'!$B$9*'Dry Sesame'!$E$9*$A170 -> 131.25 | E170: =('Dry Sesame'!$F$40+($B170-B$172)*'Dry Sesame'!$D$24)/$B170 -> 0.1816334452 | F170: =('Dry Sesame'!$G$40+($C170-C$172)*'Dry Sesame'!$D$24)/$C170 -> 0.2281815976 | G170: =('Dry Sesame'!$F$52+($B170-B$172)*'Dry Sesame'!$D$24)/$B170 -> 0.3783001119 | H170: =('Dry Sesame'!$G$52+($C170-C$172)*'Dry Sesame'!$D$24)/$C170 -> 0.3558006452 | I170: =IF($D170=0, "N/A", ('Dry Sesame'!$H$52+($D170-D$172)*'Dry Sesame'!$D$24)/$D170) -> 0.4457985119
A171: 0.9 | B171: ='Dry Sesame'!$B$9*$A171 -> 630 | C171: ='Dry Sesame'!$B$9*(1-'Dry Sesame'!$E$9)*$A171 -> 472.5 | D171: ='Dry Sesame'!$B$9*'Dry Sesame'!$E$9*$A171 -> 157.5 | E171: =('Dry Sesame'!$F$40+($B171-B$172)*'Dry Sesame'!$D$24)/$B171 -> 0.1713612044 | F171: =('Dry Sesame'!$G$40+($C171-C$172)*'Dry Sesame'!$D$24)/$C171 -> 0.2101513313 | G171: =('Dry Sesame'!$F$52+($B171-B$172)*'Dry Sesame'!$D$24)/$B171 -> 0.3352500933 | H171: =('Dry Sesame'!$G$52+($C171-C$172)*'Dry Sesame'!$D$24)/$C171 -> 0.3165005377 | I171: =IF($D171=0, "N/A", ('Dry Sesame'!$H$52+($D171-D$172)*'Dry Sesame'!$D$24)/$D171) -> 0.3914987599
A172: 1 | B172: ='Dry Sesame'!$B$9*$A172 -> 700 | C172: ='Dry Sesame'!$B$9*(1-'Dry Sesame'!$E$9)*$A172 -> 525 | D172: ='Dry Sesame'!$B$9*'Dry Sesame'!$E$9*$A172 -> 175 | E172: =('Dry Sesame'!$F$40+($B172-B$172)*'Dry Sesame'!$D$24)/$B172 -> 0.1662250839 | F172: =('Dry Sesame'!$G$40+($C172-C$172)*'Dry Sesame'!$D$24)/$C172 -> 0.2011361982 | G172: =('Dry Sesame'!$F$52+($B172-B$172)*'Dry Sesame'!$D$24)/$B172 -> 0.3137250839 | H172: =('Dry Sesame'!$G$52+($C172-C$172)*'Dry Sesame'!$D$24)/$C172 -> 0.2968504839 | I172: =IF($D172=0, "N/A", ('Dry Sesame'!$H$52+($D172-D$172)*'Dry Sesame'!$D$24)/$D172) -> 0.3643488839
A173: 1.1 | B173: ='Dry Sesame'!$B$9*$A173 -> 770 | C173: ='Dry Sesame'!$B$9*(1-'Dry Sesame'!$E$9)*$A173 -> 577.5 | D173: ='Dry Sesame'!$B$9*'Dry Sesame'!$E$9*$A173 -> 192.5 | E173: =('Dry Sesame'!$F$40+($B173-B$172)*'Dry Sesame'!$D$24)/$B173 -> 0.1620228036 | F173: =('Dry Sesame'!$G$40+($C173-C$172)*'Dry Sesame'!$D$24)/$C173 -> 0.1937601802 | G173: =('Dry Sesame'!$F$52+($B173-B$172)*'Dry Sesame'!$D$24)/$B173 -> 0.2961137127 | H173: =('Dry Sesame'!$G$52+($C173-C$172)*'Dry Sesame'!$D$24)/$C173 -> 0.2807731672 | I173: =IF($D173=0, "N/A", ('Dry Sesame'!$H$52+($D173-D$172)*'Dry Sesame'!$D$24)/$D173) -> 0.342135349
A174: 1.25 | B174: ='Dry Sesame'!$B$9*$A174 -> 875 | C174: ='Dry Sesame'!$B$9*(1-'Dry Sesame'!$E$9)*$A174 -> 656.25 | D174: ='Dry Sesame'!$B$9*'Dry Sesame'!$E$9*$A174 -> 218.75 | E174: =('Dry Sesame'!$F$40+($B174-B$172)*'Dry Sesame'!$D$24)/$B174 -> 0.1569800671 | F174: =('Dry Sesame'!$G$40+($C174-C$172)*'Dry Sesame'!$D$24)/$C174 -> 0.1849089586 | G174: =('Dry Sesame'!$F$52+($B174-B$172)*'Dry Sesame'!$D$24)/$B174 -> 0.2749800671 | H174: =('Dry Sesame'!$G$52+($C174-C$172)*'Dry Sesame'!$D$24)/$C174 -> 0.2614803871 | I174: =IF($D174=0, "N/A", ('Dry Sesame'!$H$52+($D174-D$172)*'Dry Sesame'!$D$24)/$D174) -> 0.3154791071
A176: ='Dry Sorghum'!$A$3:$H$3 -> Dryland Sorghum
E177: BE Price to Cover Variable Costs | G177: BE Price to Cover Total Costs
A178: Yield | B178: ='Dry Sorghum'!C9 -> cwt | E178: Total | F178: Operator | G178: Total | H178: Operator | I178: Owner
A179: 0.75 | B179: ='Dry Sorghum'!$B$9*$A179 -> 13.5 | C179: ='Dry Sorghum'!$B$9*(1-'Dry Sorghum'!$E$9)*$A179 -> 10.125 | D179: ='Dry Sorghum'!$B$9*'Dry Sorghum'!$E$9*$A179 -> 3.375 | E179: =('Dry Sorghum'!$F$41+($B179-B$181)*'Dry Sorghum'!$D$25)/$B179 -> 9.364155463 | F179: =('Dry Sorghum'!$G$41+($C179-C$181)*'Dry Sorghum'!$D$25)/$C179 -> 10.7827204 | G179: =('Dry Sorghum'!$F$53+($B179-B$181)*'Dry Sorghum'!$D$25)/$B179 -> 17.01230361 | H179: =('Dry Sorghum'!$G$53+($C179-C$181)*'Dry Sorghum'!$D$25)/$C179 -> 15.74568336 | I179: =IF($D179=0, "N/A", ('Dry Sorghum'!$H$53+($D179-D$181)*'Dry Sorghum'!$D$25)/$D179) -> 20.81216435
A180: 0.9 | B180: ='Dry Sorghum'!$B$9*$A180 -> 16.2 | C180: ='Dry Sorghum'!$B$9*(1-'Dry Sorghum'!$E$9)*$A180 -> 12.15 | D180: ='Dry Sorghum'!$B$9*'Dry Sorghum'!$E$9*$A180 -> 4.05 | E180: =('Dry Sorghum'!$F$41+($B180-B$181)*'Dry Sorghum'!$D$25)/$B180 -> 7.870129552 | F180: =('Dry Sorghum'!$G$41+($C180-C$181)*'Dry Sorghum'!$D$25)/$C180 -> 9.052267001 | G180: =('Dry Sorghum'!$F$53+($B180-B$181)*'Dry Sorghum'!$D$25)/$B180 -> 14.24358634 | H180: =('Dry Sorghum'!$G$53+($C180-C$181)*'Dry Sorghum'!$D$25)/$C180 -> 13.18806947 | I180: =IF($D180=0, "N/A", ('Dry Sorghum'!$H$53+($D180-D$181)*'Dry Sorghum'!$D$25)/$D180) -> 17.41013696
A181: 1 | B181: ='Dry Sorghum'!$B$9*$A181 -> 18 | C181: ='Dry Sorghum'!$B$9*(1-'Dry Sorghum'!$E$9)*$A181 -> 13.5 | D181: ='Dry Sorghum'!$B$9*'Dry Sorghum'!$E$9*$A181 -> 4.5 | E181: =('Dry Sorghum'!$F$41+($B181-B$181)*'Dry Sorghum'!$D$25)/$B181 -> 7.123116597 | F181: =('Dry Sorghum'!$G$41+($C181-C$181)*'Dry Sorghum'!$D$25)/$C181 -> 8.187040301 | G181: =('Dry Sorghum'!$F$53+($B181-B$181)*'Dry Sorghum'!$D$25)/$B181 -> 12.85922771 | H181: =('Dry Sorghum'!$G$53+($C181-C$181)*'Dry Sorghum'!$D$25)/$C181 -> 11.90926252 | I181: =IF($D181=0, "N/A", ('Dry Sorghum'!$H$53+($D181-D$181)*'Dry Sorghum'!$D$25)/$D181) -> 15.70912326
A182: 1.1 | B182: ='Dry Sorghum'!$B$9*$A182 -> 19.8 | C182: ='Dry Sorghum'!$B$9*(1-'Dry Sorghum'!$E$9)*$A182 -> 14.85 | D182: ='Dry Sorghum'!$B$9*'Dry Sorghum'!$E$9*$A182 -> 4.95 | E182: =('Dry Sorghum'!$F$41+($B182-B$181)*'Dry Sorghum'!$D$25)/$B182 -> 6.511924179 | F182: =('Dry Sorghum'!$G$41+($C182-C$181)*'Dry Sorghum'!$D$25)/$C182 -> 7.479127546 | G182: =('Dry Sorghum'!$F$53+($B182-B$181)*'Dry Sorghum'!$D$25)/$B182 -> 11.72657064 | H182: =('Dry Sorghum'!$G$53+($C182-C$181)*'Dry Sorghum'!$D$25)/$C182 -> 10.86296593 | I182: =IF($D182=0, "N/A", ('Dry Sorghum'!$H$53+($D182-D$181)*'Dry Sorghum'!$D$25)/$D182) -> 14.31738479
A183: 1.25 | B183: ='Dry Sorghum'!$B$9*$A183 -> 22.5 | C183: ='Dry Sorghum'!$B$9*(1-'Dry Sorghum'!$E$9)*$A183 -> 16.875 | D183: ='Dry Sorghum'!$B$9*'Dry Sorghum'!$E$9*$A183 -> 5.625 | E183: =('Dry Sorghum'!$F$41+($B183-B$181)*'Dry Sorghum'!$D$25)/$B183 -> 5.778493278 | F183: =('Dry Sorghum'!$G$41+($C183-C$181)*'Dry Sorghum'!$D$25)/$C183 -> 6.629632241 | G183: =('Dry Sorghum'!$F$53+($B183-B$181)*'Dry Sorghum'!$D$25)/$B183 -> 10.36738217 | H183: =('Dry Sorghum'!$G$53+($C183-C$181)*'Dry Sorghum'!$D$25)/$C183 -> 9.607410019 | I183: =IF($D183=0, "N/A", ('Dry Sorghum'!$H$53+($D183-D$181)*'Dry Sorghum'!$D$25)/$D183) -> 12.64729861
A185: ='Dry Sunflowers-Oilseed'!$A$3:$H$3 -> Dryland Sunflowers-Oilseed
E186: BE Price to Cover Variable Costs | G186: BE Price to Cover Total Costs
A187: Yield | B187: ='Dry Sunflowers-Oilseed'!C9 -> lbs | E187: Total | F187: Operator | G187: Total | H187: Operator | I187: Owner
A188: 0.75 | B188: ='Dry Sunflowers-Oilseed'!$B$9*$A188 -> 750 | C188: ='Dry Sunflowers-Oilseed'!$B$9*(1-'Dry Sunflowers-Oilseed'!$E$9)*$A188 -> 562.5 | D188: ='Dry Sunflowers-Oilseed'!$B$9*'Dry Sunflowers-Oilseed'!$E$9*$A188 -> 187.5 | E188: =('Dry Sunflowers-Oilseed'!$F$40+($B188-B$190)*'Dry Sunflowers-Oilseed'!$D$24)/$B188 -> 0.08929920667 | F188: =('Dry Sunflowers-Oilseed'!$G$40+($C188-C$190)*'Dry Sunflowers-Oilseed'!$D$24)/$C188 -> 0.1245691533 | G188: =('Dry Sunflowers-Oilseed'!$F$52+($B188-B$190)*'Dry Sunflowers-Oilseed'!$D$24)/$B188 -> 0.2269658733 | H188: =('Dry Sunflowers-Oilseed'!$G$52+($C188-C$190)*'Dry Sunflowers-Oilseed'!$D$24)/$C188 -> 0.2139024867 | I188: =IF($D188=0, "N/A", ('Dry Sunflowers-Oilseed'!$H$52+($D188-D$190)*'Dry Sunflowers-Oilseed'!$D$24)/$D188) -> 0.2661560333
A189: 0.9 | B189: ='Dry Sunflowers-Oilseed'!$B$9*$A189 -> 900 | C189: ='Dry Sunflowers-Oilseed'!$B$9*(1-'Dry Sunflowers-Oilseed'!$E$9)*$A189 -> 675 | D189: ='Dry Sunflowers-Oilseed'!$B$9*'Dry Sunflowers-Oilseed'!$E$9*$A189 -> 225 | E189: =('Dry Sunflowers-Oilseed'!$F$40+($B189-B$190)*'Dry Sunflowers-Oilseed'!$D$24)/$B189 -> 0.1244160056 | F189: =('Dry Sunflowers-Oilseed'!$G$40+($C189-C$190)*'Dry Sunflowers-Oilseed'!$D$24)/$C189 -> 0.1538076278 | G189: =('Dry Sunflowers-Oilseed'!$F$52+($B189-B$190)*'Dry Sunflowers-Oilseed'!$D$24)/$B189 -> 0.2391382278 | H189: =('Dry Sunflowers-Oilseed'!$G$52+($C189-C$190)*'Dry Sunflowers-Oilseed'!$D$24)/$C189 -> 0.2282520722 | I189: =IF($D189=0, "N/A", ('Dry Sunflowers-Oilseed'!$H$52+($D189-D$190)*'Dry Sunflowers-Oilseed'!$D$24)/$D189) -> 0.2717966944
A190: 1 | B190: ='Dry Sunflowers-Oilseed'!$B$9*$A190 -> 1000 | C190: ='Dry Sunflowers-Oilseed'!$B$9*(1-'Dry Sunflowers-Oilseed'!$E$9)*$A190 -> 750 | D190: ='Dry Sunflowers-Oilseed'!$B$9*'Dry Sunflowers-Oilseed'!$E$9*$A190 -> 250 | E190: =('Dry Sunflowers-Oilseed'!$F$40+($B190-B$190)*'Dry Sunflowers-Oilseed'!$D$24)/$B190 -> 0.141974405 | F190: =('Dry Sunflowers-Oilseed'!$G$40+($C190-C$190)*'Dry Sunflowers-Oilseed'!$D$24)/$C190 -> 0.168426865 | G190: =('Dry Sunflowers-Oilseed'!$F$52+($B190-B$190)*'Dry Sunflowers-Oilseed'!$D$24)/$B190 -> 0.245224405 | H190: =('Dry Sunflowers-Oilseed'!$G$52+($C190-C$190)*'Dry Sunflowers-Oilseed'!$D$24)/$C190 -> 0.235426865 | I190: =IF($D190=0, "N/A", ('Dry Sunflowers-Oilseed'!$H$52+($D190-D$190)*'Dry Sunflowers-Oilseed'!$D$24)/$D190) -> 0.274617025
A191: 1.1 | B191: ='Dry Sunflowers-Oilseed'!$B$9*$A191 -> 1100 | C191: ='Dry Sunflowers-Oilseed'!$B$9*(1-'Dry Sunflowers-Oilseed'!$E$9)*$A191 -> 825 | D191: ='Dry Sunflowers-Oilseed'!$B$9*'Dry Sunflowers-Oilseed'!$E$9*$A191 -> 275 | E191: =('Dry Sunflowers-Oilseed'!$F$40+($B191-B$190)*'Dry Sunflowers-Oilseed'!$D$24)/$B191 -> 0.1563403682 | F191: =('Dry Sunflowers-Oilseed'!$G$40+($C191-C$190)*'Dry Sunflowers-Oilseed'!$D$24)/$C191 -> 0.1803880591 | G191: =('Dry Sunflowers-Oilseed'!$F$52+($B191-B$190)*'Dry Sunflowers-Oilseed'!$D$24)/$B191 -> 0.2502040045 | H191: =('Dry Sunflowers-Oilseed'!$G$52+($C191-C$190)*'Dry Sunflowers-Oilseed'!$D$24)/$C191 -> 0.24129715 | I191: =IF($D191=0, "N/A", ('Dry Sunflowers-Oilseed'!$H$52+($D191-D$190)*'Dry Sunflowers-Oilseed'!$D$24)/$D191) -> 0.2769245682
A192: 1.25 | B192: ='Dry Sunflowers-Oilseed'!$B$9*$A192 -> 1250 | C192: ='Dry Sunflowers-Oilseed'!$B$9*(1-'Dry Sunflowers-Oilseed'!$E$9)*$A192 -> 937.5 | D192: ='Dry Sunflowers-Oilseed'!$B$9*'Dry Sunflowers-Oilseed'!$E$9*$A192 -> 312.5 | E192: =('Dry Sunflowers-Oilseed'!$F$40+($B192-B$190)*'Dry Sunflowers-Oilseed'!$D$24)/$B192 -> 0.173579524 | F192: =('Dry Sunflowers-Oilseed'!$G$40+($C192-C$190)*'Dry Sunflowers-Oilseed'!$D$24)/$C192 -> 0.194741492 | G192: =('Dry Sunflowers-Oilseed'!$F$52+($B192-B$190)*'Dry Sunflowers-Oilseed'!$D$24)/$B192 -> 0.256179524 | H192: =('Dry Sunflowers-Oilseed'!$G$52+($C192-C$190)*'Dry Sunflowers-Oilseed'!$D$24)/$C192 -> 0.248341492 | I192: =IF($D192=0, "N/A", ('Dry Sunflowers-Oilseed'!$H$52+($D192-D$190)*'Dry Sunflowers-Oilseed'!$D$24)/$D192) -> 0.27969362
A194: ='Dry Wheat'!$A$3:$H$3 -> Dryland Wheat
E195: BE Price to Cover Variable Costs | G195: BE Price to Cover Total Costs
A196: Yield | B196: ='Dry Wheat'!C9 -> bu | E196: Total | F196: Operator | G196: Total | H196: Operator | I196: Owner
A197: 0.75 | B197: ='Dry Wheat'!$B$9*$A197 -> 13.5 | C197: ='Dry Wheat'!$B$9*(1-'Dry Wheat'!$E$9)*$A197 -> 10.125 | D197: ='Dry Wheat'!$B$9*'Dry Wheat'!$E$9*$A197 -> 3.375 | E197: =('Dry Wheat'!$F$40+($B197-B$199)*'Dry Wheat'!$D$25)/$B197 -> 9.659745093 | F197: =('Dry Wheat'!$G$40+($C197-C$199)*'Dry Wheat'!$D$25)/$C197 -> 11.4394325 | G197: =('Dry Wheat'!$F$52+($B197-B$199)*'Dry Wheat'!$D$25)/$B197 -> 17.30789324 | H197: =('Dry Wheat'!$G$52+($C197-C$199)*'Dry Wheat'!$D$25)/$C197 -> 16.40239546 | I197: =IF($D197=0, "N/A", ('Dry Wheat'!$H$52+($D197-D$199)*'Dry Wheat'!$D$25)/$D197) -> 20.02438657
A198: 0.9 | B198: ='Dry Wheat'!$B$9*$A198 -> 16.2 | C198: ='Dry Wheat'!$B$9*(1-'Dry Wheat'!$E$9)*$A198 -> 12.15 | D198: ='Dry Wheat'!$B$9*'Dry Wheat'!$E$9*$A198 -> 4.05 | E198: =('Dry Wheat'!$F$40+($B198-B$199)*'Dry Wheat'!$D$25)/$B198 -> 8.07312091 | F198: =('Dry Wheat'!$G$40+($C198-C$199)*'Dry Wheat'!$D$25)/$C198 -> 9.55619375 | G198: =('Dry Wheat'!$F$52+($B198-B$199)*'Dry Wheat'!$D$25)/$B198 -> 14.4465777 | H198: =('Dry Wheat'!$G$52+($C198-C$199)*'Dry Wheat'!$D$25)/$C198 -> 13.69199622 | I198: =IF($D198=0, "N/A", ('Dry Wheat'!$H$52+($D198-D$199)*'Dry Wheat'!$D$25)/$D198) -> 16.71032215
A199: 1 | B199: ='Dry Wheat'!$B$9*$A199 -> 18 | C199: ='Dry Wheat'!$B$9*(1-'Dry Wheat'!$E$9)*$A199 -> 13.5 | D199: ='Dry Wheat'!$B$9*'Dry Wheat'!$E$9*$A199 -> 4.5 | E199: =('Dry Wheat'!$F$40+($B199-B$199)*'Dry Wheat'!$D$25)/$B199 -> 7.279808819 | F199: =('Dry Wheat'!$G$40+($C199-C$199)*'Dry Wheat'!$D$25)/$C199 -> 8.614574375 | G199: =('Dry Wheat'!$F$52+($B199-B$199)*'Dry Wheat'!$D$25)/$B199 -> 13.01591993 | H199: =('Dry Wheat'!$G$52+($C199-C$199)*'Dry Wheat'!$D$25)/$C199 -> 12.3367966 | I199: =IF($D199=0, "N/A", ('Dry Wheat'!$H$52+($D199-D$199)*'Dry Wheat'!$D$25)/$D199) -> 15.05328993
A200: 1.1 | B200: ='Dry Wheat'!$B$9*$A200 -> 19.8 | C200: ='Dry Wheat'!$B$9*(1-'Dry Wheat'!$E$9)*$A200 -> 14.85 | D200: ='Dry Wheat'!$B$9*'Dry Wheat'!$E$9*$A200 -> 4.95 | E200: =('Dry Wheat'!$F$40+($B200-B$199)*'Dry Wheat'!$D$25)/$B200 -> 6.63073529 | F200: =('Dry Wheat'!$G$40+($C200-C$199)*'Dry Wheat'!$D$25)/$C200 -> 7.844158523 | G200: =('Dry Wheat'!$F$52+($B200-B$199)*'Dry Wheat'!$D$25)/$B200 -> 11.84538176 | H200: =('Dry Wheat'!$G$52+($C200-C$199)*'Dry Wheat'!$D$25)/$C200 -> 11.22799691 | I200: =IF($D200=0, "N/A", ('Dry Wheat'!$H$52+($D200-D$199)*'Dry Wheat'!$D$25)/$D200) -> 13.6975363
A201: 1.25 | B201: ='Dry Wheat'!$B$9*$A201 -> 22.5 | C201: ='Dry Wheat'!$B$9*(1-'Dry Wheat'!$E$9)*$A201 -> 16.875 | D201: ='Dry Wheat'!$B$9*'Dry Wheat'!$E$9*$A201 -> 5.625 | E201: =('Dry Wheat'!$F$40+($B201-B$199)*'Dry Wheat'!$D$25)/$B201 -> 5.851847056 | F201: =('Dry Wheat'!$G$40+($C201-C$199)*'Dry Wheat'!$D$25)/$C201 -> 6.9196595 | G201: =('Dry Wheat'!$F$52+($B201-B$199)*'Dry Wheat'!$D$25)/$B201 -> 10.44073594 | H201: =('Dry Wheat'!$G$52+($C201-C$199)*'Dry Wheat'!$D$25)/$C201 -> 9.897437278 | I201: =IF($D201=0, "N/A", ('Dry Wheat'!$H$52+($D201-D$199)*'Dry Wheat'!$D$25)/$D201) -> 12.07063194

Sheet Comparative Returns
A2: Comparative Returns
A3: Projected for 2017
B5: Total Revenue | E5: Total Variable Costs | H5: Return Over Variable Costs | K5: Total Costs | O5: Return Over Variable Costs per Acre-Inch Applied | R5: Return Over Total Costs | W5: Break-Even Yield to Cover Total Costs
B6: Total | C6: Operator | D6: Owner | E6: Total | F6: Operator | G6: Owner | H6: Total | I6: Operator | J6: Owner | K6: Total | L6: Operator | M6: Owner | N6: ac-in | O6: Total | P6: Operator | Q6: Owner | R6: Total | S6: Operator | T6: Owner | U6: Price | V6: unit | W6: Total | X6: Operator | Y6: Owner
A7: ='Irr Alfalfa'!$A$3:$H$3 -> Irrigated Alfalfa | B7: ='Irr Alfalfa'!F$11 -> 1200 | C7: ='Irr Alfalfa'!G$11 -> 900 | D7: ='Irr Alfalfa'!H$11 -> 300 | E7: ='Irr Alfalfa'!F$46 -> 771.005557 | F7: ='Irr Alfalfa'!G$46 -> 657.7083677 | G7: ='Irr Alfalfa'!H$46 -> 113.2971892 | H7: =B7-E7 -> 428.994443 | I7: =C7-F7 -> 242.2916323 | J7: =D7-G7 -> 186.7028108 | K7: ='Irr Alfalfa'!F$61 -> 1060.255557 | L7: ='Irr Alfalfa'!G$61 -> 807.9583677 | M7: ='Irr Alfalfa'!H$61 -> 252.2971892 | N7: ='Irr Alfalfa'!B35 -> 24 | O7: =IF($N7=0,"-",H7/$N7) -> 17.87476846 | P7: =IF($N7=0,"-",I7/$N7) -> 10.09548468 | Q7: =IF($N7=0,"-",J7/$N7) -> 7.779283781 | R7: =B7-K7 -> 139.744443 | S7: =C7-L7 -> 92.04163226 | T7: =D7-M7 -> 47.70281075 | U7: ='Irr Alfalfa'!$D$9 -> 200 | V7: ='Irr Alfalfa'!$C$9 -> tons | W7: =IF($U7=0, 0, K7/$U7) -> 5.301277785 | X7: =IF($U7=0, 0, IF('Irr Alfalfa'!$E$9=0,0,L7/$U7/(1-'Irr Alfalfa'!$E$9))) -> 5.386389118 | Y7: =IF($U7=0, 0, IF('Irr Alfalfa'!$E$9=0,0,M7/$U7/('Irr Alfalfa'!$E$9))) -> 5.045943785
A8: ='Irr Blackeyes'!$A$3:$H$3 -> Irrigated Blackeyed Peas | B8: ='Irr Blackeyes'!F$11 -> 629 | C8: ='Irr Blackeyes'!G$11 -> 471.75 | D8: ='Irr Blackeyes'!H$11 -> 157.25 | E8: ='Irr Blackeyes'!F$46 -> 281.140505 | F8: ='Irr Blackeyes'!G$46 -> 253.1615987 | G8: ='Irr Blackeyes'!H$46 -> 27.97890625 | H8: =B8-E8 -> 347.859495 | I8: =C8-F8 -> 218.5884013 | J8: =D8-G8 -> 129.2710938 | K8: ='Irr Blackeyes'!F$60 -> 470.390505 | L8: ='Irr Blackeyes'!G$60 -> 303.4115987 | M8: ='Irr Blackeyes'!H$60 -> 166.9789062 | N8: ='Irr Blackeyes'!B39 -> 1 | O8: =IF($N8=0,"-",H8/$N8) -> 347.859495 | P8: =IF($N8=0,"-",I8/$N8) -> 218.5884013 | Q8: =IF($N8=0,"-",J8/$N8) -> 129.2710938 | R8: =B8-K8 -> 158.609495 | S8: =C8-L8 -> 168.3384013 | T8: =D8-M8 -> -9.72890625 | U8: ='Irr Blackeyes'!$D$9 -> 0.34 | V8: ='Irr Blackeyes'!$C$9 -> lbs | W8: =IF($U8=0, 0, K8/$U8) -> 1383.501485 | X8: =IF($U8=0, 0, IF('Irr Blackeyes'!$E$9=0,0,L8/$U8/(1-'Irr Blackeyes'!$E$9))) -> 1189.849407 | Y8: =IF($U8=0, 0, IF('Irr Blackeyes'!$E$9=0,0,M8/$U8/('Irr Blackeyes'!$E$9))) -> 1964.457721
A9: ='Irr Corn'!$A$3:$H$3 -> Irrigated Corn | B9: ='Irr Corn'!F$11 -> 882 | C9: ='Irr Corn'!G$11 -> 661.5 | D9: ='Irr Corn'!H$11 -> 220.5 | E9: ='Irr Corn'!F$45 -> 811.1521443 | F9: ='Irr Corn'!G$45 -> 723.9290782 | G9: ='Irr Corn'!H$45 -> 87.22306608 | H9: 70.84785569 | I9: -62.42907823 | J9: 133.2769339 | K9: ='Irr Corn'!F$59 -> 1028.402144 | L9: ='Irr Corn'!G$59 -> 774.1790782 | M9: ='Irr Corn'!H$59 -> 254.2230661 | N9: ='Irr Corn'!B34 -> 24 | O9: 2.951993987 | P9: -2.601211593 | Q9: 5.55320558 | R9: -146.4021443 | S9: -112.6790782 | T9: -33.72306608 | U9: ='Irr Corn'!$D$9 -> 4.2 | V9: ='Irr Corn'!$C$9 -> bu | W9: =IF($U9=0, 0, K9/$U9) -> 244.8576534 | X9: =IF($U9=0, 0, IF('Irr Corn'!$E$9=0,0,L9/$U9/(1-'Irr Corn'!$E$9))) -> 245.7711359 | Y9: =IF($U9=0, 0, IF('Irr Corn'!$E$9=0,0,M9/$U9/('Irr Corn'!$E$9))) -> 242.1172058
A10: ='Irr Corn Silage'!$A$3:$H$3 -> Irrigated Corn Silage | B10: ='Irr Corn Silage'!F$11 -> 936 | C10: ='Irr Corn Silage'!G$11 -> 702 | D10: ='Irr Corn Silage'!H$11 -> 234 | E10: ='Irr Corn Silage'!F$45 -> 902.5824941 | F10: ='Irr Corn Silage'!G$45 -> 783.0052405 | G10: ='Irr Corn Silage'!H$45 -> 119.5772535 | H10: 33.41750593 | I10: -81.00524055 | J10: 114.4227465 | K10: ='Irr Corn Silage'!F$59 -> 1119.832494 | L10: ='Irr Corn Silage'!G$59 -> 833.2552405 | M10: ='Irr Corn Silage'!H$59 -> 286.5772535 | N10: ='Irr Corn Silage'!B34 -> 22 | O10: 1.518977542 | P10: -3.682056389 | Q10: 5.201033931 | R10: -183.8324941 | S10: -131.2552405 | T10: -52.57725352 | U10: ='Irr Corn Silage'!$D$9 -> 36 | V10: ='Irr Corn Silage'!$C$9 -> tons | W10: 31.10645817 | X10: =IF($U10=0, 0, IF('Irr Corn Silage'!$E$9=0,0,L10/$U10/(1-'Irr Corn Silage'!$E$9))) -> 30.86130521 | Y10: =IF($U10=0, 0, IF('Irr Corn Silage'!$E$9=0,0,M10/$U10/('Irr Corn Silage'!$E$9))) -> 31.84191706
A11: ='Irr Cotton Drip'!$A$3:$H$3 -> Irrigated Cotton - Drip | B11: ='Irr Cotton Drip'!F$12 -> 1421 | C11: ='Irr Cotton Drip'!G$12 -> 952.07 | D11: ='Irr Cotton Drip'!H$12 -> 468.93 | E11: ='Irr Cotton Drip'!F$52 -> 983.1660006 | F11: ='Irr Cotton Drip'!G$52 -> 867.6923464 | G11: ='Irr Cotton Drip'!H$52 -> 115.4736542 | H11: =B11-E11 -> 437.8339994 | I11: =C11-F11 -> 84.37765363 | J11: =D11-G11 -> 353.4563458 | K11: ='Irr Cotton Drip'!F$66 -> 1220.416001 | L11: ='Irr Cotton Drip'!G$66 -> 917.9423464 | M11: ='Irr Cotton Drip'!H$66 -> 302.4736542 | N11: ='Irr Cotton Drip'!B40 -> 2 | O11: =IF($N11=0,"-",H11/$N11) -> 218.9169997 | P11: =IF($N11=0,"-",I11/$N11) -> 42.18882682 | Q11: =IF($N11=0,"-",J11/$N11) -> 176.7281729 | R11: =B11-K11 -> 200.5839994 | S11: =C11-L11 -> 34.12765363 | T11: =D11-M11 -> 166.4563458 | U11: ='Irr Cotton Drip'!$D$9 -> 0.67 | V11: ='Irr Cotton Drip'!$C$9 -> lbs | W11: =IF($U11=0, 0, K11/($U11+Cottonseed_Price/2000*'2017 Universal Input Prices'!$C$40/500)) -> 1502.97537 | X11: =IF($U11=0, 0, IF('Irr Cotton Drip'!$E$9=0,0,L11/($U11+Cottonseed_Price/2000*'2017 Universal Input Prices'!$C$40/500)/(1-'Irr Cotton Drip'!$E$9))) -> 1687.269955 | Y11: =IF($U11=0, 0, IF('Irr Cotton Drip'!$E$9=0,0,M11/($U11+Cottonseed_Price/2000*'2017 Universal Input Prices'!$C$40/500)/('Irr Cotton Drip'!$E$9))) -> 1128.801516
A12: ='Irr Cotton Pivot'!$A$3:$H$3 -> Irrigated Cotton - Pivot | B12: ='Irr Cotton Pivot'!F$12 -> 1015 | C12: ='Irr Cotton Pivot'!G$12 -> 761.25 | D12: ='Irr Cotton Pivot'!H$12 -> 253.75 | E12: ='Irr Cotton Pivot'!F$51 -> 734.0813433 | F12: ='Irr Cotton Pivot'!G$51 -> 629.8201199 | G12: ='Irr Cotton Pivot'!H$51 -> 104.2612233 | H12: 280.9186567 | I12: 131.4298801 | J12: 149.4887767 | K12: ='Irr Cotton Pivot'!F$65 -> 923.3313433 | L12: ='Irr Cotton Pivot'!G$65 -> 680.0701199 | M12: ='Irr Cotton Pivot'!H$65 -> 243.2612233 | N12: ='Irr Cotton Pivot'!B40 -> 12 | O12: 23.40988806 | P12: 10.95249001 | Q12: 12.45739806 | R12: 91.66865675 | S12: 81.17988006 | T12: 10.48877669 | U12: ='Irr Cotton Pivot'!$D$9 -> 0.67 | V12: ='Irr Cotton Pivot'!$C$9 -> lbs | W12: =IF($U12=0, 0, K12/($U12+Cottonseed_Price/2000*'2017 Universal Input Prices'!$C$40/500)) -> 1137.107566 | X12: =IF($U12=0, 0, IF('Irr Cotton Pivot'!$E$9=0,0,L12/($U12+Cottonseed_Price/2000*'2017 Universal Input Prices'!$C$40/500)/(1-'Irr Cotton Pivot'!$E$9))) -> 1116.699704 | Y12: =IF($U12=0, 0, IF('Irr Cotton Pivot'!$E$9=0,0,M12/($U12+Cottonseed_Price/2000*'2017 Universal Input Prices'!$C$40/500)/('Irr Cotton Pivot'!$E$9))) -> 1198.331149
A13: ='Irr Guar'!$A$3:$H$3 -> Irrigated Guar | B13: ='Irr Guar'!F$11 -> 192 | C13: ='Irr Guar'!G$11 -> 144 | D13: ='Irr Guar'!H$11 -> 48 | E13: ='Irr Guar'!F$47 -> 191.6021877 | F13: ='Irr Guar'!G$47 -> 158.5841108 | G13: ='Irr Guar'!H$47 -> 33.01807692 | H13: =B13-E13 -> 0.3978123077 | I13: =C13-F13 -> -14.58411077 | J13: =D13-G13 -> 14.98192308 | K13: ='Irr Guar'!F$61 -> 383.8521877 | L13: ='Irr Guar'!G$61 -> 208.8341108 | M13: ='Irr Guar'!H$61 -> 175.0180769 | N13: ='Irr Guar'!B36 -> 4 | O13: =IF($N13=0,"-",H13/$N13) -> 0.09945307692 | P13: =IF($N13=0,"-",I13/$N13) -> -3.646027692 | Q13: =IF($N13=0,"-",J13/$N13) -> 3.745480769 | R13: =B13-K13 -> -191.8521877 | S13: =C13-L13 -> -64.83411077 | T13: =D13-M13 -> -127.0180769 | U13: ='Irr Guar'!$D$9 -> 0.16 | V13: ='Irr Guar'!$C$9 -> lb | W13: =IF($U13=0, 0, K13/$U13) -> 2399.076173 | X13: =IF($U13=0, 0, IF('Irr Guar'!$E$9=0,0,L13/$U13/(1-'Irr Guar'!$E$9))) -> 1740.284256 | Y13: =IF($U13=0, 0, IF('Irr Guar'!$E$9=0,0,M13/$U13/('Irr Guar'!$E$9))) -> 4375.451923
A14: ='Irr Peanuts'!$A$3:$H$3 -> Irrigated Peanuts | B14: ='Irr Peanuts'!F$11 -> 900 | C14: ='Irr Peanuts'!G$11 -> 675 | D14: ='Irr Peanuts'!H$11 -> 225 | E14: ='Irr Peanuts'!F$50 -> 893.2836994 | F14: ='Irr Peanuts'!G$50 -> 781.8887546 | G14: ='Irr Peanuts'!H$50 -> 111.3949449 | H14: 6.716300588 | I14: -106.8887546 | J14: 113.6050551 | K14: ='Irr Peanuts'!F$64 -> 1110.533699 | L14: ='Irr Peanuts'!G$64 -> 832.1387546 | M14: ='Irr Peanuts'!H$64 -> 278.3949449 | N14: ='Irr Peanuts'!B39 -> 24 | O14: 0.2798458578 | P14: -4.453698107 | Q14: 4.733543964 | R14: -210.5336994 | S14: -157.1387546 | T14: -53.39494485 | U14: ='Irr Peanuts'!$D$9 -> 400 | V14: ='Irr Peanuts'!$C$9 -> tons | W14: 2.776334249 | X14: =IF($U14=0, 0, IF('Irr Peanuts'!$E$9=0,0,L14/$U14/(1-'Irr Peanuts'!$E$9))) -> 2.773795849 | Y14: =IF($U14=0, 0, IF('Irr Peanuts'!$E$9=0,0,M14/$U14/('Irr Peanuts'!$E$9))) -> 2.783949449
A15: ='Irr Sesame'!$A$3:$H$3 -> Irrigated Sesame | B15: ='Irr Sesame'!F$12 -> 480 | C15: ='Irr Sesame'!G$12 -> 360 | D15: ='Irr Sesame'!H$12 -> 120 | E15: ='Irr Sesame'!F$47 -> 327.1382945 | F15: ='Irr Sesame'!G$47 -> 300.2130659 | G15: ='Irr Sesame'!H$47 -> 26.92522863 | H15: =B15-E15 -> 152.8617055 | I15: =C15-F15 -> 59.78693411 | J15: =D15-G15 -> 93.07477137 | K15: ='Irr Sesame'!F$61 -> 516.3882945 | L15: ='Irr Sesame'!G$61 -> 350.4630659 | M15: ='Irr Sesame'!H$61 -> 165.9252286 | N15: ='Irr Sesame'!B36 -> 11 | O15: =IF($N15=0,"-",H15/$N15) -> 13.89651868 | P15: =IF($N15=0,"-",I15/$N15) -> 5.435175828 | Q15: =IF($N15=0,"-",J15/$N15) -> 8.461342852 | R15: =B15-K15 -> -36.38829452 | S15: =C15-L15 -> 9.536934108 | T15: =D15-M15 -> -45.92522863 | U15: ='Irr Sesame'!$D$9 -> 0.32 | V15: ='Irr Sesame'!$C$9 -> lbs | W15: =IF($U15=0, 0, K15/$U15) -> 1613.71342 | X15: =IF($U15=0, 0, IF('Irr Sesame'!$E$9=0,0,L15/$U15/(1-'Irr Sesame'!$E$9))) -> 1460.262775 | Y15: =IF($U15=0, 0, IF('Irr Sesame'!$E$9=0,0,M15/$U15/('Irr Sesame'!$E$9))) -> 2074.065358
A16: ='Irr Sorghum'!$A$3:$H$3 -> Irrigated Sorghum | B16: ='Irr Sorghum'!F$12 -> 385 | C16: ='Irr Sorghum'!G$12 -> 288.75 | D16: ='Irr Sorghum'!H$12 -> 96.25 | E16: ='Irr Sorghum'!F$46 -> 359.0336782 | F16: ='Irr Sorghum'!G$46 -> 311.3862936 | G16: ='Irr Sorghum'!H$46 -> 47.64738455 | H16: 25.9663218 | I16: -22.63629365 | J16: 48.60261545 | K16: ='Irr Sorghum'!F$60 -> 548.2836782 | L16: ='Irr Sorghum'!G$60 -> 361.6362936 | M16: ='Irr Sorghum'!H$60 -> 186.6473845 | N16: ='Irr Sorghum'!B35 -> 9 | O16: 2.885146867 | P16: -2.515143739 | Q16: 5.400290606 | R16: -163.2836782 | S16: -72.88629365 | T16: -90.39738455 | U16: ='Irr Sorghum'!$D$9 -> 7 | V16: ='Irr Sorghum'!$C$9 -> cwt | W16: =IF($U16=0, 0, (K16-'Irr Sorghum'!$F$10)/$U16) -> 78.32623974 | X16: =IF($U16=0, 0, IF('Irr Sorghum'!$E$9=0,0,(L16-'Irr Sorghum'!$G$10)/$U16/(1-'Irr Sorghum'!$E$9))) -> 68.88310355 | Y16: =IF($U16=0, 0, IF('Irr Sorghum'!$E$9=0,0,(M16-'Irr Sorghum'!$H$10)/$U16/('Irr Sorghum'!$E$9))) -> 106.6556483
A17: ='Irr Sorghum Silage'!$A$3:$H$3 -> Irrigated Sorghum Silage | B17: ='Irr Sorghum Silage'!F$11 -> 792 | C17: ='Irr Sorghum Silage'!G$11 -> 594 | D17: ='Irr Sorghum Silage'!H$11 -> 198 | E17: ='Irr Sorghum Silage'!F$45 -> 617.1021541 | F17: ='Irr Sorghum Silage'!G$45 -> 534.4501652 | G17: ='Irr Sorghum Silage'!H$45 -> 82.65198888 | H17: 174.8978459 | I17: 59.54983483 | J17: 115.3480111 | K17: ='Irr Sorghum Silage'!F$59 -> 806.3521541 | L17: ='Irr Sorghum Silage'!G$59 -> 584.7001652 | M17: ='Irr Sorghum Silage'!H$59 -> 221.6519889 | N17: ='Irr Sorghum Silage'!B34 -> 16 | O17: 10.93111537 | P17: 3.721864677 | Q17: 7.209250695 | R17: -14.35215405 | S17: 9.299834827 | T17: -23.65198888 | U17: ='Irr Sorghum Silage'!$D$9 -> 33 | V17: ='Irr Sorghum Silage'!$C$9 -> tons | W17: 24.43491376 | X17: =IF($U17=0, 0, IF('Irr Sorghum Silage'!$E$9=0,0,L17/$U17/(1-'Irr Sorghum Silage'!$E$9))) -> 23.6242491 | Y17: =IF($U17=0, 0, IF('Irr Sorghum Silage'!$E$9=0,0,M17/$U17/('Irr Sorghum Silage'!$E$9))) -> 26.86690774
A18: ='Irr Soybeans'!$A$3:$H$3 -> Irrigated Soybeans | B18: ='Irr Soybeans'!F$11 -> 360 | C18: ='Irr Soybeans'!G$11 -> 270 | D18: ='Irr Soybeans'!H$11 -> 90 | E18: ='Irr Soybeans'!F$47 -> 400.3116865 | F18: ='Irr Soybeans'!G$47 -> 370.4339299 | G18: ='Irr Soybeans'!H$47 -> 29.87775662 | H18: -40.31168647 | I18: -100.4339299 | J18: 60.12224338 | K18: ='Irr Soybeans'!F$61 -> 589.5616865 | L18: ='Irr Soybeans'!G$61 -> 420.6839299 | M18: ='Irr Soybeans'!H$61 -> 168.8777566 | N18: ='Irr Soybeans'!B36 -> 15 | O18: -2.687445765 | P18: -6.695595324 | Q18: 4.008149559 | R18: -229.5616865 | S18: -150.6839299 | T18: -78.87775662 | U18: ='Irr Soybeans'!$D$9 -> 9 | V18: ='Irr Soybeans'!$C$9 -> bu | W18: 65.50685405 | X18: =IF($U18=0, 0, IF('Irr Soybeans'!$E$9=0,0,L18/$U18/(1-'Irr Soybeans'!$E$9))) -> 62.32354516 | Y18: =IF($U18=0, 0, IF('Irr Soybeans'!$E$9=0,0,M18/$U18/('Irr Soybeans'!$E$9))) -> 75.05678072
A19: ='Irr Sunflowers-Confection'!$A$3:$H$3 -> Irrigated Sunflowers-Confectionary | B19: ='Irr Sunflowers-Confection'!F$12 -> 426.72 | C19: ='Irr Sunflowers-Confection'!G$12 -> 320.04 | D19: ='Irr Sunflowers-Confection'!H$12 -> 106.68 | E19: ='Irr Sunflowers-Confection'!F$47 -> 322.4257979 | F19: ='Irr Sunflowers-Confection'!G$47 -> 280.2826384 | G19: ='Irr Sunflowers-Confection'!H$47 -> 42.14315947 | H19: 104.2942021 | I19: 39.7573616 | J19: 64.53684053 | K19: ='Irr Sunflowers-Confection'!F$61 -> 511.6757979 | L19: ='Irr Sunflowers-Confection'!G$61 -> 330.5326384 | M19: ='Irr Sunflowers-Confection'!H$61 -> 181.1431595 | N19: ='Irr Sunflowers-Confection'!B36 -> 8 | O19: 13.03677527 | P19: 4.9696702 | Q19: 8.067105067 | R19: -84.95579787 | S19: -10.4926384 | T19: -74.46315947 | U19: ='Irr Sunflowers-Confection'!$D$9 -> 0.21336 | V19: ='Irr Sunflowers-Confection'!$C$9 -> lbs | W19: 2398.18053 | X19: =IF($U19=0, 0, IF('Irr Sunflowers-Confection'!$E$9=0,0,L19/$U19/(1-'Irr Sunflowers-Confection'!$E$9))) -> 2065.570794 | Y19: =IF($U19=0, 0, IF('Irr Sunflowers-Confection'!$E$9=0,0,M19/$U19/('Irr Sunflowers-Confection'!$E$9))) -> 3396.009739
A20: ='Irr Sunflowers-Oilseed'!$A$3:$H$3 -> Irrigated Sunflowers-Oilseed | B20: ='Irr Sunflowers-Oilseed'!F$11 -> 280 | C20: ='Irr Sunflowers-Oilseed'!G$11 -> 210 | D20: ='Irr Sunflowers-Oilseed'!H$11 -> 70 | E20: ='Irr Sunflowers-Oilseed'!F$46 -> 305.3071979 | F20: ='Irr Sunflowers-Oilseed'!G$46 -> 275.6193134 | G20: ='Irr Sunflowers-Oilseed'!H$46 -> 29.68788447 | H20: -25.30719787 | I20: -65.6193134 | J20: 40.31211553 | K20: ='Irr Sunflowers-Oilseed'!F$60 -> 494.5571979 | L20: ='Irr Sunflowers-Oilseed'!G$60 -> 325.8693134 | M20: ='Irr Sunflowers-Oilseed'!H$60 -> 168.6878845 | N20: ='Irr Sunflowers-Oilseed'!B35 -> 8 | O20: -3.163399733 | P20: -8.202414175 | Q20: 5.039014442 | R20: -214.5571979 | S20: -115.8693134 | T20: -98.68788447 | U20: ='Irr Sunflowers-Oilseed'!$D$9 -> 0.14 | V20: ='Irr Sunflowers-Oilseed'!$C$9 -> lbs | W20: 3532.551413 | X20: =IF($U20=0, 0, IF('Irr Sunflowers-Oilseed'!$E$9=0,0,L20/$U20/(1-'Irr Sunflowers-Oilseed'!$E$9))) -> 3103.51727 | Y20: =IF($U20=0, 0, IF('Irr Sunflowers-Oilseed'!$E$9=0,0,M20/$U20/('Irr Sunflowers-Oilseed'!$E$9))) -> 4819.653842
A21: ='Irr Wheat'!$A$3:$H$3 -> Irrigated Wheat | B21: ='Irr Wheat'!F$12 -> 373.2 | C21: ='Irr Wheat'!G$12 -> 279.9 | D21: ='Irr Wheat'!H$12 -> 93.3 | E21: ='Irr Wheat'!F$45 -> 418.7139593 | F21: ='Irr Wheat'!G$45 -> 372.0491895 | G21: ='Irr Wheat'!H$45 -> 46.66476983 | H21: -45.51395931 | I21: -92.14918948 | J21: 46.63523017 | K21: ='Irr Wheat'!F$59 -> 607.9639593 | L21: ='Irr Wheat'!G$59 -> 422.2991895 | M21: ='Irr Wheat'!H$59 -> 185.6647698 | N21: ='Irr Wheat'!B34 -> 14 | O21: -3.250997094 | P21: -6.582084963 | Q21: 3.331087869 | R21: -234.7639593 | S21: -142.3991895 | T21: -92.36476983 | U21: ='Irr Wheat'!$D$9 -> 5.2 | V21: ='Irr Wheat'!$C$9 -> bu | W21: =IF($U21=0, 0, (K21-'Irr Wheat'!$F$10)/$U21) -> 105.1469153 | X21: =IF($U21=0, 0, IF('Irr Wheat'!$E$9=0,0,(L21-'Irr Wheat'!$G$10)/$U21/(1-'Irr Wheat'!$E$9))) -> 96.51261269 | Y21: =IF($U21=0, 0, IF('Irr Wheat'!$E$9=0,0,(M21-'Irr Wheat'!$H$10)/$U21/('Irr Wheat'!$E$9))) -> 131.0498229
A22: ='Dry Cotton Conventional'!$A$3:H3 -> Dryland Cotton - Conventional | B22: ='Dry Cotton Conventional'!F$12 -> 304.5 | C22: ='Dry Cotton Conventional'!G$12 -> 228.375 | D22: ='Dry Cotton Conventional'!H$12 -> 76.125 | E22: ='Dry Cotton Conventional'!F$45 -> 296.4663889 | F22: ='Dry Cotton Conventional'!G$45 -> 267.6173167 | G22: ='Dry Cotton Conventional'!H$45 -> 28.84907222 | H22: =B22-E22 -> 8.033611114 | I22: =C22-F22 -> -39.24231666 | J22: =D22-G22 -> 47.27592778 | K22: ='Dry Cotton Conventional'!F$57 -> 399.7163889 | L22: ='Dry Cotton Conventional'!G$57 -> 317.8673167 | M22: ='Dry Cotton Conventional'!H$57 -> 81.84907222 | R22: =B22-K22 -> -95.21638889 | S22: =C22-L22 -> -89.49231666 | T22: =D22-M22 -> -5.724072221 | U22: ='Dry Cotton Conventional'!$D$9 -> 0.67 | V22: ='Dry Cotton Conventional'!$C$9 -> lbs | W22: =IF($U22=0, 0, K22/($U22+Cottonseed_Price/2000*'2017 Universal Input Prices'!$C$40/500)) -> 492.2615627 | X22: =IF($U22=0, 0, IF('Dry Cotton Conventional'!$E$9=0,0,L22/($U22+Cottonseed_Price/2000*'2017 Universal Input Prices'!$C$40/500)/(1-'Dry Cotton Conventional'!$E$9))) -> 521.9496169 | Y22: =IF($U22=0, 0, IF('Dry Cotton Conventional'!$E$9=0,0,M22/($U22+Cottonseed_Price/2000*'2017 Universal Input Prices'!$C$40/500)/('Dry Cotton Conventional'!$E$9))) -> 403.1974001
A23: ='Dry Cotton HT'!$A$3:$H$3 -> Dryland Cotton - Herbicide Tolerant | B23: ='Dry Cotton HT'!F$12 -> 304.5 | C23: ='Dry Cotton HT'!G$12 -> 228.375 | D23: ='Dry Cotton HT'!H$12 -> 76.125 | E23: ='Dry Cotton HT'!F$45 -> 254.3417632 | F23: ='Dry Cotton HT'!G$45 -> 220.6165924 | G23: ='Dry Cotton HT'!H$45 -> 33.7251708 | H23: 50.15823681 | I23: 7.75840761 | J23: 42.3998292 | K23: ='Dry Cotton HT'!F$57 -> 357.5917632 | L23: ='Dry Cotton HT'!G$57 -> 270.8665924 | M23: ='Dry Cotton HT'!H$57 -> 86.7251708 | R23: -53.09176319 | S23: -42.49159239 | T23: -10.6001708 | U23: ='Dry Cotton HT'!$D$9 -> 0.67 | V23: ='Dry Cotton HT'!$C$9 -> lbs | W23: =IF($U23=0, 0, K23/($U23+Cottonseed_Price/2000*'2017 Universal Input Prices'!$C$40/500)) -> 440.3839448 | X23: =IF($U23=0, 0, IF('Dry Cotton HT'!$E$9=0,0,L23/($U23+Cottonseed_Price/2000*'2017 Universal Input Prices'!$C$40/500)/(1-'Dry Cotton HT'!$E$9))) -> 444.7727297 | Y23: =IF($U23=0, 0, IF('Dry Cotton HT'!$E$9=0,0,M23/($U23+Cottonseed_Price/2000*'2017 Universal Input Prices'!$C$40/500)/('Dry Cotton HT'!$E$9))) -> 427.2175901
A24: ='Dry Guar'!$A$3:$H$3 -> Dryland Guar | B24: ='Dry Guar'!F$11 -> 96 | C24: ='Dry Guar'!G$11 -> 72 | D24: ='Dry Guar'!H$11 -> 24 | E24: ='Dry Guar'!F$41 -> 87.76373385 | F24: ='Dry Guar'!G$41 -> 77.83157038 | G24: ='Dry Guar'!H$41 -> 9.932163462 | H24: 8.236266154 | I24: -5.831570385 | J24: 14.06783654 | K24: ='Dry Guar'!F$53 -> 191.0137338 | L24: ='Dry Guar'!G$53 -> 128.0815704 | M24: ='Dry Guar'!H$53 -> 62.93216346 | R24: -95.01373385 | S24: -56.08157038 | T24: -38.93216346 | U24: ='Dry Guar'!$D$9 -> 0.16 | V24: ='Dry Guar'!$C$9 -> lbs | W24: =IF($U24=0, 0, K24/$U24) -> 1193.835837 | X24: =IF($U24=0, 0, IF('Dry Sesame'!$E$9=0,0,L24/$U24/(1-'Dry Sesame'!$E$9))) -> 1067.34642 | Y24: =IF($U24=0, 0, IF('Dry Sesame'!$E$9=0,0,M24/$U24/('Dry Sesame'!$E$9))) -> 1573.304087
A25: ='Dry Sesame'!$A$3:$H$3 -> Dryland Sesame | B25: ='Dry Sesame'!F$11 -> 196 | C25: ='Dry Sesame'!G$11 -> 147 | D25: ='Dry Sesame'!H$11 -> 49 | E25: ='Dry Sesame'!F$40 -> 116.3575587 | F25: ='Dry Sesame'!G$40 -> 105.5965041 | G25: ='Dry Sesame'!H$40 -> 10.76105469 | H25: =B25-E25 -> 79.64244125 | I25: =C25-F25 -> 41.40349594 | J25: =D25-G25 -> 38.23894531 | K25: ='Dry Sesame'!F$52 -> 219.6075588 | L25: ='Dry Sesame'!G$52 -> 155.8465041 | M25: ='Dry Sesame'!H$52 -> 63.76105469 | R25: =B25-K25 -> -23.60755875 | S25: =C25-L25 -> -8.846504062 | T25: =D25-M25 -> -14.76105469 | U25: ='Dry Guar'!$D$9 -> 0.16 | V25: ='Dry Sesame'!$C$9 -> lbs | W25: =IF($U25=0, 0, K25/$U25) -> 1372.547242 | X25: =IF($U25=0, 0, IF('Dry Guar'!$E$9=0,0,L25/$U25/(1-'Dry Guar'!$E$9))) -> 1298.720867 | Y25: =IF($U25=0, 0, IF('Dry Guar'!$E$9=0,0,M25/$U25/('Dry Guar'!$E$9))) -> 1594.026367
A26: ='Dry Sorghum'!$A$3:$H$3 -> Dryland Sorghum | B26: ='Dry Sorghum'!F$12 -> 126 | C26: ='Dry Sorghum'!G$12 -> 94.5 | D26: ='Dry Sorghum'!H$12 -> 31.5 | E26: ='Dry Sorghum'!F$41 -> 128.2160988 | F26: ='Dry Sorghum'!G$41 -> 110.5250441 | G26: ='Dry Sorghum'!H$41 -> 17.69105469 | H26: -2.21609875 | I26: -16.02504406 | J26: 13.80894531 | K26: ='Dry Sorghum'!F$53 -> 231.4660988 | L26: ='Dry Sorghum'!G$53 -> 160.7750441 | M26: ='Dry Sorghum'!H$53 -> 70.69105469 | R26: -105.4660988 | S26: -66.27504406 | T26: -39.19105469 | U26: ='Dry Sorghum'!$D$9 -> 7 | V26: ='Dry Sorghum'!$C$9 -> cwt | W26: =IF($U26=0, 0, (K26-'Dry Sorghum'!$F$10)/$U26) -> 33.06658554 | X26: =IF($U26=0, 0, IF('Dry Sorghum'!$E$9=0,0,(L26-'Dry Sorghum'!$G$10)/$U26/(1-'Dry Sorghum'!$E$9))) -> 30.62381792 | Y26: =IF($U26=0, 0, IF('Dry Sorghum'!$E$9=0,0,(M26-'Dry Sorghum'!$H$10)/$U26/('Dry Sorghum'!$E$9))) -> 40.39488839
A27: ='Dry Sunflowers-Oilseed'!$A$3:$H$3 -> Dryland Sunflowers-Oilseed | B27: ='Dry Sunflowers-Oilseed'!F$11 -> 140 | C27: ='Dry Sunflowers-Oilseed'!G$11 -> 105 | D27: ='Dry Sunflowers-Oilseed'!H$11 -> 35 | E27: ='Dry Sunflowers-Oilseed'!F$40 -> 141.974405 | F27: ='Dry Sunflowers-Oilseed'!G$40 -> 126.3201487 | G27: ='Dry Sunflowers-Oilseed'!H$40 -> 15.65425625 | H27: -1.974405 | I27: -21.32014875 | J27: 19.34574375 | K27: ='Dry Sunflowers-Oilseed'!F$52 -> 245.224405 | L27: ='Dry Sunflowers-Oilseed'!G$52 -> 176.5701487 | M27: ='Dry Sunflowers-Oilseed'!H$52 -> 68.65425625 | R27: -105.224405 | S27: -71.57014875 | T27: -33.65425625 | U27: ='Dry Sunflowers-Oilseed'!$D$9 -> 0.14 | V27: ='Dry Sunflowers-Oilseed'!$C$9 -> lbs | W27: 1751.602893 | X27: =IF($U27=0, 0, IF('Dry Sunflowers-Oilseed'!$E$9=0,0,L27/$U27/(1-'Dry Sunflowers-Oilseed'!$E$9))) -> 1681.620464 | Y27: =IF($U27=0, 0, IF('Dry Sunflowers-Oilseed'!$E$9=0,0,M27/$U27/('Dry Sunflowers-Oilseed'!$E$9))) -> 1961.550179
A28: ='Dry Wheat'!$A$3:$H$3 -> Dryland Wheat | B28: ='Dry Wheat'!F$12 -> 124.2 | C28: ='Dry Wheat'!G$12 -> 93.15 | D28: ='Dry Wheat'!H$12 -> 31.05 | E28: ='Dry Wheat'!F$40 -> 131.0365587 | F28: ='Dry Wheat'!G$40 -> 116.2967541 | G28: ='Dry Wheat'!H$40 -> 14.73980469 | H28: -6.83655875 | I28: -23.14675406 | J28: 16.31019531 | K28: ='Dry Wheat'!F$52 -> 234.2865587 | L28: ='Dry Wheat'!G$52 -> 166.5467541 | M28: ='Dry Wheat'!H$52 -> 67.73980469 | R28: -110.0865587 | S28: -73.39675406 | T28: -36.68980469 | U28: ='Dry Wheat'!$D$9 -> 5.2 | V28: ='Dry Wheat'!$C$9 -> bu | W28: =IF($U28=0, 0, (K28-'Dry Wheat'!$F$10)/$U28) -> 39.17049207 | X28: =IF($U28=0, 0, IF('Dry Wheat'!$E$9=0,0,(L28-'Dry Wheat'!$G$10)/$U28/(1-'Dry Wheat'!$E$9))) -> 36.81968053 | Y28: =IF($U28=0, 0, IF('Dry Wheat'!$E$9=0,0,(M28-'Dry Wheat'!$H$10)/$U28/('Dry Wheat'!$E$9))) -> 46.22292668

Sheet Whole Farm Scenario (hidden)
B2: Whole Farm Comparative Profitability, Irrigation Capacity and Risk Analysis
B4: Farm Name | C4: ABC Farm
B5: Acres covered by irrigation system | C5: 120
B6: Total cropland acres | C6: 160
B7: Irrigation capacity in GPM | C7: 350
B8: Total number of days to irrigate | C8: 100
B9: Total acre inches available | C9: =C8*24*60*C7/27154 -> 1856.080136 | E9: =-C9*0.05 -> -92.80400678 | F9: =C9*0.05 -> 92.80400678
B10: Acre-inches per irrigated acre | C10: =IF(C5>0, C9/C5, 0) -> 15.46733446
F12: Comparative Farm Scenarios
B13: Crop | C13: APH | D13: Units | E13: Insurance Level | F13: 1 | G13: 2 | H13: 3 | I13: 4 | J13: 5 | K13: 6 | L13: Irrigation | M13: Inches | N13: Total Return | O13: Tenant Return | P13: Landlord Return | Q13: Total Pre-Harvest | R13: Tenant Pre-Harvest | S13: Landlord Pre-Harvest | T13: Insurance Price | U13: Landlord Share | V13: Tenant Share
B14: Irrigated Cotton - Pivot | C14: 975 | D14: =IF($B14="", "", VLOOKUP($B14, $B$60:$M$79,11)) -> lbs | E14: 0.65 | F14: 120 | L14: =IF($B14="", "", IF(VLOOKUP(B14, $B$60:$L$79,9)>0,TRUE, FALSE)) -> TRUE | M14: =IF($B14="", 0, VLOOKUP(B14, $B$60:$L$79,9)) -> 12 | N14: =IF($B14="", 0, VLOOKUP($B14, $B$60:$M$79,2)) -> 280.9186567 | O14: =IF($B14="", 0, VLOOKUP($B14, $B$60:$M$79,4)) -> 131.4298801 | P14: =IF($B14="", 0, VLOOKUP($B14, $B$60:$M$79,5)) -> 149.4887767 | Q14: =IF($B14="", 0, VLOOKUP($B14, $B$60:$M$79,6)) -> 479.6170575 | R14: =IF($B14="", 0, VLOOKUP($B14, $B$60:$M$79,7)) -> 413.9719057 | S14: =IF($B14="", 0, VLOOKUP($B14, $B$60:$M$79,8)) -> 65.64515188 | T14: =IF($B14="", 0, VLOOKUP($B14, $B$60:$M$79,10)) -> 0.94307 | U14: =IF($B14="", 0, VLOOKUP($B14, $B$60:$M$79,12)) -> 0.25 | V14: =1-U14 -> 0.75
B15: Dryland Cotton - Herbicide Tolerant | C15: 300 | D15: lbs | E15: 0.65 | F15: 40 | L15: FALSE | M15: 0 | N15: 50.15823681 | O15: 7.75840761 | P15: 42.3998292 | Q15: 172.5148401 | R15: 151.7464001 | S15: 20.76844003 | T15: 0.94307 | U15: 0.25 | V15: =1-U15 -> 0.75
B16: Irrigated Sorghum | C16: 56 | D16: cwt | E16: 0.65 | G16: 120 | L16: TRUE | M16: 9 | N16: 25.9663218 | O16: -22.63629365 | P16: 48.60261545 | Q16: 326.0336782 | R16: 286.6362936 | S16: 39.39738455 | T16: 7.964285714 | U16: 0.25 | V16: 0.75
B17: Dryland Sorghum | C17: 21 | D17: cwt | E17: 0.65 | G17: 40 | L17: FALSE | M17: 0 | N17: -2.21609875 | O17: -16.02504406 | P17: 13.80894531 | Q17: 107.0160988 | R17: 89.32504406 | S17: 17.69105469 | T17: 7.964285714 | U17: 0.25 | V17: 0.75
M18: 0 | N18: 0 | O18: 0 | P18: 0 | Q18: 0 | R18: 0 | S18: 0 | T18: 0 | U18: 0 | V18: 1
M19: 0 | N19: 0 | O19: 0 | P19: 0 | Q19: 0 | R19: 0 | S19: 0 | T19: 0 | U19: 0 | V19: 1
M20: 0 | N20: 0 | O20: 0 | P20: 0 | Q20: 0 | R20: 0 | S20: 0 | T20: 0 | U20: 0 | V20: 1
M21: 0 | N21: 0 | O21: 0 | P21: 0 | Q21: 0 | R21: 0 | S21: 0 | T21: 0 | U21: 0 | V21: 1
B23: Acreage Check
B24: Irrigated | F24: =SUMIF($L$14:$L$21, TRUE, F$14:F$21) -> 120 | G24: 120 | H24: 0 | I24: 0 | J24: 0 | K24: 0
B25: Dryland | F25: =SUMIF($L$14:$L$21, FALSE, F$14:F$21) -> 40 | G25: 40 | H25: 0 | I25: 0 | J25: 0 | K25: 0
B26: Total | F26: =SUM(F$14:F$21) -> 160 | G26: 160 | H26: 0 | I26: 0 | J26: 0 | K26: 0
B27: Irrigation Check
B28: Total acre inches used | F28: =SUM(F14:F21*$M$14:$M$21) -> 1440 | G28: =SUM(G14:G21*$M$14:$M$21) -> 1080 | H28: =SUM(H14:H21*$M$14:$M$21) -> 0 | I28: =SUM(I14:I21*$M$14:$M$21) -> 0 | J28: =SUM(J14:J21*$M$14:$M$21) -> 0 | K28: =SUM(K14:K21*$M$14:$M$21) -> 0
B29: Irrigation capacity check | F29: =$C$9-F28 -> 416.0801355 | G29: 776.0801355 | H29: 1856.080136 | I29: 1856.080136 | J29: 1856.080136 | K29: 1856.080136
B30: Percent irrigation capacity | F30: =IF($C$9=0, 0, F28/$C$9) -> 0.7758285714 | G30: 0.5818714286 | H30: 0 | I30: 0 | J30: 0 | K30: 0
B32: Profitability - Return over direct expenses
B33: Total | F33: =SUM(F$14:F$21*$N$14:$N$21) -> 35716.56828 | G33: =SUM(G$14:G$21*$N$14:$N$21) -> 3027.314666 | H33: =SUM(H$14:H$21*$N$14:$N$21) -> 0 | I33: =SUM(I$14:I$21*$N$14:$N$21) -> 0 | J33: =SUM(J$14:J$21*$N$14:$N$21) -> 0 | K33: =SUM(K$14:K$21*$N$14:$N$21) -> 0
B34: Tenant | F34: =SUM(F$14:F$21*$O$14:$O$21) -> 16081.92191 | G34: =SUM(G$14:G$21*$O$14:$O$21) -> -3357.357 | H34: =SUM(H$14:H$21*$O$14:$O$21) -> 0 | I34: =SUM(I$14:I$21*$O$14:$O$21) -> 0 | J34: =SUM(J$14:J$21*$O$14:$O$21) -> 0 | K34: =SUM(K$14:K$21*$O$14:$O$21) -> 0
B35: Landlord | F35: =SUM(F$14:F$21*$P$14:$P$21) -> 19634.64637 | G35: =SUM(G$14:G$21*$P$14:$P$21) -> 6384.671667 | H35: =SUM(H$14:H$21*$P$14:$P$21) -> 0 | I35: =SUM(I$14:I$21*$P$14:$P$21) -> 0 | J35: =SUM(J$14:J$21*$P$14:$P$21) -> 0 | K35: =SUM(K$14:K$21*$P$14:$P$21) -> 0
B37: Financial Risk
B38: Total
B39: Pre-Harvest Costs | F39: =SUM(F$14:F$21*$Q$14:$Q$21) -> 64454.64051 | G39: =SUM(G$14:G$21*$Q$14:$Q$21) -> 43404.68533 | H39: =SUM(H$14:H$21*$Q$14:$Q$21) -> 0 | I39: =SUM(I$14:I$21*$Q$14:$Q$21) -> 0 | J39: =SUM(J$14:J$21*$Q$14:$Q$21) -> 0 | K39: =SUM(K$14:K$21*$Q$14:$Q$21) -> 0
B40: Insurance Guarantee | F40: =SUM($C$14:$C$21*$E$14:$E$21*F$14:F$21*$T$14:$T$21) -> 79076.4195 | G40: =SUM($C$14:$C$21*$E$14:$E$21*G$14:G$21*$T$14:$T$21) -> 39136.5 | H40: =SUM($C$14:$C$21*$E$14:$E$21*H$14:H$21*$T$14:$T$21) -> 0 | I40: =SUM($C$14:$C$21*$E$14:$E$21*I$14:I$21*$T$14:$T$21) -> 0 | J40: =SUM($C$14:$C$21*$E$14:$E$21*J$14:J$21*$T$14:$T$21) -> 0 | K40: =SUM($C$14:$C$21*$E$14:$E$21*K$14:K$21*$T$14:$T$21) -> 0
B41: Insurance Coverage Ratio | F41: =IF(F39>0, F40/F39, 0) -> 1.226853782 | G41: 0.9016653317 | H41: 0 | I41: 0 | J41: 0 | K41: 0
B42: Tenant
B43: Pre-Harvest Costs | F43: =SUM(F$14:F$21*$R$14:$R$21) -> 55746.48468 | G43: =SUM(G$14:G$21*$R$14:$R$21) -> 37969.357 | H43: =SUM(H$14:H$21*$R$14:$R$21) -> 0 | I43: =SUM(I$14:I$21*$R$14:$R$21) -> 0 | J43: =SUM(J$14:J$21*$R$14:$R$21) -> 0 | K43: =SUM(K$14:K$21*$R$14:$R$21) -> 0
B44: Insurance Guarantee | F44: =SUM($C$14:$C$21*$E$14:$E$21*F$14:F$21*$T$14:$T$21*$V$14:$V$21) -> 59307.31462 | G44: =SUM($C$14:$C$21*$E$14:$E$21*G$14:G$21*$T$14:$T$21*$V$14:$V$21) -> 29352.375 | H44: =SUM($C$14:$C$21*$E$14:$E$21*H$14:H$21*$T$14:$T$21*$V$14:$V$21) -> 0 | I44: =SUM($C$14:$C$21*$E$14:$E$21*I$14:I$21*$T$14:$T$21*$V$14:$V$21) -> 0 | J44: =SUM($C$14:$C$21*$E$14:$E$21*J$14:J$21*$T$14:$T$21*$V$14:$V$21) -> 0 | K44: =SUM($C$14:$C$21*$E$14:$E$21*K$14:K$21*$T$14:$T$21*$V$14:$V$21) -> 0
B45: Insurance Coverage Ratio | F45: =IF(F43>0, F44/F43, 0) -> 1.063875417 | G45: 0.773054308 | H45: 0 | I45: 0 | J45: 0 | K45: 0
B46: Landlord
B47: Pre-Harvest Costs | F47: =SUM(F$14:F$21*$S$14:$S$21) -> 8708.155827 | G47: =SUM(G$14:G$21*$S$14:$S$21) -> 5435.328333 | H47: =SUM(H$14:H$21*$S$14:$S$21) -> 0 | I47: =SUM(I$14:I$21*$S$14:$S$21) -> 0 | J47: =SUM(J$14:J$21*$S$14:$S$21) -> 0 | K47: =SUM(K$14:K$21*$S$14:$S$21) -> 0
B48: Insurance Guarantee | F48: =SUM($C$14:$C$21*$E$14:$E$21*F$14:F$21*$T$14:$T$21*$U$14:$U$21) -> 19769.10488 | G48: =SUM($C$14:$C$21*$E$14:$E$21*G$14:G$21*$T$14:$T$21*$U$14:$U$21) -> 9784.125 | H48: =SUM($C$14:$C$21*$E$14:$E$21*H$14:H$21*$T$14:$T$21*$U$14:$U$21) -> 0 | I48: =SUM($C$14:$C$21*$E$14:$E$21*I$14:I$21*$T$14:$T$21*$U$14:$U$21) -> 0 | J48: =SUM($C$14:$C$21*$E$14:$E$21*J$14:J$21*$T$14:$T$21*$U$14:$U$21) -> 0 | K48: =SUM($C$14:$C$21*$E$14:$E$21*K$14:K$21*$T$14:$T$21*$U$14:$U$21) -> 0
B49: Insurance Coverage Ratio | F49: =IF(F47>0, F48/F47, 0) -> 2.270182719 | G49: 1.800098246 | H49: 0 | I49: 0 | J49: 0 | K49: 0
E51: 0.5
E52: 0.55
E53: 0.6
E54: 0.65
E55: 0.7
E56: 0.75
E57: 0.8
E58: 0.85
C59: Total Return Over Direct | E59: Tenant Return Over Direct | F59: Landlord Return Over Direct | G59: Total Pre-Harvest Expense | H59: Tenant Pre-Harvest Expense | I59: Landlord Pre-Harvest Expense | J59: Inches of Water | K59: Insurance Price | L59: Unit | M59: Landlord Share of Production
B60: ='Dry Cotton Conventional'!$A$3 -> Dryland Cotton - Conventional | C60: ='Comparative Returns'!H22 -> 8.033611114 | E60: ='Comparative Returns'!I22 -> -39.24231666 | F60: ='Comparative Returns'!J22 -> 47.27592778 | G60: ='Dry Cotton Conventional'!F45-'Dry Cotton Conventional'!F27-'Dry Cotton Conventional'!F28-'Dry Cotton Conventional'!F29 -> 214.6394658 | H60: ='Dry Cotton Conventional'!G45-'Dry Cotton Conventional'!G27-'Dry Cotton Conventional'!G28-'Dry Cotton Conventional'!G29 -> 198.7471244 | I60: ='Dry Cotton Conventional'!H45-'Dry Cotton Conventional'!H27-'Dry Cotton Conventional'!H28-'Dry Cotton Conventional'!H29 -> 15.89234145 | J60: 0 | K60: =0.78+(0.115*1.418) -> 0.94307 | L60: ='Dry Cotton Conventional'!$C$9 -> lbs | M60: ='Dry Cotton Conventional'!E9 -> 0.25
B61: ='Dry Cotton HT'!$A$3 -> Dryland Cotton - Herbicide Tolerant | C61: ='Comparative Returns'!H23 -> 50.15823681 | E61: ='Comparative Returns'!I23 -> 7.75840761 | F61: ='Comparative Returns'!J23 -> 42.3998292 | G61: ='Dry Cotton HT'!F45-'Dry Cotton HT'!F27-'Dry Cotton HT'!F28-'Dry Cotton HT'!F29 -> 172.5148401 | H61: ='Dry Cotton HT'!G45-'Dry Cotton HT'!G27-'Dry Cotton HT'!G28-'Dry Cotton HT'!G29 -> 151.7464001 | I61: ='Dry Cotton HT'!H45-'Dry Cotton HT'!H27-'Dry Cotton HT'!H28-'Dry Cotton HT'!H29 -> 20.76844003 | J61: 0 | K61: =0.78+(0.115*1.418) -> 0.94307 | L61: ='Dry Cotton HT'!$C$9 -> lbs | M61: ='Dry Cotton HT'!E9 -> 0.25
B62: ='Dry Sesame'!$A$3 -> Dryland Sesame | C62: ='Comparative Returns'!H25 -> 79.64244125 | E62: ='Comparative Returns'!I25 -> 41.40349594 | F62: ='Comparative Returns'!J25 -> 38.23894531 | G62: ='Dry Sesame'!F40-'Dry Sesame'!F23-'Dry Sesame'!F24 -> 90.51755875 | H62: ='Dry Sesame'!G40-'Dry Sesame'!G23-'Dry Sesame'!G24 -> 86.21650406 | I62: ='Dry Sesame'!H40-'Dry Sesame'!H23-'Dry Sesame'!H24 -> 4.301054688 | J62: 0 | K62: =Sesame_NI_Price -> 0.28 | L62: ='Dry Sesame'!$C$9 -> lbs | M62: ='Dry Sesame'!E9 -> 0.25
B63: ='Dry Sorghum'!$A$3 -> Dryland Sorghum | C63: ='Comparative Returns'!H26 -> -2.21609875 | E63: ='Comparative Returns'!I26 -> -16.02504406 | F63: ='Comparative Returns'!J26 -> 13.80894531 | G63: ='Dry Sorghum'!F41-'Dry Sorghum'!F24-'Dry Sorghum'!F25 -> 107.0160988 | H63: ='Dry Sorghum'!G41-'Dry Sorghum'!G24-'Dry Sorghum'!G25 -> 89.32504406 | I63: ='Dry Sorghum'!H41-'Dry Sorghum'!H24-'Dry Sorghum'!H25 -> 17.69105469 | J63: 0 | K63: =4.46/56*100 -> 7.964285714 | L63: ='Dry Sorghum'!$C$9 -> cwt | M63: ='Dry Sorghum'!E9 -> 0.25
B64: ='Dry Sunflowers-Oilseed'!$A$3 -> Dryland Sunflowers-Oilseed | C64: ='Comparative Returns'!H27 -> -1.974405 | E64: ='Comparative Returns'!I27 -> -21.32014875 | F64: ='Comparative Returns'!J27 -> 19.34574375 | G64: ='Dry Sunflowers-Oilseed'!F40-'Dry Sunflowers-Oilseed'!F23-'Dry Sunflowers-Oilseed'!F24 -> 123.974405 | H64: ='Dry Sunflowers-Oilseed'!G40-'Dry Sunflowers-Oilseed'!G23-'Dry Sunflowers-Oilseed'!G24 -> 112.8201487 | I64: ='Dry Sunflowers-Oilseed'!H40-'Dry Sunflowers-Oilseed'!H23-'Dry Sunflowers-Oilseed'!H24 -> 11.15425625 | J64: 0 | K64: 0.209 | L64: ='Dry Sunflowers-Oilseed'!$C$9 -> lbs | M64: ='Dry Sunflowers-Oilseed'!E9 -> 0.25
B65: ='Dry Wheat'!$A$3 -> Dryland Wheat | C65: ='Comparative Returns'!H28 -> -6.83655875 | E65: ='Comparative Returns'!I28 -> -23.14675406 | F65: ='Comparative Returns'!J28 -> 16.31019531 | G65: ='Dry Wheat'!F40-'Dry Wheat'!F24-'Dry Wheat'!F25 -> 114.5165587 | H65: ='Dry Wheat'!G42-'Dry Wheat'!G23 -> -4.125 | I65: ='Dry Wheat'!H42-'Dry Wheat'!H23 -> -1.375 | J65: 0 | K65: 7.02 | L65: ='Dry Wheat'!$C$9 -> bu | M65: ='Dry Wheat'!E9 -> 0.25
B66: ='Irr Alfalfa'!$A$3 -> Irrigated Alfalfa | C66: ='Comparative Returns'!H7 -> 428.994443 | E66: ='Comparative Returns'!I7 -> 242.2916323 | F66: ='Comparative Returns'!J7 -> 186.7028108 | G66: ='Irr Alfalfa'!F$46-'Irr Alfalfa'!F$24 -> 471.005557 | H66: ='Irr Alfalfa'!G$46-'Irr Alfalfa'!G$24 -> 432.7083677 | I66: ='Irr Alfalfa'!H$46-'Irr Alfalfa'!H$24 -> 38.29718925 | J66: =Alfalfa_Inches -> 24 | K66: 0 | L66: ='Irr Alfalfa'!$C$9 -> tons | M66: ='Irr Alfalfa'!E9 -> 0.25
B67: ='Irr Blackeyes'!$A$3 -> Irrigated Blackeyed Peas | C67: ='Comparative Returns'!H8 -> 347.859495 | E67: ='Comparative Returns'!I8 -> 218.5884013 | F67: ='Comparative Returns'!J8 -> 129.2710938 | G67: ='Irr Blackeyes'!F46-'Irr Blackeyes'!F23-'Irr Blackeyes'!F24 -> 247.440505 | H67: ='Irr Blackeyes'!G46-'Irr Blackeyes'!G23-'Irr Blackeyes'!G24 -> 227.8865987 | I67: ='Irr Blackeyes'!H46-'Irr Blackeyes'!H23-'Irr Blackeyes'!H24 -> 19.55390625 | J67: =Blackeyes_Inches -> 8 | K67: 0.43 | L67: ='Irr Blackeyes'!$C$9 -> lbs | M67: ='Irr Blackeyes'!E9 -> 0.25
B68: ='Irr Corn'!$A$3 -> Irrigated Corn | C68: ='Comparative Returns'!H9 -> 70.84785569 | E68: ='Comparative Returns'!I9 -> -62.42907823 | F68: ='Comparative Returns'!J9 -> 133.2769339 | G68: ='Irr Corn'!F45-'Irr Corn'!F23 -> 737.6521443 | H68: ='Irr Corn'!G45-'Irr Corn'!G23 -> 668.8040782 | I68: ='Irr Corn'!H45-'Irr Corn'!H23 -> 68.84806608 | J68: =Corn_Inches -> 24 | K68: 4.62 | L68: ='Irr Corn'!$C$9 -> bu | M68: ='Irr Corn'!E9 -> 0.25
B69: ='Irr Corn Silage'!$A$3 -> Irrigated Corn Silage | C69: ='Comparative Returns'!H10 -> 33.41750593 | E69: ='Comparative Returns'!I10 -> -81.00524055 | F69: ='Comparative Returns'!J10 -> 114.4227465 | G69: ='Irr Corn Silage'!F45-'Irr Corn Silage'!F23 -> 720.5824941 | H69: ='Irr Corn Silage'!G45-'Irr Corn Silage'!G23 -> 646.5052405 | I69: ='Irr Corn Silage'!H45-'Irr Corn Silage'!H23 -> 74.07725352 | J69: =Corn_Silage_Inches -> 22 | K69: 0 | L69: ='Irr Corn Silage'!$C$9 -> tons | M69: ='Irr Corn Silage'!E9 -> 0.25
B70: ='Irr Cotton Drip'!$A$3 -> Irrigated Cotton - Drip | C70: ='Comparative Returns'!H11 -> 437.8339994 | E70: ='Comparative Returns'!I11 -> 84.37765363 | F70: ='Comparative Returns'!J11 -> 353.4563458 | G70: ='Irr Cotton Drip'!F52-'Irr Cotton Drip'!F28-'Irr Cotton Drip'!F29-'Irr Cotton Drip'!F30 -> 631.9160006 | H70: ='Irr Cotton Drip'!G52-'Irr Cotton Drip'!G28-'Irr Cotton Drip'!G29-'Irr Cotton Drip'!G30 -> 572.5423464 | I70: ='Irr Cotton Drip'!H52-'Irr Cotton Drip'!H28-'Irr Cotton Drip'!H29-'Irr Cotton Drip'!H30 -> 59.37365418 | J70: =Cotton_Drip_Inches -> 18 | K70: =0.78+(0.115*1.418) -> 0.94307 | L70: ='Irr Cotton Drip'!$C$9 -> lbs | M70: ='Irr Cotton Drip'!E9 -> 0.33
B71: ='Irr Cotton Pivot'!$A$3 -> Irrigated Cotton - Pivot | C71: ='Comparative Returns'!H12 -> 280.9186567 | E71: ='Comparative Returns'!I12 -> 131.4298801 | F71: ='Comparative Returns'!J12 -> 149.4887767 | G71: ='Irr Cotton Pivot'!F51-'Irr Cotton Pivot'!F27-'Irr Cotton Pivot'!F28-'Irr Cotton Pivot'!F29 -> 479.6170575 | H71: ='Irr Cotton Pivot'!G51-'Irr Cotton Pivot'!G27-'Irr Cotton Pivot'!G28-'Irr Cotton Pivot'!G29 -> 413.9719057 | I71: ='Irr Cotton Pivot'!H51-'Irr Cotton Pivot'!H27-'Irr Cotton Pivot'!H28-'Irr Cotton Pivot'!H29 -> 65.64515188 | J71: =Cotton_Inches -> 12 | K71: =0.78+(0.115*1.418) -> 0.94307 | L71: ='Irr Cotton Pivot'!$C$9 -> lbs | M71: ='Irr Cotton Pivot'!E9 -> 0.25
B72: ='Irr Peanuts'!$A$3 -> Irrigated Peanuts | C72: ='Comparative Returns'!H14 -> 6.716300588 | E72: ='Comparative Returns'!I14 -> -106.8887546 | F72: ='Comparative Returns'!J14 -> 113.6050551 | G72: ='Irr Peanuts'!F50-'Irr Peanuts'!F25-'Irr Peanuts'!F26-'Irr Peanuts'!F27 -> 665.7836994 | H72: ='Irr Peanuts'!G50-'Irr Peanuts'!G25-'Irr Peanuts'!G26-'Irr Peanuts'!G27 -> 611.2637546 | I72: ='Irr Peanuts'!H50-'Irr Peanuts'!H25-'Irr Peanuts'!H26-'Irr Peanuts'!H27 -> 54.51994485 | J72: =Peanuts_Inches -> 24 | K72: =Peanut_Price -> 400 | L72: ='Irr Peanuts'!$C$9 -> tons | M72: ='Irr Peanuts'!E9 -> 0.25
B73: ='Irr Sesame'!$A$3 -> Irrigated Sesame | C73: ='Comparative Returns'!H15 -> 152.8617055 | E73: ='Comparative Returns'!I15 -> 59.78693411 | F73: ='Comparative Returns'!J15 -> 93.07477137 | G73: ='Irr Sesame'!F47-'Irr Sesame'!F24-'Irr Sesame'!F25 -> 300.3382945 | H73: ='Irr Sesame'!G47-'Irr Sesame'!G24-'Irr Sesame'!G25 -> 280.1130659 | I73: ='Irr Sesame'!H47-'Irr Sesame'!H24-'Irr Sesame'!H25 -> 20.22522863 | J73: =Sesame_Inches -> 11 | K73: =Sesame_Price -> 0.32 | L73: ='Irr Sesame'!$C$9 -> lbs | M73: ='Irr Sesame'!E9 -> 0.25
B74: ='Irr Sorghum'!$A$3 -> Irrigated Sorghum | C74: ='Comparative Returns'!H16 -> 25.9663218 | E74: ='Comparative Returns'!I16 -> -22.63629365 | F74: ='Comparative Returns'!J16 -> 48.60261545 | G74: ='Irr Sorghum'!F46-'Irr Sorghum'!F24 -> 326.0336782 | H74: ='Irr Sorghum'!G46-'Irr Sorghum'!G24 -> 286.6362936 | I74: ='Irr Sorghum'!H46-'Irr Sorghum'!H24 -> 39.39738455 | J74: =Sorghum_Inches -> 9 | K74: =4.46/56*100 -> 7.964285714 | L74: ='Irr Sorghum'!$C$9 -> cwt | M74: ='Irr Sorghum'!E9 -> 0.25
B75: ='Irr Sorghum Silage'!$A$3 -> Irrigated Sorghum Silage | C75: ='Comparative Returns'!H17 -> 174.8978459 | E75: ='Comparative Returns'!I17 -> 59.54983483 | F75: ='Comparative Returns'!J17 -> 115.3480111 | G75: ='Irr Sorghum Silage'!F45-'Irr Sorghum Silage'!F23 -> 449.1021541 | H75: ='Irr Sorghum Silage'!G45-'Irr Sorghum Silage'!G23 -> 408.4501652 | I75: ='Irr Sorghum Silage'!H45-'Irr Sorghum Silage'!H23 -> 40.65198888 | J75: =Sorghum_Silage_Inches -> 16 | K75: 0 | L75: ='Irr Sorghum Silage'!$C$9 -> tons | M75: ='Irr Sorghum Silage'!E9 -> 0.25
B76: ='Irr Soybeans'!$A$3 -> Irrigated Soybeans | C76: ='Comparative Returns'!H18 -> -40.31168647 | E76: ='Comparative Returns'!I18 -> -100.4339299 | F76: ='Comparative Returns'!J18 -> 60.12224338 | G76: ='Irr Soybeans'!F47-'Irr Soybeans'!F25 -> 380.3116865 | H76: ='Irr Soybeans'!G47-'Irr Soybeans'!G25 -> 355.4339299 | I76: ='Irr Soybeans'!H47-'Irr Soybeans'!H25 -> 24.87775662 | J76: =Soybeans_Inches -> 15 | K76: 11.36 | L76: ='Irr Soybeans'!$C$9 -> bu | M76: ='Irr Soybeans'!E9 -> 0.25
B77: ='Irr Sunflowers-Confection'!$A$3 -> Irrigated Sunflowers-Confectionary | C77: ='Comparative Returns'!H19 -> 104.2942021 | E77: ='Comparative Returns'!I19 -> 39.7573616 | F77: ='Comparative Returns'!J19 -> 64.53684053 | G77: ='Irr Sunflowers-Confection'!F47-'Irr Sunflowers-Confection'!F23-'Irr Sunflowers-Confection'!F24 -> 296.4257979 | H77: ='Irr Sunflowers-Confection'!G43-'Irr Sunflowers-Confection'!G22-'Irr Sunflowers-Confection'!G23 -> -33.75 | I77: ='Irr Sunflowers-Confection'!H43-'Irr Sunflowers-Confection'!H22-'Irr Sunflowers-Confection'!H23 -> -5.25 | J77: =Sunflowers_Conf_Inches -> 8 | K77: 0.274 | L77: ='Irr Sunflowers-Confection'!$C$9 -> lbs | M77: ='Irr Sunflowers-Confection'!E9 -> 0.25
B78: ='Irr Sunflowers-Oilseed'!$A$3 -> Irrigated Sunflowers-Oilseed | C78: ='Comparative Returns'!H20 -> -25.30719787 | E78: ='Comparative Returns'!I20 -> -65.6193134 | F78: ='Comparative Returns'!J20 -> 40.31211553 | G78: ='Irr Sunflowers-Oilseed'!F46-'Irr Sunflowers-Oilseed'!F22-'Irr Sunflowers-Oilseed'!F23 -> 279.3071979 | H78: ='Irr Sunflowers-Oilseed'!G46-'Irr Sunflowers-Oilseed'!G22-'Irr Sunflowers-Oilseed'!G23 -> 256.1193134 | I78: ='Irr Sunflowers-Oilseed'!H46-'Irr Sunflowers-Oilseed'!H22-'Irr Sunflowers-Oilseed'!H23 -> 23.18788447 | J78: =Sunflowers_Oil_Inches -> 8 | K78: 0.209 | L78: ='Irr Sunflowers-Oilseed'!$C$9 -> lbs | M78: ='Irr Sunflowers-Oilseed'!E9 -> 0.25
B79: ='Irr Wheat'!$A$3 -> Irrigated Wheat | C79: ='Comparative Returns'!H21 -> -45.51395931 | E79: ='Comparative Returns'!I21 -> -92.14918948 | F79: ='Comparative Returns'!J21 -> 46.63523017 | G79: ='Irr Wheat'!F45-'Irr Wheat'!F24 -> 388.7139593 | H79: ='Irr Wheat'!G45-'Irr Wheat'!G24 -> 349.5491895 | I79: ='Irr Wheat'!H45-'Irr Wheat'!H24 -> 39.16476983 | J79: =Wheat_Inches -> 14 | K79: 7.02 | L79: ='Irr Wheat'!$C$9 -> bu | M79: ='Irr Wheat'!E9 -> 0.25
